Workbook

Sheet Contents
C1: Go to Charts by Pressing Shift and Enter on Menu Item
C3: Sheet Tab | D3: Description | E3: Author
B4: 1 | C4: Contents
B5: 2 | C5: Menu Sheet
B6: 3 | C6: Equity Trend Analysis
B7: 4 | C7: Historic for Model
B8: 5 | C8: Value Driver Equity
B9: 6 | C9: Value Driver ROI
B10: 7 | C10: MB and ROE
B11: 8 | C11: EV to Inv Cap and ROI
B12: 9 | C12: Dividend Discount
B13: 10 | C13: CAPM Summary
B14: 11 | C14: Single Company Graph
B15: 12 | C15: EBITDA Trend Analysis
B16: 13 | C16: EV to EBITDA Analysis
B17: 14 | C17: PE Analysis
B18: 15 | C18: Data Cost of Capital
B19: 16 | C19: Data Extract Stocks
B20: 17 | C20: Data Extract Income Stmt
B21: 18 | C21: Data Extract Balance Sheet
B22: 19 | C22: General Instructions
B23: 20 | C23: Notes
B24: 21 | C24: BREAK
B25: 22 | C25: LGGNY Income St
B26: 23 | C26: LGGNY Balance Sheet
B27: 24 | C27: LGGNY Cash Flow
B28: 25 | C28: LGEN.L Summary
B29: 26 | C29: LGGNY Mktw Sum
B30: 27 | C30: LGGNY Mkwt Basic
B31: 28 | C31: LGEN.L Yahoo Gr
B32: 29 | C32: LGGNY Mktwth Gr
B33: 30 | C33: LGGNY Income Qtr
B34: 31 | C34: LGGNY Balance Qtr
B35: 32 | C35: LGGNY Cash Qtr
B36: 33 | C36: MET Income St
B37: 34 | C37: MET Balance Sheet
B38: 35 | C38: MET Cash Flow
B39: 36 | C39: MET Summary
B40: 37 | C40: MET Mktw Sum
B41: 38 | C41: MET Mkwt Basic
B42: 39 | C42: MET Yahoo Gr
B43: 40 | C43: MET Mktwth Gr
B44: 41 | C44: MET Income Qtr
B45: 42 | C45: MET Balance Qtr
B46: 43 | C46: MET Cash Qtr
B47: 44 | C47: AIG Income St
B48: 45 | C48: AIG Balance Sheet
B49: 46 | C49: AIG Cash Flow
B50: 47 | C50: AIG Summary
B51: 48 | C51: AIG Mktw Sum
B52: 49 | C52: AIG Mkwt Basic
B53: 50 | C53: AIG Yahoo Gr
B54: 51 | C54: AIG Mktwth Gr
B55: 52 | C55: AIG Income Qtr
B56: 53 | C56: AIG Balance Qtr
B57: 54 | C57: AIG Cash Qtr
B58: 55 | C58: PRU Income St
B59: 56 | C59: PRU Balance Sheet
B60: 57 | C60: PRU Cash Flow
B61: 58 | C61: PRU Summary
B62: 59 | C62: PRU Mktw Sum
B63: 60 | C63: PRU Mkwt Basic
B64: 61 | C64: PRU Yahoo Gr
B65: 62 | C65: PRU Mktwth Gr
B66: 63 | C66: PRU Income Qtr
B67: 64 | C67: PRU Balance Qtr
B68: 65 | C68: PRU Cash Qtr
B69: 66 | C69: GNW Income St
B70: 67 | C70: GNW Balance Sheet
B71: 68 | C71: GNW Cash Flow
B72: 69 | C72: GNW Summary
B73: 70 | C73: GNW Mktw Sum
B74: 71 | C74: GNW Mkwt Basic
B75: 72 | C75: GNW Yahoo Gr
B76: 73 | C76: GNW Mktwth Gr
B77: 74 | C77: GNW Income Qtr
B78: 75 | C78: GNW Balance Qtr
B79: 76 | C79: GNW Cash Qtr
B80: 77 | C80: GWLIF Income St
B81: 78 | C81: GWLIF Balance Sheet
B82: 79 | C82: GWLIF Cash Flow
B83: 80 | C83: GWO.TO Summary
B84: 81 | C84: GWLIF Mktw Sum
B85: 82 | C85: GWLIF Mkwt Basic
B86: 83 | C86: GWO.TO Yahoo Gr
B87: 84 | C87: GWLIF Mktwth Gr
B88: 85 | C88: GWLIF Income Qtr
B89: 86 | C89: GWLIF Balance Qtr
B90: 87 | C90: GWLIF Cash Qtr
B91: 88 | C91: LFC Income St
B92: 89 | C92: LFC Balance Sheet
B93: 90 | C93: LFC Cash Flow
B94: 91 | C94: 2628.HK Summary
B95: 92 | C95: LFC Mktw Sum
B96: 93 | C96: LFC Mkwt Basic
B97: 94 | C97: 2628.HK Yahoo Gr
B98: 95 | C98: LFC Mktwth Gr
B99: 96 | C99: LFC Income Qtr
B100: 97 | C100: LFC Balance Qtr
B101: 98 | C101: LFC Cash Qtr
B102: 99 | C102: AAGIY Income St
B103: 100 | C103: AAGIY Balance Sheet
B104: 101 | C104: AAGIY Cash Flow
B105: 102 | C105: 1299.HK Summary
B106: 103 | C106: AAGIY Mktw Sum
B107: 104 | C107: AAGIY Mkwt Basic
B108: 105 | C108: 1299.HK Yahoo Gr
B109: 106 | C109: AAGIY Mktwth Gr
B110: 107 | C110: AAGIY Income Qtr
B111: 108 | C111: AAGIY Balance Qtr
B112: 109 | C112: AAGIY Cash Qtr
B113: 110 | C113: CHPXY Income St
B114: 111 | C114: CHPXY Balance Sheet
B115: 112 | C115: CHPXY Cash Flow
B116: 113 | C116: 2601.HK Summary
B117: 114 | C117: CHPXY Mktw Sum
B118: 115 | C118: CHPXY Mkwt Basic
B119: 116 | C119: 2601.HK Yahoo Gr
B120: 117 | C120: CHPXY Mktwth Gr
B121: 118 | C121: CHPXY Income Qtr
B122: 119 | C122: CHPXY Balance Qtr
B123: 120 | C123: CHPXY Cash Qtr
B124: 121 | C124: AFL Income St
B125: 122 | C125: AFL Balance Sheet
B126: 123 | C126: AFL Cash Flow
B127: 124 | C127: AFL Summary
B128: 125 | C128: AFL Mktw Sum
B129: 126 | C129: AFL Mkwt Basic
B130: 127 | C130: AFL Yahoo Gr
B131: 128 | C131: AFL Mktwth Gr
B132: 129 | C132: AFL Income Qtr
B133: 130 | C133: AFL Balance Qtr
B134: 131 | C134: AFL Cash Qtr
B135: 132 | C135: DCNSF Income St
B136: 133 | C136: DCNSF Balance Sheet
B137: 134 | C137: DCNSF Cash Flow
B138: 135 | C138: DSNKY Summary
B139: 136 | C139: DCNSF Mktw Sum
B140: 137 | C140: DCNSF Mkwt Basic
B141: 138 | C141: DSNKY Yahoo Gr
B142: 139 | C142: DCNSF Mktwth Gr
B143: 140 | C143: DCNSF Income Qtr
B144: 141 | C144: DCNSF Balance Qtr
B145: 142 | C145: DCNSF Cash Qtr
B146: 143 | C146: ODMTY Income St
B147: 144 | C147: ODMTY Balance Sheet
B148: 145 | C148: ODMTY Cash Flow
B149: 146 | C149: OML.L Summary
B150: 147 | C150: ODMTY Mktw Sum
B151: 148 | C151: ODMTY Mkwt Basic
B152: 149 | C152: OML.L Yahoo Gr
B153: 150 | C153: ODMTY Mktwth Gr
B154: 151 | C154: ODMTY Income Qtr
B155: 152 | C155: ODMTY Balance Qtr
B156: 153 | C156: ODMTY Cash Qtr
B157: 154 | C157: POFNF Income St
B158: 155 | C158: POFNF Balance Sheet
B159: 156 | C159: POFNF Cash Flow
B160: 157 | C160: PWF.TO Summary
B161: 158 | C161: POFNF Mktw Sum
B162: 159 | C162: POFNF Mkwt Basic
B163: 160 | C163: PWF.TO Yahoo Gr
B164: 161 | C164: POFNF Mktwth Gr
B165: 162 | C165: POFNF Income Qtr
B166: 163 | C166: POFNF Balance Qtr
B167: 164 | C167: POFNF Cash Qtr
B168: 165 | C168: LNC Income St
B169: 166 | C169: LNC Balance Sheet
B170: 167 | C170: LNC Cash Flow
B171: 168 | C171: LNC Summary
B172: 169 | C172: LNC Mktw Sum
B173: 170 | C173: LNC Mkwt Basic
B174: 171 | C174: LNC Yahoo Gr
B175: 172 | C175: LNC Mktwth Gr
B176: 173 | C176: LNC Income Qtr
B177: 174 | C177: LNC Balance Qtr
B178: 175 | C178: LNC Cash Qtr
B179: 176 | C179: PFG Income St
B180: 177 | C180: PFG Balance Sheet
B181: 178 | C181: PFG Cash Flow
B182: 179 | C182: PFG Summary
B183: 180 | C183: PFG Mktw Sum
B184: 181 | C184: PFG Mkwt Basic
B185: 182 | C185: PFG Yahoo Gr
B186: 183 | C186: PFG Mktwth Gr
B187: 184 | C187: PFG Income Qtr
B188: 185 | C188: PFG Balance Qtr
B189: 186 | C189: PFG Cash Qtr
B190: 187 | C190: ALIZF Income St
B191: 188 | C191: ALIZF Balance Sheet
B192: 189 | C192: ALIZF Cash Flow
B193: 190 | C193: ALIZF Summary
B194: 191 | C194: ALIZF Mktw Sum
B195: 192 | C195: ALIZF Mkwt Basic
B196: 193 | C196: ALIZF Yahoo Gr
B197: 194 | C197: ALIZF Mktwth Gr
B198: 195 | C198: ALIZF Income Qtr
B199: 196 | C199: ALIZF Balance Qtr
B200: 197 | C200: ALIZF Cash Qtr
B201: 198 | C201: ZURVY Income St
... 96 more rows

Sheet Menu Sheet
B1: Menu Sheet to Read Stocks | F1: Max to Read | G1: 100 | J1: Stock Price | K1: End Year | L1: 2018 | M1: End Month | N1: 1
K2: End FY | L2: 2016 | M2: 1st Hist Data | N2: 2011
F3: Ticker Number | G3: 22 | K3: End Analysis | L3: 2016 | M3: Start Analysis
D4: Yahoo | E4: Mkt Watch | F4: URL Code | G4: 1 | I4: =INDEX(I43:I56,G4) -> https://query1.finance.yahoo.com/v7/finance/download/AGN.AS?period1=-631152000&period2=1517184000&interval=1wk&events=history&crumb=bOWFGrHaB9Z | Q4: http://finance.yahoo.com/q/ks?s=RNW.TO+Key+Statistics
E5: Symbol to Implement | F5: =INDEX(D12:D2159,G3) -> AGN.AS | G5: =INDEX(E12:E2159,G3) -> AEG
F6: Total Number of Companies to Read | G6: =MIN(COUNTA(D12:D33),G1) -> 22
F7: Sheet Name to Create | G7: =INDEX(P12:AA33,ticker_code,url_code) -> AGN.AS Stock Price
G9: Ticker | H9: Select | K9: Simple | P9: Sheet Names ---------------------------------------------------------------------------------------------------------->
D10: Yahoo | E10: Mktwatch | F10: Yahoo Sum | G10: Name | H10: Ticker | I10: True Counter | K10: Count | L10: Match | N10: Adjusted Ticker | P10: Stock Price | Q10: Income Stmt | R10: Balance Sheet | S10: Cash Flow | T10: Summary | U10: Mkt W Summary | V10: MktW Basic | W10: Yahoo Projected Growth | X10: Mkt W Projected Growth | Y10: Qtly Income | Z10: Qtly Balance | AA10: Qtly Cash
I11: 0
B12: L&G | D12: =F12 -> LGEN.L | E12: LGGNY | F12: LGEN.L | G12: ='Menu Sheet'!E12 -> LGGNY | H12: TRUE | I12: =I11+H12 -> 1 | K12: 1 | L12: =MATCH(K12,$I$12:$I$32,0) -> 1 | N12: =INDEX($G$12:$G$32,L12) -> LGGNY | P12: =F12&" "&$E$43 -> LGEN.L Stock Price | Q12: =N12&" "&$E$44 -> LGGNY Income St | R12: =N12&" "&$E$45 -> LGGNY Balance Sheet | S12: =N12&" "&$E$46 -> LGGNY Cash Flow | T12: =D12&" "&$E$47 -> LGEN.L Summary | U12: =N12&" "&$E$48 -> LGGNY Mktw Sum | V12: =$N12&" "&$E$49 -> LGGNY Mkwt Basic | W12: =D12&" "&$E$50 -> LGEN.L Yahoo Gr | X12: =$N12&" "&$E$51 -> LGGNY Mktwth Gr | Y12: =$N12&" "&$E$52 -> LGGNY Income Qtr | Z12: =$N12&" "&$E$53 -> LGGNY Balance Qtr | AA12: =$N12&" "&$E$54 -> LGGNY Cash Qtr
B13: Met Life | D13: MET | E13: MET | F13: MET | G13: ='Menu Sheet'!E13 -> MET | H13: TRUE | I13: =I12+H13 -> 2 | K13: =K12+1 -> 2 | L13: 2 | N13: MET | P13: =F13&" "&$E$43 -> MET Stock Price | Q13: MET Income St | R13: MET Balance Sheet | S13: MET Cash Flow | T13: =D13&" "&$E$47 -> MET Summary | U13: MET Mktw Sum | V13: =N13&" "&$E$49 -> MET Mkwt Basic | W13: =D13&" "&$E$50 -> MET Yahoo Gr | X13: MET Mktwth Gr | Y13: MET Income Qtr | Z13: MET Balance Qtr | AA13: MET Cash Qtr
B14: AIG | D14: AIG | E14: AIG | F14: AIG | G14: ='Menu Sheet'!E14 -> AIG | H14: TRUE | I14: 3 | K14: =K13+1 -> 3 | L14: 3 | N14: AIG | P14: AIG Stock Price | Q14: AIG Income St | R14: AIG Balance Sheet | S14: AIG Cash Flow | T14: AIG Summary | U14: AIG Mktw Sum | V14: AIG Mkwt Basic | W14: AIG Yahoo Gr | X14: AIG Mktwth Gr | Y14: AIG Income Qtr | Z14: AIG Balance Qtr | AA14: AIG Cash Qtr
B15: Prudential | D15: PRU | E15: PRU | F15: PRU | G15: ='Menu Sheet'!E15 -> PRU | H15: TRUE | I15: 4 | K15: 4 | L15: 4 | N15: PRU | P15: PRU Stock Price | Q15: PRU Income St | R15: PRU Balance Sheet | S15: PRU Cash Flow | T15: PRU Summary | U15: PRU Mktw Sum | V15: PRU Mkwt Basic | W15: PRU Yahoo Gr | X15: PRU Mktwth Gr | Y15: PRU Income Qtr | Z15: PRU Balance Qtr | AA15: PRU Cash Qtr
B16: Genworth | D16: GNW | E16: GNW | F16: GNW | G16: ='Menu Sheet'!E16 -> GNW | H16: TRUE | I16: 5 | K16: 5 | L16: 5 | N16: GNW | P16: GNW Stock Price | Q16: GNW Income St | R16: GNW Balance Sheet | S16: GNW Cash Flow | T16: GNW Summary | U16: GNW Mktw Sum | V16: GNW Mkwt Basic | W16: GNW Yahoo Gr | X16: GNW Mktwth Gr | Y16: GNW Income Qtr | Z16: GNW Balance Qtr | AA16: GNW Cash Qtr
B17: Greatwest Lifeco | D17: =F17 -> GWO.TO | E17: GWLIF | F17: GWO.TO | G17: ='Menu Sheet'!E17 -> GWLIF | H17: TRUE | I17: 6 | K17: 6 | L17: 6 | N17: GWLIF | P17: GWO.TO Stock Price | Q17: GWLIF Income St | R17: GWLIF Balance Sheet | S17: GWLIF Cash Flow | T17: GWO.TO Summary | U17: GWLIF Mktw Sum | V17: GWLIF Mkwt Basic | W17: GWO.TO Yahoo Gr | X17: GWLIF Mktwth Gr | Y17: GWLIF Income Qtr | Z17: GWLIF Balance Qtr | AA17: GWLIF Cash Qtr
B18: China Insurance Company | D18: =F18 -> 2628.HK | E18: LFC | F18: 2628.HK | G18: ='Menu Sheet'!E18 -> LFC | H18: TRUE | I18: =I17+H18 -> 7 | K18: 7 | L18: =MATCH(K18,$I$12:$I$32,0) -> 7 | N18: =INDEX($G$12:$G$32,L18) -> LFC | P18: 2628.HK Stock Price | Q18: LFC Income St | R18: LFC Balance Sheet | S18: LFC Cash Flow | T18: 2628.HK Summary | U18: LFC Mktw Sum | V18: LFC Mkwt Basic | W18: 2628.HK Yahoo Gr | X18: LFC Mktwth Gr | Y18: LFC Income Qtr | Z18: LFC Balance Qtr | AA18: LFC Cash Qtr
B19: AIA Group | D19: =F19 -> 1299.HK | E19: AAGIY | F19: 1299.HK | G19: ='Menu Sheet'!E19 -> AAGIY | H19: TRUE | I19: 8 | K19: 8 | L19: 8 | N19: AAGIY | P19: 1299.HK Stock Price | Q19: AAGIY Income St | R19: AAGIY Balance Sheet | S19: AAGIY Cash Flow | T19: 1299.HK Summary | U19: AAGIY Mktw Sum | V19: AAGIY Mkwt Basic | W19: 1299.HK Yahoo Gr | X19: AAGIY Mktwth Gr | Y19: AAGIY Income Qtr | Z19: AAGIY Balance Qtr | AA19: AAGIY Cash Qtr
B20: China Pacific Insrance | D20: =F20 -> 2601.HK | E20: CHPXY | F20: 2601.HK | G20: ='Menu Sheet'!E20 -> CHPXY | H20: TRUE | I20: 9 | K20: 9 | L20: 9 | N20: CHPXY | P20: 2601.HK Stock Price | Q20: CHPXY Income St | R20: CHPXY Balance Sheet | S20: CHPXY Cash Flow | T20: 2601.HK Summary | U20: CHPXY Mktw Sum | V20: CHPXY Mkwt Basic | W20: 2601.HK Yahoo Gr | X20: CHPXY Mktwth Gr | Y20: CHPXY Income Qtr | Z20: CHPXY Balance Qtr | AA20: CHPXY Cash Qtr
B21: Aflac | D21: AFL | E21: AFL | F21: AFL | G21: ='Menu Sheet'!E21 -> AFL | H21: TRUE | I21: 10 | K21: 10 | L21: 10 | N21: AFL | P21: AFL Stock Price | Q21: AFL Income St | R21: AFL Balance Sheet | S21: AFL Cash Flow | T21: AFL Summary | U21: AFL Mktw Sum | V21: AFL Mkwt Basic | W21: AFL Yahoo Gr | X21: AFL Mktwth Gr | Y21: AFL Income Qtr | Z21: AFL Balance Qtr | AA21: AFL Cash Qtr
B22: Dai-ichi Life Holdings Inc | D22: DSNKY | E22: DCNSF | F22: DSNKY | G22: ='Menu Sheet'!E22 -> DCNSF | H22: TRUE | I22: 11 | K22: 11 | L22: 11 | N22: DCNSF | P22: DSNKY Stock Price | Q22: DCNSF Income St | R22: DCNSF Balance Sheet | S22: DCNSF Cash Flow | T22: DSNKY Summary | U22: DCNSF Mktw Sum | V22: DCNSF Mkwt Basic | W22: DSNKY Yahoo Gr | X22: DCNSF Mktwth Gr | Y22: DCNSF Income Qtr | Z22: DCNSF Balance Qtr | AA22: DCNSF Cash Qtr
B23: Old Mutual | D23: =F23 -> OML.L | E23: ODMTY | F23: OML.L | G23: ='Menu Sheet'!E23 -> ODMTY | H23: TRUE | I23: 12 | K23: 12 | L23: 12 | N23: ODMTY | P23: OML.L Stock Price | Q23: ODMTY Income St | R23: ODMTY Balance Sheet | S23: ODMTY Cash Flow | T23: OML.L Summary | U23: ODMTY Mktw Sum | V23: ODMTY Mkwt Basic | W23: OML.L Yahoo Gr | X23: ODMTY Mktwth Gr | Y23: ODMTY Income Qtr | Z23: ODMTY Balance Qtr | AA23: ODMTY Cash Qtr
B24: Power Financial Corp | D24: PWF.TO | E24: POFNF | F24: PWF.TO | G24: ='Menu Sheet'!E24 -> POFNF | H24: TRUE | I24: 13 | K24: 13 | L24: 13 | N24: POFNF | P24: PWF.TO Stock Price | Q24: POFNF Income St | R24: POFNF Balance Sheet | S24: POFNF Cash Flow | T24: PWF.TO Summary | U24: POFNF Mktw Sum | V24: POFNF Mkwt Basic | W24: PWF.TO Yahoo Gr | X24: POFNF Mktwth Gr | Y24: POFNF Income Qtr | Z24: POFNF Balance Qtr | AA24: POFNF Cash Qtr
B25: Lincoln National Corp | D25: LNC | E25: LNC | F25: LNC | G25: ='Menu Sheet'!E25 -> LNC | H25: TRUE | I25: 14 | K25: 14 | L25: 14 | N25: LNC | P25: LNC Stock Price | Q25: LNC Income St | R25: LNC Balance Sheet | S25: LNC Cash Flow | T25: LNC Summary | U25: LNC Mktw Sum | V25: LNC Mkwt Basic | W25: LNC Yahoo Gr | X25: LNC Mktwth Gr | Y25: LNC Income Qtr | Z25: LNC Balance Qtr | AA25: LNC Cash Qtr
B26: Principal Financial Group | D26: PFG | E26: PFG | F26: PFG | G26: ='Menu Sheet'!E26 -> PFG | H26: TRUE | I26: 15 | K26: 15 | L26: 15 | N26: PFG | P26: PFG Stock Price | Q26: PFG Income St | R26: PFG Balance Sheet | S26: PFG Cash Flow | T26: PFG Summary | U26: PFG Mktw Sum | V26: PFG Mkwt Basic | W26: PFG Yahoo Gr | X26: PFG Mktwth Gr | Y26: PFG Income Qtr | Z26: PFG Balance Qtr | AA26: PFG Cash Qtr
B27: Allianz | D27: ALIZF | E27: ALIZF | F27: ALIZF | G27: ='Menu Sheet'!E27 -> ALIZF | H27: TRUE | I27: 16 | K27: 16 | L27: 16 | N27: ALIZF | P27: ALIZF Stock Price | Q27: ALIZF Income St | R27: ALIZF Balance Sheet | S27: ALIZF Cash Flow | T27: ALIZF Summary | U27: ALIZF Mktw Sum | V27: ALIZF Mkwt Basic | W27: ALIZF Yahoo Gr | X27: ALIZF Mktwth Gr | Y27: ALIZF Income Qtr | Z27: ALIZF Balance Qtr | AA27: ALIZF Cash Qtr
B28: Zurich Insurance Group | D28: =F28 -> ZURN.VX | E28: ZURVY | F28: ZURN.VX | G28: ='Menu Sheet'!E28 -> ZURVY | H28: TRUE | I28: 17 | K28: 17 | L28: 17 | N28: ZURVY | P28: ZURN.VX Stock Price | Q28: ZURVY Income St | R28: ZURVY Balance Sheet | S28: ZURVY Cash Flow | T28: ZURN.VX Summary | U28: ZURVY Mktw Sum | V28: ZURVY Mkwt Basic | W28: ZURN.VX Yahoo Gr | X28: ZURVY Mktwth Gr | Y28: ZURVY Income Qtr | Z28: ZURVY Balance Qtr | AA28: ZURVY Cash Qtr
B29: Swiss Life | D29: =F29 -> SLHN.VX | E29: SWSDF | F29: SLHN.VX | G29: ='Menu Sheet'!E29 -> SWSDF | H29: TRUE | I29: 18 | K29: 18 | L29: 18 | N29: SWSDF | P29: SLHN.VX Stock Price | Q29: SWSDF Income St | R29: SWSDF Balance Sheet | S29: SWSDF Cash Flow | T29: SLHN.VX Summary | U29: SWSDF Mktw Sum | V29: SWSDF Mkwt Basic | W29: SLHN.VX Yahoo Gr | X29: SWSDF Mktwth Gr | Y29: SWSDF Income Qtr | Z29: SWSDF Balance Qtr | AA29: SWSDF Cash Qtr
B30: Sun Life | D30: SLF | E30: SLF | F30: SLF | G30: ='Menu Sheet'!E30 -> SLF | H30: TRUE | I30: 19 | K30: 19 | L30: 19 | N30: SLF | P30: SLF Stock Price | Q30: SLF Income St | R30: SLF Balance Sheet | S30: SLF Cash Flow | T30: SLF Summary | U30: SLF Mktw Sum | V30: SLF Mkwt Basic | W30: SLF Yahoo Gr | X30: SLF Mktwth Gr | Y30: SLF Income Qtr | Z30: SLF Balance Qtr | AA30: SLF Cash Qtr
B31: AXA SA | D31: =F31 -> CS.PA | E31: AXAHY | F31: CS.PA | G31: ='Menu Sheet'!E31 -> AXAHY | H31: TRUE | I31: 20 | K31: 20 | L31: 20 | N31: AXAHY | P31: CS.PA Stock Price | Q31: AXAHY Income St | R31: AXAHY Balance Sheet | S31: AXAHY Cash Flow | T31: CS.PA Summary | U31: AXAHY Mktw Sum | V31: AXAHY Mkwt Basic | W31: CS.PA Yahoo Gr | X31: AXAHY Mktwth Gr | Y31: AXAHY Income Qtr | Z31: AXAHY Balance Qtr | AA31: AXAHY Cash Qtr
B32: Sumpo Holdings | D32: SMPNY | E32: SMPNY | F32: NHOLF | G32: ='Menu Sheet'!E32 -> SMPNY | H32: TRUE | I32: 21 | K32: 21 | L32: 21 | N32: SMPNY | P32: NHOLF Stock Price | Q32: SMPNY Income St | R32: SMPNY Balance Sheet | S32: SMPNY Cash Flow | T32: SMPNY Summary | U32: SMPNY Mktw Sum | V32: SMPNY Mkwt Basic | W32: SMPNY Yahoo Gr | X32: SMPNY Mktwth Gr | Y32: SMPNY Income Qtr | Z32: SMPNY Balance Qtr | AA32: SMPNY Cash Qtr
B33: Aegon NV | D33: =F33 -> AGN.AS | E33: AEG | F33: AGN.AS | G33: ='Menu Sheet'!E33 -> AEG | H33: TRUE | I33: =I32+H33 -> 22 | K33: 22 | L33: =MATCH(K33,$I$12:$I$33,0) -> 22 | N33: =INDEX($G$12:$G$33,L33) -> AEG | P33: AGN.AS Stock Price | Q33: =N33&" "&$E$44 -> AEG Income St | R33: =N33&" "&$E$45 -> AEG Balance Sheet | S33: =N33&" "&$E$46 -> AEG Cash Flow | T33: AGN.AS Summary | U33: =N33&" "&$E$48 -> AEG Mktw Sum | V33: =N33&" "&$E$49 -> AEG Mkwt Basic | W33: AGN.AS Yahoo Gr | X33: AEG Mktwth Gr | Y33: AEG Income Qtr | Z33: AEG Balance Qtr | AA33: AEG Cash Qtr
B34: NN Group NV | D34: =F34 -> NN.AS | E34: NNGRY | F34: NN.AS | G34: ='Menu Sheet'!E34 -> NNGRY | H34: TRUE | I34: =I33+H34 -> 23 | K34: 23 | L34: =MATCH(K34,$I$12:$I$34,0) -> 23 | N34: =INDEX($G$12:$G$34,L34) -> NNGRY | P34: NN.AS Stock Price | Q34: =N34&" "&$E$44 -> NNGRY Income St | R34: =N34&" "&$E$45 -> NNGRY Balance Sheet | S34: =N34&" "&$E$46 -> NNGRY Cash Flow | T34: NN.AS Summary | U34: =N34&" "&$E$48 -> NNGRY Mktw Sum | V34: =N34&" "&$E$49 -> NNGRY Mkwt Basic | W34: NN.AS Yahoo Gr | X34: NNGRY Mktwth Gr | Y34: NNGRY Income Qtr | Z34: NNGRY Balance Qtr | AA34: NNGRY Cash Qtr
E39: Total Check | F39: =IFERROR(SUM(I12:I32)," Make Sure that the Totals are Copied") -> 231
P40: Construction of URL's
A41: URL's for Companies
I42: Re-Combined Ticker | P42: Part 1 | T42: Part 2 | X42: Example
C43: 1 | E43: Stock Price | F43: Stock Prices from Yahoo | I43: =yahoo_url -> https://query1.finance.yahoo.com/v7/finance/download/AGN.AS?period1=-631152000&period2=1517184000&interval=1wk&events=history&crumb=bOWFGrHaB9Z | P43: http://real-chart.finance.yahoo.com/table.csv?s= | T43: &a=11&b=28&c=1950&d=01&e=17&f=2020&g=m&ignore=.csv | X43: https://query1.finance.yahoo.com/v7/finance/download/GE?period1=-631152000&period2=1510444800&interval=1wk&events=history&crumb=z9oVYd3qdiN
C44: 2 | E44: Income St | F44: Income St from Mkt Watch | I44: =P44&mw_tick&T44 -> http://www.marketwatch.com/investing/stock/AEG/financials | P44: http://www.marketwatch.com/investing/stock/ | T44: /financials | X44: http://www.marketwatch.com/investing/stock/AJSB/financials
C45: 3 | E45: Balance Sheet | F45: B/S from Mkt Watch | I45: =P45&mw_tick&T45 -> http://www.marketwatch.com/investing/stock/AEG/financials/balance-sheet | P45: http://www.marketwatch.com/investing/stock/ | T45: /financials/balance-sheet | X45: http://www.marketwatch.com/investing/stock/AJSB/financials/balance-sheet
C46: 4 | E46: Cash Flow | F46: CF from Mkt Watch | I46: =P46&mw_tick&T46 -> http://www.marketwatch.com/investing/stock/AEG/financials/cash-flow | P46: http://www.marketwatch.com/investing/stock/ | T46: /financials/cash-flow | X46: http://www.marketwatch.com/investing/stock/AJSB/financials/cash-flow
C47: 5 | E47: Summary | F47: Summary from Yahoo | I47: =P47&ticker&T47&ticker -> https://finance.yahoo.com/quote/AGN.AS/key-statistics?p=AGN.AS | P47: https://finance.yahoo.com/quote/ | T47: /key-statistics?p= | X47: http://finance.yahoo.com/q/ks?s=UAL+Key+Statistics
C48: 6 | E48: Mktw Sum | F48: Summary from Mkt Watch | I48: =P48&mw_tick&T48 -> http://www.marketwatch.com/investing/stock/AEG/profile | P48: http://www.marketwatch.com/investing/stock/ | T48: /profile | X48: http://www.marketwatch.com/investing/stock/exc/profile
C49: 7 | E49: Mkwt Basic | F49: Basic from Mkt Watch | I49: =P49&mw_tick&T49 -> http://www.marketwatch.com/investing/stock/AEG | P49: http://www.marketwatch.com/investing/stock/ | X49: http://www.marketwatch.com/investing/stock/exc
C50: 8 | E50: Yahoo Gr | F50: Analyst Est from Yahoo | I50: =P50&ticker&T50&ticker -> https://finance.yahoo.com/quote/AGN.AS/analysts?p=AGN.AS | P50: https://finance.yahoo.com/quote/ | T50: /analysts?p= | X50: http://finance.yahoo.com/q/ae?s=EXC+Analyst+Estimates
C51: 9 | E51: Mktwth Gr | F51: Analyst from Mkt Watch | I51: =P51&mw_tick&T51 -> https://www.marketwatch.com/investing/stock/AEG/analystestimates | P51: https://www.marketwatch.com/investing/stock/ | T51: /analystestimates | X51: https://www.marketwatch.com/investing/stock/MMM/analystestimates
C52: 10 | E52: Income Qtr | F52: Qtly Income Mkt Watch | I52: =P52&mw_tick&T52 -> https://www.marketwatch.com/investing/stock/AEG/financials/income/quarter | P52: https://www.marketwatch.com/investing/stock/ | T52: /financials/income/quarter
C53: 11 | E53: Balance Qtr | F53: Qtly Balance Mkt Watch | I53: =P53&mw_tick&T53 -> https://www.marketwatch.com/investing/stock/AEG/financials/balance-sheet/quarter | P53: https://www.marketwatch.com/investing/stock/ | T53: /financials/balance-sheet/quarter
C54: 12 | E54: Cash Qtr | F54: Qtly Cash Mkt Watch | I54: =P54&mw_tick&T54 -> https://www.marketwatch.com/investing/stock/AEG/financials/cash-flow/quarter | P54: https://www.marketwatch.com/investing/stock/ | T54: /financials/cash-flow/quarter
A58: URL's for Economic Data
F59: Code for Economic Data | G59: 5
E61: 10 year Treasury | F61: 10-year U.S. Treasury FRED | I61: https://research.stlouisfed.org/fred2/data/DGS10.txt
E62: 30 year Treasury | F62: 30-year U.S. Treasury FRED | I62: https://research.stlouisfed.org/fred2/data/DGS30.txt
E63: 10 year Infl Index | F63: 10-year Inflation Index FRED | I63: https://research.stlouisfed.org/fred2/data/DFII10.txt
E64: 30 year Infl Index | F64: 30-year Inflation Index FRED | I64: https://research.stlouisfed.org/fred2/data/DFII30.txt
D65: Denmark Exchange Rate | E65: Denmark Exchange Rate | F65: Denmark Exchange Rate | I65: https://research.stlouisfed.org/fred2/data/EXDNUS.txt | O65: EXDNUS
B67: Applied in Index | E67: =INDEX(E61:E65,$G$59) -> Denmark Exchange Rate | F67: =INDEX(F61:F65,$G$59) -> Denmark Exchange Rate | I67: =INDEX(I61:I65,$G$59) -> https://research.stlouisfed.org/fred2/data/EXDNUS.txt
P68: EV
A69: Enter Ticker Definitions for finance.yahoo.com and for marketwatch (DO NOT INSERT OR DELETE ROWS) -- JUST CLEAR THE DATA OR ENTER NEW TICKERS
B74: URL to read Yahoo stock with WEBREQUEST
C76: yahoo url | D76: =Part_1&D80&Part_2&Part_3&Part4&Crumb_String -> https://query1.finance.yahoo.com/v7/finance/download/AGN.AS?period1=-631152000&period2=1517184000&interval=1wk&events=history&crumb=bOWFGrHaB9Z
BA77: 3 | BB77: z3DhW7hRCwX | BD77: B=dbvosklcocrl7&b=3&s=fq
B78: Parts to URL for WEBREQUEST | BA78: 4 | BB78: 0DogTmPS.ad
C79: Part 1 | D79: https://query1.finance.yahoo.com/v7/finance/download/ | BA79: 5 | BB79: YR4DTj5nWxK
C80: Part 2 | D80: =ticker -> AGN.AS | BA80: 6 | BB80: .lxRRFrSiBH
C81: Part 2 | D81: ?period1=-631152000&period2= | BA81: 7 | BB81: ayso2ZErQOf
C82: Part 3 | D82: =TEXT(D90,0) -> 1517184000 | BA82: 8 | BB82: aTX22e7zn34
C83: Part4 | D83: &interval=1wk&events=history&crumb= | BA83: 9 | BB83: VI5Xh7BcvmY
C84: Crumb String | D84: bOWFGrHaB9Z
C85: Cookie String | D85: B=ab7e59ld6rgh5&b=3&s=2k | BA85: 10 | BB85: Apevnkl89Do
BA86: 11 | BB86: UEsp04Vhq1V
C87: response wait | D87: 3
D89: =(A1-DATE(1970,1,1))*86400
B90: =TODAY() -> 2018-01-29 | D90: =(B90-DATE(1970,1,1))*86400 -> 1517184000
C92: Cookie num | D92: 1
C93: Cookie in VBA | D93: B=bt97nr5d0h3e6&b=3&s=t2
AH96: 28.09
AH97: 240.4
A99: List to Copy
D101: Beer | G101: Selected | J101: Utilities | N101: Dow Stocks | R101: Renewable Companies | W101: Yield Cos | AD101: Yahoo | AE101: Mktwatch | AF101: Yahoo Stock | AH101: Yahoo | AI101: Mktwatch | AJ101: Yahoo Stock
B103: Carlesberg | D103: CARL-B.CO | E103: CABGY | G103: GOOG | H103: Google | J103: ITC Holdings | L103: ITC | M103: ITC | N103: 3M | P103: MMM | Q103: MMM | R103: Ibdrola | T103: IBDRY | U103: IBDRY | W103: Hannanon Armstrong | Y103: HASI | Z103: HASI | AA103: 1 | AB103: L&G | AD103: LGGNY | AE103: LGGNY | AF103: LGEN.L | AG103: Legal & General Group PLC (GBP) | AH103: LGGNY | AI103: LGGNY | AJ103: LGEN.L
B104: Anheuser-Busch Inbev SA (USD) | D104: BUD | E104: BUD | G104: AMZN | H104: Amazon | J104: Allete Inc | L104: ALE | M104: ALE | N104: Apple | P104: AAPL | Q104: AAPL | R104: NextEra | T104: NEE | U104: NEE | W104: NRG Yield | Y104: NYLD | Z104: NYLD | AA104: 2 | AB104: Met Life | AD104: MET | AE104: MET | AF104: MET | AG104: Prudential PLC (GBP) | AH104: PUK | AI104: PUK | AJ104: PRU.L
B105: Ambev SA (USD,BRL) | D105: ABEV | E105: ABEV | G105: FB | H105: Facebook | J105: Con Edison | L105: ED | M105: ED | N105: Boeing | P105: BA | Q105: BA | R105: Abgona | T105: ABGOF | U105: ABGOF | W105: TransAlta Renewables | Y105: RNW.TO | Z105: CA:RNW | AA105: 3 | AB105: Transamerica | AD105: AIG | AE105: AIG | AF105: AIG | AG105: Storebrand ASA (NOK) | AH105: SREDF | AI105: SREDF | AJ105: SREDY
B106: SAB Miller | D106: SBMRY | E106: SBMRY | G106: BBRY | H106: Blackberry | J106: WEC Energy Group | L106: WEC | M106: WEC | N106: Caterpillar | P106: CAT | Q106: CAT | R106: Enbridge | T106: ENB | U106: ENB | W106: Pattern Energy Group | Y106: PEGI | Z106: PEGI | AA106: 4 | AB106: Prudential | AD106: PRU | AE106: PRU | AF106: PRU | AG106: CNP Assurances (EUR) | AI106: CNPAY
B107: Molson Coors Brewing Company | D107: TAP | E107: TAP | G107: HPQ | H107: HP | J107: PG&E | L107: PGC | M107: PGC | N107: Chevron | P107: CVX | Q107: CVX | R107: Transalta | T107: TAC | U107: TAC | W107: Brookfield Renewable | Y107: BEP | Z107: BEP | AA107: 5 | AB107: Genworth | AD107: GNW | AE107: GNW | AF107: GNW | AG107: Standard Life Aberdeen PLC (GBP)
B108: Suntory Beverage & Food Limited | D108: STBFY | E108: STBFY | G108: BT | H108: Brittish Telecom | J108: AGL Resources | L108: GAS | M108: GAS | N108: Cisco | P108: CSCO | Q108: CSCO | R108: Sempra | T108: SRE | U108: SRE | W108: Abengoa Yield | Y108: ABY | Z108: ABY | AA108: 6 | AB108: Greatwest Lifeco | AD108: GWLIF | AE108: GWLIF | AF108: GWO.TO | AG108: Old Mutual PLC (GBP)
B109: Boston Beer | D109: SAM | E109: SAM | G109: NOK | H109: Nokia | J109: MGE Energy Inc. | L109: MGEE | M109: MGEE | N109: Coca-Cola | P109: KO | Q109: KO | R109: Enrl | T109: ENEL.MI | U109: IT:ENEL | W109: NextEra Partners | Y109: NEP | Z109: NEP | AA109: 7 | AB109: China Insurance Company | AD109: LFC | AE109: LFC | AF109: 2628.HK | AG109: Torchmark Corp (EUR,USD)
B110: Constellation Brands | D110: STZ | E110: STZ | G110: USM | H110: US Cellular | J110: Ameren | L110: AEE | M110: AEE | N110: Disney | P110: DIS | Q110: DIS | R110: Renewable Energy | T110: REGI | U110: REGI | W110: TerraForm Power | Y110: TERP | Z110: TERP | AA110: 8 | AB110: AIA Group | AD110: AAGIY | AE110: AAGIY | AF110: 1299.HK | AG110: Ageas NV (EUR)
B111: Craft Brew Alliance | D111: BREW | E111: BREW | G111: VOD | H111: Vodaphone | J111: Entergy | L111: ETR | M111: ETR | N111: E I du Pont de Nemours and Co | P111: DWDP | Q111: DWDP | R111: Edison International | T111: EIX | U111: EIX | W111: 8point3 | Y111: CAFD | Z111: CAFD | AA111: 9 | AB111: China Pacific Insrance | AD111: 2601.HK | AE111: CHPXY | AF111: 2601.HK | AG111: St James's Place PLC (GBP)
B112: Willamett Valley | D112: WVVI | E112: WVVI | G112: S | H112: Sprint | J112: Southern Company | L112: SO | M112: SO | N112: Exxon Mobil | P112: XOM | Q112: XOM | AA112: 10 | AB112: Aflac | AD112: AFL | AE112: AFL | AF112: AFL | AG112: Phoenix Group Holdings (GBP)
B113: Coca Cola | D113: KOF | E113: KOF | G113: JPM | H113: JP Morgan | J113: Great Plains Energy | L113: GXP | M113: GXP | N113: General Electric | P113: GE | Q113: GE | AA113: 11 | AB113: Dai-ichi Life Holdings Inc | AD113: DSNKY | AE113: DCNSF | AF113: DSNKY | AG113: Chesnara PLC (GBP)
B114: Coca Cola Botteling | D114: COKE | E114: COKE | G114: WMT | H114: Wall Mart | J114: Xcel Energy | L114: XEL | M114: XEL | N114: Home Depot | P114: HD | Q114: HD | AA114: 12 | AB114: Old Mutual | AD114: ODMTY | AE114: ODMTY | AF114: OML.L | AG114: Hansard Global PLC (GBP)
B115: Cott | D115: COT | E115: COT | G115: EXC | H115: Exelon | J115: Centerpoint Energy | L115: CNP | M115: CNP | N115: IBM | P115: IBM | Q115: IBM | AA115: 13 | AB115: Power Financial Corp | AD115: PWF.TO | AE115: POFNF | AF115: PWF.TO
B116: Dr Pepper | D116: DPS | E116: DPS | G116: ED | H116: Consolidated Edison | J116: Alliant Energy | L116: LNT | M116: LNT | N116: Intel | P116: INTC | Q116: INTC | AA116: 14 | AB116: Lincoln National Corp | AD116: LNC | AE116: LNC | AF116: LNC
B117: Long Island Tea | D117: LTEA | E117: LTEA | G117: AES | H117: AES | N117: Johnson & Johnson | P117: JNJ | Q117: JNJ | AA117: 15 | AB117: Principal Financial Group | AD117: PFG | AE117: PFG | AF117: PFG
B118: Pepsi Co | D118: PEP | E118: PEP | G118: NRG | H118: NRG Energy | N118: McDonald's | P118: MCD | Q118: MCD | AA118: 16 | AB118: Allianz | AD118: ALIZF | AE118: ALIZF | AF118: ALIZF
B119: Heineken | D119: HEINY | E119: HEINY | G119: FSLR | H119: First Solar | N119: Merck | P119: MRK | Q119: MRK | AA119: 17 | AB119: Zurich Insurance Group | AD119: ZFSVF | AE119: ZURVY | AF119: ZURN.VX
B120: Fomento Economico Mexicano SAB de CV (USD,MXN) | D120: FMOCY | E120: FMOCY | G120: CHK | H120: Cheasapeak Energy | N120: Microsoft | P120: MSFT | Q120: MSFT | AA120: 18 | AB120: Swiss Life | AD120: SWSDF | AE120: SWSDF | AF120: SLHN.VX
B121: Kirin Holdings Company, Limited | D121: KNBWY | E121: KNBWY | G121: RRC | H121: Range Resources | N121: Nike | P121: NKE | Q121: NKE | AA121: 19 | AB121: Sun Life | AD121: SLF | AE121: SLF | AF121: SLF
B122: Tsingtao Brewery Company Limited | D122: TSGTF | E122: TSGTF | G122: PYPL | H122: Paypal | N122: Pfizer | P122: PFE | Q122: PFE | AA122: 20 | AB122: AXA SA | AD122: AXAHY | AE122: AXAHY | AF122: CS.PA
B123: Diageo | D123: DEO | E123: DEO | G123: PCLN | H123: Priceline | N123: Procter & Gamble | P123: PG | Q123: PG | AA123: 21 | AB123: Sumpo Holdings | AD123: SMPNY | AE123: SMPNY | AF123: NHOLF
G124: EBAY | H124: Ebay | AA124: 22 | AB124: Aegon NV | AD124: AEG | AE124: AEG | AF124: AGN.AS
AA125: 23 | AB125: NN Group NV | AD125: NNGRY | AE125: NNGRY | AF125: NN.AS
AB127: Protective Life | AC127: M&A
AG128: CIG Pannonia Life Insurance OJSC (HUF) | AJ128: 0CK.BE
AB129: All State
I130: https://finance.yahoo.com/quote/ge/analysts?p=ge | AB130: State Farm
I131: https://www.marketwatch.com/investing/stock/mmm/analystestimates
I132: https://www.marketwatch.com/investing/stock/mmm/financials
I133: https://www.marketwatch.com/investing/stock/ge/financials/income/quarter | P133: https://www.marketwatch.com/investing/stock/ | S133: /financials/income/quarter
I134: https://finance.yahoo.com/quote/MMM/key-statistics?p=MMM | P134: https://finance.yahoo.com/quote/ | S134: /key-statistics?p=
I135: https://www.marketwatch.com/investing/stock/ge/financials/cash-flow/quarter | P135: https://www.marketwatch.com/investing/stock/ | S135: /financials/cash-flow/quarter
I136: https://www.marketwatch.com/investing/stock/ge/financials/balance-sheet/quarter | P136: https://www.marketwatch.com/investing/stock/ | S136: /financials/balance-sheet/quarter
I137: https://finance.yahoo.com/quote/GE/analysts?p=GE | P137: https://finance.yahoo.com/quote/ | S137: /analysts?p=
I138: https://www.marketwatch.com/investing/stock/MMM/analystestimates | P138: https://www.marketwatch.com/investing/stock/ | S138: /analystestimates

Sheet Single Company Graph
H1: 8 | N1: 2012
J3: =INDEX('Equity Trend Analysis'!C8:C31,'Single Company Graph'!H1) -> AIA Group
L4: 1 Year | M4: 5 Year
J5: Expected Growth | L5: =INDEX('Data Cost of Capital'!BB11:BB33,'Single Company Graph'!H1) -> N/A | M5: =INDEX('Data Cost of Capital'!BC11:BC33,'Single Company Graph'!H1) -> 0.1122
J6: Past Growth | M6: =INDEX('Data Cost of Capital'!BD11:BD33,'Single Company Graph'!H1) -> 0.1543
J8: Stock Price | L8: =INDEX('Data Cost of Capital'!L11:L33,'Single Company Graph'!H1) -> 34.41 | P8: EPS
J9: Dividend Yield | L9: =INDEX('Data Cost of Capital'!CD11:CD33,'Single Company Graph'!H1) -> 0.0134 | O9: Current Quarters Estimate: | P9: =INDEX('Data Cost of Capital'!BL11:BL33,'Single Company Graph'!H1) -> N/A
J10: Dividend Payout | L10: =IFERROR(INDEX('Data Cost of Capital'!CF11:CF33,'Single Company Graph'!H1),0) -> 0.5014249888 | O10: Current Year's Estimate: | P10: =INDEX('Data Cost of Capital'!BS11:BS33,'Single Company Graph'!H1) -> 1.78
J11: Historic ROE | L11: =INDEX('Data Cost of Capital'!AU11:AU33,'Single Company Graph'!H1) -> 0.1295 | O11: Next Fiscal Year Estimate: | P11: =INDEX('Data Cost of Capital'!BW11:BW33,'Single Company Graph'!H1) -> 1.81
J12: Forward ROE | L12: =INDEX('Data Cost of Capital'!AW11:AW33,'Single Company Graph'!H1) -> 0.0798411704
J13: Shares | L13: =INDEX('Data Extract Income Stmt'!P39:P61,'Single Company Graph'!H1) -> 12010000
J15: ROIC Reported | L15: =INDEX('Data Cost of Capital'!DF11:DF33,H1) -> 0.1176 | P15: Revenue | Q15: EPS
J16: Depreciation Rate | L16: =INDEX('Data Cost of Capital'!DH11:DH33,H1) -> FALSE | N16: =INDEX('Data Cost of Capital'!BK11:BK33,'Single Company Graph'!$H$1) -> Current Qtr. | P16: =INDEX('Data Cost of Capital'!BN11:BN33,'Single Company Graph'!H1) -> FALSE | Q16: =INDEX('Data Cost of Capital'!BM11:BM33,'Single Company Graph'!H1) -> 0
J17: Tax Rate | L17: =INDEX('Data Cost of Capital'!DK11:DK33,'Single Company Graph'!H1) -> 0.187632444 | N17: =INDEX('Data Cost of Capital'!BO11:BO33,'Single Company Graph'!$H$1) -> Next Qtr. | P17: =INDEX('Data Cost of Capital'!BQ11:BQ33,'Single Company Graph'!H1) -> FALSE | Q17: =INDEX('Data Cost of Capital'!BP11:BP33,'Single Company Graph'!H1) -> 0
J18: EBITDA | L18: =INDEX('Data Cost of Capital'!CT11:CT33,'Single Company Graph'!H1) -> 6260000 | N18: =INDEX('Data Cost of Capital'!BR11:BR33,'Single Company Graph'!H1) -> Current Year | P18: =INDEX('Data Cost of Capital'!BU11:BU33,'Single Company Graph'!H1) -> FALSE | Q18: =INDEX('Data Cost of Capital'!BT11:BT33,'Single Company Graph'!H1) -> 0
J19: Enterprise Value | L19: =INDEX('Data Cost of Capital'!CN11:CN33,'Single Company Graph'!H1) -> 745619968 | N19: =INDEX('Data Cost of Capital'!BV11:BV33,'Single Company Graph'!H1) -> Next Year | P19: =INDEX('Data Cost of Capital'!BY11:BY33,'Single Company Graph'!H1) -> FALSE | Q19: =INDEX('Data Cost of Capital'!BX11:BX33,'Single Company Graph'!H1) -> 0
J21: Net Debt | L21: =INDEX('Data Cost of Capital'!CS11:CS33,'Single Company Graph'!H1) -> 332355868 | N21: Growth Rate | P21: =P19/P18-1 ->  | Q21: =Q19/Q18-1 -> 
J22: Shares | L22: =INDEX('Data Cost of Capital'!CH11:CH33,'Single Company Graph'!H1) -> 12010000
J23: Net Debt to Mkt Cap | L23: =INDEX('Data Cost of Capital'!DJ11:DJ33,'Single Company Graph'!H1) -> -0.1312235929
J24: Invested Capital | L24: =INDEX('Data Cost of Capital'!DD11:DD33,'Single Company Graph'!H1) -> 19922436.82
J25: Invested Capital/Share | L25: =L24/L22 -> 1.658820718
G47: ='Equity Trend Analysis'!E7 -> 2011 | H47: =G47+1 -> 2012 | I47: =H47+1 -> 2013 | J47: 2014 | K47: 2015 | L47: 2016 | M47: 2017 | N47: 2018 | O47: 2019 | P47: =E48+1 -> 2018
D48: =N1 -> 2012 | E48: ='Menu Sheet'!L3+1 -> 2017 | G48: =AND(G47>=$D$48,G47<=$E$48) -> FALSE | H48: TRUE | I48: TRUE | J48: TRUE | K48: TRUE | L48: TRUE | M48: TRUE | N48: FALSE | O48: FALSE | P48: TRUE
G50: =IF(G48,G47,NA()) ->  | H50: 2012 | I50: 2013 | J50: 2014 | K50: 2015 | L50: 2016 | M50: 2017 | P50: 2018
F51: ='Single Company Graph'!J3&" "&'Equity Trend Analysis'!$E$5&" " -> AIA Group Return on Ending Equity | G51: =IF(G48,INDEX('Equity Trend Analysis'!E8:E31,'Single Company Graph'!$H$1),NA()) ->  | H51: =IF(H48,INDEX('Equity Trend Analysis'!F8:F31,'Single Company Graph'!$H$1),NA()) -> 0.1125181247 | I51: =IF(I48,INDEX('Equity Trend Analysis'!G8:G31,'Single Company Graph'!$H$1),NA()) -> 0.1163532793 | J51: =IF(J48,INDEX('Equity Trend Analysis'!H8:H31,'Single Company Graph'!$H$1),NA()) -> 0.1127354542 | K51: =IF(K48,INDEX('Equity Trend Analysis'!I8:I31,'Single Company Graph'!$H$1),NA()) -> 0.08980651106 | L51: =IF(L48,INDEX('Equity Trend Analysis'!J8:J31,'Single Company Graph'!$H$1),NA()) -> 0.1199823113 | M51: =IF(M48,INDEX('Equity Trend Analysis'!K8:K31,'Single Company Graph'!$H$1),NA()) -> 0.1362 | N51: =IF(N48,INDEX('Equity Trend Analysis'!L8:L31,'Single Company Graph'!$H$1),NA()) ->  | O51: =IF(O48,INDEX('Equity Trend Analysis'!M8:M31,'Single Company Graph'!$H$1),NA()) ->  | P51: =IF(P48,INDEX('Equity Trend Analysis'!N8:N31,'Single Company Graph'!$H$1),NA()) -> 0.0798411704
G54: ='Detailed Trends'!E7 -> 2011 | H54: =G54+1 -> 2012 | I54: 2013 | J54: 2014 | K54: 2015 | L54: 2016 | M54: 2017 | N54: 2018 | O54: ='Detailed Trends'!N7 -> Current | P54: =E55+1 -> 2018
D55: =D48 -> 2012 | E55: ='Menu Sheet'!$L$3+1 -> 2017 | G55: =AND(G54>=$D$55,G54<=$E$55) -> FALSE | H55: TRUE | I55: TRUE | J55: TRUE | K55: TRUE | L55: TRUE | M55: TRUE | N55: FALSE | O55: FALSE | P55: TRUE
G57: =IF(G55,G54,NA()) ->  | H57: 2012 | I57: 2013 | J57: 2014 | K57: 2015 | L57: 2016 | M57: 2017 | P57: 2018
F58: =J3&" "&INDEX('Detailed Trends'!$B$38:$B$49,'Detailed Trends'!$E$35) -> AIA Group Premium Growth | G58: =INDEX('Detailed Trends'!E8:E30,$H$1) -> FALSE | H58: =INDEX('Detailed Trends'!F8:F30,$H$1) -> FALSE | I58: =INDEX('Detailed Trends'!G8:G30,$H$1) -> 0.2027840853 | J58: =INDEX('Detailed Trends'!H8:H30,$H$1) -> 0.085364787 | K58: =INDEX('Detailed Trends'!I8:I30,$H$1) -> 0.0915072883 | L58: =INDEX('Detailed Trends'!J8:J30,$H$1) -> 0.09942492898 | M58: =INDEX('Detailed Trends'!K8:K30,$H$1) -> FALSE | N58: =INDEX('Detailed Trends'!L8:L30,$H$1) -> FALSE | O58: =INDEX('Detailed Trends'!M8:M30,$H$1) -> FALSE | P58: =INDEX('Detailed Trends'!N8:N30,$H$1) -> FALSE

Sheet Equity Trend Analysis
H1: =I46 -> 11
A3: P/E Summary
E5: =C64 -> Return on Ending Equity | P5: TRUE
P6: Counter | T6: =C64 -> Return on Ending Equity
B7: Raw Data Before Adjustments | E7: ='EV to EBITDA Analysis'!C4 -> 2011 | F7: ='EV to EBITDA Analysis'!D4 -> 2012 | G7: ='EV to EBITDA Analysis'!E4 -> 2013 | H7: ='EV to EBITDA Analysis'!F4 -> 2014 | I7: ='EV to EBITDA Analysis'!G4 -> 2015 | J7: ='EV to EBITDA Analysis'!H4 -> 2016 | K7: ='EV to EBITDA Analysis'!I4 -> 2017 | L7: ='EV to EBITDA Analysis'!J4 -> 2018 | M7: ='EV to EBITDA Analysis'!K4 -> 2019 | N7: ='EV to EBITDA Analysis'!L4 -> Current | O7: Include | P7: 0 | V7: =E7 -> 2011 | W7: 2012 | X7: 2013 | Y7: 2014 | Z7: 2015 | AA7: 2016 | AB7: 2017 | AC7: 2018 | AD7: 2019 | AE7: Current
C8: ='Data Cost of Capital'!D11 -> L&G | E8: =IFERROR(CHOOSE($I$46, 'PE Analysis'!C141,'PE Analysis'!C193,'PE Analysis'!C219, 'PE Analysis'!P5, 'PE Analysis'!C32, 'PE Analysis'!P32, 'PE Analysis'!C59, 'PE Analysis'!P59, 'PE Analysis'!C167, 'Data Extract Balance Sheet'!K258, 'Data Extract Balance Sheet'!K285), FALSE) -> 0 | F8: =IFERROR(CHOOSE($I$46, 'PE Analysis'!D141,'PE Analysis'!D193,'PE Analysis'!D219, 'PE Analysis'!Q5, 'PE Analysis'!D32, 'PE Analysis'!Q32, 'PE Analysis'!D59, 'PE Analysis'!Q59, 'PE Analysis'!D167, 'Data Extract Balance Sheet'!L258, 'Data Extract Balance Sheet'!L285), FALSE) -> 0.1505514706 | G8: =IFERROR(CHOOSE($I$46, 'PE Analysis'!E141,'PE Analysis'!E193,'PE Analysis'!E219, 'PE Analysis'!R5, 'PE Analysis'!E32, 'PE Analysis'!R32, 'PE Analysis'!E59, 'PE Analysis'!R59, 'PE Analysis'!E167, 'Data Extract Balance Sheet'!M258, 'Data Extract Balance Sheet'!M285), FALSE) -> 0.1563829787 | H8: =IFERROR(CHOOSE($I$46, 'PE Analysis'!F141,'PE Analysis'!F193,'PE Analysis'!F219, 'PE Analysis'!S5, 'PE Analysis'!F32, 'PE Analysis'!S32, 'PE Analysis'!F59, 'PE Analysis'!S59, 'PE Analysis'!F167, 'Data Extract Balance Sheet'!N258, 'Data Extract Balance Sheet'!N285), FALSE) -> 0.1663349917 | I8: =IFERROR(CHOOSE($I$46, 'PE Analysis'!G141,'PE Analysis'!G193,'PE Analysis'!G219, 'PE Analysis'!T5, 'PE Analysis'!G32, 'PE Analysis'!T32, 'PE Analysis'!G59, 'PE Analysis'!T59, 'PE Analysis'!G167, 'Data Extract Balance Sheet'!O258, 'Data Extract Balance Sheet'!O285), FALSE) -> 0.1665 | J8: =IFERROR(CHOOSE($I$46, 'PE Analysis'!H141,'PE Analysis'!H193,'PE Analysis'!H219, 'PE Analysis'!U5, 'PE Analysis'!H32, 'PE Analysis'!U32, 'PE Analysis'!H59, 'PE Analysis'!U59, 'PE Analysis'!H167, 'Data Extract Balance Sheet'!P258, 'Data Extract Balance Sheet'!P285), FALSE) -> 0.1791798561 | K8: =IFERROR(CHOOSE($I$46, 'PE Analysis'!I141,'PE Analysis'!I193,'PE Analysis'!I219, 'PE Analysis'!V5, 'PE Analysis'!I32, 'PE Analysis'!V32, 'PE Analysis'!I59, 'PE Analysis'!V59, 'PE Analysis'!I167, 'Data Extract Balance Sheet'!Q258, 'Data Extract Balance Sheet'!Q285), FALSE) -> 0.2146 | L8: =IFERROR(CHOOSE($I$46, 'PE Analysis'!J141,'PE Analysis'!J193,'PE Analysis'!J219, 'PE Analysis'!W5, 'PE Analysis'!J32, 'PE Analysis'!W32, 'PE Analysis'!J59, 'PE Analysis'!W59, 'PE Analysis'!J167, 'Data Extract Balance Sheet'!R258, 'Data Extract Balance Sheet'!R285), FALSE) -> -0.047 | M8: =IFERROR(CHOOSE($I$46, 'PE Analysis'!K141,'PE Analysis'!K193,'PE Analysis'!K219, 'PE Analysis'!X5, 'PE Analysis'!K32, 'PE Analysis'!X32, 'PE Analysis'!K59, 'PE Analysis'!X59, 'PE Analysis'!K167, 'Data Extract Balance Sheet'!S258, 'Data Extract Balance Sheet'!S285), FALSE) -> 0.0795 | N8: =IFERROR(CHOOSE($I$46, 'PE Analysis'!L141,'PE Analysis'!L193,'PE Analysis'!L219, 'PE Analysis'!Y5, 'PE Analysis'!L32, 'PE Analysis'!Y32, 'PE Analysis'!L59, 'PE Analysis'!Y59, 'PE Analysis'!L167, 'Data Extract Balance Sheet'!T258, 'Data Extract Balance Sheet'!T285), FALSE) -> 0.2010655738 | O8: FALSE | P8: =O8+P7 -> 0
C9: ='Data Cost of Capital'!D12 -> Met Life | E9: =IFERROR(CHOOSE($I$46, 'PE Analysis'!C142,'PE Analysis'!C194,'PE Analysis'!C220, 'PE Analysis'!P6, 'PE Analysis'!C33, 'PE Analysis'!P33, 'PE Analysis'!C60, 'PE Analysis'!P60, 'PE Analysis'!C168, 'Data Extract Balance Sheet'!K259, 'Data Extract Balance Sheet'!K286), FALSE) -> 0 | F9: =IFERROR(CHOOSE($I$46, 'PE Analysis'!D142,'PE Analysis'!D194,'PE Analysis'!D220, 'PE Analysis'!Q6, 'PE Analysis'!D33, 'PE Analysis'!Q33, 'PE Analysis'!D60, 'PE Analysis'!Q60, 'PE Analysis'!D168, 'Data Extract Balance Sheet'!L259, 'Data Extract Balance Sheet'!L286), FALSE) -> 0.01859426027 | G9: =IFERROR(CHOOSE($I$46, 'PE Analysis'!E142,'PE Analysis'!E194,'PE Analysis'!E220, 'PE Analysis'!R6, 'PE Analysis'!E33, 'PE Analysis'!R33, 'PE Analysis'!E60, 'PE Analysis'!R60, 'PE Analysis'!E168, 'Data Extract Balance Sheet'!M259, 'Data Extract Balance Sheet'!M286), FALSE) -> 0.05302030869 | H9: =IFERROR(CHOOSE($I$46, 'PE Analysis'!F142,'PE Analysis'!F194,'PE Analysis'!F220, 'PE Analysis'!S6, 'PE Analysis'!F33, 'PE Analysis'!S33, 'PE Analysis'!F60, 'PE Analysis'!S60, 'PE Analysis'!F168, 'Data Extract Balance Sheet'!N259, 'Data Extract Balance Sheet'!N286), FALSE) -> 0.08594587092 | I9: =IFERROR(CHOOSE($I$46, 'PE Analysis'!G142,'PE Analysis'!G194,'PE Analysis'!G220, 'PE Analysis'!T6, 'PE Analysis'!G33, 'PE Analysis'!T33, 'PE Analysis'!G60, 'PE Analysis'!T60, 'PE Analysis'!G168, 'Data Extract Balance Sheet'!O259, 'Data Extract Balance Sheet'!O286), FALSE) -> 0.0759852833 | J9: =IFERROR(CHOOSE($I$46, 'PE Analysis'!H142,'PE Analysis'!H194,'PE Analysis'!H220, 'PE Analysis'!U6, 'PE Analysis'!H33, 'PE Analysis'!U33, 'PE Analysis'!H60, 'PE Analysis'!U60, 'PE Analysis'!H168, 'Data Extract Balance Sheet'!P259, 'Data Extract Balance Sheet'!P286), FALSE) -> 0.01029564701 | K9: =IFERROR(CHOOSE($I$46, 'PE Analysis'!I142,'PE Analysis'!I194,'PE Analysis'!I220, 'PE Analysis'!V6, 'PE Analysis'!I33, 'PE Analysis'!V33, 'PE Analysis'!I60, 'PE Analysis'!V60, 'PE Analysis'!I168, 'Data Extract Balance Sheet'!Q259, 'Data Extract Balance Sheet'!Q286), FALSE) -> -0.0123 | L9: =IFERROR(CHOOSE($I$46, 'PE Analysis'!J142,'PE Analysis'!J194,'PE Analysis'!J220, 'PE Analysis'!W6, 'PE Analysis'!J33, 'PE Analysis'!W33, 'PE Analysis'!J60, 'PE Analysis'!W60, 'PE Analysis'!J168, 'Data Extract Balance Sheet'!R259, 'Data Extract Balance Sheet'!R286), FALSE) -> 0.114 | M9: =IFERROR(CHOOSE($I$46, 'PE Analysis'!K142,'PE Analysis'!K194,'PE Analysis'!K220, 'PE Analysis'!X6, 'PE Analysis'!K33, 'PE Analysis'!X33, 'PE Analysis'!K60, 'PE Analysis'!X60, 'PE Analysis'!K168, 'Data Extract Balance Sheet'!S259, 'Data Extract Balance Sheet'!S286), FALSE) -> 0.1175 | N9: =IFERROR(CHOOSE($I$46, 'PE Analysis'!L142,'PE Analysis'!L194,'PE Analysis'!L220, 'PE Analysis'!Y6, 'PE Analysis'!L33, 'PE Analysis'!Y33, 'PE Analysis'!L60, 'PE Analysis'!Y60, 'PE Analysis'!L168, 'Data Extract Balance Sheet'!T259, 'Data Extract Balance Sheet'!T286), FALSE) -> 0.09109499907 | O9: TRUE | P9: 1 | T9: Average | V9: =IFERROR(AVERAGE(V14:V46),"") -> 0 | W9: =IFERROR(AVERAGE(W14:W46),"") -> 0.07092634877 | X9: 0.0937533793 | Y9: 0.08525919366 | Z9: 0.09085939182 | AA9: 0.08125736313 | AB9: 0.08424444444 | AC9: 0.228 | AD9: 0.2456285714 | AE9: =IFERROR(AVERAGE(AE14:AE29),"") -> 0.087345419
C10: ='Data Cost of Capital'!D13 -> AIG | E10: =IFERROR(CHOOSE($I$46, 'PE Analysis'!C143,'PE Analysis'!C195,'PE Analysis'!C221, 'PE Analysis'!P7, 'PE Analysis'!C34, 'PE Analysis'!P34, 'PE Analysis'!C61, 'PE Analysis'!P61, 'PE Analysis'!C169, 'Data Extract Balance Sheet'!K260, 'Data Extract Balance Sheet'!K287), FALSE) -> 0 | F10: =IFERROR(CHOOSE($I$46, 'PE Analysis'!D143,'PE Analysis'!D195,'PE Analysis'!D221, 'PE Analysis'!Q7, 'PE Analysis'!D34, 'PE Analysis'!Q34, 'PE Analysis'!D61, 'PE Analysis'!Q61, 'PE Analysis'!D169, 'Data Extract Balance Sheet'!L260, 'Data Extract Balance Sheet'!L287), FALSE) -> 0.03517959184 | G10: =IFERROR(CHOOSE($I$46, 'PE Analysis'!E143,'PE Analysis'!E195,'PE Analysis'!E221, 'PE Analysis'!R7, 'PE Analysis'!E34, 'PE Analysis'!R34, 'PE Analysis'!E61, 'PE Analysis'!R61, 'PE Analysis'!E169, 'Data Extract Balance Sheet'!M260, 'Data Extract Balance Sheet'!M287), FALSE) -> 0.08939683488 | H10: =IFERROR(CHOOSE($I$46, 'PE Analysis'!F143,'PE Analysis'!F195,'PE Analysis'!F221, 'PE Analysis'!S7, 'PE Analysis'!F34, 'PE Analysis'!S34, 'PE Analysis'!F61, 'PE Analysis'!S61, 'PE Analysis'!F169, 'Data Extract Balance Sheet'!N260, 'Data Extract Balance Sheet'!N287), FALSE) -> 0.07103180543 | I10: =IFERROR(CHOOSE($I$46, 'PE Analysis'!G143,'PE Analysis'!G195,'PE Analysis'!G221, 'PE Analysis'!T7, 'PE Analysis'!G34, 'PE Analysis'!T34, 'PE Analysis'!G61, 'PE Analysis'!T61, 'PE Analysis'!G169, 'Data Extract Balance Sheet'!O260, 'Data Extract Balance Sheet'!O287), FALSE) -> 0.02450368057 | J10: =IFERROR(CHOOSE($I$46, 'PE Analysis'!H143,'PE Analysis'!H195,'PE Analysis'!H221, 'PE Analysis'!U7, 'PE Analysis'!H34, 'PE Analysis'!U34, 'PE Analysis'!H61, 'PE Analysis'!U61, 'PE Analysis'!H169, 'Data Extract Balance Sheet'!P260, 'Data Extract Balance Sheet'!P287), FALSE) -> -0.01114285714 | K10: =IFERROR(CHOOSE($I$46, 'PE Analysis'!I143,'PE Analysis'!I195,'PE Analysis'!I221, 'PE Analysis'!V7, 'PE Analysis'!I34, 'PE Analysis'!V34, 'PE Analysis'!I61, 'PE Analysis'!V61, 'PE Analysis'!I169, 'Data Extract Balance Sheet'!Q260, 'Data Extract Balance Sheet'!Q287), FALSE) -> -0.023 | L10: =IFERROR(CHOOSE($I$46, 'PE Analysis'!J143,'PE Analysis'!J195,'PE Analysis'!J221, 'PE Analysis'!W7, 'PE Analysis'!J34, 'PE Analysis'!W34, 'PE Analysis'!J61, 'PE Analysis'!W61, 'PE Analysis'!J169, 'Data Extract Balance Sheet'!R260, 'Data Extract Balance Sheet'!R287), FALSE) -> 1.203 | M10: =IFERROR(CHOOSE($I$46, 'PE Analysis'!K143,'PE Analysis'!K195,'PE Analysis'!K221, 'PE Analysis'!X7, 'PE Analysis'!K34, 'PE Analysis'!X34, 'PE Analysis'!K61, 'PE Analysis'!X61, 'PE Analysis'!K169, 'Data Extract Balance Sheet'!S260, 'Data Extract Balance Sheet'!S287), FALSE) -> 1.6416 | N10: =IFERROR(CHOOSE($I$46, 'PE Analysis'!L143,'PE Analysis'!L195,'PE Analysis'!L221, 'PE Analysis'!Y7, 'PE Analysis'!L34, 'PE Analysis'!Y34, 'PE Analysis'!L61, 'PE Analysis'!Y61, 'PE Analysis'!L169, 'Data Extract Balance Sheet'!T260, 'Data Extract Balance Sheet'!T287), FALSE) -> 0.06995782684 | O10: TRUE | P10: 2 | T10: Median | V10: =IFERROR(MEDIAN(V14:V46),"") -> 0 | W10: =IFERROR(MEDIAN(W14:W46),"") -> 0.07870064759 | X10: 0.09231420006 | Y10: 0.09571395011 | Z10: 0.09631125553 | AA10: 0.09482450804 | AB10: 0.10195 | AC10: 0.1125 | AD10: 0.1196 | AE10: =IFERROR(MEDIAN(AE14:AE45),"") -> 0.09291075416
C11: ='Data Cost of Capital'!D14 -> Prudential | E11: =IFERROR(CHOOSE($I$46, 'PE Analysis'!C144,'PE Analysis'!C196,'PE Analysis'!C222, 'PE Analysis'!P8, 'PE Analysis'!C35, 'PE Analysis'!P35, 'PE Analysis'!C62, 'PE Analysis'!P62, 'PE Analysis'!C170, 'Data Extract Balance Sheet'!K261, 'Data Extract Balance Sheet'!K288), FALSE) -> 0 | F11: =IFERROR(CHOOSE($I$46, 'PE Analysis'!D144,'PE Analysis'!D196,'PE Analysis'!D222, 'PE Analysis'!Q8, 'PE Analysis'!D35, 'PE Analysis'!Q35, 'PE Analysis'!D62, 'PE Analysis'!Q62, 'PE Analysis'!D170, 'Data Extract Balance Sheet'!L261, 'Data Extract Balance Sheet'!L288), FALSE) -> 0.01199906687 | G11: =IFERROR(CHOOSE($I$46, 'PE Analysis'!E144,'PE Analysis'!E196,'PE Analysis'!E222, 'PE Analysis'!R8, 'PE Analysis'!E35, 'PE Analysis'!R35, 'PE Analysis'!E62, 'PE Analysis'!R62, 'PE Analysis'!E170, 'Data Extract Balance Sheet'!M261, 'Data Extract Balance Sheet'!M288), FALSE) -> -0.01911550454 | H11: =IFERROR(CHOOSE($I$46, 'PE Analysis'!F144,'PE Analysis'!F196,'PE Analysis'!F222, 'PE Analysis'!S8, 'PE Analysis'!F35, 'PE Analysis'!S35, 'PE Analysis'!F62, 'PE Analysis'!S62, 'PE Analysis'!F170, 'Data Extract Balance Sheet'!N261, 'Data Extract Balance Sheet'!N288), FALSE) -> 0.03272901604 | I11: =IFERROR(CHOOSE($I$46, 'PE Analysis'!G144,'PE Analysis'!G196,'PE Analysis'!G222, 'PE Analysis'!T8, 'PE Analysis'!G35, 'PE Analysis'!T35, 'PE Analysis'!G62, 'PE Analysis'!T62, 'PE Analysis'!G170, 'Data Extract Balance Sheet'!O261, 'Data Extract Balance Sheet'!O288), FALSE) -> 0.1333857484 | J11: =IFERROR(CHOOSE($I$46, 'PE Analysis'!H144,'PE Analysis'!H196,'PE Analysis'!H222, 'PE Analysis'!U8, 'PE Analysis'!H35, 'PE Analysis'!U35, 'PE Analysis'!H62, 'PE Analysis'!U62, 'PE Analysis'!H170, 'Data Extract Balance Sheet'!P261, 'Data Extract Balance Sheet'!P288), FALSE) -> 0.09411840384 | K11: =IFERROR(CHOOSE($I$46, 'PE Analysis'!I144,'PE Analysis'!I196,'PE Analysis'!I222, 'PE Analysis'!V8, 'PE Analysis'!I35, 'PE Analysis'!V35, 'PE Analysis'!I62, 'PE Analysis'!V62, 'PE Analysis'!I170, 'Data Extract Balance Sheet'!Q261, 'Data Extract Balance Sheet'!Q288), FALSE) -> 0.0819 | L11: =IFERROR(CHOOSE($I$46, 'PE Analysis'!J144,'PE Analysis'!J196,'PE Analysis'!J222, 'PE Analysis'!W8, 'PE Analysis'!J35, 'PE Analysis'!W35, 'PE Analysis'!J62, 'PE Analysis'!W62, 'PE Analysis'!J170, 'Data Extract Balance Sheet'!R261, 'Data Extract Balance Sheet'!R288), FALSE) -> 0.152 | M11: =IFERROR(CHOOSE($I$46, 'PE Analysis'!K144,'PE Analysis'!K196,'PE Analysis'!K222, 'PE Analysis'!X8, 'PE Analysis'!K35, 'PE Analysis'!X35, 'PE Analysis'!K62, 'PE Analysis'!X62, 'PE Analysis'!K170, 'Data Extract Balance Sheet'!S261, 'Data Extract Balance Sheet'!S288), FALSE) -> 0.1322 | N11: =IFERROR(CHOOSE($I$46, 'PE Analysis'!L144,'PE Analysis'!L196,'PE Analysis'!L222, 'PE Analysis'!Y8, 'PE Analysis'!L35, 'PE Analysis'!Y35, 'PE Analysis'!L62, 'PE Analysis'!Y62, 'PE Analysis'!L170, 'Data Extract Balance Sheet'!T261, 'Data Extract Balance Sheet'!T288), FALSE) -> 0.1022765599 | O11: TRUE | P11: 3
C12: ='Data Cost of Capital'!D15 -> Genworth | E12: =IFERROR(CHOOSE($I$46, 'PE Analysis'!C145,'PE Analysis'!C197,'PE Analysis'!C223, 'PE Analysis'!P9, 'PE Analysis'!C36, 'PE Analysis'!P36, 'PE Analysis'!C63, 'PE Analysis'!P63, 'PE Analysis'!C171, 'Data Extract Balance Sheet'!K262, 'Data Extract Balance Sheet'!K289), FALSE) -> 0 | F12: =IFERROR(CHOOSE($I$46, 'PE Analysis'!D145,'PE Analysis'!D197,'PE Analysis'!D223, 'PE Analysis'!Q9, 'PE Analysis'!D36, 'PE Analysis'!Q36, 'PE Analysis'!D63, 'PE Analysis'!Q63, 'PE Analysis'!D171, 'Data Extract Balance Sheet'!L262, 'Data Extract Balance Sheet'!L289), FALSE) -> 0.0196164438 | G12: =IFERROR(CHOOSE($I$46, 'PE Analysis'!E145,'PE Analysis'!E197,'PE Analysis'!E223, 'PE Analysis'!R9, 'PE Analysis'!E36, 'PE Analysis'!R36, 'PE Analysis'!E63, 'PE Analysis'!R63, 'PE Analysis'!E171, 'Data Extract Balance Sheet'!M262, 'Data Extract Balance Sheet'!M289), FALSE) -> 0.03876080612 | H12: =IFERROR(CHOOSE($I$46, 'PE Analysis'!F145,'PE Analysis'!F197,'PE Analysis'!F223, 'PE Analysis'!S9, 'PE Analysis'!F36, 'PE Analysis'!S36, 'PE Analysis'!F63, 'PE Analysis'!S63, 'PE Analysis'!F171, 'Data Extract Balance Sheet'!N262, 'Data Extract Balance Sheet'!N289), FALSE) -> -0.08350965147 | I12: =IFERROR(CHOOSE($I$46, 'PE Analysis'!G145,'PE Analysis'!G197,'PE Analysis'!G223, 'PE Analysis'!T9, 'PE Analysis'!G36, 'PE Analysis'!T36, 'PE Analysis'!G63, 'PE Analysis'!T63, 'PE Analysis'!G171, 'Data Extract Balance Sheet'!O262, 'Data Extract Balance Sheet'!O289), FALSE) -> -0.01823541342 | J12: =IFERROR(CHOOSE($I$46, 'PE Analysis'!H145,'PE Analysis'!H197,'PE Analysis'!H223, 'PE Analysis'!U9, 'PE Analysis'!H36, 'PE Analysis'!U36, 'PE Analysis'!H63, 'PE Analysis'!U63, 'PE Analysis'!H171, 'Data Extract Balance Sheet'!P262, 'Data Extract Balance Sheet'!P289), FALSE) -> -0.01971123418 | K12: =IFERROR(CHOOSE($I$46, 'PE Analysis'!I145,'PE Analysis'!I197,'PE Analysis'!I223, 'PE Analysis'!V9, 'PE Analysis'!I36, 'PE Analysis'!V36, 'PE Analysis'!I63, 'PE Analysis'!V63, 'PE Analysis'!I171, 'Data Extract Balance Sheet'!Q262, 'Data Extract Balance Sheet'!Q289), FALSE) -> 0.0384 | L12: =IFERROR(CHOOSE($I$46, 'PE Analysis'!J145,'PE Analysis'!J197,'PE Analysis'!J223, 'PE Analysis'!W9, 'PE Analysis'!J36, 'PE Analysis'!W36, 'PE Analysis'!J63, 'PE Analysis'!W63, 'PE Analysis'!J171, 'Data Extract Balance Sheet'!R262, 'Data Extract Balance Sheet'!R289), FALSE) -> 0.053 | M12: =IFERROR(CHOOSE($I$46, 'PE Analysis'!K145,'PE Analysis'!K197,'PE Analysis'!K223, 'PE Analysis'!X9, 'PE Analysis'!K36, 'PE Analysis'!X36, 'PE Analysis'!K63, 'PE Analysis'!X63, 'PE Analysis'!K171, 'Data Extract Balance Sheet'!S262, 'Data Extract Balance Sheet'!S289), FALSE) -> 0.05 | N12: =IFERROR(CHOOSE($I$46, 'PE Analysis'!L145,'PE Analysis'!L197,'PE Analysis'!L223, 'PE Analysis'!Y9, 'PE Analysis'!L36, 'PE Analysis'!Y36, 'PE Analysis'!L63, 'PE Analysis'!Y63, 'PE Analysis'!L171, 'Data Extract Balance Sheet'!T262, 'Data Extract Balance Sheet'!T289), FALSE) -> 0.03818251241 | O12: TRUE | P12: 4 | R12: No in | S12: Source
C13: ='Data Cost of Capital'!D16 -> Greatwest Lifeco | E13: =IFERROR(CHOOSE($I$46, 'PE Analysis'!C146,'PE Analysis'!C198,'PE Analysis'!C224, 'PE Analysis'!P10, 'PE Analysis'!C37, 'PE Analysis'!P37, 'PE Analysis'!C64, 'PE Analysis'!P64, 'PE Analysis'!C172, 'Data Extract Balance Sheet'!K263, 'Data Extract Balance Sheet'!K290), FALSE) -> 0 | F13: =IFERROR(CHOOSE($I$46, 'PE Analysis'!D146,'PE Analysis'!D198,'PE Analysis'!D224, 'PE Analysis'!Q10, 'PE Analysis'!D37, 'PE Analysis'!Q37, 'PE Analysis'!D64, 'PE Analysis'!Q64, 'PE Analysis'!D172, 'Data Extract Balance Sheet'!L263, 'Data Extract Balance Sheet'!L290), FALSE) -> 0.1239580357 | G13: =IFERROR(CHOOSE($I$46, 'PE Analysis'!E146,'PE Analysis'!E198,'PE Analysis'!E224, 'PE Analysis'!R10, 'PE Analysis'!E37, 'PE Analysis'!R37, 'PE Analysis'!E64, 'PE Analysis'!R64, 'PE Analysis'!E172, 'Data Extract Balance Sheet'!M263, 'Data Extract Balance Sheet'!M290), FALSE) -> 0.1291483673 | H13: =IFERROR(CHOOSE($I$46, 'PE Analysis'!F146,'PE Analysis'!F198,'PE Analysis'!F224, 'PE Analysis'!S10, 'PE Analysis'!F37, 'PE Analysis'!S37, 'PE Analysis'!F64, 'PE Analysis'!S64, 'PE Analysis'!F172, 'Data Extract Balance Sheet'!N263, 'Data Extract Balance Sheet'!N290), FALSE) -> 0.1322834026 | I13: =IFERROR(CHOOSE($I$46, 'PE Analysis'!G146,'PE Analysis'!G198,'PE Analysis'!G224, 'PE Analysis'!T10, 'PE Analysis'!G37, 'PE Analysis'!T37, 'PE Analysis'!G64, 'PE Analysis'!T64, 'PE Analysis'!G172, 'Data Extract Balance Sheet'!O263, 'Data Extract Balance Sheet'!O290), FALSE) -> 0.1228436392 | J13: =IFERROR(CHOOSE($I$46, 'PE Analysis'!H146,'PE Analysis'!H198,'PE Analysis'!H224, 'PE Analysis'!U10, 'PE Analysis'!H37, 'PE Analysis'!U37, 'PE Analysis'!H64, 'PE Analysis'!U64, 'PE Analysis'!H172, 'Data Extract Balance Sheet'!P263, 'Data Extract Balance Sheet'!P290), FALSE) -> 0.1201487864 | K13: =IFERROR(CHOOSE($I$46, 'PE Analysis'!I146,'PE Analysis'!I198,'PE Analysis'!I224, 'PE Analysis'!V10, 'PE Analysis'!I37, 'PE Analysis'!V37, 'PE Analysis'!I64, 'PE Analysis'!V64, 'PE Analysis'!I172, 'Data Extract Balance Sheet'!Q263, 'Data Extract Balance Sheet'!Q290), FALSE) -> 0.1111 | L13: =IFERROR(CHOOSE($I$46, 'PE Analysis'!J146,'PE Analysis'!J198,'PE Analysis'!J224, 'PE Analysis'!W10, 'PE Analysis'!J37, 'PE Analysis'!W37, 'PE Analysis'!J64, 'PE Analysis'!W64, 'PE Analysis'!J172, 'Data Extract Balance Sheet'!R263, 'Data Extract Balance Sheet'!R290), FALSE) -> 0.244 | M13: =IFERROR(CHOOSE($I$46, 'PE Analysis'!K146,'PE Analysis'!K198,'PE Analysis'!K224, 'PE Analysis'!X10, 'PE Analysis'!K37, 'PE Analysis'!X37, 'PE Analysis'!K64, 'PE Analysis'!X64, 'PE Analysis'!K172, 'Data Extract Balance Sheet'!S263, 'Data Extract Balance Sheet'!S290), FALSE) -> 0.1048 | N13: =IFERROR(CHOOSE($I$46, 'PE Analysis'!L146,'PE Analysis'!L198,'PE Analysis'!L224, 'PE Analysis'!Y10, 'PE Analysis'!L37, 'PE Analysis'!Y37, 'PE Analysis'!L64, 'PE Analysis'!Y64, 'PE Analysis'!L172, 'Data Extract Balance Sheet'!T263, 'Data Extract Balance Sheet'!T290), FALSE) -> 0.1536144578 | O13: TRUE | P13: 5 | R13: Table | S13: Row #
C14: ='Data Cost of Capital'!D17 -> China Insurance Company | E14: =IFERROR(CHOOSE($I$46, 'PE Analysis'!C147,'PE Analysis'!C199,'PE Analysis'!C225, 'PE Analysis'!P11, 'PE Analysis'!C38, 'PE Analysis'!P38, 'PE Analysis'!C65, 'PE Analysis'!P65, 'PE Analysis'!C173, 'Data Extract Balance Sheet'!K264, 'Data Extract Balance Sheet'!K291), FALSE) -> 0 | F14: =IFERROR(CHOOSE($I$46, 'PE Analysis'!D147,'PE Analysis'!D199,'PE Analysis'!D225, 'PE Analysis'!Q11, 'PE Analysis'!D38, 'PE Analysis'!Q38, 'PE Analysis'!D65, 'PE Analysis'!Q65, 'PE Analysis'!D173, 'Data Extract Balance Sheet'!L264, 'Data Extract Balance Sheet'!L291), FALSE) -> 0.04931937173 | G14: =IFERROR(CHOOSE($I$46, 'PE Analysis'!E147,'PE Analysis'!E199,'PE Analysis'!E225, 'PE Analysis'!R11, 'PE Analysis'!E38, 'PE Analysis'!R38, 'PE Analysis'!E65, 'PE Analysis'!R65, 'PE Analysis'!E173, 'Data Extract Balance Sheet'!M264, 'Data Extract Balance Sheet'!M291), FALSE) -> 0.1111573352 | H14: =IFERROR(CHOOSE($I$46, 'PE Analysis'!F147,'PE Analysis'!F199,'PE Analysis'!F225, 'PE Analysis'!S11, 'PE Analysis'!F38, 'PE Analysis'!S38, 'PE Analysis'!F65, 'PE Analysis'!S65, 'PE Analysis'!F173, 'Data Extract Balance Sheet'!N264, 'Data Extract Balance Sheet'!N291), FALSE) -> 0.1138314468 | I14: =IFERROR(CHOOSE($I$46, 'PE Analysis'!G147,'PE Analysis'!G199,'PE Analysis'!G225, 'PE Analysis'!T11, 'PE Analysis'!G38, 'PE Analysis'!T38, 'PE Analysis'!G65, 'PE Analysis'!T65, 'PE Analysis'!G173, 'Data Extract Balance Sheet'!O264, 'Data Extract Balance Sheet'!O291), FALSE) -> 0.1101714731 | J14: =IFERROR(CHOOSE($I$46, 'PE Analysis'!H147,'PE Analysis'!H199,'PE Analysis'!H225, 'PE Analysis'!U11, 'PE Analysis'!H38, 'PE Analysis'!U38, 'PE Analysis'!H65, 'PE Analysis'!U65, 'PE Analysis'!H173, 'Data Extract Balance Sheet'!P264, 'Data Extract Balance Sheet'!P291), FALSE) -> 0.0642632745 | K14: =IFERROR(CHOOSE($I$46, 'PE Analysis'!I147,'PE Analysis'!I199,'PE Analysis'!I225, 'PE Analysis'!V11, 'PE Analysis'!I38, 'PE Analysis'!V38, 'PE Analysis'!I65, 'PE Analysis'!V65, 'PE Analysis'!I173, 'Data Extract Balance Sheet'!Q264, 'Data Extract Balance Sheet'!Q291), FALSE) -> 0.1027 | L14: =IFERROR(CHOOSE($I$46, 'PE Analysis'!J147,'PE Analysis'!J199,'PE Analysis'!J225, 'PE Analysis'!W11, 'PE Analysis'!J38, 'PE Analysis'!W38, 'PE Analysis'!J65, 'PE Analysis'!W65, 'PE Analysis'!J173, 'Data Extract Balance Sheet'!R264, 'Data Extract Balance Sheet'!R291), FALSE) -> N/A | M14: =IFERROR(CHOOSE($I$46, 'PE Analysis'!K147,'PE Analysis'!K199,'PE Analysis'!K225, 'PE Analysis'!X11, 'PE Analysis'!K38, 'PE Analysis'!X38, 'PE Analysis'!K65, 'PE Analysis'!X65, 'PE Analysis'!K173, 'Data Extract Balance Sheet'!S264, 'Data Extract Balance Sheet'!S291), FALSE) -> 0.3937 | N14: =IFERROR(CHOOSE($I$46, 'PE Analysis'!L147,'PE Analysis'!L199,'PE Analysis'!L225, 'PE Analysis'!Y11, 'PE Analysis'!L38, 'PE Analysis'!Y38, 'PE Analysis'!L65, 'PE Analysis'!Y65, 'PE Analysis'!L173, 'Data Extract Balance Sheet'!T264, 'Data Extract Balance Sheet'!T291), FALSE) -> 0.085962562 | O14: TRUE | P14: =O14+P13 -> 6 | R14: 1 | S14: =IFERROR(MATCH(R14,P:P,0),"") -> 9 | T14: =IFERROR(INDEX(C:C,S14),"") -> Met Life | V14: =IFERROR(INDEX(E:E,$S14),"") -> 0 | W14: =IFERROR(INDEX(F:F,$S14),"") -> 0.01859426027 | X14: =IFERROR(INDEX(G:G,$S14),"") -> 0.05302030869 | Y14: =IFERROR(INDEX(H:H,$S14),"") -> 0.08594587092 | Z14: =IFERROR(INDEX(I:I,$S14),"") -> 0.0759852833 | AA14: =IFERROR(INDEX(J:J,$S14),"") -> 0.01029564701 | AB14: =IFERROR(INDEX(K:K,$S14),"") -> -0.0123 | AC14: =IFERROR(INDEX(L:L,$S14),"") -> 0.114 | AD14: =IFERROR(INDEX(M:M,$S14),"") -> 0.1175 | AE14: =IFERROR(INDEX(N:N,$S14),"") -> 0.09109499907
C15: ='Data Cost of Capital'!D18 -> AIA Group | E15: =IFERROR(CHOOSE($I$46, 'PE Analysis'!C148,'PE Analysis'!C200,'PE Analysis'!C226, 'PE Analysis'!P12, 'PE Analysis'!C39, 'PE Analysis'!P39, 'PE Analysis'!C66, 'PE Analysis'!P66, 'PE Analysis'!C174, 'Data Extract Balance Sheet'!K265, 'Data Extract Balance Sheet'!K292), FALSE) -> 0 | F15: =IFERROR(CHOOSE($I$46, 'PE Analysis'!D148,'PE Analysis'!D200,'PE Analysis'!D226, 'PE Analysis'!Q12, 'PE Analysis'!D39, 'PE Analysis'!Q39, 'PE Analysis'!D66, 'PE Analysis'!Q66, 'PE Analysis'!D174, 'Data Extract Balance Sheet'!L265, 'Data Extract Balance Sheet'!L292), FALSE) -> 0.1125181247 | G15: =IFERROR(CHOOSE($I$46, 'PE Analysis'!E148,'PE Analysis'!E200,'PE Analysis'!E226, 'PE Analysis'!R12, 'PE Analysis'!E39, 'PE Analysis'!R39, 'PE Analysis'!E66, 'PE Analysis'!R66, 'PE Analysis'!E174, 'Data Extract Balance Sheet'!M265, 'Data Extract Balance Sheet'!M292), FALSE) -> 0.1163532793 | H15: =IFERROR(CHOOSE($I$46, 'PE Analysis'!F148,'PE Analysis'!F200,'PE Analysis'!F226, 'PE Analysis'!S12, 'PE Analysis'!F39, 'PE Analysis'!S39, 'PE Analysis'!F66, 'PE Analysis'!S66, 'PE Analysis'!F174, 'Data Extract Balance Sheet'!N265, 'Data Extract Balance Sheet'!N292), FALSE) -> 0.1127354542 | I15: =IFERROR(CHOOSE($I$46, 'PE Analysis'!G148,'PE Analysis'!G200,'PE Analysis'!G226, 'PE Analysis'!T12, 'PE Analysis'!G39, 'PE Analysis'!T39, 'PE Analysis'!G66, 'PE Analysis'!T66, 'PE Analysis'!G174, 'Data Extract Balance Sheet'!O265, 'Data Extract Balance Sheet'!O292), FALSE) -> 0.08980651106 | J15: =IFERROR(CHOOSE($I$46, 'PE Analysis'!H148,'PE Analysis'!H200,'PE Analysis'!H226, 'PE Analysis'!U12, 'PE Analysis'!H39, 'PE Analysis'!U39, 'PE Analysis'!H66, 'PE Analysis'!U66, 'PE Analysis'!H174, 'Data Extract Balance Sheet'!P265, 'Data Extract Balance Sheet'!P292), FALSE) -> 0.1199823113 | K15: =IFERROR(CHOOSE($I$46, 'PE Analysis'!I148,'PE Analysis'!I200,'PE Analysis'!I226, 'PE Analysis'!V12, 'PE Analysis'!I39, 'PE Analysis'!V39, 'PE Analysis'!I66, 'PE Analysis'!V66, 'PE Analysis'!I174, 'Data Extract Balance Sheet'!Q265, 'Data Extract Balance Sheet'!Q292), FALSE) -> 0.1362 | L15: =IFERROR(CHOOSE($I$46, 'PE Analysis'!J148,'PE Analysis'!J200,'PE Analysis'!J226, 'PE Analysis'!W12, 'PE Analysis'!J39, 'PE Analysis'!W39, 'PE Analysis'!J66, 'PE Analysis'!W66, 'PE Analysis'!J174, 'Data Extract Balance Sheet'!R265, 'Data Extract Balance Sheet'!R292), FALSE) -> N/A | M15: =IFERROR(CHOOSE($I$46, 'PE Analysis'!K148,'PE Analysis'!K200,'PE Analysis'!K226, 'PE Analysis'!X12, 'PE Analysis'!K39, 'PE Analysis'!X39, 'PE Analysis'!K66, 'PE Analysis'!X66, 'PE Analysis'!K174, 'Data Extract Balance Sheet'!S265, 'Data Extract Balance Sheet'!S292), FALSE) -> 0.1122 | N15: =IFERROR(CHOOSE($I$46, 'PE Analysis'!L148,'PE Analysis'!L200,'PE Analysis'!L226, 'PE Analysis'!Y12, 'PE Analysis'!L39, 'PE Analysis'!Y39, 'PE Analysis'!L66, 'PE Analysis'!Y66, 'PE Analysis'!L174, 'Data Extract Balance Sheet'!T265, 'Data Extract Balance Sheet'!T292), FALSE) -> 0.0798411704 | O15: TRUE | P15: 7 | R15: =R14+1 -> 2 | S15: =IFERROR(MATCH(R15,P:P,0),"") -> 10 | T15: AIG | V15: 0 | W15: 0.03517959184 | X15: 0.08939683488 | Y15: 0.07103180543 | Z15: 0.02450368057 | AA15: -0.01114285714 | AB15: -0.023 | AC15: 1.203 | AD15: 1.6416 | AE15: 0.06995782684
C16: ='Data Cost of Capital'!D19 -> China Pacific Insrance | E16: =IFERROR(CHOOSE($I$46, 'PE Analysis'!C149,'PE Analysis'!C201,'PE Analysis'!C227, 'PE Analysis'!P13, 'PE Analysis'!C40, 'PE Analysis'!P40, 'PE Analysis'!C67, 'PE Analysis'!P67, 'PE Analysis'!C175, 'Data Extract Balance Sheet'!K266, 'Data Extract Balance Sheet'!K293), FALSE) -> 0 | F16: =IFERROR(CHOOSE($I$46, 'PE Analysis'!D149,'PE Analysis'!D201,'PE Analysis'!D227, 'PE Analysis'!Q13, 'PE Analysis'!D40, 'PE Analysis'!Q40, 'PE Analysis'!D67, 'PE Analysis'!Q67, 'PE Analysis'!D175, 'Data Extract Balance Sheet'!L266, 'Data Extract Balance Sheet'!L293), FALSE) -> 0.05271374843 | G16: =IFERROR(CHOOSE($I$46, 'PE Analysis'!E149,'PE Analysis'!E201,'PE Analysis'!E227, 'PE Analysis'!R13, 'PE Analysis'!E40, 'PE Analysis'!R40, 'PE Analysis'!E67, 'PE Analysis'!R67, 'PE Analysis'!E175, 'Data Extract Balance Sheet'!M266, 'Data Extract Balance Sheet'!M293), FALSE) -> 0.09220100978 | H16: =IFERROR(CHOOSE($I$46, 'PE Analysis'!F149,'PE Analysis'!F201,'PE Analysis'!F227, 'PE Analysis'!S13, 'PE Analysis'!F40, 'PE Analysis'!S40, 'PE Analysis'!F67, 'PE Analysis'!S67, 'PE Analysis'!F175, 'Data Extract Balance Sheet'!N266, 'Data Extract Balance Sheet'!N293), FALSE) -> 0.09529676935 | I16: =IFERROR(CHOOSE($I$46, 'PE Analysis'!G149,'PE Analysis'!G201,'PE Analysis'!G227, 'PE Analysis'!T13, 'PE Analysis'!G40, 'PE Analysis'!T40, 'PE Analysis'!G67, 'PE Analysis'!T67, 'PE Analysis'!G175, 'Data Extract Balance Sheet'!O266, 'Data Extract Balance Sheet'!O293), FALSE) -> 0.13777303 | J16: =IFERROR(CHOOSE($I$46, 'PE Analysis'!H149,'PE Analysis'!H201,'PE Analysis'!H227, 'PE Analysis'!U13, 'PE Analysis'!H40, 'PE Analysis'!U40, 'PE Analysis'!H67, 'PE Analysis'!U67, 'PE Analysis'!H175, 'Data Extract Balance Sheet'!P266, 'Data Extract Balance Sheet'!P293), FALSE) -> 0.09553061224 | K16: =IFERROR(CHOOSE($I$46, 'PE Analysis'!I149,'PE Analysis'!I201,'PE Analysis'!I227, 'PE Analysis'!V13, 'PE Analysis'!I40, 'PE Analysis'!V40, 'PE Analysis'!I67, 'PE Analysis'!V67, 'PE Analysis'!I175, 'Data Extract Balance Sheet'!Q266, 'Data Extract Balance Sheet'!Q293), FALSE) -> 0.1059 | L16: =IFERROR(CHOOSE($I$46, 'PE Analysis'!J149,'PE Analysis'!J201,'PE Analysis'!J227, 'PE Analysis'!W13, 'PE Analysis'!J40, 'PE Analysis'!W40, 'PE Analysis'!J67, 'PE Analysis'!W67, 'PE Analysis'!J175, 'Data Extract Balance Sheet'!R266, 'Data Extract Balance Sheet'!R293), FALSE) -> N/A | M16: =IFERROR(CHOOSE($I$46, 'PE Analysis'!K149,'PE Analysis'!K201,'PE Analysis'!K227, 'PE Analysis'!X13, 'PE Analysis'!K40, 'PE Analysis'!X40, 'PE Analysis'!K67, 'PE Analysis'!X67, 'PE Analysis'!K175, 'Data Extract Balance Sheet'!S266, 'Data Extract Balance Sheet'!S293), FALSE) -> 0.2686 | N16: =IFERROR(CHOOSE($I$46, 'PE Analysis'!L149,'PE Analysis'!L201,'PE Analysis'!L227, 'PE Analysis'!Y13, 'PE Analysis'!L40, 'PE Analysis'!Y40, 'PE Analysis'!L67, 'PE Analysis'!Y67, 'PE Analysis'!L175, 'Data Extract Balance Sheet'!T266, 'Data Extract Balance Sheet'!T293), FALSE) -> 0 | O16: TRUE | P16: 8 | R16: =R15+1 -> 3 | S16: =IFERROR(MATCH(R16,P:P,0),"") -> 11 | T16: Prudential | V16: =IFERROR(INDEX(E:E,$S16),"") -> 0 | W16: 0.01199906687 | X16: -0.01911550454 | Y16: 0.03272901604 | Z16: 0.1333857484 | AA16: 0.09411840384 | AB16: 0.0819 | AC16: 0.152 | AD16: 0.1322 | AE16: 0.1022765599
C17: ='Data Cost of Capital'!D20 -> Aflac | E17: =IFERROR(CHOOSE($I$46, 'PE Analysis'!C150,'PE Analysis'!C202,'PE Analysis'!C228, 'PE Analysis'!P14, 'PE Analysis'!C41, 'PE Analysis'!P41, 'PE Analysis'!C68, 'PE Analysis'!P68, 'PE Analysis'!C176, 'Data Extract Balance Sheet'!K267, 'Data Extract Balance Sheet'!K294), FALSE) -> 0 | F17: =IFERROR(CHOOSE($I$46, 'PE Analysis'!D150,'PE Analysis'!D202,'PE Analysis'!D228, 'PE Analysis'!Q14, 'PE Analysis'!D41, 'PE Analysis'!Q41, 'PE Analysis'!D68, 'PE Analysis'!Q68, 'PE Analysis'!D176, 'Data Extract Balance Sheet'!L267, 'Data Extract Balance Sheet'!L294), FALSE) -> 0.1793855945 | G17: =IFERROR(CHOOSE($I$46, 'PE Analysis'!E150,'PE Analysis'!E202,'PE Analysis'!E228, 'PE Analysis'!R14, 'PE Analysis'!E41, 'PE Analysis'!R41, 'PE Analysis'!E68, 'PE Analysis'!R68, 'PE Analysis'!E176, 'Data Extract Balance Sheet'!M267, 'Data Extract Balance Sheet'!M294), FALSE) -> 0.2160465116 | H17: =IFERROR(CHOOSE($I$46, 'PE Analysis'!F150,'PE Analysis'!F202,'PE Analysis'!F228, 'PE Analysis'!S14, 'PE Analysis'!F41, 'PE Analysis'!S41, 'PE Analysis'!F68, 'PE Analysis'!S68, 'PE Analysis'!F176, 'Data Extract Balance Sheet'!N267, 'Data Extract Balance Sheet'!N294), FALSE) -> 0.1608091553 | I17: =IFERROR(CHOOSE($I$46, 'PE Analysis'!G150,'PE Analysis'!G202,'PE Analysis'!G228, 'PE Analysis'!T14, 'PE Analysis'!G41, 'PE Analysis'!T41, 'PE Analysis'!G68, 'PE Analysis'!T68, 'PE Analysis'!G176, 'Data Extract Balance Sheet'!O267, 'Data Extract Balance Sheet'!O294), FALSE) -> 0.1429826087 | J17: =IFERROR(CHOOSE($I$46, 'PE Analysis'!H150,'PE Analysis'!H202,'PE Analysis'!H228, 'PE Analysis'!U14, 'PE Analysis'!H41, 'PE Analysis'!U41, 'PE Analysis'!H68, 'PE Analysis'!U68, 'PE Analysis'!H176, 'Data Extract Balance Sheet'!P267, 'Data Extract Balance Sheet'!P294), FALSE) -> 0.1297898535 | K17: =IFERROR(CHOOSE($I$46, 'PE Analysis'!I150,'PE Analysis'!I202,'PE Analysis'!I228, 'PE Analysis'!V14, 'PE Analysis'!I41, 'PE Analysis'!V41, 'PE Analysis'!I68, 'PE Analysis'!V68, 'PE Analysis'!I176, 'Data Extract Balance Sheet'!Q267, 'Data Extract Balance Sheet'!Q294), FALSE) -> 0.1239 | L17: =IFERROR(CHOOSE($I$46, 'PE Analysis'!J150,'PE Analysis'!J202,'PE Analysis'!J228, 'PE Analysis'!W14, 'PE Analysis'!J41, 'PE Analysis'!W41, 'PE Analysis'!J68, 'PE Analysis'!W68, 'PE Analysis'!J176, 'Data Extract Balance Sheet'!R267, 'Data Extract Balance Sheet'!R294), FALSE) -> 0.111 | M17: =IFERROR(CHOOSE($I$46, 'PE Analysis'!K150,'PE Analysis'!K202,'PE Analysis'!K228, 'PE Analysis'!X14, 'PE Analysis'!K41, 'PE Analysis'!X41, 'PE Analysis'!K68, 'PE Analysis'!X68, 'PE Analysis'!K176, 'Data Extract Balance Sheet'!S267, 'Data Extract Balance Sheet'!S294), FALSE) -> 0.135 | N17: =IFERROR(CHOOSE($I$46, 'PE Analysis'!L150,'PE Analysis'!L202,'PE Analysis'!L228, 'PE Analysis'!Y14, 'PE Analysis'!L41, 'PE Analysis'!Y41, 'PE Analysis'!L68, 'PE Analysis'!Y68, 'PE Analysis'!L176, 'Data Extract Balance Sheet'!T267, 'Data Extract Balance Sheet'!T294), FALSE) -> 0.1344086022 | O17: TRUE | P17: 9 | R17: 4 | S17: 12 | T17: Genworth | V17: 0 | W17: 0.0196164438 | X17: 0.03876080612 | Y17: -0.08350965147 | Z17: -0.01823541342 | AA17: -0.01971123418 | AB17: 0.0384 | AC17: 0.053 | AD17: 0.05 | AE17: 0.03818251241
C18: ='Data Cost of Capital'!D21 -> Dai-ichi Life Holdings Inc | E18: =IFERROR(CHOOSE($I$46, 'PE Analysis'!C151,'PE Analysis'!C203,'PE Analysis'!C229, 'PE Analysis'!P15, 'PE Analysis'!C42, 'PE Analysis'!P42, 'PE Analysis'!C69, 'PE Analysis'!P69, 'PE Analysis'!C177, 'Data Extract Balance Sheet'!K268, 'Data Extract Balance Sheet'!K295), FALSE) -> 0 | F18: =IFERROR(CHOOSE($I$46, 'PE Analysis'!D151,'PE Analysis'!D203,'PE Analysis'!D229, 'PE Analysis'!Q15, 'PE Analysis'!D42, 'PE Analysis'!Q42, 'PE Analysis'!D69, 'PE Analysis'!Q69, 'PE Analysis'!D177, 'Data Extract Balance Sheet'!L268, 'Data Extract Balance Sheet'!L295), FALSE) -> 0.01976981707 | G18: =IFERROR(CHOOSE($I$46, 'PE Analysis'!E151,'PE Analysis'!E203,'PE Analysis'!E229, 'PE Analysis'!R15, 'PE Analysis'!E42, 'PE Analysis'!R42, 'PE Analysis'!E69, 'PE Analysis'!R69, 'PE Analysis'!E177, 'Data Extract Balance Sheet'!M268, 'Data Extract Balance Sheet'!M295), FALSE) -> 0.0399641761 | H18: =IFERROR(CHOOSE($I$46, 'PE Analysis'!F151,'PE Analysis'!F203,'PE Analysis'!F229, 'PE Analysis'!S15, 'PE Analysis'!F42, 'PE Analysis'!S42, 'PE Analysis'!F69, 'PE Analysis'!S69, 'PE Analysis'!F177, 'Data Extract Balance Sheet'!N268, 'Data Extract Balance Sheet'!N295), FALSE) -> 0.0396745418 | I18: =IFERROR(CHOOSE($I$46, 'PE Analysis'!G151,'PE Analysis'!G203,'PE Analysis'!G229, 'PE Analysis'!T15, 'PE Analysis'!G42, 'PE Analysis'!T42, 'PE Analysis'!G69, 'PE Analysis'!T69, 'PE Analysis'!G177, 'Data Extract Balance Sheet'!O268, 'Data Extract Balance Sheet'!O295), FALSE) -> 0.06113675501 | J18: =IFERROR(CHOOSE($I$46, 'PE Analysis'!H151,'PE Analysis'!H203,'PE Analysis'!H229, 'PE Analysis'!U15, 'PE Analysis'!H42, 'PE Analysis'!U42, 'PE Analysis'!H69, 'PE Analysis'!U69, 'PE Analysis'!H177, 'Data Extract Balance Sheet'!P268, 'Data Extract Balance Sheet'!P295), FALSE) -> 0.07388904459 | K18: =IFERROR(CHOOSE($I$46, 'PE Analysis'!I151,'PE Analysis'!I203,'PE Analysis'!I229, 'PE Analysis'!V15, 'PE Analysis'!I42, 'PE Analysis'!V42, 'PE Analysis'!I69, 'PE Analysis'!V69, 'PE Analysis'!I177, 'Data Extract Balance Sheet'!Q268, 'Data Extract Balance Sheet'!Q295), FALSE) -> 0.0283 | L18: =IFERROR(CHOOSE($I$46, 'PE Analysis'!J151,'PE Analysis'!J203,'PE Analysis'!J229, 'PE Analysis'!W15, 'PE Analysis'!J42, 'PE Analysis'!W42, 'PE Analysis'!J69, 'PE Analysis'!W69, 'PE Analysis'!J177, 'Data Extract Balance Sheet'!R268, 'Data Extract Balance Sheet'!R295), FALSE) -> FALSE | M18: =IFERROR(CHOOSE($I$46, 'PE Analysis'!K151,'PE Analysis'!K203,'PE Analysis'!K229, 'PE Analysis'!X15, 'PE Analysis'!K42, 'PE Analysis'!X42, 'PE Analysis'!K69, 'PE Analysis'!X69, 'PE Analysis'!K177, 'Data Extract Balance Sheet'!S268, 'Data Extract Balance Sheet'!S295), FALSE) -> FALSE | N18: =IFERROR(CHOOSE($I$46, 'PE Analysis'!L151,'PE Analysis'!L203,'PE Analysis'!L229, 'PE Analysis'!Y15, 'PE Analysis'!L42, 'PE Analysis'!Y42, 'PE Analysis'!L69, 'PE Analysis'!Y69, 'PE Analysis'!L177, 'Data Extract Balance Sheet'!T268, 'Data Extract Balance Sheet'!T295), FALSE) -> 0.06942082803 | O18: TRUE | P18: 10 | R18: 5 | S18: =IFERROR(MATCH(R18,P:P,0),"") -> 13 | T18: Greatwest Lifeco | V18: 0 | W18: 0.1239580357 | X18: 0.1291483673 | Y18: 0.1322834026 | Z18: 0.1228436392 | AA18: 0.1201487864 | AB18: 0.1111 | AC18: 0.244 | AD18: 0.1048 | AE18: 0.1536144578
C19: ='Data Cost of Capital'!D22 -> Old Mutual | E19: =IFERROR(CHOOSE($I$46, 'PE Analysis'!C152,'PE Analysis'!C204,'PE Analysis'!C230, 'PE Analysis'!P16, 'PE Analysis'!C43, 'PE Analysis'!P43, 'PE Analysis'!C70, 'PE Analysis'!P70, 'PE Analysis'!C178, 'Data Extract Balance Sheet'!K269, 'Data Extract Balance Sheet'!K296), FALSE) -> 0 | F19: =IFERROR(CHOOSE($I$46, 'PE Analysis'!D152,'PE Analysis'!D204,'PE Analysis'!D230, 'PE Analysis'!Q16, 'PE Analysis'!D43, 'PE Analysis'!Q43, 'PE Analysis'!D70, 'PE Analysis'!Q70, 'PE Analysis'!D178, 'Data Extract Balance Sheet'!L269, 'Data Extract Balance Sheet'!L296), FALSE) -> 0.1609396914 | G19: =IFERROR(CHOOSE($I$46, 'PE Analysis'!E152,'PE Analysis'!E204,'PE Analysis'!E230, 'PE Analysis'!R16, 'PE Analysis'!E43, 'PE Analysis'!R43, 'PE Analysis'!E70, 'PE Analysis'!R70, 'PE Analysis'!E178, 'Data Extract Balance Sheet'!M269, 'Data Extract Balance Sheet'!M296), FALSE) -> 0.09881305638 | H19: =IFERROR(CHOOSE($I$46, 'PE Analysis'!F152,'PE Analysis'!F204,'PE Analysis'!F230, 'PE Analysis'!S16, 'PE Analysis'!F43, 'PE Analysis'!S43, 'PE Analysis'!F70, 'PE Analysis'!S70, 'PE Analysis'!F178, 'Data Extract Balance Sheet'!N269, 'Data Extract Balance Sheet'!N296), FALSE) -> 0.07831395349 | I19: =IFERROR(CHOOSE($I$46, 'PE Analysis'!G152,'PE Analysis'!G204,'PE Analysis'!G230, 'PE Analysis'!T16, 'PE Analysis'!G43, 'PE Analysis'!T43, 'PE Analysis'!G70, 'PE Analysis'!T70, 'PE Analysis'!G178, 'Data Extract Balance Sheet'!O269, 'Data Extract Balance Sheet'!O296), FALSE) -> 0.09410296412 | J19: =IFERROR(CHOOSE($I$46, 'PE Analysis'!H152,'PE Analysis'!H204,'PE Analysis'!H230, 'PE Analysis'!U16, 'PE Analysis'!H43, 'PE Analysis'!U43, 'PE Analysis'!H70, 'PE Analysis'!U70, 'PE Analysis'!H178, 'Data Extract Balance Sheet'!P269, 'Data Extract Balance Sheet'!P296), FALSE) -> 0.06631105398 | K19: =IFERROR(CHOOSE($I$46, 'PE Analysis'!I152,'PE Analysis'!I204,'PE Analysis'!I230, 'PE Analysis'!V16, 'PE Analysis'!I43, 'PE Analysis'!V43, 'PE Analysis'!I70, 'PE Analysis'!V70, 'PE Analysis'!I178, 'Data Extract Balance Sheet'!Q269, 'Data Extract Balance Sheet'!Q296), FALSE) -> 0.0997 | L19: =IFERROR(CHOOSE($I$46, 'PE Analysis'!J152,'PE Analysis'!J204,'PE Analysis'!J230, 'PE Analysis'!W16, 'PE Analysis'!J43, 'PE Analysis'!W43, 'PE Analysis'!J70, 'PE Analysis'!W70, 'PE Analysis'!J178, 'Data Extract Balance Sheet'!R269, 'Data Extract Balance Sheet'!R296), FALSE) -> N/A | M19: =IFERROR(CHOOSE($I$46, 'PE Analysis'!K152,'PE Analysis'!K204,'PE Analysis'!K230, 'PE Analysis'!X16, 'PE Analysis'!K43, 'PE Analysis'!X43, 'PE Analysis'!K70, 'PE Analysis'!X70, 'PE Analysis'!K178, 'Data Extract Balance Sheet'!S269, 'Data Extract Balance Sheet'!S296), FALSE) -> 0.0877 | N19: =IFERROR(CHOOSE($I$46, 'PE Analysis'!L152,'PE Analysis'!L204,'PE Analysis'!L230, 'PE Analysis'!Y16, 'PE Analysis'!L43, 'PE Analysis'!Y43, 'PE Analysis'!L70, 'PE Analysis'!Y70, 'PE Analysis'!L178, 'Data Extract Balance Sheet'!T269, 'Data Extract Balance Sheet'!T296), FALSE) -> 0 | O19: FALSE | P19: 10 | R19: 6 | S19: 14 | T19: China Insurance Company | V19: 0 | W19: 0.04931937173 | X19: 0.1111573352 | Y19: 0.1138314468 | Z19: 0.1101714731 | AA19: 0.0642632745 | AB19: 0.1027 | AC19: N/A | AD19: 0.3937 | AE19: 0.085962562
C20: ='Data Cost of Capital'!D23 -> Power Financial Corp | E20: =IFERROR(CHOOSE($I$46, 'PE Analysis'!C153,'PE Analysis'!C205,'PE Analysis'!C231, 'PE Analysis'!P17, 'PE Analysis'!C44, 'PE Analysis'!P44, 'PE Analysis'!C71, 'PE Analysis'!P71, 'PE Analysis'!C179, 'Data Extract Balance Sheet'!K270, 'Data Extract Balance Sheet'!K297), FALSE) -> 0 | F20: =IFERROR(CHOOSE($I$46, 'PE Analysis'!D153,'PE Analysis'!D205,'PE Analysis'!D231, 'PE Analysis'!Q17, 'PE Analysis'!D44, 'PE Analysis'!Q44, 'PE Analysis'!D71, 'PE Analysis'!Q71, 'PE Analysis'!D179, 'Data Extract Balance Sheet'!L270, 'Data Extract Balance Sheet'!L297), FALSE) -> 0.1190946903 | G20: =IFERROR(CHOOSE($I$46, 'PE Analysis'!E153,'PE Analysis'!E205,'PE Analysis'!E231, 'PE Analysis'!R17, 'PE Analysis'!E44, 'PE Analysis'!R44, 'PE Analysis'!E71, 'PE Analysis'!R71, 'PE Analysis'!E179, 'Data Extract Balance Sheet'!M270, 'Data Extract Balance Sheet'!M297), FALSE) -> 0.1178048344 | H20: =IFERROR(CHOOSE($I$46, 'PE Analysis'!F153,'PE Analysis'!F205,'PE Analysis'!F231, 'PE Analysis'!S17, 'PE Analysis'!F44, 'PE Analysis'!S44, 'PE Analysis'!F71, 'PE Analysis'!S71, 'PE Analysis'!F179, 'Data Extract Balance Sheet'!N270, 'Data Extract Balance Sheet'!N297), FALSE) -> 0.1253760282 | I20: =IFERROR(CHOOSE($I$46, 'PE Analysis'!G153,'PE Analysis'!G205,'PE Analysis'!G231, 'PE Analysis'!T17, 'PE Analysis'!G44, 'PE Analysis'!T44, 'PE Analysis'!G71, 'PE Analysis'!T71, 'PE Analysis'!G179, 'Data Extract Balance Sheet'!O270, 'Data Extract Balance Sheet'!O297), FALSE) -> 0.1185294118 | J20: =IFERROR(CHOOSE($I$46, 'PE Analysis'!H153,'PE Analysis'!H205,'PE Analysis'!H231, 'PE Analysis'!U17, 'PE Analysis'!H44, 'PE Analysis'!U44, 'PE Analysis'!H71, 'PE Analysis'!U71, 'PE Analysis'!H179, 'Data Extract Balance Sheet'!P270, 'Data Extract Balance Sheet'!P297), FALSE) -> 0.09848603696 | K20: =IFERROR(CHOOSE($I$46, 'PE Analysis'!I153,'PE Analysis'!I205,'PE Analysis'!I231, 'PE Analysis'!V17, 'PE Analysis'!I44, 'PE Analysis'!V44, 'PE Analysis'!I71, 'PE Analysis'!V71, 'PE Analysis'!I179, 'Data Extract Balance Sheet'!Q270, 'Data Extract Balance Sheet'!Q297), FALSE) -> 0.1084 | L20: =IFERROR(CHOOSE($I$46, 'PE Analysis'!J153,'PE Analysis'!J205,'PE Analysis'!J231, 'PE Analysis'!W17, 'PE Analysis'!J44, 'PE Analysis'!W44, 'PE Analysis'!J71, 'PE Analysis'!W71, 'PE Analysis'!J179, 'Data Extract Balance Sheet'!R270, 'Data Extract Balance Sheet'!R297), FALSE) -> 0.092 | M20: =IFERROR(CHOOSE($I$46, 'PE Analysis'!K153,'PE Analysis'!K205,'PE Analysis'!K231, 'PE Analysis'!X17, 'PE Analysis'!K44, 'PE Analysis'!X44, 'PE Analysis'!K71, 'PE Analysis'!X71, 'PE Analysis'!K179, 'Data Extract Balance Sheet'!S270, 'Data Extract Balance Sheet'!S297), FALSE) -> 0.141 | N20: =IFERROR(CHOOSE($I$46, 'PE Analysis'!L153,'PE Analysis'!L205,'PE Analysis'!L231, 'PE Analysis'!Y17, 'PE Analysis'!L44, 'PE Analysis'!Y44, 'PE Analysis'!L71, 'PE Analysis'!Y71, 'PE Analysis'!L179, 'Data Extract Balance Sheet'!T270, 'Data Extract Balance Sheet'!T297), FALSE) -> 0.139544345 | O20: TRUE | P20: 11 | R20: 7 | S20: 15 | T20: AIA Group | V20: 0 | W20: 0.1125181247 | X20: 0.1163532793 | Y20: 0.1127354542 | Z20: 0.08980651106 | AA20: 0.1199823113 | AB20: 0.1362 | AC20: N/A | AD20: 0.1122 | AE20: 0.0798411704
C21: ='Data Cost of Capital'!D24 -> Lincoln National Corp | E21: =IFERROR(CHOOSE($I$46, 'PE Analysis'!C154,'PE Analysis'!C206,'PE Analysis'!C232, 'PE Analysis'!P18, 'PE Analysis'!C45, 'PE Analysis'!P45, 'PE Analysis'!C72, 'PE Analysis'!P72, 'PE Analysis'!C180, 'Data Extract Balance Sheet'!K271, 'Data Extract Balance Sheet'!K298), FALSE) -> 0 | F21: =IFERROR(CHOOSE($I$46, 'PE Analysis'!D154,'PE Analysis'!D206,'PE Analysis'!D232, 'PE Analysis'!Q18, 'PE Analysis'!D45, 'PE Analysis'!Q45, 'PE Analysis'!D72, 'PE Analysis'!Q72, 'PE Analysis'!D180, 'Data Extract Balance Sheet'!L271, 'Data Extract Balance Sheet'!L298), FALSE) -> 0.08586352705 | G21: =IFERROR(CHOOSE($I$46, 'PE Analysis'!E154,'PE Analysis'!E206,'PE Analysis'!E232, 'PE Analysis'!R18, 'PE Analysis'!E45, 'PE Analysis'!R45, 'PE Analysis'!E72, 'PE Analysis'!R72, 'PE Analysis'!E180, 'Data Extract Balance Sheet'!M271, 'Data Extract Balance Sheet'!M298), FALSE) -> 0.09242739033 | H21: =IFERROR(CHOOSE($I$46, 'PE Analysis'!F154,'PE Analysis'!F206,'PE Analysis'!F232, 'PE Analysis'!S18, 'PE Analysis'!F45, 'PE Analysis'!S45, 'PE Analysis'!F72, 'PE Analysis'!S72, 'PE Analysis'!F180, 'Data Extract Balance Sheet'!N271, 'Data Extract Balance Sheet'!N298), FALSE) -> 0.09613113088 | I21: =IFERROR(CHOOSE($I$46, 'PE Analysis'!G154,'PE Analysis'!G206,'PE Analysis'!G232, 'PE Analysis'!T18, 'PE Analysis'!G45, 'PE Analysis'!T45, 'PE Analysis'!G72, 'PE Analysis'!T72, 'PE Analysis'!G180, 'Data Extract Balance Sheet'!O271, 'Data Extract Balance Sheet'!O298), FALSE) -> 0.08464743025 | J21: =IFERROR(CHOOSE($I$46, 'PE Analysis'!H154,'PE Analysis'!H206,'PE Analysis'!H232, 'PE Analysis'!U18, 'PE Analysis'!H45, 'PE Analysis'!U45, 'PE Analysis'!H72, 'PE Analysis'!U72, 'PE Analysis'!H180, 'Data Extract Balance Sheet'!P271, 'Data Extract Balance Sheet'!P298), FALSE) -> 0.08231879834 | K21: =IFERROR(CHOOSE($I$46, 'PE Analysis'!I154,'PE Analysis'!I206,'PE Analysis'!I232, 'PE Analysis'!V18, 'PE Analysis'!I45, 'PE Analysis'!V45, 'PE Analysis'!I72, 'PE Analysis'!V72, 'PE Analysis'!I180, 'Data Extract Balance Sheet'!Q271, 'Data Extract Balance Sheet'!Q298), FALSE) -> 0.0891 | L21: =IFERROR(CHOOSE($I$46, 'PE Analysis'!J154,'PE Analysis'!J206,'PE Analysis'!J232, 'PE Analysis'!W18, 'PE Analysis'!J45, 'PE Analysis'!W45, 'PE Analysis'!J72, 'PE Analysis'!W72, 'PE Analysis'!J180, 'Data Extract Balance Sheet'!R271, 'Data Extract Balance Sheet'!R298), FALSE) -> 0.096 | M21: =IFERROR(CHOOSE($I$46, 'PE Analysis'!K154,'PE Analysis'!K206,'PE Analysis'!K232, 'PE Analysis'!X18, 'PE Analysis'!K45, 'PE Analysis'!X45, 'PE Analysis'!K72, 'PE Analysis'!X72, 'PE Analysis'!K180, 'Data Extract Balance Sheet'!S271, 'Data Extract Balance Sheet'!S298), FALSE) -> 0.1217 | N21: =IFERROR(CHOOSE($I$46, 'PE Analysis'!L154,'PE Analysis'!L206,'PE Analysis'!L232, 'PE Analysis'!Y18, 'PE Analysis'!L45, 'PE Analysis'!Y45, 'PE Analysis'!L72, 'PE Analysis'!Y72, 'PE Analysis'!L180, 'Data Extract Balance Sheet'!T271, 'Data Extract Balance Sheet'!T298), FALSE) -> 0.1139819674 | O21: TRUE | P21: 12 | R21: 8 | S21: 16 | T21: China Pacific Insrance | V21: 0 | W21: 0.05271374843 | X21: 0.09220100978 | Y21: 0.09529676935 | Z21: 0.13777303 | AA21: 0.09553061224 | AB21: 0.1059 | AC21: N/A | AD21: 0.2686 | AE21: 0
C22: ='Data Cost of Capital'!D25 -> Principal Financial Group | E22: =IFERROR(CHOOSE($I$46, 'PE Analysis'!C155,'PE Analysis'!C207,'PE Analysis'!C233, 'PE Analysis'!P19, 'PE Analysis'!C46, 'PE Analysis'!P46, 'PE Analysis'!C73, 'PE Analysis'!P73, 'PE Analysis'!C181, 'Data Extract Balance Sheet'!K272, 'Data Extract Balance Sheet'!K299), FALSE) -> 0 | F22: =IFERROR(CHOOSE($I$46, 'PE Analysis'!D155,'PE Analysis'!D207,'PE Analysis'!D233, 'PE Analysis'!Q19, 'PE Analysis'!D46, 'PE Analysis'!Q46, 'PE Analysis'!D73, 'PE Analysis'!Q73, 'PE Analysis'!D181, 'Data Extract Balance Sheet'!L272, 'Data Extract Balance Sheet'!L299), FALSE) -> 0.07933333333 | G22: =IFERROR(CHOOSE($I$46, 'PE Analysis'!E155,'PE Analysis'!E207,'PE Analysis'!E233, 'PE Analysis'!R19, 'PE Analysis'!E46, 'PE Analysis'!R46, 'PE Analysis'!E73, 'PE Analysis'!R73, 'PE Analysis'!E181, 'Data Extract Balance Sheet'!M272, 'Data Extract Balance Sheet'!M299), FALSE) -> 0.09099731405 | H22: =IFERROR(CHOOSE($I$46, 'PE Analysis'!F155,'PE Analysis'!F207,'PE Analysis'!F233, 'PE Analysis'!S19, 'PE Analysis'!F46, 'PE Analysis'!S46, 'PE Analysis'!F73, 'PE Analysis'!S73, 'PE Analysis'!F181, 'Data Extract Balance Sheet'!N272, 'Data Extract Balance Sheet'!N299), FALSE) -> 0.107111002 | I22: =IFERROR(CHOOSE($I$46, 'PE Analysis'!G155,'PE Analysis'!G207,'PE Analysis'!G233, 'PE Analysis'!T19, 'PE Analysis'!G46, 'PE Analysis'!T46, 'PE Analysis'!G73, 'PE Analysis'!T73, 'PE Analysis'!G181, 'Data Extract Balance Sheet'!O272, 'Data Extract Balance Sheet'!O299), FALSE) -> 0.129966058 | J22: =IFERROR(CHOOSE($I$46, 'PE Analysis'!H155,'PE Analysis'!H207,'PE Analysis'!H233, 'PE Analysis'!U19, 'PE Analysis'!H46, 'PE Analysis'!U46, 'PE Analysis'!H73, 'PE Analysis'!U73, 'PE Analysis'!H181, 'Data Extract Balance Sheet'!P272, 'Data Extract Balance Sheet'!P299), FALSE) -> 0.12871652 | K22: =IFERROR(CHOOSE($I$46, 'PE Analysis'!I155,'PE Analysis'!I207,'PE Analysis'!I233, 'PE Analysis'!V19, 'PE Analysis'!I46, 'PE Analysis'!V46, 'PE Analysis'!I73, 'PE Analysis'!V73, 'PE Analysis'!I181, 'Data Extract Balance Sheet'!Q272, 'Data Extract Balance Sheet'!Q299), FALSE) -> 0.1565 | L22: =IFERROR(CHOOSE($I$46, 'PE Analysis'!J155,'PE Analysis'!J207,'PE Analysis'!J233, 'PE Analysis'!W19, 'PE Analysis'!J46, 'PE Analysis'!W46, 'PE Analysis'!J73, 'PE Analysis'!W73, 'PE Analysis'!J181, 'Data Extract Balance Sheet'!R272, 'Data Extract Balance Sheet'!R299), FALSE) -> 0.128 | M22: =IFERROR(CHOOSE($I$46, 'PE Analysis'!K155,'PE Analysis'!K207,'PE Analysis'!K233, 'PE Analysis'!X19, 'PE Analysis'!K46, 'PE Analysis'!X46, 'PE Analysis'!K73, 'PE Analysis'!X73, 'PE Analysis'!K181, 'Data Extract Balance Sheet'!S272, 'Data Extract Balance Sheet'!S299), FALSE) -> 0.1 | N22: =IFERROR(CHOOSE($I$46, 'PE Analysis'!L155,'PE Analysis'!L207,'PE Analysis'!L233, 'PE Analysis'!Y19, 'PE Analysis'!L46, 'PE Analysis'!Y46, 'PE Analysis'!L73, 'PE Analysis'!Y73, 'PE Analysis'!L181, 'Data Extract Balance Sheet'!T272, 'Data Extract Balance Sheet'!T299), FALSE) -> 0.1416546417 | O22: TRUE | P22: 13 | R22: 9 | S22: 17 | T22: Aflac | V22: 0 | W22: 0.1793855945 | X22: 0.2160465116 | Y22: 0.1608091553 | Z22: 0.1429826087 | AA22: 0.1297898535 | AB22: 0.1239 | AC22: 0.111 | AD22: 0.135 | AE22: 0.1344086022
C23: ='Data Cost of Capital'!D26 -> Allianz | E23: =IFERROR(CHOOSE($I$46, 'PE Analysis'!C156,'PE Analysis'!C208,'PE Analysis'!C234, 'PE Analysis'!P20, 'PE Analysis'!C47, 'PE Analysis'!P47, 'PE Analysis'!C74, 'PE Analysis'!P74, 'PE Analysis'!C182, 'Data Extract Balance Sheet'!K273, 'Data Extract Balance Sheet'!K300), FALSE) -> 0 | F23: =IFERROR(CHOOSE($I$46, 'PE Analysis'!D156,'PE Analysis'!D208,'PE Analysis'!D234, 'PE Analysis'!Q20, 'PE Analysis'!D47, 'PE Analysis'!Q47, 'PE Analysis'!D74, 'PE Analysis'!Q74, 'PE Analysis'!D182, 'Data Extract Balance Sheet'!L273, 'Data Extract Balance Sheet'!L300), FALSE) -> FALSE | G23: =IFERROR(CHOOSE($I$46, 'PE Analysis'!E156,'PE Analysis'!E208,'PE Analysis'!E234, 'PE Analysis'!R20, 'PE Analysis'!E47, 'PE Analysis'!R47, 'PE Analysis'!E74, 'PE Analysis'!R74, 'PE Analysis'!E182, 'Data Extract Balance Sheet'!M273, 'Data Extract Balance Sheet'!M300), FALSE) -> 0.1197515775 | H23: =IFERROR(CHOOSE($I$46, 'PE Analysis'!F156,'PE Analysis'!F208,'PE Analysis'!F234, 'PE Analysis'!S20, 'PE Analysis'!F47, 'PE Analysis'!S47, 'PE Analysis'!F74, 'PE Analysis'!S74, 'PE Analysis'!F182, 'Data Extract Balance Sheet'!N273, 'Data Extract Balance Sheet'!N300), FALSE) -> 0.102422163 | I23: =IFERROR(CHOOSE($I$46, 'PE Analysis'!G156,'PE Analysis'!G208,'PE Analysis'!G234, 'PE Analysis'!T20, 'PE Analysis'!G47, 'PE Analysis'!T47, 'PE Analysis'!G74, 'PE Analysis'!T74, 'PE Analysis'!G182, 'Data Extract Balance Sheet'!O273, 'Data Extract Balance Sheet'!O300), FALSE) -> 0.1047771175 | J23: =IFERROR(CHOOSE($I$46, 'PE Analysis'!H156,'PE Analysis'!H208,'PE Analysis'!H234, 'PE Analysis'!U20, 'PE Analysis'!H47, 'PE Analysis'!U47, 'PE Analysis'!H74, 'PE Analysis'!U74, 'PE Analysis'!H182, 'Data Extract Balance Sheet'!P273, 'Data Extract Balance Sheet'!P300), FALSE) -> 0.1022298485 | K23: =IFERROR(CHOOSE($I$46, 'PE Analysis'!I156,'PE Analysis'!I208,'PE Analysis'!I234, 'PE Analysis'!V20, 'PE Analysis'!I47, 'PE Analysis'!V47, 'PE Analysis'!I74, 'PE Analysis'!V74, 'PE Analysis'!I182, 'Data Extract Balance Sheet'!Q273, 'Data Extract Balance Sheet'!Q300), FALSE) -> 0.1069 | L23: =IFERROR(CHOOSE($I$46, 'PE Analysis'!J156,'PE Analysis'!J208,'PE Analysis'!J234, 'PE Analysis'!W20, 'PE Analysis'!J47, 'PE Analysis'!W47, 'PE Analysis'!J74, 'PE Analysis'!W74, 'PE Analysis'!J182, 'Data Extract Balance Sheet'!R273, 'Data Extract Balance Sheet'!R300), FALSE) -> FALSE | M23: =IFERROR(CHOOSE($I$46, 'PE Analysis'!K156,'PE Analysis'!K208,'PE Analysis'!K234, 'PE Analysis'!X20, 'PE Analysis'!K47, 'PE Analysis'!X47, 'PE Analysis'!K74, 'PE Analysis'!X74, 'PE Analysis'!K182, 'Data Extract Balance Sheet'!S273, 'Data Extract Balance Sheet'!S300), FALSE) -> FALSE | N23: =IFERROR(CHOOSE($I$46, 'PE Analysis'!L156,'PE Analysis'!L208,'PE Analysis'!L234, 'PE Analysis'!Y20, 'PE Analysis'!L47, 'PE Analysis'!Y47, 'PE Analysis'!L74, 'PE Analysis'!Y74, 'PE Analysis'!L182, 'Data Extract Balance Sheet'!T273, 'Data Extract Balance Sheet'!T300), FALSE) -> 0.09472650924 | O23: TRUE | P23: 14 | R23: 10 | S23: 18 | T23: Dai-ichi Life Holdings Inc | V23: 0 | W23: 0.01976981707 | X23: 0.0399641761 | Y23: 0.0396745418 | Z23: 0.06113675501 | AA23: 0.07388904459 | AB23: 0.0283 | AC23: FALSE | AD23: FALSE | AE23: 0.06942082803
C24: ='Data Cost of Capital'!D27 -> Zurich Insurance Group | E24: =IFERROR(CHOOSE($I$46, 'PE Analysis'!C157,'PE Analysis'!C209,'PE Analysis'!C235, 'PE Analysis'!P21, 'PE Analysis'!C48, 'PE Analysis'!P48, 'PE Analysis'!C75, 'PE Analysis'!P75, 'PE Analysis'!C183, 'Data Extract Balance Sheet'!K274, 'Data Extract Balance Sheet'!K301), FALSE) -> 0 | F24: =IFERROR(CHOOSE($I$46, 'PE Analysis'!D157,'PE Analysis'!D209,'PE Analysis'!D235, 'PE Analysis'!Q21, 'PE Analysis'!D48, 'PE Analysis'!Q48, 'PE Analysis'!D75, 'PE Analysis'!Q75, 'PE Analysis'!D183, 'Data Extract Balance Sheet'!L274, 'Data Extract Balance Sheet'!L301), FALSE) -> 0.1154360481 | G24: =IFERROR(CHOOSE($I$46, 'PE Analysis'!E157,'PE Analysis'!E209,'PE Analysis'!E235, 'PE Analysis'!R21, 'PE Analysis'!E48, 'PE Analysis'!R48, 'PE Analysis'!E75, 'PE Analysis'!R75, 'PE Analysis'!E183, 'Data Extract Balance Sheet'!M274, 'Data Extract Balance Sheet'!M301), FALSE) -> 0.129198063 | H24: =IFERROR(CHOOSE($I$46, 'PE Analysis'!F157,'PE Analysis'!F209,'PE Analysis'!F235, 'PE Analysis'!S21, 'PE Analysis'!F48, 'PE Analysis'!S48, 'PE Analysis'!F75, 'PE Analysis'!S75, 'PE Analysis'!F183, 'Data Extract Balance Sheet'!N274, 'Data Extract Balance Sheet'!N301), FALSE) -> 0.1047491336 | I24: =IFERROR(CHOOSE($I$46, 'PE Analysis'!G157,'PE Analysis'!G209,'PE Analysis'!G235, 'PE Analysis'!T21, 'PE Analysis'!G48, 'PE Analysis'!T48, 'PE Analysis'!G75, 'PE Analysis'!T75, 'PE Analysis'!G183, 'Data Extract Balance Sheet'!O274, 'Data Extract Balance Sheet'!O301), FALSE) -> 0.05684439603 | J24: =IFERROR(CHOOSE($I$46, 'PE Analysis'!H157,'PE Analysis'!H209,'PE Analysis'!H235, 'PE Analysis'!U21, 'PE Analysis'!H48, 'PE Analysis'!U48, 'PE Analysis'!H75, 'PE Analysis'!U75, 'PE Analysis'!H183, 'Data Extract Balance Sheet'!P274, 'Data Extract Balance Sheet'!P301), FALSE) -> 0.1015229493 | K24: =IFERROR(CHOOSE($I$46, 'PE Analysis'!I157,'PE Analysis'!I209,'PE Analysis'!I235, 'PE Analysis'!V21, 'PE Analysis'!I48, 'PE Analysis'!V48, 'PE Analysis'!I75, 'PE Analysis'!V75, 'PE Analysis'!I183, 'Data Extract Balance Sheet'!Q274, 'Data Extract Balance Sheet'!Q301), FALSE) -> 0.1012 | L24: =IFERROR(CHOOSE($I$46, 'PE Analysis'!J157,'PE Analysis'!J209,'PE Analysis'!J235, 'PE Analysis'!W21, 'PE Analysis'!J48, 'PE Analysis'!W48, 'PE Analysis'!J75, 'PE Analysis'!W75, 'PE Analysis'!J183, 'Data Extract Balance Sheet'!R274, 'Data Extract Balance Sheet'!R301), FALSE) -> FALSE | M24: =IFERROR(CHOOSE($I$46, 'PE Analysis'!K157,'PE Analysis'!K209,'PE Analysis'!K235, 'PE Analysis'!X21, 'PE Analysis'!K48, 'PE Analysis'!X48, 'PE Analysis'!K75, 'PE Analysis'!X75, 'PE Analysis'!K183, 'Data Extract Balance Sheet'!S274, 'Data Extract Balance Sheet'!S301), FALSE) -> FALSE | N24: =IFERROR(CHOOSE($I$46, 'PE Analysis'!L157,'PE Analysis'!L209,'PE Analysis'!L235, 'PE Analysis'!Y21, 'PE Analysis'!L48, 'PE Analysis'!Y48, 'PE Analysis'!L75, 'PE Analysis'!Y75, 'PE Analysis'!L183, 'Data Extract Balance Sheet'!T274, 'Data Extract Balance Sheet'!T301), FALSE) -> 0.01197809719 | O24: TRUE | P24: 15 | R24: 11 | S24: 20 | T24: Power Financial Corp | V24: 0 | W24: 0.1190946903 | X24: 0.1178048344 | Y24: 0.1253760282 | Z24: 0.1185294118 | AA24: 0.09848603696 | AB24: 0.1084 | AC24: 0.092 | AD24: 0.141 | AE24: 0.139544345
C25: ='Data Cost of Capital'!D28 -> Swiss Life | E25: =IFERROR(CHOOSE($I$46, 'PE Analysis'!C158,'PE Analysis'!C210,'PE Analysis'!C236, 'PE Analysis'!P22, 'PE Analysis'!C49, 'PE Analysis'!P49, 'PE Analysis'!C76, 'PE Analysis'!P76, 'PE Analysis'!C184, 'Data Extract Balance Sheet'!K275, 'Data Extract Balance Sheet'!K302), FALSE) -> 0 | F25: =IFERROR(CHOOSE($I$46, 'PE Analysis'!D158,'PE Analysis'!D210,'PE Analysis'!D236, 'PE Analysis'!Q22, 'PE Analysis'!D49, 'PE Analysis'!Q49, 'PE Analysis'!D76, 'PE Analysis'!Q76, 'PE Analysis'!D184, 'Data Extract Balance Sheet'!L275, 'Data Extract Balance Sheet'!L302), FALSE) -> 0.009645652174 | G25: =IFERROR(CHOOSE($I$46, 'PE Analysis'!E158,'PE Analysis'!E210,'PE Analysis'!E236, 'PE Analysis'!R22, 'PE Analysis'!E49, 'PE Analysis'!R49, 'PE Analysis'!E76, 'PE Analysis'!R76, 'PE Analysis'!E184, 'Data Extract Balance Sheet'!M275, 'Data Extract Balance Sheet'!M302), FALSE) -> 0.08728240223 | H25: =IFERROR(CHOOSE($I$46, 'PE Analysis'!F158,'PE Analysis'!F210,'PE Analysis'!F236, 'PE Analysis'!S22, 'PE Analysis'!F49, 'PE Analysis'!S49, 'PE Analysis'!F76, 'PE Analysis'!S76, 'PE Analysis'!F184, 'Data Extract Balance Sheet'!N275, 'Data Extract Balance Sheet'!N302), FALSE) -> 0.063775 | I25: =IFERROR(CHOOSE($I$46, 'PE Analysis'!G158,'PE Analysis'!G210,'PE Analysis'!G236, 'PE Analysis'!T22, 'PE Analysis'!G49, 'PE Analysis'!T49, 'PE Analysis'!G76, 'PE Analysis'!T76, 'PE Analysis'!G184, 'Data Extract Balance Sheet'!O275, 'Data Extract Balance Sheet'!O302), FALSE) -> 0.0716044335 | J25: =IFERROR(CHOOSE($I$46, 'PE Analysis'!H158,'PE Analysis'!H210,'PE Analysis'!H236, 'PE Analysis'!U22, 'PE Analysis'!H49, 'PE Analysis'!U49, 'PE Analysis'!H76, 'PE Analysis'!U76, 'PE Analysis'!H184, 'Data Extract Balance Sheet'!P275, 'Data Extract Balance Sheet'!P302), FALSE) -> 0.0674941142 | K25: =IFERROR(CHOOSE($I$46, 'PE Analysis'!I158,'PE Analysis'!I210,'PE Analysis'!I236, 'PE Analysis'!V22, 'PE Analysis'!I49, 'PE Analysis'!V49, 'PE Analysis'!I76, 'PE Analysis'!V76, 'PE Analysis'!I184, 'Data Extract Balance Sheet'!Q275, 'Data Extract Balance Sheet'!Q302), FALSE) -> 0.067 | L25: =IFERROR(CHOOSE($I$46, 'PE Analysis'!J158,'PE Analysis'!J210,'PE Analysis'!J236, 'PE Analysis'!W22, 'PE Analysis'!J49, 'PE Analysis'!W49, 'PE Analysis'!J76, 'PE Analysis'!W76, 'PE Analysis'!J184, 'Data Extract Balance Sheet'!R275, 'Data Extract Balance Sheet'!R302), FALSE) -> FALSE | M25: =IFERROR(CHOOSE($I$46, 'PE Analysis'!K158,'PE Analysis'!K210,'PE Analysis'!K236, 'PE Analysis'!X22, 'PE Analysis'!K49, 'PE Analysis'!X49, 'PE Analysis'!K76, 'PE Analysis'!X76, 'PE Analysis'!K184, 'Data Extract Balance Sheet'!S275, 'Data Extract Balance Sheet'!S302), FALSE) -> FALSE | N25: =IFERROR(CHOOSE($I$46, 'PE Analysis'!L158,'PE Analysis'!L210,'PE Analysis'!L236, 'PE Analysis'!Y22, 'PE Analysis'!L49, 'PE Analysis'!Y49, 'PE Analysis'!L76, 'PE Analysis'!Y76, 'PE Analysis'!L184, 'Data Extract Balance Sheet'!T275, 'Data Extract Balance Sheet'!T302), FALSE) -> 0.07088162491 | O25: TRUE | P25: 16 | R25: 12 | S25: 21 | T25: Lincoln National Corp | V25: 0 | W25: 0.08586352705 | X25: 0.09242739033 | Y25: 0.09613113088 | Z25: 0.08464743025 | AA25: 0.08231879834 | AB25: 0.0891 | AC25: 0.096 | AD25: 0.1217 | AE25: 0.1139819674
C26: ='Data Cost of Capital'!D29 -> Sun Life | E26: =IFERROR(CHOOSE($I$46, 'PE Analysis'!C159,'PE Analysis'!C211,'PE Analysis'!C237, 'PE Analysis'!P23, 'PE Analysis'!C50, 'PE Analysis'!P50, 'PE Analysis'!C77, 'PE Analysis'!P77, 'PE Analysis'!C185, 'Data Extract Balance Sheet'!K276, 'Data Extract Balance Sheet'!K303), FALSE) -> 0 | F26: =IFERROR(CHOOSE($I$46, 'PE Analysis'!D159,'PE Analysis'!D211,'PE Analysis'!D237, 'PE Analysis'!Q23, 'PE Analysis'!D50, 'PE Analysis'!Q50, 'PE Analysis'!D77, 'PE Analysis'!Q77, 'PE Analysis'!D185, 'Data Extract Balance Sheet'!L276, 'Data Extract Balance Sheet'!L303), FALSE) -> 0.09461997564 | G26: =IFERROR(CHOOSE($I$46, 'PE Analysis'!E159,'PE Analysis'!E211,'PE Analysis'!E237, 'PE Analysis'!R23, 'PE Analysis'!E50, 'PE Analysis'!R50, 'PE Analysis'!E77, 'PE Analysis'!R77, 'PE Analysis'!E185, 'Data Extract Balance Sheet'!M276, 'Data Extract Balance Sheet'!M303), FALSE) -> 0.09499941962 | H26: =IFERROR(CHOOSE($I$46, 'PE Analysis'!F159,'PE Analysis'!F211,'PE Analysis'!F237, 'PE Analysis'!S23, 'PE Analysis'!F50, 'PE Analysis'!S50, 'PE Analysis'!F77, 'PE Analysis'!S77, 'PE Analysis'!F185, 'Data Extract Balance Sheet'!N276, 'Data Extract Balance Sheet'!N303), FALSE) -> 0.09394981313 | I26: =IFERROR(CHOOSE($I$46, 'PE Analysis'!G159,'PE Analysis'!G211,'PE Analysis'!G237, 'PE Analysis'!T23, 'PE Analysis'!G50, 'PE Analysis'!T50, 'PE Analysis'!G77, 'PE Analysis'!T77, 'PE Analysis'!G185, 'Data Extract Balance Sheet'!O276, 'Data Extract Balance Sheet'!O303), FALSE) -> 0.102816 | J26: =IFERROR(CHOOSE($I$46, 'PE Analysis'!H159,'PE Analysis'!H211,'PE Analysis'!H237, 'PE Analysis'!U23, 'PE Analysis'!H50, 'PE Analysis'!U50, 'PE Analysis'!H77, 'PE Analysis'!U77, 'PE Analysis'!H185, 'Data Extract Balance Sheet'!P276, 'Data Extract Balance Sheet'!P303), FALSE) -> 0.1130532787 | K26: =IFERROR(CHOOSE($I$46, 'PE Analysis'!I159,'PE Analysis'!I211,'PE Analysis'!I237, 'PE Analysis'!V23, 'PE Analysis'!I50, 'PE Analysis'!V50, 'PE Analysis'!I77, 'PE Analysis'!V77, 'PE Analysis'!I185, 'Data Extract Balance Sheet'!Q276, 'Data Extract Balance Sheet'!Q303), FALSE) -> 0.1231 | L26: =IFERROR(CHOOSE($I$46, 'PE Analysis'!J159,'PE Analysis'!J211,'PE Analysis'!J237, 'PE Analysis'!W23, 'PE Analysis'!J50, 'PE Analysis'!W50, 'PE Analysis'!J77, 'PE Analysis'!W77, 'PE Analysis'!J185, 'Data Extract Balance Sheet'!R276, 'Data Extract Balance Sheet'!R303), FALSE) -> 0.087 | M26: =IFERROR(CHOOSE($I$46, 'PE Analysis'!K159,'PE Analysis'!K211,'PE Analysis'!K237, 'PE Analysis'!X23, 'PE Analysis'!K50, 'PE Analysis'!X50, 'PE Analysis'!K77, 'PE Analysis'!X77, 'PE Analysis'!K185, 'Data Extract Balance Sheet'!S276, 'Data Extract Balance Sheet'!S303), FALSE) -> 0.0606 | N26: =IFERROR(CHOOSE($I$46, 'PE Analysis'!L159,'PE Analysis'!L211,'PE Analysis'!L237, 'PE Analysis'!Y23, 'PE Analysis'!L50, 'PE Analysis'!Y50, 'PE Analysis'!L77, 'PE Analysis'!Y77, 'PE Analysis'!L185, 'Data Extract Balance Sheet'!T276, 'Data Extract Balance Sheet'!T303), FALSE) -> 0.1327239488 | O26: TRUE | P26: 17 | R26: 13 | S26: 22 | T26: Principal Financial Group | V26: 0 | W26: 0.07933333333 | X26: 0.09099731405 | Y26: 0.107111002 | Z26: 0.129966058 | AA26: 0.12871652 | AB26: 0.1565 | AC26: 0.128 | AD26: 0.1 | AE26: 0.1416546417
C27: ='Data Cost of Capital'!D30 -> AXA SA | E27: =IFERROR(CHOOSE($I$46, 'PE Analysis'!C160,'PE Analysis'!C212,'PE Analysis'!C238, 'PE Analysis'!P24, 'PE Analysis'!C51, 'PE Analysis'!P51, 'PE Analysis'!C78, 'PE Analysis'!P78, 'PE Analysis'!C186, 'Data Extract Balance Sheet'!K277, 'Data Extract Balance Sheet'!K304), FALSE) -> 0 | F27: =IFERROR(CHOOSE($I$46, 'PE Analysis'!D160,'PE Analysis'!D212,'PE Analysis'!D238, 'PE Analysis'!Q24, 'PE Analysis'!D51, 'PE Analysis'!Q51, 'PE Analysis'!D78, 'PE Analysis'!Q78, 'PE Analysis'!D186, 'Data Extract Balance Sheet'!L277, 'Data Extract Balance Sheet'!L304), FALSE) -> 0.07870064759 | G27: =IFERROR(CHOOSE($I$46, 'PE Analysis'!E160,'PE Analysis'!E212,'PE Analysis'!E238, 'PE Analysis'!R24, 'PE Analysis'!E51, 'PE Analysis'!R51, 'PE Analysis'!E78, 'PE Analysis'!R78, 'PE Analysis'!E186, 'Data Extract Balance Sheet'!M277, 'Data Extract Balance Sheet'!M304), FALSE) -> 0.08816670175 | H27: =IFERROR(CHOOSE($I$46, 'PE Analysis'!F160,'PE Analysis'!F212,'PE Analysis'!F238, 'PE Analysis'!S24, 'PE Analysis'!F51, 'PE Analysis'!S51, 'PE Analysis'!F78, 'PE Analysis'!S78, 'PE Analysis'!F186, 'Data Extract Balance Sheet'!N277, 'Data Extract Balance Sheet'!N304), FALSE) -> 0.08032340426 | I27: =IFERROR(CHOOSE($I$46, 'PE Analysis'!G160,'PE Analysis'!G212,'PE Analysis'!G238, 'PE Analysis'!T24, 'PE Analysis'!G51, 'PE Analysis'!T51, 'PE Analysis'!G78, 'PE Analysis'!T78, 'PE Analysis'!G186, 'Data Extract Balance Sheet'!O277, 'Data Extract Balance Sheet'!O304), FALSE) -> 0.08593088971 | J27: =IFERROR(CHOOSE($I$46, 'PE Analysis'!H160,'PE Analysis'!H212,'PE Analysis'!H238, 'PE Analysis'!U24, 'PE Analysis'!H51, 'PE Analysis'!U51, 'PE Analysis'!H78, 'PE Analysis'!U78, 'PE Analysis'!H186, 'Data Extract Balance Sheet'!P277, 'Data Extract Balance Sheet'!P304), FALSE) -> 0.09164714829 | K27: =IFERROR(CHOOSE($I$46, 'PE Analysis'!I160,'PE Analysis'!I212,'PE Analysis'!I238, 'PE Analysis'!V24, 'PE Analysis'!I51, 'PE Analysis'!V51, 'PE Analysis'!I78, 'PE Analysis'!V78, 'PE Analysis'!I186, 'Data Extract Balance Sheet'!Q277, 'Data Extract Balance Sheet'!Q304), FALSE) -> 0.0711 | L27: =IFERROR(CHOOSE($I$46, 'PE Analysis'!J160,'PE Analysis'!J212,'PE Analysis'!J238, 'PE Analysis'!W24, 'PE Analysis'!J51, 'PE Analysis'!W51, 'PE Analysis'!J78, 'PE Analysis'!W78, 'PE Analysis'!J186, 'Data Extract Balance Sheet'!R277, 'Data Extract Balance Sheet'!R304), FALSE) -> N/A | M27: =IFERROR(CHOOSE($I$46, 'PE Analysis'!K160,'PE Analysis'!K212,'PE Analysis'!K238, 'PE Analysis'!X24, 'PE Analysis'!K51, 'PE Analysis'!X51, 'PE Analysis'!K78, 'PE Analysis'!X78, 'PE Analysis'!K186, 'Data Extract Balance Sheet'!S277, 'Data Extract Balance Sheet'!S304), FALSE) -> 0.0599 | N27: =IFERROR(CHOOSE($I$46, 'PE Analysis'!L160,'PE Analysis'!L212,'PE Analysis'!L238, 'PE Analysis'!Y24, 'PE Analysis'!L51, 'PE Analysis'!Y51, 'PE Analysis'!L78, 'PE Analysis'!Y78, 'PE Analysis'!L186, 'Data Extract Balance Sheet'!T277, 'Data Extract Balance Sheet'!T304), FALSE) -> 0.1095505618 | O27: TRUE | P27: 18 | R27: 14 | S27: 23 | T27: Allianz | V27: 0 | W27: FALSE | X27: 0.1197515775 | Y27: 0.102422163 | Z27: 0.1047771175 | AA27: 0.1022298485 | AB27: 0.1069 | AC27: FALSE | AD27: FALSE | AE27: 0.09472650924
C28: ='Data Cost of Capital'!D31 -> Sumpo Holdings | E28: =IFERROR(CHOOSE($I$46, 'PE Analysis'!C161,'PE Analysis'!C213,'PE Analysis'!C239, 'PE Analysis'!P25, 'PE Analysis'!C52, 'PE Analysis'!P52, 'PE Analysis'!C79, 'PE Analysis'!P79, 'PE Analysis'!C187, 'Data Extract Balance Sheet'!K278, 'Data Extract Balance Sheet'!K305), FALSE) -> 0 | F28: =IFERROR(CHOOSE($I$46, 'PE Analysis'!D161,'PE Analysis'!D213,'PE Analysis'!D239, 'PE Analysis'!Q25, 'PE Analysis'!D52, 'PE Analysis'!Q52, 'PE Analysis'!D79, 'PE Analysis'!Q79, 'PE Analysis'!D187, 'Data Extract Balance Sheet'!L278, 'Data Extract Balance Sheet'!L305), FALSE) -> 0.03407699047 | G28: =IFERROR(CHOOSE($I$46, 'PE Analysis'!E161,'PE Analysis'!E213,'PE Analysis'!E239, 'PE Analysis'!R25, 'PE Analysis'!E52, 'PE Analysis'!R52, 'PE Analysis'!E79, 'PE Analysis'!R79, 'PE Analysis'!E187, 'Data Extract Balance Sheet'!M278, 'Data Extract Balance Sheet'!M305), FALSE) -> 0.03200485 | H28: =IFERROR(CHOOSE($I$46, 'PE Analysis'!F161,'PE Analysis'!F213,'PE Analysis'!F239, 'PE Analysis'!S25, 'PE Analysis'!F52, 'PE Analysis'!S52, 'PE Analysis'!F79, 'PE Analysis'!S79, 'PE Analysis'!F187, 'Data Extract Balance Sheet'!N278, 'Data Extract Balance Sheet'!N305), FALSE) -> 0.02982190522 | I28: =IFERROR(CHOOSE($I$46, 'PE Analysis'!G161,'PE Analysis'!G213,'PE Analysis'!G239, 'PE Analysis'!T25, 'PE Analysis'!G52, 'PE Analysis'!T52, 'PE Analysis'!G79, 'PE Analysis'!T79, 'PE Analysis'!G187, 'Data Extract Balance Sheet'!O278, 'Data Extract Balance Sheet'!O305), FALSE) -> 0.09730503415 | J28: =IFERROR(CHOOSE($I$46, 'PE Analysis'!H161,'PE Analysis'!H213,'PE Analysis'!H239, 'PE Analysis'!U25, 'PE Analysis'!H52, 'PE Analysis'!U52, 'PE Analysis'!H79, 'PE Analysis'!U79, 'PE Analysis'!H187, 'Data Extract Balance Sheet'!P278, 'Data Extract Balance Sheet'!P305), FALSE) -> 0.09244586111 | K28: =IFERROR(CHOOSE($I$46, 'PE Analysis'!I161,'PE Analysis'!I213,'PE Analysis'!I239, 'PE Analysis'!V25, 'PE Analysis'!I52, 'PE Analysis'!V52, 'PE Analysis'!I79, 'PE Analysis'!V79, 'PE Analysis'!I187, 'Data Extract Balance Sheet'!Q278, 'Data Extract Balance Sheet'!Q305), FALSE) -> N/A | L28: =IFERROR(CHOOSE($I$46, 'PE Analysis'!J161,'PE Analysis'!J213,'PE Analysis'!J239, 'PE Analysis'!W25, 'PE Analysis'!J52, 'PE Analysis'!W52, 'PE Analysis'!J79, 'PE Analysis'!W79, 'PE Analysis'!J187, 'Data Extract Balance Sheet'!R278, 'Data Extract Balance Sheet'!R305), FALSE) -> FALSE | M28: =IFERROR(CHOOSE($I$46, 'PE Analysis'!K161,'PE Analysis'!K213,'PE Analysis'!K239, 'PE Analysis'!X25, 'PE Analysis'!K52, 'PE Analysis'!X52, 'PE Analysis'!K79, 'PE Analysis'!X79, 'PE Analysis'!K187, 'Data Extract Balance Sheet'!S278, 'Data Extract Balance Sheet'!S305), FALSE) -> FALSE | N28: =IFERROR(CHOOSE($I$46, 'PE Analysis'!L161,'PE Analysis'!L213,'PE Analysis'!L239, 'PE Analysis'!Y25, 'PE Analysis'!L52, 'PE Analysis'!Y52, 'PE Analysis'!L79, 'PE Analysis'!Y79, 'PE Analysis'!L187, 'Data Extract Balance Sheet'!T278, 'Data Extract Balance Sheet'!T305), FALSE) -> FALSE | O28: FALSE | P28: 18 | R28: 15 | S28: 24 | T28: Zurich Insurance Group | V28: 0 | W28: 0.1154360481 | X28: 0.129198063 | Y28: 0.1047491336 | Z28: 0.05684439603 | AA28: 0.1015229493 | AB28: 0.1012 | AC28: FALSE | AD28: FALSE | AE28: 0.01197809719
C29: ='Data Cost of Capital'!D32 -> Aegon NV | E29: =IFERROR(CHOOSE($I$46, 'PE Analysis'!C162,'PE Analysis'!C214,'PE Analysis'!C240, 'PE Analysis'!P26, 'PE Analysis'!C53, 'PE Analysis'!P53, 'PE Analysis'!C80, 'PE Analysis'!P80, 'PE Analysis'!C188, 'Data Extract Balance Sheet'!K279, 'Data Extract Balance Sheet'!K306), FALSE) -> 0 | F29: =IFERROR(CHOOSE($I$46, 'PE Analysis'!D162,'PE Analysis'!D214,'PE Analysis'!D240, 'PE Analysis'!Q26, 'PE Analysis'!D53, 'PE Analysis'!Q53, 'PE Analysis'!D80, 'PE Analysis'!Q80, 'PE Analysis'!D188, 'Data Extract Balance Sheet'!L279, 'Data Extract Balance Sheet'!L306), FALSE) -> FALSE | G29: =IFERROR(CHOOSE($I$46, 'PE Analysis'!E162,'PE Analysis'!E214,'PE Analysis'!E240, 'PE Analysis'!R26, 'PE Analysis'!E53, 'PE Analysis'!R53, 'PE Analysis'!E80, 'PE Analysis'!R80, 'PE Analysis'!E188, 'Data Extract Balance Sheet'!M279, 'Data Extract Balance Sheet'!M306), FALSE) -> 0.02692307692 | H29: =IFERROR(CHOOSE($I$46, 'PE Analysis'!F162,'PE Analysis'!F214,'PE Analysis'!F240, 'PE Analysis'!S26, 'PE Analysis'!F53, 'PE Analysis'!S53, 'PE Analysis'!F80, 'PE Analysis'!S80, 'PE Analysis'!F188, 'Data Extract Balance Sheet'!N279, 'Data Extract Balance Sheet'!N306), FALSE) -> 0.03704125178 | I29: =IFERROR(CHOOSE($I$46, 'PE Analysis'!G162,'PE Analysis'!G214,'PE Analysis'!G240, 'PE Analysis'!T26, 'PE Analysis'!G53, 'PE Analysis'!T53, 'PE Analysis'!G80, 'PE Analysis'!T80, 'PE Analysis'!G188, 'Data Extract Balance Sheet'!O279, 'Data Extract Balance Sheet'!O306), FALSE) -> 0.017295348 | J29: =IFERROR(CHOOSE($I$46, 'PE Analysis'!H162,'PE Analysis'!H214,'PE Analysis'!H240, 'PE Analysis'!U26, 'PE Analysis'!H53, 'PE Analysis'!U53, 'PE Analysis'!H80, 'PE Analysis'!U80, 'PE Analysis'!H188, 'Data Extract Balance Sheet'!P279, 'Data Extract Balance Sheet'!P306), FALSE) -> 0.02122020972 | K29: =IFERROR(CHOOSE($I$46, 'PE Analysis'!I162,'PE Analysis'!I214,'PE Analysis'!I240, 'PE Analysis'!V26, 'PE Analysis'!I53, 'PE Analysis'!V53, 'PE Analysis'!I80, 'PE Analysis'!V80, 'PE Analysis'!I188, 'Data Extract Balance Sheet'!Q279, 'Data Extract Balance Sheet'!Q306), FALSE) -> FALSE | L29: =IFERROR(CHOOSE($I$46, 'PE Analysis'!J162,'PE Analysis'!J214,'PE Analysis'!J240, 'PE Analysis'!W26, 'PE Analysis'!J53, 'PE Analysis'!W53, 'PE Analysis'!J80, 'PE Analysis'!W80, 'PE Analysis'!J188, 'Data Extract Balance Sheet'!R279, 'Data Extract Balance Sheet'!R306), FALSE) -> FALSE | M29: =IFERROR(CHOOSE($I$46, 'PE Analysis'!K162,'PE Analysis'!K214,'PE Analysis'!K240, 'PE Analysis'!X26, 'PE Analysis'!K53, 'PE Analysis'!X53, 'PE Analysis'!K80, 'PE Analysis'!X80, 'PE Analysis'!K188, 'Data Extract Balance Sheet'!S279, 'Data Extract Balance Sheet'!S306), FALSE) -> FALSE | N29: =IFERROR(CHOOSE($I$46, 'PE Analysis'!L162,'PE Analysis'!L214,'PE Analysis'!L240, 'PE Analysis'!Y26, 'PE Analysis'!L53, 'PE Analysis'!Y53, 'PE Analysis'!L80, 'PE Analysis'!Y80, 'PE Analysis'!L188, 'Data Extract Balance Sheet'!T279, 'Data Extract Balance Sheet'!T306), FALSE) -> FALSE | O29: FALSE | P29: 18 | R29: 16 | S29: 25 | T29: Swiss Life | V29: 0 | W29: 0.009645652174 | X29: 0.08728240223 | Y29: 0.063775 | Z29: 0.0716044335 | AA29: 0.0674941142 | AB29: 0.067 | AC29: FALSE | AD29: FALSE | AE29: 0.07088162491
C30: ='Data Cost of Capital'!D33 -> NN Group NV | E30: =IFERROR(CHOOSE($I$46, 'PE Analysis'!C163,'PE Analysis'!C215,'PE Analysis'!C241, 'PE Analysis'!P27, 'PE Analysis'!C54, 'PE Analysis'!P54, 'PE Analysis'!C81, 'PE Analysis'!P81, 'PE Analysis'!C189, 'Data Extract Balance Sheet'!K280, 'Data Extract Balance Sheet'!K307), FALSE) -> 0 | F30: =IFERROR(CHOOSE($I$46, 'PE Analysis'!D163,'PE Analysis'!D215,'PE Analysis'!D241, 'PE Analysis'!Q27, 'PE Analysis'!D54, 'PE Analysis'!Q54, 'PE Analysis'!D81, 'PE Analysis'!Q81, 'PE Analysis'!D189, 'Data Extract Balance Sheet'!L280, 'Data Extract Balance Sheet'!L307), FALSE) -> FALSE | G30: =IFERROR(CHOOSE($I$46, 'PE Analysis'!E163,'PE Analysis'!E215,'PE Analysis'!E241, 'PE Analysis'!R27, 'PE Analysis'!E54, 'PE Analysis'!R54, 'PE Analysis'!E81, 'PE Analysis'!R81, 'PE Analysis'!E189, 'Data Extract Balance Sheet'!M280, 'Data Extract Balance Sheet'!M307), FALSE) -> FALSE | H30: =IFERROR(CHOOSE($I$46, 'PE Analysis'!F163,'PE Analysis'!F215,'PE Analysis'!F241, 'PE Analysis'!S27, 'PE Analysis'!F54, 'PE Analysis'!S54, 'PE Analysis'!F81, 'PE Analysis'!S81, 'PE Analysis'!F189, 'Data Extract Balance Sheet'!N280, 'Data Extract Balance Sheet'!N307), FALSE) -> FALSE | I30: =IFERROR(CHOOSE($I$46, 'PE Analysis'!G163,'PE Analysis'!G215,'PE Analysis'!G241, 'PE Analysis'!T27, 'PE Analysis'!G54, 'PE Analysis'!T54, 'PE Analysis'!G81, 'PE Analysis'!T81, 'PE Analysis'!G189, 'Data Extract Balance Sheet'!O280, 'Data Extract Balance Sheet'!O307), FALSE) -> FALSE | J30: =IFERROR(CHOOSE($I$46, 'PE Analysis'!H163,'PE Analysis'!H215,'PE Analysis'!H241, 'PE Analysis'!U27, 'PE Analysis'!H54, 'PE Analysis'!U54, 'PE Analysis'!H81, 'PE Analysis'!U81, 'PE Analysis'!H189, 'Data Extract Balance Sheet'!P280, 'Data Extract Balance Sheet'!P307), FALSE) -> FALSE | K30: =IFERROR(CHOOSE($I$46, 'PE Analysis'!I163,'PE Analysis'!I215,'PE Analysis'!I241, 'PE Analysis'!V27, 'PE Analysis'!I54, 'PE Analysis'!V54, 'PE Analysis'!I81, 'PE Analysis'!V81, 'PE Analysis'!I189, 'Data Extract Balance Sheet'!Q280, 'Data Extract Balance Sheet'!Q307), FALSE) -> FALSE | L30: =IFERROR(CHOOSE($I$46, 'PE Analysis'!J163,'PE Analysis'!J215,'PE Analysis'!J241, 'PE Analysis'!W27, 'PE Analysis'!J54, 'PE Analysis'!W54, 'PE Analysis'!J81, 'PE Analysis'!W81, 'PE Analysis'!J189, 'Data Extract Balance Sheet'!R280, 'Data Extract Balance Sheet'!R307), FALSE) -> FALSE | M30: =IFERROR(CHOOSE($I$46, 'PE Analysis'!K163,'PE Analysis'!K215,'PE Analysis'!K241, 'PE Analysis'!X27, 'PE Analysis'!K54, 'PE Analysis'!X54, 'PE Analysis'!K81, 'PE Analysis'!X81, 'PE Analysis'!K189, 'Data Extract Balance Sheet'!S280, 'Data Extract Balance Sheet'!S307), FALSE) -> FALSE | N30: =IFERROR(CHOOSE($I$46, 'PE Analysis'!L163,'PE Analysis'!L215,'PE Analysis'!L241, 'PE Analysis'!Y27, 'PE Analysis'!L54, 'PE Analysis'!Y54, 'PE Analysis'!L81, 'PE Analysis'!Y81, 'PE Analysis'!L189, 'Data Extract Balance Sheet'!T280, 'Data Extract Balance Sheet'!T307), FALSE) -> FALSE | O30: FALSE | P30: 18 | R30: 17 | S30: 26 | T30: Sun Life | V30: 0 | W30: 0.09461997564 | X30: 0.09499941962 | Y30: =IFERROR(INDEX(H:H,$S30),"") -> 0.09394981313 | Z30: 0.102816 | AA30: 0.1130532787 | AB30: 0.1231 | AC30: 0.087 | AD30: 0.0606 | AE30: 0.1327239488
C31: ='Data Cost of Capital'!D34 -> 0 | E31: =IFERROR(CHOOSE($I$46, 'PE Analysis'!C164,'PE Analysis'!C216,'PE Analysis'!C242, 'PE Analysis'!P28, 'PE Analysis'!C55, 'PE Analysis'!P55, 'PE Analysis'!C82, 'PE Analysis'!P82, 'PE Analysis'!C190, 'Data Extract Balance Sheet'!K281, 'Data Extract Balance Sheet'!K308), FALSE) -> 0 | F31: =IFERROR(CHOOSE($I$46, 'PE Analysis'!D164,'PE Analysis'!D216,'PE Analysis'!D242, 'PE Analysis'!Q28, 'PE Analysis'!D55, 'PE Analysis'!Q55, 'PE Analysis'!D82, 'PE Analysis'!Q82, 'PE Analysis'!D190, 'Data Extract Balance Sheet'!L281, 'Data Extract Balance Sheet'!L308), FALSE) -> 0 | G31: =IFERROR(CHOOSE($I$46, 'PE Analysis'!E164,'PE Analysis'!E216,'PE Analysis'!E242, 'PE Analysis'!R28, 'PE Analysis'!E55, 'PE Analysis'!R55, 'PE Analysis'!E82, 'PE Analysis'!R82, 'PE Analysis'!E190, 'Data Extract Balance Sheet'!M281, 'Data Extract Balance Sheet'!M308), FALSE) -> 0 | H31: =IFERROR(CHOOSE($I$46, 'PE Analysis'!F164,'PE Analysis'!F216,'PE Analysis'!F242, 'PE Analysis'!S28, 'PE Analysis'!F55, 'PE Analysis'!S55, 'PE Analysis'!F82, 'PE Analysis'!S82, 'PE Analysis'!F190, 'Data Extract Balance Sheet'!N281, 'Data Extract Balance Sheet'!N308), FALSE) -> 0 | I31: =IFERROR(CHOOSE($I$46, 'PE Analysis'!G164,'PE Analysis'!G216,'PE Analysis'!G242, 'PE Analysis'!T28, 'PE Analysis'!G55, 'PE Analysis'!T55, 'PE Analysis'!G82, 'PE Analysis'!T82, 'PE Analysis'!G190, 'Data Extract Balance Sheet'!O281, 'Data Extract Balance Sheet'!O308), FALSE) -> 0 | J31: =IFERROR(CHOOSE($I$46, 'PE Analysis'!H164,'PE Analysis'!H216,'PE Analysis'!H242, 'PE Analysis'!U28, 'PE Analysis'!H55, 'PE Analysis'!U55, 'PE Analysis'!H82, 'PE Analysis'!U82, 'PE Analysis'!H190, 'Data Extract Balance Sheet'!P281, 'Data Extract Balance Sheet'!P308), FALSE) -> 0 | K31: =IFERROR(CHOOSE($I$46, 'PE Analysis'!I164,'PE Analysis'!I216,'PE Analysis'!I242, 'PE Analysis'!V28, 'PE Analysis'!I55, 'PE Analysis'!V55, 'PE Analysis'!I82, 'PE Analysis'!V82, 'PE Analysis'!I190, 'Data Extract Balance Sheet'!Q281, 'Data Extract Balance Sheet'!Q308), FALSE) -> 0 | L31: =IFERROR(CHOOSE($I$46, 'PE Analysis'!J164,'PE Analysis'!J216,'PE Analysis'!J242, 'PE Analysis'!W28, 'PE Analysis'!J55, 'PE Analysis'!W55, 'PE Analysis'!J82, 'PE Analysis'!W82, 'PE Analysis'!J190, 'Data Extract Balance Sheet'!R281, 'Data Extract Balance Sheet'!R308), FALSE) -> 0 | M31: =IFERROR(CHOOSE($I$46, 'PE Analysis'!K164,'PE Analysis'!K216,'PE Analysis'!K242, 'PE Analysis'!X28, 'PE Analysis'!K55, 'PE Analysis'!X55, 'PE Analysis'!K82, 'PE Analysis'!X82, 'PE Analysis'!K190, 'Data Extract Balance Sheet'!S281, 'Data Extract Balance Sheet'!S308), FALSE) -> 0 | N31: =IFERROR(CHOOSE($I$46, 'PE Analysis'!L164,'PE Analysis'!L216,'PE Analysis'!L242, 'PE Analysis'!Y28, 'PE Analysis'!L55, 'PE Analysis'!Y55, 'PE Analysis'!L82, 'PE Analysis'!Y82, 'PE Analysis'!L190, 'Data Extract Balance Sheet'!T281, 'Data Extract Balance Sheet'!T308), FALSE) -> 0 | O31: FALSE | P31: 18 | R31: 18 | S31: 27 | T31: AXA SA | V31: 0 | W31: 0.07870064759 | X31: 0.08816670175 | Y31: 0.08032340426 | Z31: 0.08593088971 | AA31: 0.09164714829 | AB31: 0.0711 | AC31: N/A | AD31: 0.0599 | AE31: 0.1095505618
R32: 19
R33: 20
R34: 21
R35: 22
R36: 23
R37: 24
I46: 11
E50: Single Value to Find Data
C51: EPS - Basic | E51: ='PE Analysis'!G141 -> 0.18 | F51: 1
C52: Growth in EPS | E52: ='PE Analysis'!G115 -> 1575227928 | F52: 2
C53: Growth in BV | E53: ='PE Analysis'!G5 -> 14.68333267 | F53: 3
C54: Trailing P/E - Average Stock Price | F54: 4
C55: Forward P/E - Ending Stock Price | E55: ='PE Analysis'!G32 -> 12.58571371 | F55: 5
C56: Forward P/E - Average Price | E56: ='PE Analysis'!T32 -> 12.56069432 | F56: 6
C57: Average Stock Price | F57: 7
C58: Ending Stock Price | F58: 8
C59: Book Value per Share | E59: ='Data Extract Balance Sheet'!P231 -> 1.172006745 | F59: 9
C60: Price to Book Ratio | F60: 10
C61: Return on Ending Equity | F61: 11
C64: =INDEX(C51:C61,I46) -> Return on Ending Equity

Sheet Detailed Trends
G1: =E35 -> 10
A3: Insurance Ratios
T4: =B51 -> Investment Income/Investments
P5: TRUE
P6: Counter | V6: =E7 -> 2011 | W6: 2012 | X6: 2013 | Y6: 2014 | Z6: 2015 | AA6: 2016 | AB6: 2017 | AC6: 2018 | AD6: 2019 | AE6: Current
B7: Raw Data Before Adjustments | E7: ='EV to EBITDA Analysis'!C4 -> 2011 | F7: ='EV to EBITDA Analysis'!D4 -> 2012 | G7: ='EV to EBITDA Analysis'!E4 -> 2013 | H7: ='EV to EBITDA Analysis'!F4 -> 2014 | I7: ='EV to EBITDA Analysis'!G4 -> 2015 | J7: ='EV to EBITDA Analysis'!H4 -> 2016 | K7: ='EV to EBITDA Analysis'!I4 -> 2017 | L7: ='EV to EBITDA Analysis'!J4 -> 2018 | M7: ='EV to EBITDA Analysis'!K4 -> 2019 | N7: ='EV to EBITDA Analysis'!L4 -> Current | O7: Include | P7: 0
C8: ='Data Cost of Capital'!D11 -> L&G | E8: =CHOOSE($E$35,'EV to EBITDA Analysis'!C222,'EV to EBITDA Analysis'!C196,'EV to EBITDA Analysis'!C248,'EV to EBITDA Analysis'!P222,'EV to EBITDA Analysis'!C142,'EV to EBITDA Analysis'!P248,'EV to EBITDA Analysis'!C248,'EV to EBITDA Analysis'!P196,'EV to EBITDA Analysis'!C376,'EV to EBITDA Analysis'!C351,'EV to EBITDA Analysis'!C300) -> FALSE | F8: =CHOOSE($E$35,'EV to EBITDA Analysis'!D222,'EV to EBITDA Analysis'!D196,'EV to EBITDA Analysis'!D248,'EV to EBITDA Analysis'!Q222,'EV to EBITDA Analysis'!D142,'EV to EBITDA Analysis'!Q248,'EV to EBITDA Analysis'!D248,'EV to EBITDA Analysis'!Q196,'EV to EBITDA Analysis'!D376,'EV to EBITDA Analysis'!D351,'EV to EBITDA Analysis'!D300) -> 0.05092592593 | G8: =CHOOSE($E$35,'EV to EBITDA Analysis'!E222,'EV to EBITDA Analysis'!E196,'EV to EBITDA Analysis'!E248,'EV to EBITDA Analysis'!R222,'EV to EBITDA Analysis'!E142,'EV to EBITDA Analysis'!R248,'EV to EBITDA Analysis'!E248,'EV to EBITDA Analysis'!R196,'EV to EBITDA Analysis'!E376,'EV to EBITDA Analysis'!E351,'EV to EBITDA Analysis'!E300) -> 0.0535483871 | H8: =CHOOSE($E$35,'EV to EBITDA Analysis'!F222,'EV to EBITDA Analysis'!F196,'EV to EBITDA Analysis'!F248,'EV to EBITDA Analysis'!S222,'EV to EBITDA Analysis'!F142,'EV to EBITDA Analysis'!S248,'EV to EBITDA Analysis'!F248,'EV to EBITDA Analysis'!S196,'EV to EBITDA Analysis'!F376,'EV to EBITDA Analysis'!F351,'EV to EBITDA Analysis'!F300) -> 0.0512605042 | I8: =CHOOSE($E$35,'EV to EBITDA Analysis'!G222,'EV to EBITDA Analysis'!G196,'EV to EBITDA Analysis'!G248,'EV to EBITDA Analysis'!T222,'EV to EBITDA Analysis'!G142,'EV to EBITDA Analysis'!T248,'EV to EBITDA Analysis'!G248,'EV to EBITDA Analysis'!T196,'EV to EBITDA Analysis'!G376,'EV to EBITDA Analysis'!G351,'EV to EBITDA Analysis'!G300) -> 0.05123966942 | J8: =CHOOSE($E$35,'EV to EBITDA Analysis'!H222,'EV to EBITDA Analysis'!H196,'EV to EBITDA Analysis'!H248,'EV to EBITDA Analysis'!U222,'EV to EBITDA Analysis'!H142,'EV to EBITDA Analysis'!U248,'EV to EBITDA Analysis'!H248,'EV to EBITDA Analysis'!U196,'EV to EBITDA Analysis'!H376,'EV to EBITDA Analysis'!H351,'EV to EBITDA Analysis'!H300) -> 0.05657142857 | K8: =CHOOSE($E$35,'EV to EBITDA Analysis'!I222,'EV to EBITDA Analysis'!I196,'EV to EBITDA Analysis'!I248,'EV to EBITDA Analysis'!V222,'EV to EBITDA Analysis'!I142,'EV to EBITDA Analysis'!V248,'EV to EBITDA Analysis'!I248,'EV to EBITDA Analysis'!V196,'EV to EBITDA Analysis'!I376,'EV to EBITDA Analysis'!I351,'EV to EBITDA Analysis'!I300) -> FALSE | L8: =CHOOSE($E$35,'EV to EBITDA Analysis'!J222,'EV to EBITDA Analysis'!J196,'EV to EBITDA Analysis'!J248,'EV to EBITDA Analysis'!W222,'EV to EBITDA Analysis'!J142,'EV to EBITDA Analysis'!W248,'EV to EBITDA Analysis'!J248,'EV to EBITDA Analysis'!W196,'EV to EBITDA Analysis'!J376,'EV to EBITDA Analysis'!J351,'EV to EBITDA Analysis'!J300) -> FALSE | M8: =CHOOSE($E$35,'EV to EBITDA Analysis'!K222,'EV to EBITDA Analysis'!K196,'EV to EBITDA Analysis'!K248,'EV to EBITDA Analysis'!X222,'EV to EBITDA Analysis'!K142,'EV to EBITDA Analysis'!X248,'EV to EBITDA Analysis'!K248,'EV to EBITDA Analysis'!X196,'EV to EBITDA Analysis'!K376,'EV to EBITDA Analysis'!K351,'EV to EBITDA Analysis'!K300) -> FALSE | N8: =CHOOSE($E$35,'EV to EBITDA Analysis'!L222,'EV to EBITDA Analysis'!L196,'EV to EBITDA Analysis'!L248,'EV to EBITDA Analysis'!Y222,'EV to EBITDA Analysis'!L142,'EV to EBITDA Analysis'!Y248,'EV to EBITDA Analysis'!L248,'EV to EBITDA Analysis'!Y196,'EV to EBITDA Analysis'!L376,'EV to EBITDA Analysis'!L351,'EV to EBITDA Analysis'!L300) -> FALSE | O8: TRUE | P8: =O8+P7 -> 1 | T8: Average | V8: =IFERROR(AVERAGE(V12:V34),"") ->  | W8: =IFERROR(AVERAGE(W12:W34),"") -> 0.04208990624 | X8: 0.04059894088 | Y8: 0.04126172781 | Z8: 0.03970923211 | AA8: 0.04036951809 | AE8: =IFERROR(AVERAGE(AE12:AE34),"") -> 
C9: ='Data Cost of Capital'!D12 -> Met Life | E9: =CHOOSE($E$35,'EV to EBITDA Analysis'!C223,'EV to EBITDA Analysis'!C197,'EV to EBITDA Analysis'!C249,'EV to EBITDA Analysis'!P223,'EV to EBITDA Analysis'!C143,'EV to EBITDA Analysis'!P249,'EV to EBITDA Analysis'!C249,'EV to EBITDA Analysis'!P197,'EV to EBITDA Analysis'!C377,'EV to EBITDA Analysis'!C352,'EV to EBITDA Analysis'!C301) -> FALSE | F9: =CHOOSE($E$35,'EV to EBITDA Analysis'!D223,'EV to EBITDA Analysis'!D197,'EV to EBITDA Analysis'!D249,'EV to EBITDA Analysis'!Q223,'EV to EBITDA Analysis'!D143,'EV to EBITDA Analysis'!Q249,'EV to EBITDA Analysis'!D249,'EV to EBITDA Analysis'!Q197,'EV to EBITDA Analysis'!D377,'EV to EBITDA Analysis'!D352,'EV to EBITDA Analysis'!D301) -> 0.05122410546 | G9: =CHOOSE($E$35,'EV to EBITDA Analysis'!E223,'EV to EBITDA Analysis'!E197,'EV to EBITDA Analysis'!E249,'EV to EBITDA Analysis'!R223,'EV to EBITDA Analysis'!E143,'EV to EBITDA Analysis'!R249,'EV to EBITDA Analysis'!E249,'EV to EBITDA Analysis'!R197,'EV to EBITDA Analysis'!E377,'EV to EBITDA Analysis'!E352,'EV to EBITDA Analysis'!E301) -> 0.04881769641 | H9: =CHOOSE($E$35,'EV to EBITDA Analysis'!F223,'EV to EBITDA Analysis'!F197,'EV to EBITDA Analysis'!F249,'EV to EBITDA Analysis'!S223,'EV to EBITDA Analysis'!F143,'EV to EBITDA Analysis'!S249,'EV to EBITDA Analysis'!F249,'EV to EBITDA Analysis'!S197,'EV to EBITDA Analysis'!F377,'EV to EBITDA Analysis'!F352,'EV to EBITDA Analysis'!F301) -> 0.05130361648 | I9: =CHOOSE($E$35,'EV to EBITDA Analysis'!G223,'EV to EBITDA Analysis'!G197,'EV to EBITDA Analysis'!G249,'EV to EBITDA Analysis'!T223,'EV to EBITDA Analysis'!G143,'EV to EBITDA Analysis'!T249,'EV to EBITDA Analysis'!G249,'EV to EBITDA Analysis'!T197,'EV to EBITDA Analysis'!G377,'EV to EBITDA Analysis'!G352,'EV to EBITDA Analysis'!G301) -> 0.04752553024 | J9: =CHOOSE($E$35,'EV to EBITDA Analysis'!H223,'EV to EBITDA Analysis'!H197,'EV to EBITDA Analysis'!H249,'EV to EBITDA Analysis'!U223,'EV to EBITDA Analysis'!H143,'EV to EBITDA Analysis'!U249,'EV to EBITDA Analysis'!H249,'EV to EBITDA Analysis'!U197,'EV to EBITDA Analysis'!H377,'EV to EBITDA Analysis'!H352,'EV to EBITDA Analysis'!H301) -> 0.05004170142 | K9: =CHOOSE($E$35,'EV to EBITDA Analysis'!I223,'EV to EBITDA Analysis'!I197,'EV to EBITDA Analysis'!I249,'EV to EBITDA Analysis'!V223,'EV to EBITDA Analysis'!I143,'EV to EBITDA Analysis'!V249,'EV to EBITDA Analysis'!I249,'EV to EBITDA Analysis'!V197,'EV to EBITDA Analysis'!I377,'EV to EBITDA Analysis'!I352,'EV to EBITDA Analysis'!I301) -> FALSE | L9: =CHOOSE($E$35,'EV to EBITDA Analysis'!J223,'EV to EBITDA Analysis'!J197,'EV to EBITDA Analysis'!J249,'EV to EBITDA Analysis'!W223,'EV to EBITDA Analysis'!J143,'EV to EBITDA Analysis'!W249,'EV to EBITDA Analysis'!J249,'EV to EBITDA Analysis'!W197,'EV to EBITDA Analysis'!J377,'EV to EBITDA Analysis'!J352,'EV to EBITDA Analysis'!J301) -> FALSE | M9: =CHOOSE($E$35,'EV to EBITDA Analysis'!K223,'EV to EBITDA Analysis'!K197,'EV to EBITDA Analysis'!K249,'EV to EBITDA Analysis'!X223,'EV to EBITDA Analysis'!K143,'EV to EBITDA Analysis'!X249,'EV to EBITDA Analysis'!K249,'EV to EBITDA Analysis'!X197,'EV to EBITDA Analysis'!K377,'EV to EBITDA Analysis'!K352,'EV to EBITDA Analysis'!K301) -> FALSE | N9: =CHOOSE($E$35,'EV to EBITDA Analysis'!L223,'EV to EBITDA Analysis'!L197,'EV to EBITDA Analysis'!L249,'EV to EBITDA Analysis'!Y223,'EV to EBITDA Analysis'!L143,'EV to EBITDA Analysis'!Y249,'EV to EBITDA Analysis'!L249,'EV to EBITDA Analysis'!Y197,'EV to EBITDA Analysis'!L377,'EV to EBITDA Analysis'!L352,'EV to EBITDA Analysis'!L301) -> FALSE | O9: TRUE | P9: =O9+P8 -> 2 | T9: Median | V9: =IFERROR(MEDIAN(V12:V34),"") ->  | W9: =IFERROR(MEDIAN(W12:W34),"") -> 0.04291930096 | X9: 0.04467005076 | Y9: 0.05100671141 | Z9: 0.04376068376 | AA9: 0.04076350696 | AE9: =IFERROR(MEDIAN(AE12:AE33),"") -> 
C10: ='Data Cost of Capital'!D13 -> AIG | E10: =CHOOSE($E$35,'EV to EBITDA Analysis'!C224,'EV to EBITDA Analysis'!C198,'EV to EBITDA Analysis'!C250,'EV to EBITDA Analysis'!P224,'EV to EBITDA Analysis'!C144,'EV to EBITDA Analysis'!P250,'EV to EBITDA Analysis'!C250,'EV to EBITDA Analysis'!P198,'EV to EBITDA Analysis'!C378,'EV to EBITDA Analysis'!C353,'EV to EBITDA Analysis'!C302) -> FALSE | F10: =CHOOSE($E$35,'EV to EBITDA Analysis'!D224,'EV to EBITDA Analysis'!D198,'EV to EBITDA Analysis'!D250,'EV to EBITDA Analysis'!Q224,'EV to EBITDA Analysis'!D144,'EV to EBITDA Analysis'!Q250,'EV to EBITDA Analysis'!D250,'EV to EBITDA Analysis'!Q198,'EV to EBITDA Analysis'!D378,'EV to EBITDA Analysis'!D353,'EV to EBITDA Analysis'!D302) -> 0.04783505155 | G10: =CHOOSE($E$35,'EV to EBITDA Analysis'!E224,'EV to EBITDA Analysis'!E198,'EV to EBITDA Analysis'!E250,'EV to EBITDA Analysis'!R224,'EV to EBITDA Analysis'!E144,'EV to EBITDA Analysis'!R250,'EV to EBITDA Analysis'!E250,'EV to EBITDA Analysis'!R198,'EV to EBITDA Analysis'!E378,'EV to EBITDA Analysis'!E353,'EV to EBITDA Analysis'!E302) -> 0.0513312545 | H10: =CHOOSE($E$35,'EV to EBITDA Analysis'!F224,'EV to EBITDA Analysis'!F198,'EV to EBITDA Analysis'!F250,'EV to EBITDA Analysis'!S224,'EV to EBITDA Analysis'!F144,'EV to EBITDA Analysis'!S250,'EV to EBITDA Analysis'!F250,'EV to EBITDA Analysis'!S198,'EV to EBITDA Analysis'!F378,'EV to EBITDA Analysis'!F353,'EV to EBITDA Analysis'!F302) -> 0.05509288917 | I10: =CHOOSE($E$35,'EV to EBITDA Analysis'!G224,'EV to EBITDA Analysis'!G198,'EV to EBITDA Analysis'!G250,'EV to EBITDA Analysis'!T224,'EV to EBITDA Analysis'!G144,'EV to EBITDA Analysis'!T250,'EV to EBITDA Analysis'!G250,'EV to EBITDA Analysis'!T198,'EV to EBITDA Analysis'!G378,'EV to EBITDA Analysis'!G353,'EV to EBITDA Analysis'!G302) -> 0.04376068376 | J10: =CHOOSE($E$35,'EV to EBITDA Analysis'!H224,'EV to EBITDA Analysis'!H198,'EV to EBITDA Analysis'!H250,'EV to EBITDA Analysis'!U224,'EV to EBITDA Analysis'!H144,'EV to EBITDA Analysis'!U250,'EV to EBITDA Analysis'!H250,'EV to EBITDA Analysis'!U198,'EV to EBITDA Analysis'!H378,'EV to EBITDA Analysis'!H353,'EV to EBITDA Analysis'!H302) -> 0.04076350696 | K10: =CHOOSE($E$35,'EV to EBITDA Analysis'!I224,'EV to EBITDA Analysis'!I198,'EV to EBITDA Analysis'!I250,'EV to EBITDA Analysis'!V224,'EV to EBITDA Analysis'!I144,'EV to EBITDA Analysis'!V250,'EV to EBITDA Analysis'!I250,'EV to EBITDA Analysis'!V198,'EV to EBITDA Analysis'!I378,'EV to EBITDA Analysis'!I353,'EV to EBITDA Analysis'!I302) -> FALSE | L10: =CHOOSE($E$35,'EV to EBITDA Analysis'!J224,'EV to EBITDA Analysis'!J198,'EV to EBITDA Analysis'!J250,'EV to EBITDA Analysis'!W224,'EV to EBITDA Analysis'!J144,'EV to EBITDA Analysis'!W250,'EV to EBITDA Analysis'!J250,'EV to EBITDA Analysis'!W198,'EV to EBITDA Analysis'!J378,'EV to EBITDA Analysis'!J353,'EV to EBITDA Analysis'!J302) -> FALSE | M10: =CHOOSE($E$35,'EV to EBITDA Analysis'!K224,'EV to EBITDA Analysis'!K198,'EV to EBITDA Analysis'!K250,'EV to EBITDA Analysis'!X224,'EV to EBITDA Analysis'!K144,'EV to EBITDA Analysis'!X250,'EV to EBITDA Analysis'!K250,'EV to EBITDA Analysis'!X198,'EV to EBITDA Analysis'!K378,'EV to EBITDA Analysis'!K353,'EV to EBITDA Analysis'!K302) -> FALSE | N10: =CHOOSE($E$35,'EV to EBITDA Analysis'!L224,'EV to EBITDA Analysis'!L198,'EV to EBITDA Analysis'!L250,'EV to EBITDA Analysis'!Y224,'EV to EBITDA Analysis'!L144,'EV to EBITDA Analysis'!Y250,'EV to EBITDA Analysis'!L250,'EV to EBITDA Analysis'!Y198,'EV to EBITDA Analysis'!L378,'EV to EBITDA Analysis'!L353,'EV to EBITDA Analysis'!L302) -> FALSE | O10: TRUE | P10: 3
C11: ='Data Cost of Capital'!D14 -> Prudential | E11: =CHOOSE($E$35,'EV to EBITDA Analysis'!C225,'EV to EBITDA Analysis'!C199,'EV to EBITDA Analysis'!C251,'EV to EBITDA Analysis'!P225,'EV to EBITDA Analysis'!C145,'EV to EBITDA Analysis'!P251,'EV to EBITDA Analysis'!C251,'EV to EBITDA Analysis'!P199,'EV to EBITDA Analysis'!C379,'EV to EBITDA Analysis'!C354,'EV to EBITDA Analysis'!C303) -> FALSE | F11: =CHOOSE($E$35,'EV to EBITDA Analysis'!D225,'EV to EBITDA Analysis'!D199,'EV to EBITDA Analysis'!D251,'EV to EBITDA Analysis'!Q225,'EV to EBITDA Analysis'!D145,'EV to EBITDA Analysis'!Q251,'EV to EBITDA Analysis'!D251,'EV to EBITDA Analysis'!Q199,'EV to EBITDA Analysis'!D379,'EV to EBITDA Analysis'!D354,'EV to EBITDA Analysis'!D303) -> 0 | G11: =CHOOSE($E$35,'EV to EBITDA Analysis'!E225,'EV to EBITDA Analysis'!E199,'EV to EBITDA Analysis'!E251,'EV to EBITDA Analysis'!R225,'EV to EBITDA Analysis'!E145,'EV to EBITDA Analysis'!R251,'EV to EBITDA Analysis'!E251,'EV to EBITDA Analysis'!R199,'EV to EBITDA Analysis'!E379,'EV to EBITDA Analysis'!E354,'EV to EBITDA Analysis'!E303) -> 0 | H11: =CHOOSE($E$35,'EV to EBITDA Analysis'!F225,'EV to EBITDA Analysis'!F199,'EV to EBITDA Analysis'!F251,'EV to EBITDA Analysis'!S225,'EV to EBITDA Analysis'!F145,'EV to EBITDA Analysis'!S251,'EV to EBITDA Analysis'!F251,'EV to EBITDA Analysis'!S199,'EV to EBITDA Analysis'!F379,'EV to EBITDA Analysis'!F354,'EV to EBITDA Analysis'!F303) -> 0 | I11: =CHOOSE($E$35,'EV to EBITDA Analysis'!G225,'EV to EBITDA Analysis'!G199,'EV to EBITDA Analysis'!G251,'EV to EBITDA Analysis'!T225,'EV to EBITDA Analysis'!G145,'EV to EBITDA Analysis'!T251,'EV to EBITDA Analysis'!G251,'EV to EBITDA Analysis'!T199,'EV to EBITDA Analysis'!G379,'EV to EBITDA Analysis'!G354,'EV to EBITDA Analysis'!G303) -> 0 | J11: =CHOOSE($E$35,'EV to EBITDA Analysis'!H225,'EV to EBITDA Analysis'!H199,'EV to EBITDA Analysis'!H251,'EV to EBITDA Analysis'!U225,'EV to EBITDA Analysis'!H145,'EV to EBITDA Analysis'!U251,'EV to EBITDA Analysis'!H251,'EV to EBITDA Analysis'!U199,'EV to EBITDA Analysis'!H379,'EV to EBITDA Analysis'!H354,'EV to EBITDA Analysis'!H303) -> 0 | K11: =CHOOSE($E$35,'EV to EBITDA Analysis'!I225,'EV to EBITDA Analysis'!I199,'EV to EBITDA Analysis'!I251,'EV to EBITDA Analysis'!V225,'EV to EBITDA Analysis'!I145,'EV to EBITDA Analysis'!V251,'EV to EBITDA Analysis'!I251,'EV to EBITDA Analysis'!V199,'EV to EBITDA Analysis'!I379,'EV to EBITDA Analysis'!I354,'EV to EBITDA Analysis'!I303) -> FALSE | L11: =CHOOSE($E$35,'EV to EBITDA Analysis'!J225,'EV to EBITDA Analysis'!J199,'EV to EBITDA Analysis'!J251,'EV to EBITDA Analysis'!W225,'EV to EBITDA Analysis'!J145,'EV to EBITDA Analysis'!W251,'EV to EBITDA Analysis'!J251,'EV to EBITDA Analysis'!W199,'EV to EBITDA Analysis'!J379,'EV to EBITDA Analysis'!J354,'EV to EBITDA Analysis'!J303) -> FALSE | M11: =CHOOSE($E$35,'EV to EBITDA Analysis'!K225,'EV to EBITDA Analysis'!K199,'EV to EBITDA Analysis'!K251,'EV to EBITDA Analysis'!X225,'EV to EBITDA Analysis'!K145,'EV to EBITDA Analysis'!X251,'EV to EBITDA Analysis'!K251,'EV to EBITDA Analysis'!X199,'EV to EBITDA Analysis'!K379,'EV to EBITDA Analysis'!K354,'EV to EBITDA Analysis'!K303) -> FALSE | N11: =CHOOSE($E$35,'EV to EBITDA Analysis'!L225,'EV to EBITDA Analysis'!L199,'EV to EBITDA Analysis'!L251,'EV to EBITDA Analysis'!Y225,'EV to EBITDA Analysis'!L145,'EV to EBITDA Analysis'!Y251,'EV to EBITDA Analysis'!L251,'EV to EBITDA Analysis'!Y199,'EV to EBITDA Analysis'!L379,'EV to EBITDA Analysis'!L354,'EV to EBITDA Analysis'!L303) -> FALSE | O11: TRUE | P11: 4
C12: ='Data Cost of Capital'!D15 -> Genworth | E12: =CHOOSE($E$35,'EV to EBITDA Analysis'!C226,'EV to EBITDA Analysis'!C200,'EV to EBITDA Analysis'!C252,'EV to EBITDA Analysis'!P226,'EV to EBITDA Analysis'!C146,'EV to EBITDA Analysis'!P252,'EV to EBITDA Analysis'!C252,'EV to EBITDA Analysis'!P200,'EV to EBITDA Analysis'!C380,'EV to EBITDA Analysis'!C355,'EV to EBITDA Analysis'!C304) -> FALSE | F12: =CHOOSE($E$35,'EV to EBITDA Analysis'!D226,'EV to EBITDA Analysis'!D200,'EV to EBITDA Analysis'!D252,'EV to EBITDA Analysis'!Q226,'EV to EBITDA Analysis'!D146,'EV to EBITDA Analysis'!Q252,'EV to EBITDA Analysis'!D252,'EV to EBITDA Analysis'!Q200,'EV to EBITDA Analysis'!D380,'EV to EBITDA Analysis'!D355,'EV to EBITDA Analysis'!D304) -> 0.05487944891 | G12: =CHOOSE($E$35,'EV to EBITDA Analysis'!E226,'EV to EBITDA Analysis'!E200,'EV to EBITDA Analysis'!E252,'EV to EBITDA Analysis'!R226,'EV to EBITDA Analysis'!E146,'EV to EBITDA Analysis'!R252,'EV to EBITDA Analysis'!E252,'EV to EBITDA Analysis'!R200,'EV to EBITDA Analysis'!E380,'EV to EBITDA Analysis'!E355,'EV to EBITDA Analysis'!E304) -> 0.05909091263 | H12: =CHOOSE($E$35,'EV to EBITDA Analysis'!F226,'EV to EBITDA Analysis'!F200,'EV to EBITDA Analysis'!F252,'EV to EBITDA Analysis'!S226,'EV to EBITDA Analysis'!F146,'EV to EBITDA Analysis'!S252,'EV to EBITDA Analysis'!F252,'EV to EBITDA Analysis'!S200,'EV to EBITDA Analysis'!F380,'EV to EBITDA Analysis'!F355,'EV to EBITDA Analysis'!F304) -> 0.06477732794 | I12: =CHOOSE($E$35,'EV to EBITDA Analysis'!G226,'EV to EBITDA Analysis'!G200,'EV to EBITDA Analysis'!G252,'EV to EBITDA Analysis'!T226,'EV to EBITDA Analysis'!G146,'EV to EBITDA Analysis'!T252,'EV to EBITDA Analysis'!G252,'EV to EBITDA Analysis'!T200,'EV to EBITDA Analysis'!G380,'EV to EBITDA Analysis'!G355,'EV to EBITDA Analysis'!G304) -> 0.0628185907 | J12: =CHOOSE($E$35,'EV to EBITDA Analysis'!H226,'EV to EBITDA Analysis'!H200,'EV to EBITDA Analysis'!H252,'EV to EBITDA Analysis'!U226,'EV to EBITDA Analysis'!H146,'EV to EBITDA Analysis'!U252,'EV to EBITDA Analysis'!H252,'EV to EBITDA Analysis'!U200,'EV to EBITDA Analysis'!H380,'EV to EBITDA Analysis'!H355,'EV to EBITDA Analysis'!H304) -> 0.07390350877 | K12: =CHOOSE($E$35,'EV to EBITDA Analysis'!I226,'EV to EBITDA Analysis'!I200,'EV to EBITDA Analysis'!I252,'EV to EBITDA Analysis'!V226,'EV to EBITDA Analysis'!I146,'EV to EBITDA Analysis'!V252,'EV to EBITDA Analysis'!I252,'EV to EBITDA Analysis'!V200,'EV to EBITDA Analysis'!I380,'EV to EBITDA Analysis'!I355,'EV to EBITDA Analysis'!I304) -> FALSE | L12: =CHOOSE($E$35,'EV to EBITDA Analysis'!J226,'EV to EBITDA Analysis'!J200,'EV to EBITDA Analysis'!J252,'EV to EBITDA Analysis'!W226,'EV to EBITDA Analysis'!J146,'EV to EBITDA Analysis'!W252,'EV to EBITDA Analysis'!J252,'EV to EBITDA Analysis'!W200,'EV to EBITDA Analysis'!J380,'EV to EBITDA Analysis'!J355,'EV to EBITDA Analysis'!J304) -> FALSE | M12: =CHOOSE($E$35,'EV to EBITDA Analysis'!K226,'EV to EBITDA Analysis'!K200,'EV to EBITDA Analysis'!K252,'EV to EBITDA Analysis'!X226,'EV to EBITDA Analysis'!K146,'EV to EBITDA Analysis'!X252,'EV to EBITDA Analysis'!K252,'EV to EBITDA Analysis'!X200,'EV to EBITDA Analysis'!K380,'EV to EBITDA Analysis'!K355,'EV to EBITDA Analysis'!K304) -> FALSE | N12: =CHOOSE($E$35,'EV to EBITDA Analysis'!L226,'EV to EBITDA Analysis'!L200,'EV to EBITDA Analysis'!L252,'EV to EBITDA Analysis'!Y226,'EV to EBITDA Analysis'!L146,'EV to EBITDA Analysis'!Y252,'EV to EBITDA Analysis'!L252,'EV to EBITDA Analysis'!Y200,'EV to EBITDA Analysis'!L380,'EV to EBITDA Analysis'!L355,'EV to EBITDA Analysis'!L304) -> FALSE | O12: TRUE | P12: 5 | R12: 1 | S12: =IFERROR(MATCH(R12,P:P,0),"") -> 8 | T12: =IFERROR(INDEX(C:C,S12),"") -> L&G | V12: =IFERROR(INDEX(E:E,$S12),"") -> FALSE | W12: =IFERROR(INDEX(F:F,$S12),"") -> 0.05092592593 | X12: =IFERROR(INDEX(G:G,$S12),"") -> 0.0535483871 | Y12: =IFERROR(INDEX(H:H,$S12),"") -> 0.0512605042 | Z12: =IFERROR(INDEX(I:I,$S12),"") -> 0.05123966942 | AA12: =IFERROR(INDEX(J:J,$S12),"") -> 0.05657142857 | AB12: =IFERROR(INDEX(K:K,$S12),"") -> FALSE | AC12: =IFERROR(INDEX(L:L,$S12),"") -> FALSE | AD12: =IFERROR(INDEX(M:M,$S12),"") -> FALSE | AE12: =IFERROR(INDEX(N:N,$S12),"") -> FALSE | AF12: =IFERROR(IRR(AH12:BG12),"") -> 
C13: ='Data Cost of Capital'!D16 -> Greatwest Lifeco | E13: =CHOOSE($E$35,'EV to EBITDA Analysis'!C227,'EV to EBITDA Analysis'!C201,'EV to EBITDA Analysis'!C253,'EV to EBITDA Analysis'!P227,'EV to EBITDA Analysis'!C147,'EV to EBITDA Analysis'!P253,'EV to EBITDA Analysis'!C253,'EV to EBITDA Analysis'!P201,'EV to EBITDA Analysis'!C381,'EV to EBITDA Analysis'!C356,'EV to EBITDA Analysis'!C305) -> FALSE | F13: =CHOOSE($E$35,'EV to EBITDA Analysis'!D227,'EV to EBITDA Analysis'!D201,'EV to EBITDA Analysis'!D253,'EV to EBITDA Analysis'!Q227,'EV to EBITDA Analysis'!D147,'EV to EBITDA Analysis'!Q253,'EV to EBITDA Analysis'!D253,'EV to EBITDA Analysis'!Q201,'EV to EBITDA Analysis'!D381,'EV to EBITDA Analysis'!D356,'EV to EBITDA Analysis'!D305) -> 0.05632653061 | G13: =CHOOSE($E$35,'EV to EBITDA Analysis'!E227,'EV to EBITDA Analysis'!E201,'EV to EBITDA Analysis'!E253,'EV to EBITDA Analysis'!R227,'EV to EBITDA Analysis'!E147,'EV to EBITDA Analysis'!R253,'EV to EBITDA Analysis'!E253,'EV to EBITDA Analysis'!R201,'EV to EBITDA Analysis'!E381,'EV to EBITDA Analysis'!E356,'EV to EBITDA Analysis'!E305) -> 0.0428343949 | H13: =CHOOSE($E$35,'EV to EBITDA Analysis'!F227,'EV to EBITDA Analysis'!F201,'EV to EBITDA Analysis'!F253,'EV to EBITDA Analysis'!S227,'EV to EBITDA Analysis'!F147,'EV to EBITDA Analysis'!S253,'EV to EBITDA Analysis'!F253,'EV to EBITDA Analysis'!S201,'EV to EBITDA Analysis'!F381,'EV to EBITDA Analysis'!F356,'EV to EBITDA Analysis'!F305) -> 0.05100671141 | I13: =CHOOSE($E$35,'EV to EBITDA Analysis'!G227,'EV to EBITDA Analysis'!G201,'EV to EBITDA Analysis'!G253,'EV to EBITDA Analysis'!T227,'EV to EBITDA Analysis'!G147,'EV to EBITDA Analysis'!T253,'EV to EBITDA Analysis'!G253,'EV to EBITDA Analysis'!T201,'EV to EBITDA Analysis'!G381,'EV to EBITDA Analysis'!G356,'EV to EBITDA Analysis'!G305) -> 0.05016556291 | J13: =CHOOSE($E$35,'EV to EBITDA Analysis'!H227,'EV to EBITDA Analysis'!H201,'EV to EBITDA Analysis'!H253,'EV to EBITDA Analysis'!U227,'EV to EBITDA Analysis'!H147,'EV to EBITDA Analysis'!U253,'EV to EBITDA Analysis'!H253,'EV to EBITDA Analysis'!U201,'EV to EBITDA Analysis'!H381,'EV to EBITDA Analysis'!H356,'EV to EBITDA Analysis'!H305) -> 0.04582701062 | K13: =CHOOSE($E$35,'EV to EBITDA Analysis'!I227,'EV to EBITDA Analysis'!I201,'EV to EBITDA Analysis'!I253,'EV to EBITDA Analysis'!V227,'EV to EBITDA Analysis'!I147,'EV to EBITDA Analysis'!V253,'EV to EBITDA Analysis'!I253,'EV to EBITDA Analysis'!V201,'EV to EBITDA Analysis'!I381,'EV to EBITDA Analysis'!I356,'EV to EBITDA Analysis'!I305) -> FALSE | L13: =CHOOSE($E$35,'EV to EBITDA Analysis'!J227,'EV to EBITDA Analysis'!J201,'EV to EBITDA Analysis'!J253,'EV to EBITDA Analysis'!W227,'EV to EBITDA Analysis'!J147,'EV to EBITDA Analysis'!W253,'EV to EBITDA Analysis'!J253,'EV to EBITDA Analysis'!W201,'EV to EBITDA Analysis'!J381,'EV to EBITDA Analysis'!J356,'EV to EBITDA Analysis'!J305) -> FALSE | M13: =CHOOSE($E$35,'EV to EBITDA Analysis'!K227,'EV to EBITDA Analysis'!K201,'EV to EBITDA Analysis'!K253,'EV to EBITDA Analysis'!X227,'EV to EBITDA Analysis'!K147,'EV to EBITDA Analysis'!X253,'EV to EBITDA Analysis'!K253,'EV to EBITDA Analysis'!X201,'EV to EBITDA Analysis'!K381,'EV to EBITDA Analysis'!K356,'EV to EBITDA Analysis'!K305) -> FALSE | N13: =CHOOSE($E$35,'EV to EBITDA Analysis'!L227,'EV to EBITDA Analysis'!L201,'EV to EBITDA Analysis'!L253,'EV to EBITDA Analysis'!Y227,'EV to EBITDA Analysis'!L147,'EV to EBITDA Analysis'!Y253,'EV to EBITDA Analysis'!L253,'EV to EBITDA Analysis'!Y201,'EV to EBITDA Analysis'!L381,'EV to EBITDA Analysis'!L356,'EV to EBITDA Analysis'!L305) -> FALSE | O13: TRUE | P13: 6 | R13: =R12+1 -> 2 | S13: 9 | T13: Met Life | V13: FALSE | W13: 0.05122410546 | X13: 0.04881769641 | Y13: 0.05130361648 | Z13: 0.04752553024 | AA13: 0.05004170142 | AB13: FALSE | AC13: FALSE | AD13: FALSE | AE13: FALSE | AF13: =IFERROR(IRR(AH13:BG13),"") -> 
C14: ='Data Cost of Capital'!D17 -> China Insurance Company | E14: =CHOOSE($E$35,'EV to EBITDA Analysis'!C228,'EV to EBITDA Analysis'!C202,'EV to EBITDA Analysis'!C254,'EV to EBITDA Analysis'!P228,'EV to EBITDA Analysis'!C148,'EV to EBITDA Analysis'!P254,'EV to EBITDA Analysis'!C254,'EV to EBITDA Analysis'!P202,'EV to EBITDA Analysis'!C382,'EV to EBITDA Analysis'!C357,'EV to EBITDA Analysis'!C306) -> FALSE | F14: =CHOOSE($E$35,'EV to EBITDA Analysis'!D228,'EV to EBITDA Analysis'!D202,'EV to EBITDA Analysis'!D254,'EV to EBITDA Analysis'!Q228,'EV to EBITDA Analysis'!D148,'EV to EBITDA Analysis'!Q254,'EV to EBITDA Analysis'!D254,'EV to EBITDA Analysis'!Q202,'EV to EBITDA Analysis'!D382,'EV to EBITDA Analysis'!D357,'EV to EBITDA Analysis'!D306) -> 0.01867012192 | G14: =CHOOSE($E$35,'EV to EBITDA Analysis'!E228,'EV to EBITDA Analysis'!E202,'EV to EBITDA Analysis'!E254,'EV to EBITDA Analysis'!R228,'EV to EBITDA Analysis'!E148,'EV to EBITDA Analysis'!R254,'EV to EBITDA Analysis'!E254,'EV to EBITDA Analysis'!R202,'EV to EBITDA Analysis'!E382,'EV to EBITDA Analysis'!E357,'EV to EBITDA Analysis'!E306) -> 0.04494878135 | H14: =CHOOSE($E$35,'EV to EBITDA Analysis'!F228,'EV to EBITDA Analysis'!F202,'EV to EBITDA Analysis'!F254,'EV to EBITDA Analysis'!S228,'EV to EBITDA Analysis'!F148,'EV to EBITDA Analysis'!S254,'EV to EBITDA Analysis'!F254,'EV to EBITDA Analysis'!S202,'EV to EBITDA Analysis'!F382,'EV to EBITDA Analysis'!F357,'EV to EBITDA Analysis'!F306) -> 0.0571741962 | I14: =CHOOSE($E$35,'EV to EBITDA Analysis'!G228,'EV to EBITDA Analysis'!G202,'EV to EBITDA Analysis'!G254,'EV to EBITDA Analysis'!T228,'EV to EBITDA Analysis'!G148,'EV to EBITDA Analysis'!T254,'EV to EBITDA Analysis'!G254,'EV to EBITDA Analysis'!T202,'EV to EBITDA Analysis'!G382,'EV to EBITDA Analysis'!G357,'EV to EBITDA Analysis'!G306) -> 0.06563706564 | J14: =CHOOSE($E$35,'EV to EBITDA Analysis'!H228,'EV to EBITDA Analysis'!H202,'EV to EBITDA Analysis'!H254,'EV to EBITDA Analysis'!U228,'EV to EBITDA Analysis'!H148,'EV to EBITDA Analysis'!U254,'EV to EBITDA Analysis'!H254,'EV to EBITDA Analysis'!U202,'EV to EBITDA Analysis'!H382,'EV to EBITDA Analysis'!H357,'EV to EBITDA Analysis'!H306) -> 0.07667837498 | K14: =CHOOSE($E$35,'EV to EBITDA Analysis'!I228,'EV to EBITDA Analysis'!I202,'EV to EBITDA Analysis'!I254,'EV to EBITDA Analysis'!V228,'EV to EBITDA Analysis'!I148,'EV to EBITDA Analysis'!V254,'EV to EBITDA Analysis'!I254,'EV to EBITDA Analysis'!V202,'EV to EBITDA Analysis'!I382,'EV to EBITDA Analysis'!I357,'EV to EBITDA Analysis'!I306) -> FALSE | L14: =CHOOSE($E$35,'EV to EBITDA Analysis'!J228,'EV to EBITDA Analysis'!J202,'EV to EBITDA Analysis'!J254,'EV to EBITDA Analysis'!W228,'EV to EBITDA Analysis'!J148,'EV to EBITDA Analysis'!W254,'EV to EBITDA Analysis'!J254,'EV to EBITDA Analysis'!W202,'EV to EBITDA Analysis'!J382,'EV to EBITDA Analysis'!J357,'EV to EBITDA Analysis'!J306) -> FALSE | M14: =CHOOSE($E$35,'EV to EBITDA Analysis'!K228,'EV to EBITDA Analysis'!K202,'EV to EBITDA Analysis'!K254,'EV to EBITDA Analysis'!X228,'EV to EBITDA Analysis'!K148,'EV to EBITDA Analysis'!X254,'EV to EBITDA Analysis'!K254,'EV to EBITDA Analysis'!X202,'EV to EBITDA Analysis'!K382,'EV to EBITDA Analysis'!K357,'EV to EBITDA Analysis'!K306) -> FALSE | N14: =CHOOSE($E$35,'EV to EBITDA Analysis'!L228,'EV to EBITDA Analysis'!L202,'EV to EBITDA Analysis'!L254,'EV to EBITDA Analysis'!Y228,'EV to EBITDA Analysis'!L148,'EV to EBITDA Analysis'!Y254,'EV to EBITDA Analysis'!L254,'EV to EBITDA Analysis'!Y202,'EV to EBITDA Analysis'!L382,'EV to EBITDA Analysis'!L357,'EV to EBITDA Analysis'!L306) -> FALSE | O14: TRUE | P14: 7 | R14: =R13+1 -> 3 | S14: 10 | T14: AIG | V14: FALSE | W14: 0.04783505155 | X14: 0.0513312545 | Y14: 0.05509288917 | Z14: 0.04376068376 | AA14: 0.04076350696 | AB14: FALSE | AC14: FALSE | AD14: FALSE | AE14: FALSE
C15: ='Data Cost of Capital'!D18 -> AIA Group | E15: =CHOOSE($E$35,'EV to EBITDA Analysis'!C229,'EV to EBITDA Analysis'!C203,'EV to EBITDA Analysis'!C255,'EV to EBITDA Analysis'!P229,'EV to EBITDA Analysis'!C149,'EV to EBITDA Analysis'!P255,'EV to EBITDA Analysis'!C255,'EV to EBITDA Analysis'!P203,'EV to EBITDA Analysis'!C383,'EV to EBITDA Analysis'!C358,'EV to EBITDA Analysis'!C307) -> FALSE | F15: =CHOOSE($E$35,'EV to EBITDA Analysis'!D229,'EV to EBITDA Analysis'!D203,'EV to EBITDA Analysis'!D255,'EV to EBITDA Analysis'!Q229,'EV to EBITDA Analysis'!D149,'EV to EBITDA Analysis'!Q255,'EV to EBITDA Analysis'!D255,'EV to EBITDA Analysis'!Q203,'EV to EBITDA Analysis'!D383,'EV to EBITDA Analysis'!D358,'EV to EBITDA Analysis'!D307) -> 0.02481818182 | G15: =CHOOSE($E$35,'EV to EBITDA Analysis'!E229,'EV to EBITDA Analysis'!E203,'EV to EBITDA Analysis'!E255,'EV to EBITDA Analysis'!R229,'EV to EBITDA Analysis'!E149,'EV to EBITDA Analysis'!R255,'EV to EBITDA Analysis'!E255,'EV to EBITDA Analysis'!R203,'EV to EBITDA Analysis'!E383,'EV to EBITDA Analysis'!E358,'EV to EBITDA Analysis'!E307) -> 0.0185047043 | H15: =CHOOSE($E$35,'EV to EBITDA Analysis'!F229,'EV to EBITDA Analysis'!F203,'EV to EBITDA Analysis'!F255,'EV to EBITDA Analysis'!S229,'EV to EBITDA Analysis'!F149,'EV to EBITDA Analysis'!S255,'EV to EBITDA Analysis'!F255,'EV to EBITDA Analysis'!S203,'EV to EBITDA Analysis'!F383,'EV to EBITDA Analysis'!F358,'EV to EBITDA Analysis'!F307) -> 0.01540146548 | I15: =CHOOSE($E$35,'EV to EBITDA Analysis'!G229,'EV to EBITDA Analysis'!G203,'EV to EBITDA Analysis'!G255,'EV to EBITDA Analysis'!T229,'EV to EBITDA Analysis'!G149,'EV to EBITDA Analysis'!T255,'EV to EBITDA Analysis'!G255,'EV to EBITDA Analysis'!T203,'EV to EBITDA Analysis'!G383,'EV to EBITDA Analysis'!G358,'EV to EBITDA Analysis'!G307) -> 0.02423993426 | J15: =CHOOSE($E$35,'EV to EBITDA Analysis'!H229,'EV to EBITDA Analysis'!H203,'EV to EBITDA Analysis'!H255,'EV to EBITDA Analysis'!U229,'EV to EBITDA Analysis'!H149,'EV to EBITDA Analysis'!U255,'EV to EBITDA Analysis'!H255,'EV to EBITDA Analysis'!U203,'EV to EBITDA Analysis'!H383,'EV to EBITDA Analysis'!H358,'EV to EBITDA Analysis'!H307) -> 0.0274686242 | K15: =CHOOSE($E$35,'EV to EBITDA Analysis'!I229,'EV to EBITDA Analysis'!I203,'EV to EBITDA Analysis'!I255,'EV to EBITDA Analysis'!V229,'EV to EBITDA Analysis'!I149,'EV to EBITDA Analysis'!V255,'EV to EBITDA Analysis'!I255,'EV to EBITDA Analysis'!V203,'EV to EBITDA Analysis'!I383,'EV to EBITDA Analysis'!I358,'EV to EBITDA Analysis'!I307) -> FALSE | L15: =CHOOSE($E$35,'EV to EBITDA Analysis'!J229,'EV to EBITDA Analysis'!J203,'EV to EBITDA Analysis'!J255,'EV to EBITDA Analysis'!W229,'EV to EBITDA Analysis'!J149,'EV to EBITDA Analysis'!W255,'EV to EBITDA Analysis'!J255,'EV to EBITDA Analysis'!W203,'EV to EBITDA Analysis'!J383,'EV to EBITDA Analysis'!J358,'EV to EBITDA Analysis'!J307) -> FALSE | M15: =CHOOSE($E$35,'EV to EBITDA Analysis'!K229,'EV to EBITDA Analysis'!K203,'EV to EBITDA Analysis'!K255,'EV to EBITDA Analysis'!X229,'EV to EBITDA Analysis'!K149,'EV to EBITDA Analysis'!X255,'EV to EBITDA Analysis'!K255,'EV to EBITDA Analysis'!X203,'EV to EBITDA Analysis'!K383,'EV to EBITDA Analysis'!K358,'EV to EBITDA Analysis'!K307) -> FALSE | N15: =CHOOSE($E$35,'EV to EBITDA Analysis'!L229,'EV to EBITDA Analysis'!L203,'EV to EBITDA Analysis'!L255,'EV to EBITDA Analysis'!Y229,'EV to EBITDA Analysis'!L149,'EV to EBITDA Analysis'!Y255,'EV to EBITDA Analysis'!L255,'EV to EBITDA Analysis'!Y203,'EV to EBITDA Analysis'!L383,'EV to EBITDA Analysis'!L358,'EV to EBITDA Analysis'!L307) -> FALSE | O15: TRUE | P15: 8 | R15: 4 | S15: 11 | T15: Prudential | V15: FALSE | W15: 0 | X15: 0 | Y15: 0 | Z15: 0 | AA15: 0 | AB15: FALSE | AC15: FALSE | AD15: FALSE | AE15: FALSE
C16: ='Data Cost of Capital'!D19 -> China Pacific Insrance | E16: =CHOOSE($E$35,'EV to EBITDA Analysis'!C230,'EV to EBITDA Analysis'!C204,'EV to EBITDA Analysis'!C256,'EV to EBITDA Analysis'!P230,'EV to EBITDA Analysis'!C150,'EV to EBITDA Analysis'!P256,'EV to EBITDA Analysis'!C256,'EV to EBITDA Analysis'!P204,'EV to EBITDA Analysis'!C384,'EV to EBITDA Analysis'!C359,'EV to EBITDA Analysis'!C308) -> FALSE | F16: =CHOOSE($E$35,'EV to EBITDA Analysis'!D230,'EV to EBITDA Analysis'!D204,'EV to EBITDA Analysis'!D256,'EV to EBITDA Analysis'!Q230,'EV to EBITDA Analysis'!D150,'EV to EBITDA Analysis'!Q256,'EV to EBITDA Analysis'!D256,'EV to EBITDA Analysis'!Q204,'EV to EBITDA Analysis'!D384,'EV to EBITDA Analysis'!D359,'EV to EBITDA Analysis'!D308) -> 0.0293901543 | G16: =CHOOSE($E$35,'EV to EBITDA Analysis'!E230,'EV to EBITDA Analysis'!E204,'EV to EBITDA Analysis'!E256,'EV to EBITDA Analysis'!R230,'EV to EBITDA Analysis'!E150,'EV to EBITDA Analysis'!R256,'EV to EBITDA Analysis'!E256,'EV to EBITDA Analysis'!R204,'EV to EBITDA Analysis'!E384,'EV to EBITDA Analysis'!E359,'EV to EBITDA Analysis'!E308) -> 0.01909490166 | H16: =CHOOSE($E$35,'EV to EBITDA Analysis'!F230,'EV to EBITDA Analysis'!F204,'EV to EBITDA Analysis'!F256,'EV to EBITDA Analysis'!S230,'EV to EBITDA Analysis'!F150,'EV to EBITDA Analysis'!S256,'EV to EBITDA Analysis'!F256,'EV to EBITDA Analysis'!S204,'EV to EBITDA Analysis'!F384,'EV to EBITDA Analysis'!F359,'EV to EBITDA Analysis'!F308) -> 0.05803571429 | I16: =CHOOSE($E$35,'EV to EBITDA Analysis'!G230,'EV to EBITDA Analysis'!G204,'EV to EBITDA Analysis'!G256,'EV to EBITDA Analysis'!T230,'EV to EBITDA Analysis'!G150,'EV to EBITDA Analysis'!T256,'EV to EBITDA Analysis'!G256,'EV to EBITDA Analysis'!T204,'EV to EBITDA Analysis'!G384,'EV to EBITDA Analysis'!G359,'EV to EBITDA Analysis'!G308) -> 0.04547026279 | J16: =CHOOSE($E$35,'EV to EBITDA Analysis'!H230,'EV to EBITDA Analysis'!H204,'EV to EBITDA Analysis'!H256,'EV to EBITDA Analysis'!U230,'EV to EBITDA Analysis'!H150,'EV to EBITDA Analysis'!U256,'EV to EBITDA Analysis'!H256,'EV to EBITDA Analysis'!U204,'EV to EBITDA Analysis'!H384,'EV to EBITDA Analysis'!H359,'EV to EBITDA Analysis'!H308) -> 0.04003542958 | K16: =CHOOSE($E$35,'EV to EBITDA Analysis'!I230,'EV to EBITDA Analysis'!I204,'EV to EBITDA Analysis'!I256,'EV to EBITDA Analysis'!V230,'EV to EBITDA Analysis'!I150,'EV to EBITDA Analysis'!V256,'EV to EBITDA Analysis'!I256,'EV to EBITDA Analysis'!V204,'EV to EBITDA Analysis'!I384,'EV to EBITDA Analysis'!I359,'EV to EBITDA Analysis'!I308) -> FALSE | L16: =CHOOSE($E$35,'EV to EBITDA Analysis'!J230,'EV to EBITDA Analysis'!J204,'EV to EBITDA Analysis'!J256,'EV to EBITDA Analysis'!W230,'EV to EBITDA Analysis'!J150,'EV to EBITDA Analysis'!W256,'EV to EBITDA Analysis'!J256,'EV to EBITDA Analysis'!W204,'EV to EBITDA Analysis'!J384,'EV to EBITDA Analysis'!J359,'EV to EBITDA Analysis'!J308) -> FALSE | M16: =CHOOSE($E$35,'EV to EBITDA Analysis'!K230,'EV to EBITDA Analysis'!K204,'EV to EBITDA Analysis'!K256,'EV to EBITDA Analysis'!X230,'EV to EBITDA Analysis'!K150,'EV to EBITDA Analysis'!X256,'EV to EBITDA Analysis'!K256,'EV to EBITDA Analysis'!X204,'EV to EBITDA Analysis'!K384,'EV to EBITDA Analysis'!K359,'EV to EBITDA Analysis'!K308) -> FALSE | N16: =CHOOSE($E$35,'EV to EBITDA Analysis'!L230,'EV to EBITDA Analysis'!L204,'EV to EBITDA Analysis'!L256,'EV to EBITDA Analysis'!Y230,'EV to EBITDA Analysis'!L150,'EV to EBITDA Analysis'!Y256,'EV to EBITDA Analysis'!L256,'EV to EBITDA Analysis'!Y204,'EV to EBITDA Analysis'!L384,'EV to EBITDA Analysis'!L359,'EV to EBITDA Analysis'!L308) -> FALSE | O16: TRUE | P16: 9 | R16: 5 | S16: 12 | T16: Genworth | V16: FALSE | W16: 0.05487944891 | X16: 0.05909091263 | Y16: 0.06477732794 | Z16: 0.0628185907 | AA16: 0.07390350877 | AB16: FALSE | AC16: FALSE | AD16: FALSE | AE16: FALSE
C17: ='Data Cost of Capital'!D20 -> Aflac | E17: =CHOOSE($E$35,'EV to EBITDA Analysis'!C231,'EV to EBITDA Analysis'!C205,'EV to EBITDA Analysis'!C257,'EV to EBITDA Analysis'!P231,'EV to EBITDA Analysis'!C151,'EV to EBITDA Analysis'!P257,'EV to EBITDA Analysis'!C257,'EV to EBITDA Analysis'!P205,'EV to EBITDA Analysis'!C385,'EV to EBITDA Analysis'!C360,'EV to EBITDA Analysis'!C309) -> FALSE | F17: =CHOOSE($E$35,'EV to EBITDA Analysis'!D231,'EV to EBITDA Analysis'!D205,'EV to EBITDA Analysis'!D257,'EV to EBITDA Analysis'!Q231,'EV to EBITDA Analysis'!D151,'EV to EBITDA Analysis'!Q257,'EV to EBITDA Analysis'!D257,'EV to EBITDA Analysis'!Q205,'EV to EBITDA Analysis'!D385,'EV to EBITDA Analysis'!D360,'EV to EBITDA Analysis'!D309) -> 0.06 | G17: =CHOOSE($E$35,'EV to EBITDA Analysis'!E231,'EV to EBITDA Analysis'!E205,'EV to EBITDA Analysis'!E257,'EV to EBITDA Analysis'!R231,'EV to EBITDA Analysis'!E151,'EV to EBITDA Analysis'!R257,'EV to EBITDA Analysis'!E257,'EV to EBITDA Analysis'!R205,'EV to EBITDA Analysis'!E385,'EV to EBITDA Analysis'!E360,'EV to EBITDA Analysis'!E309) -> 0.05979591837 | H17: =CHOOSE($E$35,'EV to EBITDA Analysis'!F231,'EV to EBITDA Analysis'!F205,'EV to EBITDA Analysis'!F257,'EV to EBITDA Analysis'!S231,'EV to EBITDA Analysis'!F151,'EV to EBITDA Analysis'!S257,'EV to EBITDA Analysis'!F257,'EV to EBITDA Analysis'!S205,'EV to EBITDA Analysis'!F385,'EV to EBITDA Analysis'!F360,'EV to EBITDA Analysis'!F309) -> 0.06003787879 | I17: =CHOOSE($E$35,'EV to EBITDA Analysis'!G231,'EV to EBITDA Analysis'!G205,'EV to EBITDA Analysis'!G257,'EV to EBITDA Analysis'!T231,'EV to EBITDA Analysis'!G151,'EV to EBITDA Analysis'!T257,'EV to EBITDA Analysis'!G257,'EV to EBITDA Analysis'!T205,'EV to EBITDA Analysis'!G385,'EV to EBITDA Analysis'!G360,'EV to EBITDA Analysis'!G309) -> 0.05814889336 | J17: =CHOOSE($E$35,'EV to EBITDA Analysis'!H231,'EV to EBITDA Analysis'!H205,'EV to EBITDA Analysis'!H257,'EV to EBITDA Analysis'!U231,'EV to EBITDA Analysis'!H151,'EV to EBITDA Analysis'!U257,'EV to EBITDA Analysis'!H257,'EV to EBITDA Analysis'!U205,'EV to EBITDA Analysis'!H385,'EV to EBITDA Analysis'!H360,'EV to EBITDA Analysis'!H309) -> 0.05 | K17: =CHOOSE($E$35,'EV to EBITDA Analysis'!I231,'EV to EBITDA Analysis'!I205,'EV to EBITDA Analysis'!I257,'EV to EBITDA Analysis'!V231,'EV to EBITDA Analysis'!I151,'EV to EBITDA Analysis'!V257,'EV to EBITDA Analysis'!I257,'EV to EBITDA Analysis'!V205,'EV to EBITDA Analysis'!I385,'EV to EBITDA Analysis'!I360,'EV to EBITDA Analysis'!I309) -> FALSE | L17: =CHOOSE($E$35,'EV to EBITDA Analysis'!J231,'EV to EBITDA Analysis'!J205,'EV to EBITDA Analysis'!J257,'EV to EBITDA Analysis'!W231,'EV to EBITDA Analysis'!J151,'EV to EBITDA Analysis'!W257,'EV to EBITDA Analysis'!J257,'EV to EBITDA Analysis'!W205,'EV to EBITDA Analysis'!J385,'EV to EBITDA Analysis'!J360,'EV to EBITDA Analysis'!J309) -> FALSE | M17: =CHOOSE($E$35,'EV to EBITDA Analysis'!K231,'EV to EBITDA Analysis'!K205,'EV to EBITDA Analysis'!K257,'EV to EBITDA Analysis'!X231,'EV to EBITDA Analysis'!K151,'EV to EBITDA Analysis'!X257,'EV to EBITDA Analysis'!K257,'EV to EBITDA Analysis'!X205,'EV to EBITDA Analysis'!K385,'EV to EBITDA Analysis'!K360,'EV to EBITDA Analysis'!K309) -> FALSE | N17: =CHOOSE($E$35,'EV to EBITDA Analysis'!L231,'EV to EBITDA Analysis'!L205,'EV to EBITDA Analysis'!L257,'EV to EBITDA Analysis'!Y231,'EV to EBITDA Analysis'!L151,'EV to EBITDA Analysis'!Y257,'EV to EBITDA Analysis'!L257,'EV to EBITDA Analysis'!Y205,'EV to EBITDA Analysis'!L385,'EV to EBITDA Analysis'!L360,'EV to EBITDA Analysis'!L309) -> FALSE | O17: TRUE | P17: 10 | R17: 6 | S17: 13 | T17: Greatwest Lifeco | V17: FALSE | W17: 0.05632653061 | X17: 0.0428343949 | Y17: 0.05100671141 | Z17: 0.05016556291 | AA17: 0.04582701062 | AB17: FALSE | AC17: FALSE | AD17: FALSE | AE17: FALSE
C18: ='Data Cost of Capital'!D21 -> Dai-ichi Life Holdings Inc | E18: =CHOOSE($E$35,'EV to EBITDA Analysis'!C232,'EV to EBITDA Analysis'!C206,'EV to EBITDA Analysis'!C258,'EV to EBITDA Analysis'!P232,'EV to EBITDA Analysis'!C152,'EV to EBITDA Analysis'!P258,'EV to EBITDA Analysis'!C258,'EV to EBITDA Analysis'!P206,'EV to EBITDA Analysis'!C386,'EV to EBITDA Analysis'!C361,'EV to EBITDA Analysis'!C310) -> FALSE | F18: =CHOOSE($E$35,'EV to EBITDA Analysis'!D232,'EV to EBITDA Analysis'!D206,'EV to EBITDA Analysis'!D258,'EV to EBITDA Analysis'!Q232,'EV to EBITDA Analysis'!D152,'EV to EBITDA Analysis'!Q258,'EV to EBITDA Analysis'!D258,'EV to EBITDA Analysis'!Q206,'EV to EBITDA Analysis'!D386,'EV to EBITDA Analysis'!D361,'EV to EBITDA Analysis'!D310) -> 0.03692109491 | G18: =CHOOSE($E$35,'EV to EBITDA Analysis'!E232,'EV to EBITDA Analysis'!E206,'EV to EBITDA Analysis'!E258,'EV to EBITDA Analysis'!R232,'EV to EBITDA Analysis'!E152,'EV to EBITDA Analysis'!R258,'EV to EBITDA Analysis'!E258,'EV to EBITDA Analysis'!R206,'EV to EBITDA Analysis'!E386,'EV to EBITDA Analysis'!E361,'EV to EBITDA Analysis'!E310) -> 0.04331918947 | H18: =CHOOSE($E$35,'EV to EBITDA Analysis'!F232,'EV to EBITDA Analysis'!F206,'EV to EBITDA Analysis'!F258,'EV to EBITDA Analysis'!S232,'EV to EBITDA Analysis'!F152,'EV to EBITDA Analysis'!S258,'EV to EBITDA Analysis'!F258,'EV to EBITDA Analysis'!S206,'EV to EBITDA Analysis'!F386,'EV to EBITDA Analysis'!F361,'EV to EBITDA Analysis'!F310) -> 0.01911870991 | I18: =CHOOSE($E$35,'EV to EBITDA Analysis'!G232,'EV to EBITDA Analysis'!G206,'EV to EBITDA Analysis'!G258,'EV to EBITDA Analysis'!T232,'EV to EBITDA Analysis'!G152,'EV to EBITDA Analysis'!T258,'EV to EBITDA Analysis'!G258,'EV to EBITDA Analysis'!T206,'EV to EBITDA Analysis'!G386,'EV to EBITDA Analysis'!G361,'EV to EBITDA Analysis'!G310) -> 0.03457558874 | J18: =CHOOSE($E$35,'EV to EBITDA Analysis'!H232,'EV to EBITDA Analysis'!H206,'EV to EBITDA Analysis'!H258,'EV to EBITDA Analysis'!U232,'EV to EBITDA Analysis'!H152,'EV to EBITDA Analysis'!U258,'EV to EBITDA Analysis'!H258,'EV to EBITDA Analysis'!U206,'EV to EBITDA Analysis'!H386,'EV to EBITDA Analysis'!H361,'EV to EBITDA Analysis'!H310) -> 0.02310734463 | K18: =CHOOSE($E$35,'EV to EBITDA Analysis'!I232,'EV to EBITDA Analysis'!I206,'EV to EBITDA Analysis'!I258,'EV to EBITDA Analysis'!V232,'EV to EBITDA Analysis'!I152,'EV to EBITDA Analysis'!V258,'EV to EBITDA Analysis'!I258,'EV to EBITDA Analysis'!V206,'EV to EBITDA Analysis'!I386,'EV to EBITDA Analysis'!I361,'EV to EBITDA Analysis'!I310) -> FALSE | L18: =CHOOSE($E$35,'EV to EBITDA Analysis'!J232,'EV to EBITDA Analysis'!J206,'EV to EBITDA Analysis'!J258,'EV to EBITDA Analysis'!W232,'EV to EBITDA Analysis'!J152,'EV to EBITDA Analysis'!W258,'EV to EBITDA Analysis'!J258,'EV to EBITDA Analysis'!W206,'EV to EBITDA Analysis'!J386,'EV to EBITDA Analysis'!J361,'EV to EBITDA Analysis'!J310) -> FALSE | M18: =CHOOSE($E$35,'EV to EBITDA Analysis'!K232,'EV to EBITDA Analysis'!K206,'EV to EBITDA Analysis'!K258,'EV to EBITDA Analysis'!X232,'EV to EBITDA Analysis'!K152,'EV to EBITDA Analysis'!X258,'EV to EBITDA Analysis'!K258,'EV to EBITDA Analysis'!X206,'EV to EBITDA Analysis'!K386,'EV to EBITDA Analysis'!K361,'EV to EBITDA Analysis'!K310) -> FALSE | N18: =CHOOSE($E$35,'EV to EBITDA Analysis'!L232,'EV to EBITDA Analysis'!L206,'EV to EBITDA Analysis'!L258,'EV to EBITDA Analysis'!Y232,'EV to EBITDA Analysis'!L152,'EV to EBITDA Analysis'!Y258,'EV to EBITDA Analysis'!L258,'EV to EBITDA Analysis'!Y206,'EV to EBITDA Analysis'!L386,'EV to EBITDA Analysis'!L361,'EV to EBITDA Analysis'!L310) -> FALSE | O18: TRUE | P18: 11 | R18: 7 | S18: 14 | T18: China Insurance Company | V18: FALSE | W18: 0.01867012192 | X18: 0.04494878135 | Y18: 0.0571741962 | Z18: 0.06563706564 | AA18: 0.07667837498 | AB18: FALSE | AC18: FALSE | AD18: FALSE | AE18: FALSE
C19: ='Data Cost of Capital'!D22 -> Old Mutual | E19: =CHOOSE($E$35,'EV to EBITDA Analysis'!C233,'EV to EBITDA Analysis'!C207,'EV to EBITDA Analysis'!C259,'EV to EBITDA Analysis'!P233,'EV to EBITDA Analysis'!C153,'EV to EBITDA Analysis'!P259,'EV to EBITDA Analysis'!C259,'EV to EBITDA Analysis'!P207,'EV to EBITDA Analysis'!C387,'EV to EBITDA Analysis'!C362,'EV to EBITDA Analysis'!C311) -> FALSE | F19: =CHOOSE($E$35,'EV to EBITDA Analysis'!D233,'EV to EBITDA Analysis'!D207,'EV to EBITDA Analysis'!D259,'EV to EBITDA Analysis'!Q233,'EV to EBITDA Analysis'!D153,'EV to EBITDA Analysis'!Q259,'EV to EBITDA Analysis'!D259,'EV to EBITDA Analysis'!Q207,'EV to EBITDA Analysis'!D387,'EV to EBITDA Analysis'!D362,'EV to EBITDA Analysis'!D311) -> 0.09356568365 | G19: =CHOOSE($E$35,'EV to EBITDA Analysis'!E233,'EV to EBITDA Analysis'!E207,'EV to EBITDA Analysis'!E259,'EV to EBITDA Analysis'!R233,'EV to EBITDA Analysis'!E153,'EV to EBITDA Analysis'!R259,'EV to EBITDA Analysis'!E259,'EV to EBITDA Analysis'!R207,'EV to EBITDA Analysis'!E387,'EV to EBITDA Analysis'!E362,'EV to EBITDA Analysis'!E311) -> 0.06518987342 | H19: =CHOOSE($E$35,'EV to EBITDA Analysis'!F233,'EV to EBITDA Analysis'!F207,'EV to EBITDA Analysis'!F259,'EV to EBITDA Analysis'!S233,'EV to EBITDA Analysis'!F153,'EV to EBITDA Analysis'!S259,'EV to EBITDA Analysis'!F259,'EV to EBITDA Analysis'!S207,'EV to EBITDA Analysis'!F387,'EV to EBITDA Analysis'!F362,'EV to EBITDA Analysis'!F311) -> 0.06218487395 | I19: =CHOOSE($E$35,'EV to EBITDA Analysis'!G233,'EV to EBITDA Analysis'!G207,'EV to EBITDA Analysis'!G259,'EV to EBITDA Analysis'!T233,'EV to EBITDA Analysis'!G153,'EV to EBITDA Analysis'!T259,'EV to EBITDA Analysis'!G259,'EV to EBITDA Analysis'!T207,'EV to EBITDA Analysis'!G387,'EV to EBITDA Analysis'!G362,'EV to EBITDA Analysis'!G311) -> 0.07789473684 | J19: =CHOOSE($E$35,'EV to EBITDA Analysis'!H233,'EV to EBITDA Analysis'!H207,'EV to EBITDA Analysis'!H259,'EV to EBITDA Analysis'!U233,'EV to EBITDA Analysis'!H153,'EV to EBITDA Analysis'!U259,'EV to EBITDA Analysis'!H259,'EV to EBITDA Analysis'!U207,'EV to EBITDA Analysis'!H387,'EV to EBITDA Analysis'!H362,'EV to EBITDA Analysis'!H311) -> 0.07464788732 | K19: =CHOOSE($E$35,'EV to EBITDA Analysis'!I233,'EV to EBITDA Analysis'!I207,'EV to EBITDA Analysis'!I259,'EV to EBITDA Analysis'!V233,'EV to EBITDA Analysis'!I153,'EV to EBITDA Analysis'!V259,'EV to EBITDA Analysis'!I259,'EV to EBITDA Analysis'!V207,'EV to EBITDA Analysis'!I387,'EV to EBITDA Analysis'!I362,'EV to EBITDA Analysis'!I311) -> FALSE | L19: =CHOOSE($E$35,'EV to EBITDA Analysis'!J233,'EV to EBITDA Analysis'!J207,'EV to EBITDA Analysis'!J259,'EV to EBITDA Analysis'!W233,'EV to EBITDA Analysis'!J153,'EV to EBITDA Analysis'!W259,'EV to EBITDA Analysis'!J259,'EV to EBITDA Analysis'!W207,'EV to EBITDA Analysis'!J387,'EV to EBITDA Analysis'!J362,'EV to EBITDA Analysis'!J311) -> FALSE | M19: =CHOOSE($E$35,'EV to EBITDA Analysis'!K233,'EV to EBITDA Analysis'!K207,'EV to EBITDA Analysis'!K259,'EV to EBITDA Analysis'!X233,'EV to EBITDA Analysis'!K153,'EV to EBITDA Analysis'!X259,'EV to EBITDA Analysis'!K259,'EV to EBITDA Analysis'!X207,'EV to EBITDA Analysis'!K387,'EV to EBITDA Analysis'!K362,'EV to EBITDA Analysis'!K311) -> FALSE | N19: =CHOOSE($E$35,'EV to EBITDA Analysis'!L233,'EV to EBITDA Analysis'!L207,'EV to EBITDA Analysis'!L259,'EV to EBITDA Analysis'!Y233,'EV to EBITDA Analysis'!L153,'EV to EBITDA Analysis'!Y259,'EV to EBITDA Analysis'!L259,'EV to EBITDA Analysis'!Y207,'EV to EBITDA Analysis'!L387,'EV to EBITDA Analysis'!L362,'EV to EBITDA Analysis'!L311) -> FALSE | O19: TRUE | P19: 12 | R19: 8 | S19: 15 | T19: AIA Group | V19: FALSE | W19: 0.02481818182 | X19: 0.0185047043 | Y19: 0.01540146548 | Z19: 0.02423993426 | AA19: 0.0274686242 | AB19: FALSE | AC19: FALSE | AD19: FALSE | AE19: FALSE
C20: ='Data Cost of Capital'!D23 -> Power Financial Corp | E20: =CHOOSE($E$35,'EV to EBITDA Analysis'!C234,'EV to EBITDA Analysis'!C208,'EV to EBITDA Analysis'!C260,'EV to EBITDA Analysis'!P234,'EV to EBITDA Analysis'!C154,'EV to EBITDA Analysis'!P260,'EV to EBITDA Analysis'!C260,'EV to EBITDA Analysis'!P208,'EV to EBITDA Analysis'!C388,'EV to EBITDA Analysis'!C363,'EV to EBITDA Analysis'!C312) -> FALSE | F20: =CHOOSE($E$35,'EV to EBITDA Analysis'!D234,'EV to EBITDA Analysis'!D208,'EV to EBITDA Analysis'!D260,'EV to EBITDA Analysis'!Q234,'EV to EBITDA Analysis'!D154,'EV to EBITDA Analysis'!Q260,'EV to EBITDA Analysis'!D260,'EV to EBITDA Analysis'!Q208,'EV to EBITDA Analysis'!D388,'EV to EBITDA Analysis'!D363,'EV to EBITDA Analysis'!D312) -> 0.03362676056 | G20: =CHOOSE($E$35,'EV to EBITDA Analysis'!E234,'EV to EBITDA Analysis'!E208,'EV to EBITDA Analysis'!E260,'EV to EBITDA Analysis'!R234,'EV to EBITDA Analysis'!E154,'EV to EBITDA Analysis'!R260,'EV to EBITDA Analysis'!E260,'EV to EBITDA Analysis'!R208,'EV to EBITDA Analysis'!E388,'EV to EBITDA Analysis'!E363,'EV to EBITDA Analysis'!E312) -> 0.02800597461 | H20: =CHOOSE($E$35,'EV to EBITDA Analysis'!F234,'EV to EBITDA Analysis'!F208,'EV to EBITDA Analysis'!F260,'EV to EBITDA Analysis'!S234,'EV to EBITDA Analysis'!F154,'EV to EBITDA Analysis'!S260,'EV to EBITDA Analysis'!F260,'EV to EBITDA Analysis'!S208,'EV to EBITDA Analysis'!F388,'EV to EBITDA Analysis'!F363,'EV to EBITDA Analysis'!F312) -> 0.02898245614 | I20: =CHOOSE($E$35,'EV to EBITDA Analysis'!G234,'EV to EBITDA Analysis'!G208,'EV to EBITDA Analysis'!G260,'EV to EBITDA Analysis'!T234,'EV to EBITDA Analysis'!G154,'EV to EBITDA Analysis'!T260,'EV to EBITDA Analysis'!G260,'EV to EBITDA Analysis'!T208,'EV to EBITDA Analysis'!G388,'EV to EBITDA Analysis'!G363,'EV to EBITDA Analysis'!G312) -> 0.02817189632 | J20: =CHOOSE($E$35,'EV to EBITDA Analysis'!H234,'EV to EBITDA Analysis'!H208,'EV to EBITDA Analysis'!H260,'EV to EBITDA Analysis'!U234,'EV to EBITDA Analysis'!H154,'EV to EBITDA Analysis'!U260,'EV to EBITDA Analysis'!H260,'EV to EBITDA Analysis'!U208,'EV to EBITDA Analysis'!H388,'EV to EBITDA Analysis'!H363,'EV to EBITDA Analysis'!H312) -> 0.02601010101 | K20: =CHOOSE($E$35,'EV to EBITDA Analysis'!I234,'EV to EBITDA Analysis'!I208,'EV to EBITDA Analysis'!I260,'EV to EBITDA Analysis'!V234,'EV to EBITDA Analysis'!I154,'EV to EBITDA Analysis'!V260,'EV to EBITDA Analysis'!I260,'EV to EBITDA Analysis'!V208,'EV to EBITDA Analysis'!I388,'EV to EBITDA Analysis'!I363,'EV to EBITDA Analysis'!I312) -> FALSE | L20: =CHOOSE($E$35,'EV to EBITDA Analysis'!J234,'EV to EBITDA Analysis'!J208,'EV to EBITDA Analysis'!J260,'EV to EBITDA Analysis'!W234,'EV to EBITDA Analysis'!J154,'EV to EBITDA Analysis'!W260,'EV to EBITDA Analysis'!J260,'EV to EBITDA Analysis'!W208,'EV to EBITDA Analysis'!J388,'EV to EBITDA Analysis'!J363,'EV to EBITDA Analysis'!J312) -> FALSE | M20: =CHOOSE($E$35,'EV to EBITDA Analysis'!K234,'EV to EBITDA Analysis'!K208,'EV to EBITDA Analysis'!K260,'EV to EBITDA Analysis'!X234,'EV to EBITDA Analysis'!K154,'EV to EBITDA Analysis'!X260,'EV to EBITDA Analysis'!K260,'EV to EBITDA Analysis'!X208,'EV to EBITDA Analysis'!K388,'EV to EBITDA Analysis'!K363,'EV to EBITDA Analysis'!K312) -> FALSE | N20: =CHOOSE($E$35,'EV to EBITDA Analysis'!L234,'EV to EBITDA Analysis'!L208,'EV to EBITDA Analysis'!L260,'EV to EBITDA Analysis'!Y234,'EV to EBITDA Analysis'!L154,'EV to EBITDA Analysis'!Y260,'EV to EBITDA Analysis'!L260,'EV to EBITDA Analysis'!Y208,'EV to EBITDA Analysis'!L388,'EV to EBITDA Analysis'!L363,'EV to EBITDA Analysis'!L312) -> FALSE | O20: TRUE | P20: 13 | R20: 9 | S20: 16 | T20: China Pacific Insrance | V20: FALSE | W20: 0.0293901543 | X20: 0.01909490166 | Y20: 0.05803571429 | Z20: 0.04547026279 | AA20: 0.04003542958 | AB20: FALSE | AC20: FALSE | AD20: FALSE | AE20: FALSE | AF20: =IFERROR(IRR(AH20:BG20),"") -> 
C21: ='Data Cost of Capital'!D24 -> Lincoln National Corp | E21: =CHOOSE($E$35,'EV to EBITDA Analysis'!C235,'EV to EBITDA Analysis'!C209,'EV to EBITDA Analysis'!C261,'EV to EBITDA Analysis'!P235,'EV to EBITDA Analysis'!C155,'EV to EBITDA Analysis'!P261,'EV to EBITDA Analysis'!C261,'EV to EBITDA Analysis'!P209,'EV to EBITDA Analysis'!C389,'EV to EBITDA Analysis'!C364,'EV to EBITDA Analysis'!C313) -> FALSE | F21: =CHOOSE($E$35,'EV to EBITDA Analysis'!D235,'EV to EBITDA Analysis'!D209,'EV to EBITDA Analysis'!D261,'EV to EBITDA Analysis'!Q235,'EV to EBITDA Analysis'!D155,'EV to EBITDA Analysis'!Q261,'EV to EBITDA Analysis'!D261,'EV to EBITDA Analysis'!Q209,'EV to EBITDA Analysis'!D389,'EV to EBITDA Analysis'!D364,'EV to EBITDA Analysis'!D313) -> 0.05390070922 | G21: =CHOOSE($E$35,'EV to EBITDA Analysis'!E235,'EV to EBITDA Analysis'!E209,'EV to EBITDA Analysis'!E261,'EV to EBITDA Analysis'!R235,'EV to EBITDA Analysis'!E155,'EV to EBITDA Analysis'!R261,'EV to EBITDA Analysis'!E261,'EV to EBITDA Analysis'!R209,'EV to EBITDA Analysis'!E389,'EV to EBITDA Analysis'!E364,'EV to EBITDA Analysis'!E313) -> 0.05171821306 | H21: =CHOOSE($E$35,'EV to EBITDA Analysis'!F235,'EV to EBITDA Analysis'!F209,'EV to EBITDA Analysis'!F261,'EV to EBITDA Analysis'!S235,'EV to EBITDA Analysis'!F155,'EV to EBITDA Analysis'!S261,'EV to EBITDA Analysis'!F261,'EV to EBITDA Analysis'!S209,'EV to EBITDA Analysis'!F389,'EV to EBITDA Analysis'!F364,'EV to EBITDA Analysis'!F313) -> 0.05471014493 | I21: =CHOOSE($E$35,'EV to EBITDA Analysis'!G235,'EV to EBITDA Analysis'!G209,'EV to EBITDA Analysis'!G261,'EV to EBITDA Analysis'!T235,'EV to EBITDA Analysis'!G155,'EV to EBITDA Analysis'!T261,'EV to EBITDA Analysis'!G261,'EV to EBITDA Analysis'!T209,'EV to EBITDA Analysis'!G389,'EV to EBITDA Analysis'!G364,'EV to EBITDA Analysis'!G313) -> 0.05495495495 | J21: =CHOOSE($E$35,'EV to EBITDA Analysis'!H235,'EV to EBITDA Analysis'!H209,'EV to EBITDA Analysis'!H261,'EV to EBITDA Analysis'!U235,'EV to EBITDA Analysis'!H155,'EV to EBITDA Analysis'!U261,'EV to EBITDA Analysis'!H261,'EV to EBITDA Analysis'!U209,'EV to EBITDA Analysis'!H389,'EV to EBITDA Analysis'!H364,'EV to EBITDA Analysis'!H313) -> 0.06598130841 | K21: =CHOOSE($E$35,'EV to EBITDA Analysis'!I235,'EV to EBITDA Analysis'!I209,'EV to EBITDA Analysis'!I261,'EV to EBITDA Analysis'!V235,'EV to EBITDA Analysis'!I155,'EV to EBITDA Analysis'!V261,'EV to EBITDA Analysis'!I261,'EV to EBITDA Analysis'!V209,'EV to EBITDA Analysis'!I389,'EV to EBITDA Analysis'!I364,'EV to EBITDA Analysis'!I313) -> FALSE | L21: =CHOOSE($E$35,'EV to EBITDA Analysis'!J235,'EV to EBITDA Analysis'!J209,'EV to EBITDA Analysis'!J261,'EV to EBITDA Analysis'!W235,'EV to EBITDA Analysis'!J155,'EV to EBITDA Analysis'!W261,'EV to EBITDA Analysis'!J261,'EV to EBITDA Analysis'!W209,'EV to EBITDA Analysis'!J389,'EV to EBITDA Analysis'!J364,'EV to EBITDA Analysis'!J313) -> FALSE | M21: =CHOOSE($E$35,'EV to EBITDA Analysis'!K235,'EV to EBITDA Analysis'!K209,'EV to EBITDA Analysis'!K261,'EV to EBITDA Analysis'!X235,'EV to EBITDA Analysis'!K155,'EV to EBITDA Analysis'!X261,'EV to EBITDA Analysis'!K261,'EV to EBITDA Analysis'!X209,'EV to EBITDA Analysis'!K389,'EV to EBITDA Analysis'!K364,'EV to EBITDA Analysis'!K313) -> FALSE | N21: =CHOOSE($E$35,'EV to EBITDA Analysis'!L235,'EV to EBITDA Analysis'!L209,'EV to EBITDA Analysis'!L261,'EV to EBITDA Analysis'!Y235,'EV to EBITDA Analysis'!L155,'EV to EBITDA Analysis'!Y261,'EV to EBITDA Analysis'!L261,'EV to EBITDA Analysis'!Y209,'EV to EBITDA Analysis'!L389,'EV to EBITDA Analysis'!L364,'EV to EBITDA Analysis'!L313) -> FALSE | O21: TRUE | P21: 14 | R21: 10 | S21: 17 | T21: Aflac | V21: FALSE | W21: 0.06 | X21: 0.05979591837 | Y21: 0.06003787879 | Z21: 0.05814889336 | AA21: 0.05 | AB21: FALSE | AC21: FALSE | AD21: FALSE | AE21: FALSE
C22: ='Data Cost of Capital'!D25 -> Principal Financial Group | E22: =CHOOSE($E$35,'EV to EBITDA Analysis'!C236,'EV to EBITDA Analysis'!C210,'EV to EBITDA Analysis'!C262,'EV to EBITDA Analysis'!P236,'EV to EBITDA Analysis'!C156,'EV to EBITDA Analysis'!P262,'EV to EBITDA Analysis'!C262,'EV to EBITDA Analysis'!P210,'EV to EBITDA Analysis'!C390,'EV to EBITDA Analysis'!C365,'EV to EBITDA Analysis'!C314) -> FALSE | F22: =CHOOSE($E$35,'EV to EBITDA Analysis'!D236,'EV to EBITDA Analysis'!D210,'EV to EBITDA Analysis'!D262,'EV to EBITDA Analysis'!Q236,'EV to EBITDA Analysis'!D156,'EV to EBITDA Analysis'!Q262,'EV to EBITDA Analysis'!D262,'EV to EBITDA Analysis'!Q210,'EV to EBITDA Analysis'!D390,'EV to EBITDA Analysis'!D365,'EV to EBITDA Analysis'!D314) -> 0.001955719557 | G22: =CHOOSE($E$35,'EV to EBITDA Analysis'!E236,'EV to EBITDA Analysis'!E210,'EV to EBITDA Analysis'!E262,'EV to EBITDA Analysis'!R236,'EV to EBITDA Analysis'!E156,'EV to EBITDA Analysis'!R262,'EV to EBITDA Analysis'!E262,'EV to EBITDA Analysis'!R210,'EV to EBITDA Analysis'!E390,'EV to EBITDA Analysis'!E365,'EV to EBITDA Analysis'!E314) -> 0.001309090909 | H22: =CHOOSE($E$35,'EV to EBITDA Analysis'!F236,'EV to EBITDA Analysis'!F210,'EV to EBITDA Analysis'!F262,'EV to EBITDA Analysis'!S236,'EV to EBITDA Analysis'!F156,'EV to EBITDA Analysis'!S262,'EV to EBITDA Analysis'!F262,'EV to EBITDA Analysis'!S210,'EV to EBITDA Analysis'!F390,'EV to EBITDA Analysis'!F365,'EV to EBITDA Analysis'!F314) -> 0.001171875 | I22: =CHOOSE($E$35,'EV to EBITDA Analysis'!G236,'EV to EBITDA Analysis'!G210,'EV to EBITDA Analysis'!G262,'EV to EBITDA Analysis'!T236,'EV to EBITDA Analysis'!G156,'EV to EBITDA Analysis'!T262,'EV to EBITDA Analysis'!G262,'EV to EBITDA Analysis'!T210,'EV to EBITDA Analysis'!G390,'EV to EBITDA Analysis'!G365,'EV to EBITDA Analysis'!G314) -> 0.0003188405797 | J22: =CHOOSE($E$35,'EV to EBITDA Analysis'!H236,'EV to EBITDA Analysis'!H210,'EV to EBITDA Analysis'!H262,'EV to EBITDA Analysis'!U236,'EV to EBITDA Analysis'!H156,'EV to EBITDA Analysis'!U262,'EV to EBITDA Analysis'!H262,'EV to EBITDA Analysis'!U210,'EV to EBITDA Analysis'!H390,'EV to EBITDA Analysis'!H365,'EV to EBITDA Analysis'!H314) -> 0.0003459119497 | K22: =CHOOSE($E$35,'EV to EBITDA Analysis'!I236,'EV to EBITDA Analysis'!I210,'EV to EBITDA Analysis'!I262,'EV to EBITDA Analysis'!V236,'EV to EBITDA Analysis'!I156,'EV to EBITDA Analysis'!V262,'EV to EBITDA Analysis'!I262,'EV to EBITDA Analysis'!V210,'EV to EBITDA Analysis'!I390,'EV to EBITDA Analysis'!I365,'EV to EBITDA Analysis'!I314) -> FALSE | L22: =CHOOSE($E$35,'EV to EBITDA Analysis'!J236,'EV to EBITDA Analysis'!J210,'EV to EBITDA Analysis'!J262,'EV to EBITDA Analysis'!W236,'EV to EBITDA Analysis'!J156,'EV to EBITDA Analysis'!W262,'EV to EBITDA Analysis'!J262,'EV to EBITDA Analysis'!W210,'EV to EBITDA Analysis'!J390,'EV to EBITDA Analysis'!J365,'EV to EBITDA Analysis'!J314) -> FALSE | M22: =CHOOSE($E$35,'EV to EBITDA Analysis'!K236,'EV to EBITDA Analysis'!K210,'EV to EBITDA Analysis'!K262,'EV to EBITDA Analysis'!X236,'EV to EBITDA Analysis'!K156,'EV to EBITDA Analysis'!X262,'EV to EBITDA Analysis'!K262,'EV to EBITDA Analysis'!X210,'EV to EBITDA Analysis'!K390,'EV to EBITDA Analysis'!K365,'EV to EBITDA Analysis'!K314) -> FALSE | N22: =CHOOSE($E$35,'EV to EBITDA Analysis'!L236,'EV to EBITDA Analysis'!L210,'EV to EBITDA Analysis'!L262,'EV to EBITDA Analysis'!Y236,'EV to EBITDA Analysis'!L156,'EV to EBITDA Analysis'!Y262,'EV to EBITDA Analysis'!L262,'EV to EBITDA Analysis'!Y210,'EV to EBITDA Analysis'!L390,'EV to EBITDA Analysis'!L365,'EV to EBITDA Analysis'!L314) -> FALSE | O22: TRUE | P22: 15 | R22: 11 | S22: 18 | T22: Dai-ichi Life Holdings Inc | V22: FALSE | W22: 0.03692109491 | X22: 0.04331918947 | Y22: 0.01911870991 | Z22: 0.03457558874 | AA22: 0.02310734463 | AB22: FALSE | AC22: FALSE | AD22: FALSE | AE22: FALSE
C23: ='Data Cost of Capital'!D26 -> Allianz | E23: =CHOOSE($E$35,'EV to EBITDA Analysis'!C237,'EV to EBITDA Analysis'!C211,'EV to EBITDA Analysis'!C263,'EV to EBITDA Analysis'!P237,'EV to EBITDA Analysis'!C157,'EV to EBITDA Analysis'!P263,'EV to EBITDA Analysis'!C263,'EV to EBITDA Analysis'!P211,'EV to EBITDA Analysis'!C391,'EV to EBITDA Analysis'!C366,'EV to EBITDA Analysis'!C315) -> FALSE | F23: =CHOOSE($E$35,'EV to EBITDA Analysis'!D237,'EV to EBITDA Analysis'!D211,'EV to EBITDA Analysis'!D263,'EV to EBITDA Analysis'!Q237,'EV to EBITDA Analysis'!D157,'EV to EBITDA Analysis'!Q263,'EV to EBITDA Analysis'!D263,'EV to EBITDA Analysis'!Q211,'EV to EBITDA Analysis'!D391,'EV to EBITDA Analysis'!D366,'EV to EBITDA Analysis'!D315) -> FALSE | G23: =CHOOSE($E$35,'EV to EBITDA Analysis'!E237,'EV to EBITDA Analysis'!E211,'EV to EBITDA Analysis'!E263,'EV to EBITDA Analysis'!R237,'EV to EBITDA Analysis'!E157,'EV to EBITDA Analysis'!R263,'EV to EBITDA Analysis'!E263,'EV to EBITDA Analysis'!R211,'EV to EBITDA Analysis'!E391,'EV to EBITDA Analysis'!E366,'EV to EBITDA Analysis'!E315) -> 0.04467005076 | H23: =CHOOSE($E$35,'EV to EBITDA Analysis'!F237,'EV to EBITDA Analysis'!F211,'EV to EBITDA Analysis'!F263,'EV to EBITDA Analysis'!S237,'EV to EBITDA Analysis'!F157,'EV to EBITDA Analysis'!S263,'EV to EBITDA Analysis'!F263,'EV to EBITDA Analysis'!S211,'EV to EBITDA Analysis'!F391,'EV to EBITDA Analysis'!F366,'EV to EBITDA Analysis'!F315) -> 0.04275534442 | I23: =CHOOSE($E$35,'EV to EBITDA Analysis'!G237,'EV to EBITDA Analysis'!G211,'EV to EBITDA Analysis'!G263,'EV to EBITDA Analysis'!T237,'EV to EBITDA Analysis'!G157,'EV to EBITDA Analysis'!T263,'EV to EBITDA Analysis'!G263,'EV to EBITDA Analysis'!T211,'EV to EBITDA Analysis'!G391,'EV to EBITDA Analysis'!G366,'EV to EBITDA Analysis'!G315) -> 0.03797074149 | J23: =CHOOSE($E$35,'EV to EBITDA Analysis'!H237,'EV to EBITDA Analysis'!H211,'EV to EBITDA Analysis'!H263,'EV to EBITDA Analysis'!U237,'EV to EBITDA Analysis'!H157,'EV to EBITDA Analysis'!U263,'EV to EBITDA Analysis'!H263,'EV to EBITDA Analysis'!U211,'EV to EBITDA Analysis'!H391,'EV to EBITDA Analysis'!H366,'EV to EBITDA Analysis'!H315) -> 0.05721040189 | K23: =CHOOSE($E$35,'EV to EBITDA Analysis'!I237,'EV to EBITDA Analysis'!I211,'EV to EBITDA Analysis'!I263,'EV to EBITDA Analysis'!V237,'EV to EBITDA Analysis'!I157,'EV to EBITDA Analysis'!V263,'EV to EBITDA Analysis'!I263,'EV to EBITDA Analysis'!V211,'EV to EBITDA Analysis'!I391,'EV to EBITDA Analysis'!I366,'EV to EBITDA Analysis'!I315) -> FALSE | L23: =CHOOSE($E$35,'EV to EBITDA Analysis'!J237,'EV to EBITDA Analysis'!J211,'EV to EBITDA Analysis'!J263,'EV to EBITDA Analysis'!W237,'EV to EBITDA Analysis'!J157,'EV to EBITDA Analysis'!W263,'EV to EBITDA Analysis'!J263,'EV to EBITDA Analysis'!W211,'EV to EBITDA Analysis'!J391,'EV to EBITDA Analysis'!J366,'EV to EBITDA Analysis'!J315) -> FALSE | M23: =CHOOSE($E$35,'EV to EBITDA Analysis'!K237,'EV to EBITDA Analysis'!K211,'EV to EBITDA Analysis'!K263,'EV to EBITDA Analysis'!X237,'EV to EBITDA Analysis'!K157,'EV to EBITDA Analysis'!X263,'EV to EBITDA Analysis'!K263,'EV to EBITDA Analysis'!X211,'EV to EBITDA Analysis'!K391,'EV to EBITDA Analysis'!K366,'EV to EBITDA Analysis'!K315) -> FALSE | N23: =CHOOSE($E$35,'EV to EBITDA Analysis'!L237,'EV to EBITDA Analysis'!L211,'EV to EBITDA Analysis'!L263,'EV to EBITDA Analysis'!Y237,'EV to EBITDA Analysis'!L157,'EV to EBITDA Analysis'!Y263,'EV to EBITDA Analysis'!L263,'EV to EBITDA Analysis'!Y211,'EV to EBITDA Analysis'!L391,'EV to EBITDA Analysis'!L366,'EV to EBITDA Analysis'!L315) -> FALSE | O23: TRUE | P23: 16 | R23: 12 | S23: 19 | T23: Old Mutual | V23: FALSE | W23: 0.09356568365 | X23: 0.06518987342 | Y23: 0.06218487395 | Z23: 0.07789473684 | AA23: 0.07464788732 | AB23: FALSE | AC23: FALSE | AD23: FALSE | AE23: FALSE
C24: ='Data Cost of Capital'!D27 -> Zurich Insurance Group | E24: =CHOOSE($E$35,'EV to EBITDA Analysis'!C238,'EV to EBITDA Analysis'!C212,'EV to EBITDA Analysis'!C264,'EV to EBITDA Analysis'!P238,'EV to EBITDA Analysis'!C158,'EV to EBITDA Analysis'!P264,'EV to EBITDA Analysis'!C264,'EV to EBITDA Analysis'!P212,'EV to EBITDA Analysis'!C392,'EV to EBITDA Analysis'!C367,'EV to EBITDA Analysis'!C316) -> FALSE | F24: =CHOOSE($E$35,'EV to EBITDA Analysis'!D238,'EV to EBITDA Analysis'!D212,'EV to EBITDA Analysis'!D264,'EV to EBITDA Analysis'!Q238,'EV to EBITDA Analysis'!D158,'EV to EBITDA Analysis'!Q264,'EV to EBITDA Analysis'!D264,'EV to EBITDA Analysis'!Q212,'EV to EBITDA Analysis'!D392,'EV to EBITDA Analysis'!D367,'EV to EBITDA Analysis'!D316) -> 0.04365469388 | G24: =CHOOSE($E$35,'EV to EBITDA Analysis'!E238,'EV to EBITDA Analysis'!E212,'EV to EBITDA Analysis'!E264,'EV to EBITDA Analysis'!R238,'EV to EBITDA Analysis'!E158,'EV to EBITDA Analysis'!R264,'EV to EBITDA Analysis'!E264,'EV to EBITDA Analysis'!R212,'EV to EBITDA Analysis'!E392,'EV to EBITDA Analysis'!E367,'EV to EBITDA Analysis'!E316) -> 0.04635324232 | H24: =CHOOSE($E$35,'EV to EBITDA Analysis'!F238,'EV to EBITDA Analysis'!F212,'EV to EBITDA Analysis'!F264,'EV to EBITDA Analysis'!S238,'EV to EBITDA Analysis'!F158,'EV to EBITDA Analysis'!S264,'EV to EBITDA Analysis'!F264,'EV to EBITDA Analysis'!S212,'EV to EBITDA Analysis'!F392,'EV to EBITDA Analysis'!F367,'EV to EBITDA Analysis'!F316) -> 0.04028415759 | I24: =CHOOSE($E$35,'EV to EBITDA Analysis'!G238,'EV to EBITDA Analysis'!G212,'EV to EBITDA Analysis'!G264,'EV to EBITDA Analysis'!T238,'EV to EBITDA Analysis'!G158,'EV to EBITDA Analysis'!T264,'EV to EBITDA Analysis'!G264,'EV to EBITDA Analysis'!T212,'EV to EBITDA Analysis'!G392,'EV to EBITDA Analysis'!G367,'EV to EBITDA Analysis'!G316) -> 0.03831948292 | J24: =CHOOSE($E$35,'EV to EBITDA Analysis'!H238,'EV to EBITDA Analysis'!H212,'EV to EBITDA Analysis'!H264,'EV to EBITDA Analysis'!U238,'EV to EBITDA Analysis'!H158,'EV to EBITDA Analysis'!U264,'EV to EBITDA Analysis'!H264,'EV to EBITDA Analysis'!U212,'EV to EBITDA Analysis'!H392,'EV to EBITDA Analysis'!H367,'EV to EBITDA Analysis'!H316) -> 0.03487280335 | K24: =CHOOSE($E$35,'EV to EBITDA Analysis'!I238,'EV to EBITDA Analysis'!I212,'EV to EBITDA Analysis'!I264,'EV to EBITDA Analysis'!V238,'EV to EBITDA Analysis'!I158,'EV to EBITDA Analysis'!V264,'EV to EBITDA Analysis'!I264,'EV to EBITDA Analysis'!V212,'EV to EBITDA Analysis'!I392,'EV to EBITDA Analysis'!I367,'EV to EBITDA Analysis'!I316) -> FALSE | L24: =CHOOSE($E$35,'EV to EBITDA Analysis'!J238,'EV to EBITDA Analysis'!J212,'EV to EBITDA Analysis'!J264,'EV to EBITDA Analysis'!W238,'EV to EBITDA Analysis'!J158,'EV to EBITDA Analysis'!W264,'EV to EBITDA Analysis'!J264,'EV to EBITDA Analysis'!W212,'EV to EBITDA Analysis'!J392,'EV to EBITDA Analysis'!J367,'EV to EBITDA Analysis'!J316) -> FALSE | M24: =CHOOSE($E$35,'EV to EBITDA Analysis'!K238,'EV to EBITDA Analysis'!K212,'EV to EBITDA Analysis'!K264,'EV to EBITDA Analysis'!X238,'EV to EBITDA Analysis'!K158,'EV to EBITDA Analysis'!X264,'EV to EBITDA Analysis'!K264,'EV to EBITDA Analysis'!X212,'EV to EBITDA Analysis'!K392,'EV to EBITDA Analysis'!K367,'EV to EBITDA Analysis'!K316) -> FALSE | N24: =CHOOSE($E$35,'EV to EBITDA Analysis'!L238,'EV to EBITDA Analysis'!L212,'EV to EBITDA Analysis'!L264,'EV to EBITDA Analysis'!Y238,'EV to EBITDA Analysis'!L158,'EV to EBITDA Analysis'!Y264,'EV to EBITDA Analysis'!L264,'EV to EBITDA Analysis'!Y212,'EV to EBITDA Analysis'!L392,'EV to EBITDA Analysis'!L367,'EV to EBITDA Analysis'!L316) -> FALSE | O24: TRUE | P24: 17 | R24: 13 | S24: 20 | T24: Power Financial Corp | V24: FALSE | W24: 0.03362676056 | X24: 0.02800597461 | Y24: 0.02898245614 | Z24: 0.02817189632 | AA24: 0.02601010101 | AB24: FALSE | AC24: FALSE | AD24: FALSE | AE24: FALSE
C25: ='Data Cost of Capital'!D28 -> Swiss Life | E25: =CHOOSE($E$35,'EV to EBITDA Analysis'!C239,'EV to EBITDA Analysis'!C213,'EV to EBITDA Analysis'!C265,'EV to EBITDA Analysis'!P239,'EV to EBITDA Analysis'!C159,'EV to EBITDA Analysis'!P265,'EV to EBITDA Analysis'!C265,'EV to EBITDA Analysis'!P213,'EV to EBITDA Analysis'!C393,'EV to EBITDA Analysis'!C368,'EV to EBITDA Analysis'!C317) -> FALSE | F25: =CHOOSE($E$35,'EV to EBITDA Analysis'!D239,'EV to EBITDA Analysis'!D213,'EV to EBITDA Analysis'!D265,'EV to EBITDA Analysis'!Q239,'EV to EBITDA Analysis'!D159,'EV to EBITDA Analysis'!Q265,'EV to EBITDA Analysis'!D265,'EV to EBITDA Analysis'!Q213,'EV to EBITDA Analysis'!D393,'EV to EBITDA Analysis'!D368,'EV to EBITDA Analysis'!D317) -> 0.1128358209 | G25: =CHOOSE($E$35,'EV to EBITDA Analysis'!E239,'EV to EBITDA Analysis'!E213,'EV to EBITDA Analysis'!E265,'EV to EBITDA Analysis'!R239,'EV to EBITDA Analysis'!E159,'EV to EBITDA Analysis'!R265,'EV to EBITDA Analysis'!E265,'EV to EBITDA Analysis'!R213,'EV to EBITDA Analysis'!E393,'EV to EBITDA Analysis'!E368,'EV to EBITDA Analysis'!E317) -> 0.08872901679 | H25: =CHOOSE($E$35,'EV to EBITDA Analysis'!F239,'EV to EBITDA Analysis'!F213,'EV to EBITDA Analysis'!F265,'EV to EBITDA Analysis'!S239,'EV to EBITDA Analysis'!F159,'EV to EBITDA Analysis'!S265,'EV to EBITDA Analysis'!F265,'EV to EBITDA Analysis'!S213,'EV to EBITDA Analysis'!F393,'EV to EBITDA Analysis'!F368,'EV to EBITDA Analysis'!F317) -> 0.05970394737 | I25: =CHOOSE($E$35,'EV to EBITDA Analysis'!G239,'EV to EBITDA Analysis'!G213,'EV to EBITDA Analysis'!G265,'EV to EBITDA Analysis'!T239,'EV to EBITDA Analysis'!G159,'EV to EBITDA Analysis'!T265,'EV to EBITDA Analysis'!G265,'EV to EBITDA Analysis'!T213,'EV to EBITDA Analysis'!G393,'EV to EBITDA Analysis'!G368,'EV to EBITDA Analysis'!G317) -> 0.05383333333 | J25: =CHOOSE($E$35,'EV to EBITDA Analysis'!H239,'EV to EBITDA Analysis'!H213,'EV to EBITDA Analysis'!H265,'EV to EBITDA Analysis'!U239,'EV to EBITDA Analysis'!H159,'EV to EBITDA Analysis'!U265,'EV to EBITDA Analysis'!H265,'EV to EBITDA Analysis'!U213,'EV to EBITDA Analysis'!H393,'EV to EBITDA Analysis'!H368,'EV to EBITDA Analysis'!H317) -> 0.05531914894 | K25: =CHOOSE($E$35,'EV to EBITDA Analysis'!I239,'EV to EBITDA Analysis'!I213,'EV to EBITDA Analysis'!I265,'EV to EBITDA Analysis'!V239,'EV to EBITDA Analysis'!I159,'EV to EBITDA Analysis'!V265,'EV to EBITDA Analysis'!I265,'EV to EBITDA Analysis'!V213,'EV to EBITDA Analysis'!I393,'EV to EBITDA Analysis'!I368,'EV to EBITDA Analysis'!I317) -> FALSE | L25: =CHOOSE($E$35,'EV to EBITDA Analysis'!J239,'EV to EBITDA Analysis'!J213,'EV to EBITDA Analysis'!J265,'EV to EBITDA Analysis'!W239,'EV to EBITDA Analysis'!J159,'EV to EBITDA Analysis'!W265,'EV to EBITDA Analysis'!J265,'EV to EBITDA Analysis'!W213,'EV to EBITDA Analysis'!J393,'EV to EBITDA Analysis'!J368,'EV to EBITDA Analysis'!J317) -> FALSE | M25: =CHOOSE($E$35,'EV to EBITDA Analysis'!K239,'EV to EBITDA Analysis'!K213,'EV to EBITDA Analysis'!K265,'EV to EBITDA Analysis'!X239,'EV to EBITDA Analysis'!K159,'EV to EBITDA Analysis'!X265,'EV to EBITDA Analysis'!K265,'EV to EBITDA Analysis'!X213,'EV to EBITDA Analysis'!K393,'EV to EBITDA Analysis'!K368,'EV to EBITDA Analysis'!K317) -> FALSE | N25: =CHOOSE($E$35,'EV to EBITDA Analysis'!L239,'EV to EBITDA Analysis'!L213,'EV to EBITDA Analysis'!L265,'EV to EBITDA Analysis'!Y239,'EV to EBITDA Analysis'!L159,'EV to EBITDA Analysis'!Y265,'EV to EBITDA Analysis'!L265,'EV to EBITDA Analysis'!Y213,'EV to EBITDA Analysis'!L393,'EV to EBITDA Analysis'!L368,'EV to EBITDA Analysis'!L317) -> FALSE | O25: TRUE | P25: 18 | R25: 14 | S25: 21 | T25: Lincoln National Corp | V25: FALSE | W25: 0.05390070922 | X25: 0.05171821306 | Y25: 0.05471014493 | Z25: 0.05495495495 | AA25: 0.06598130841 | AB25: FALSE | AC25: FALSE | AD25: FALSE | AE25: FALSE
C26: ='Data Cost of Capital'!D29 -> Sun Life | E26: =CHOOSE($E$35,'EV to EBITDA Analysis'!C240,'EV to EBITDA Analysis'!C214,'EV to EBITDA Analysis'!C266,'EV to EBITDA Analysis'!P240,'EV to EBITDA Analysis'!C160,'EV to EBITDA Analysis'!P266,'EV to EBITDA Analysis'!C266,'EV to EBITDA Analysis'!P214,'EV to EBITDA Analysis'!C394,'EV to EBITDA Analysis'!C369,'EV to EBITDA Analysis'!C318) -> FALSE | F26: =CHOOSE($E$35,'EV to EBITDA Analysis'!D240,'EV to EBITDA Analysis'!D214,'EV to EBITDA Analysis'!D266,'EV to EBITDA Analysis'!Q240,'EV to EBITDA Analysis'!D160,'EV to EBITDA Analysis'!Q266,'EV to EBITDA Analysis'!D266,'EV to EBITDA Analysis'!Q214,'EV to EBITDA Analysis'!D394,'EV to EBITDA Analysis'!D369,'EV to EBITDA Analysis'!D318) -> 0.04218390805 | G26: =CHOOSE($E$35,'EV to EBITDA Analysis'!E240,'EV to EBITDA Analysis'!E214,'EV to EBITDA Analysis'!E266,'EV to EBITDA Analysis'!R240,'EV to EBITDA Analysis'!E160,'EV to EBITDA Analysis'!R266,'EV to EBITDA Analysis'!E266,'EV to EBITDA Analysis'!R214,'EV to EBITDA Analysis'!E394,'EV to EBITDA Analysis'!E369,'EV to EBITDA Analysis'!E318) -> 0.04043528064 | H26: =CHOOSE($E$35,'EV to EBITDA Analysis'!F240,'EV to EBITDA Analysis'!F214,'EV to EBITDA Analysis'!F266,'EV to EBITDA Analysis'!S240,'EV to EBITDA Analysis'!F160,'EV to EBITDA Analysis'!S266,'EV to EBITDA Analysis'!F266,'EV to EBITDA Analysis'!S214,'EV to EBITDA Analysis'!F394,'EV to EBITDA Analysis'!F369,'EV to EBITDA Analysis'!F318) -> 0.03853211009 | I26: =CHOOSE($E$35,'EV to EBITDA Analysis'!G240,'EV to EBITDA Analysis'!G214,'EV to EBITDA Analysis'!G266,'EV to EBITDA Analysis'!T240,'EV to EBITDA Analysis'!G160,'EV to EBITDA Analysis'!T266,'EV to EBITDA Analysis'!G266,'EV to EBITDA Analysis'!T214,'EV to EBITDA Analysis'!G394,'EV to EBITDA Analysis'!G369,'EV to EBITDA Analysis'!G318) -> 0.03178677196 | J26: =CHOOSE($E$35,'EV to EBITDA Analysis'!H240,'EV to EBITDA Analysis'!H214,'EV to EBITDA Analysis'!H266,'EV to EBITDA Analysis'!U240,'EV to EBITDA Analysis'!H160,'EV to EBITDA Analysis'!U266,'EV to EBITDA Analysis'!H266,'EV to EBITDA Analysis'!U214,'EV to EBITDA Analysis'!H394,'EV to EBITDA Analysis'!H369,'EV to EBITDA Analysis'!H318) -> 0.02992424242 | K26: =CHOOSE($E$35,'EV to EBITDA Analysis'!I240,'EV to EBITDA Analysis'!I214,'EV to EBITDA Analysis'!I266,'EV to EBITDA Analysis'!V240,'EV to EBITDA Analysis'!I160,'EV to EBITDA Analysis'!V266,'EV to EBITDA Analysis'!I266,'EV to EBITDA Analysis'!V214,'EV to EBITDA Analysis'!I394,'EV to EBITDA Analysis'!I369,'EV to EBITDA Analysis'!I318) -> FALSE | L26: =CHOOSE($E$35,'EV to EBITDA Analysis'!J240,'EV to EBITDA Analysis'!J214,'EV to EBITDA Analysis'!J266,'EV to EBITDA Analysis'!W240,'EV to EBITDA Analysis'!J160,'EV to EBITDA Analysis'!W266,'EV to EBITDA Analysis'!J266,'EV to EBITDA Analysis'!W214,'EV to EBITDA Analysis'!J394,'EV to EBITDA Analysis'!J369,'EV to EBITDA Analysis'!J318) -> FALSE | M26: =CHOOSE($E$35,'EV to EBITDA Analysis'!K240,'EV to EBITDA Analysis'!K214,'EV to EBITDA Analysis'!K266,'EV to EBITDA Analysis'!X240,'EV to EBITDA Analysis'!K160,'EV to EBITDA Analysis'!X266,'EV to EBITDA Analysis'!K266,'EV to EBITDA Analysis'!X214,'EV to EBITDA Analysis'!K394,'EV to EBITDA Analysis'!K369,'EV to EBITDA Analysis'!K318) -> FALSE | N26: =CHOOSE($E$35,'EV to EBITDA Analysis'!L240,'EV to EBITDA Analysis'!L214,'EV to EBITDA Analysis'!L266,'EV to EBITDA Analysis'!Y240,'EV to EBITDA Analysis'!L160,'EV to EBITDA Analysis'!Y266,'EV to EBITDA Analysis'!L266,'EV to EBITDA Analysis'!Y214,'EV to EBITDA Analysis'!L394,'EV to EBITDA Analysis'!L369,'EV to EBITDA Analysis'!L318) -> FALSE | O26: TRUE | P26: 19 | R26: 15 | S26: 22 | T26: Principal Financial Group | V26: FALSE | W26: 0.001955719557 | X26: 0.001309090909 | Y26: 0.001171875 | Z26: 0.0003188405797 | AA26: 0.0003459119497 | AB26: FALSE | AC26: FALSE | AD26: FALSE | AE26: FALSE
C27: ='Data Cost of Capital'!D30 -> AXA SA | E27: =CHOOSE($E$35,'EV to EBITDA Analysis'!C241,'EV to EBITDA Analysis'!C215,'EV to EBITDA Analysis'!C267,'EV to EBITDA Analysis'!P241,'EV to EBITDA Analysis'!C161,'EV to EBITDA Analysis'!P267,'EV to EBITDA Analysis'!C267,'EV to EBITDA Analysis'!P215,'EV to EBITDA Analysis'!C395,'EV to EBITDA Analysis'!C370,'EV to EBITDA Analysis'!C319) -> FALSE | F27: =CHOOSE($E$35,'EV to EBITDA Analysis'!D241,'EV to EBITDA Analysis'!D215,'EV to EBITDA Analysis'!D267,'EV to EBITDA Analysis'!Q241,'EV to EBITDA Analysis'!D161,'EV to EBITDA Analysis'!Q267,'EV to EBITDA Analysis'!D267,'EV to EBITDA Analysis'!Q215,'EV to EBITDA Analysis'!D395,'EV to EBITDA Analysis'!D370,'EV to EBITDA Analysis'!D319) -> 0.001413189771 | G27: =CHOOSE($E$35,'EV to EBITDA Analysis'!E241,'EV to EBITDA Analysis'!E215,'EV to EBITDA Analysis'!E267,'EV to EBITDA Analysis'!R241,'EV to EBITDA Analysis'!E161,'EV to EBITDA Analysis'!R267,'EV to EBITDA Analysis'!E267,'EV to EBITDA Analysis'!R215,'EV to EBITDA Analysis'!E395,'EV to EBITDA Analysis'!E370,'EV to EBITDA Analysis'!E319) -> 0.002105803801 | H27: =CHOOSE($E$35,'EV to EBITDA Analysis'!F241,'EV to EBITDA Analysis'!F215,'EV to EBITDA Analysis'!F267,'EV to EBITDA Analysis'!S241,'EV to EBITDA Analysis'!F161,'EV to EBITDA Analysis'!S267,'EV to EBITDA Analysis'!F267,'EV to EBITDA Analysis'!S215,'EV to EBITDA Analysis'!F395,'EV to EBITDA Analysis'!F370,'EV to EBITDA Analysis'!F319) -> 0.01338417039 | I27: =CHOOSE($E$35,'EV to EBITDA Analysis'!G241,'EV to EBITDA Analysis'!G215,'EV to EBITDA Analysis'!G267,'EV to EBITDA Analysis'!T241,'EV to EBITDA Analysis'!G161,'EV to EBITDA Analysis'!T267,'EV to EBITDA Analysis'!G267,'EV to EBITDA Analysis'!T215,'EV to EBITDA Analysis'!G395,'EV to EBITDA Analysis'!G370,'EV to EBITDA Analysis'!G319) -> 0.001226567924 | J27: =CHOOSE($E$35,'EV to EBITDA Analysis'!H241,'EV to EBITDA Analysis'!H215,'EV to EBITDA Analysis'!H267,'EV to EBITDA Analysis'!U241,'EV to EBITDA Analysis'!H161,'EV to EBITDA Analysis'!U267,'EV to EBITDA Analysis'!H267,'EV to EBITDA Analysis'!U215,'EV to EBITDA Analysis'!H395,'EV to EBITDA Analysis'!H370,'EV to EBITDA Analysis'!H319) -> 0.006234203875 | K27: =CHOOSE($E$35,'EV to EBITDA Analysis'!I241,'EV to EBITDA Analysis'!I215,'EV to EBITDA Analysis'!I267,'EV to EBITDA Analysis'!V241,'EV to EBITDA Analysis'!I161,'EV to EBITDA Analysis'!V267,'EV to EBITDA Analysis'!I267,'EV to EBITDA Analysis'!V215,'EV to EBITDA Analysis'!I395,'EV to EBITDA Analysis'!I370,'EV to EBITDA Analysis'!I319) -> FALSE | L27: =CHOOSE($E$35,'EV to EBITDA Analysis'!J241,'EV to EBITDA Analysis'!J215,'EV to EBITDA Analysis'!J267,'EV to EBITDA Analysis'!W241,'EV to EBITDA Analysis'!J161,'EV to EBITDA Analysis'!W267,'EV to EBITDA Analysis'!J267,'EV to EBITDA Analysis'!W215,'EV to EBITDA Analysis'!J395,'EV to EBITDA Analysis'!J370,'EV to EBITDA Analysis'!J319) -> FALSE | M27: =CHOOSE($E$35,'EV to EBITDA Analysis'!K241,'EV to EBITDA Analysis'!K215,'EV to EBITDA Analysis'!K267,'EV to EBITDA Analysis'!X241,'EV to EBITDA Analysis'!K161,'EV to EBITDA Analysis'!X267,'EV to EBITDA Analysis'!K267,'EV to EBITDA Analysis'!X215,'EV to EBITDA Analysis'!K395,'EV to EBITDA Analysis'!K370,'EV to EBITDA Analysis'!K319) -> FALSE | N27: =CHOOSE($E$35,'EV to EBITDA Analysis'!L241,'EV to EBITDA Analysis'!L215,'EV to EBITDA Analysis'!L267,'EV to EBITDA Analysis'!Y241,'EV to EBITDA Analysis'!L161,'EV to EBITDA Analysis'!Y267,'EV to EBITDA Analysis'!L267,'EV to EBITDA Analysis'!Y215,'EV to EBITDA Analysis'!L395,'EV to EBITDA Analysis'!L370,'EV to EBITDA Analysis'!L319) -> FALSE | O27: TRUE | P27: 20 | R27: 16 | S27: 23 | T27: Allianz | V27: FALSE | W27: FALSE | X27: 0.04467005076 | Y27: 0.04275534442 | Z27: 0.03797074149 | AA27: 0.05721040189 | AB27: FALSE | AC27: FALSE | AD27: FALSE | AE27: FALSE
C28: ='Data Cost of Capital'!D31 -> Sumpo Holdings | E28: =CHOOSE($E$35,'EV to EBITDA Analysis'!C242,'EV to EBITDA Analysis'!C216,'EV to EBITDA Analysis'!C268,'EV to EBITDA Analysis'!P242,'EV to EBITDA Analysis'!C162,'EV to EBITDA Analysis'!P268,'EV to EBITDA Analysis'!C268,'EV to EBITDA Analysis'!P216,'EV to EBITDA Analysis'!C396,'EV to EBITDA Analysis'!C371,'EV to EBITDA Analysis'!C320) -> FALSE | F28: =CHOOSE($E$35,'EV to EBITDA Analysis'!D242,'EV to EBITDA Analysis'!D216,'EV to EBITDA Analysis'!D268,'EV to EBITDA Analysis'!Q242,'EV to EBITDA Analysis'!D162,'EV to EBITDA Analysis'!Q268,'EV to EBITDA Analysis'!D268,'EV to EBITDA Analysis'!Q216,'EV to EBITDA Analysis'!D396,'EV to EBITDA Analysis'!D371,'EV to EBITDA Analysis'!D320) -> 0.02767102391 | G28: =CHOOSE($E$35,'EV to EBITDA Analysis'!E242,'EV to EBITDA Analysis'!E216,'EV to EBITDA Analysis'!E268,'EV to EBITDA Analysis'!R242,'EV to EBITDA Analysis'!E162,'EV to EBITDA Analysis'!R268,'EV to EBITDA Analysis'!E268,'EV to EBITDA Analysis'!R216,'EV to EBITDA Analysis'!E396,'EV to EBITDA Analysis'!E371,'EV to EBITDA Analysis'!E320) -> 0.04277507159 | H28: =CHOOSE($E$35,'EV to EBITDA Analysis'!F242,'EV to EBITDA Analysis'!F216,'EV to EBITDA Analysis'!F268,'EV to EBITDA Analysis'!S242,'EV to EBITDA Analysis'!F162,'EV to EBITDA Analysis'!S268,'EV to EBITDA Analysis'!F268,'EV to EBITDA Analysis'!S216,'EV to EBITDA Analysis'!F396,'EV to EBITDA Analysis'!F371,'EV to EBITDA Analysis'!F320) -> 0.04157819029 | I28: =CHOOSE($E$35,'EV to EBITDA Analysis'!G242,'EV to EBITDA Analysis'!G216,'EV to EBITDA Analysis'!G268,'EV to EBITDA Analysis'!T242,'EV to EBITDA Analysis'!G162,'EV to EBITDA Analysis'!T268,'EV to EBITDA Analysis'!G268,'EV to EBITDA Analysis'!T216,'EV to EBITDA Analysis'!G396,'EV to EBITDA Analysis'!G371,'EV to EBITDA Analysis'!G320) -> 0.02583476608 | J28: =CHOOSE($E$35,'EV to EBITDA Analysis'!H242,'EV to EBITDA Analysis'!H216,'EV to EBITDA Analysis'!H268,'EV to EBITDA Analysis'!U242,'EV to EBITDA Analysis'!H162,'EV to EBITDA Analysis'!U268,'EV to EBITDA Analysis'!H268,'EV to EBITDA Analysis'!U216,'EV to EBITDA Analysis'!H396,'EV to EBITDA Analysis'!H371,'EV to EBITDA Analysis'!H320) -> 0.01281694092 | K28: =CHOOSE($E$35,'EV to EBITDA Analysis'!I242,'EV to EBITDA Analysis'!I216,'EV to EBITDA Analysis'!I268,'EV to EBITDA Analysis'!V242,'EV to EBITDA Analysis'!I162,'EV to EBITDA Analysis'!V268,'EV to EBITDA Analysis'!I268,'EV to EBITDA Analysis'!V216,'EV to EBITDA Analysis'!I396,'EV to EBITDA Analysis'!I371,'EV to EBITDA Analysis'!I320) -> FALSE | L28: =CHOOSE($E$35,'EV to EBITDA Analysis'!J242,'EV to EBITDA Analysis'!J216,'EV to EBITDA Analysis'!J268,'EV to EBITDA Analysis'!W242,'EV to EBITDA Analysis'!J162,'EV to EBITDA Analysis'!W268,'EV to EBITDA Analysis'!J268,'EV to EBITDA Analysis'!W216,'EV to EBITDA Analysis'!J396,'EV to EBITDA Analysis'!J371,'EV to EBITDA Analysis'!J320) -> FALSE | M28: =CHOOSE($E$35,'EV to EBITDA Analysis'!K242,'EV to EBITDA Analysis'!K216,'EV to EBITDA Analysis'!K268,'EV to EBITDA Analysis'!X242,'EV to EBITDA Analysis'!K162,'EV to EBITDA Analysis'!X268,'EV to EBITDA Analysis'!K268,'EV to EBITDA Analysis'!X216,'EV to EBITDA Analysis'!K396,'EV to EBITDA Analysis'!K371,'EV to EBITDA Analysis'!K320) -> FALSE | N28: =CHOOSE($E$35,'EV to EBITDA Analysis'!L242,'EV to EBITDA Analysis'!L216,'EV to EBITDA Analysis'!L268,'EV to EBITDA Analysis'!Y242,'EV to EBITDA Analysis'!L162,'EV to EBITDA Analysis'!Y268,'EV to EBITDA Analysis'!L268,'EV to EBITDA Analysis'!Y216,'EV to EBITDA Analysis'!L396,'EV to EBITDA Analysis'!L371,'EV to EBITDA Analysis'!L320) -> FALSE | O28: TRUE | P28: 21 | R28: 17 | S28: 24 | T28: Zurich Insurance Group | V28: FALSE | W28: 0.04365469388 | X28: 0.04635324232 | Y28: 0.04028415759 | Z28: 0.03831948292 | AA28: 0.03487280335 | AB28: FALSE | AC28: FALSE | AD28: FALSE | AE28: FALSE
C29: ='Data Cost of Capital'!D32 -> Aegon NV | E29: =CHOOSE($E$35,'EV to EBITDA Analysis'!C243,'EV to EBITDA Analysis'!C217,'EV to EBITDA Analysis'!C269,'EV to EBITDA Analysis'!P243,'EV to EBITDA Analysis'!C163,'EV to EBITDA Analysis'!P269,'EV to EBITDA Analysis'!C269,'EV to EBITDA Analysis'!P217,'EV to EBITDA Analysis'!C397,'EV to EBITDA Analysis'!C372,'EV to EBITDA Analysis'!C321) -> FALSE | F29: =CHOOSE($E$35,'EV to EBITDA Analysis'!D243,'EV to EBITDA Analysis'!D217,'EV to EBITDA Analysis'!D269,'EV to EBITDA Analysis'!Q243,'EV to EBITDA Analysis'!D163,'EV to EBITDA Analysis'!Q269,'EV to EBITDA Analysis'!D269,'EV to EBITDA Analysis'!Q217,'EV to EBITDA Analysis'!D397,'EV to EBITDA Analysis'!D372,'EV to EBITDA Analysis'!D321) -> FALSE | G29: =CHOOSE($E$35,'EV to EBITDA Analysis'!E243,'EV to EBITDA Analysis'!E217,'EV to EBITDA Analysis'!E269,'EV to EBITDA Analysis'!R243,'EV to EBITDA Analysis'!E163,'EV to EBITDA Analysis'!R269,'EV to EBITDA Analysis'!E269,'EV to EBITDA Analysis'!R217,'EV to EBITDA Analysis'!E397,'EV to EBITDA Analysis'!E372,'EV to EBITDA Analysis'!E321) -> 0.02914614122 | H29: =CHOOSE($E$35,'EV to EBITDA Analysis'!F243,'EV to EBITDA Analysis'!F217,'EV to EBITDA Analysis'!F269,'EV to EBITDA Analysis'!S243,'EV to EBITDA Analysis'!F163,'EV to EBITDA Analysis'!S269,'EV to EBITDA Analysis'!F269,'EV to EBITDA Analysis'!S217,'EV to EBITDA Analysis'!F397,'EV to EBITDA Analysis'!F372,'EV to EBITDA Analysis'!F321) -> 0.0244400527 | I29: =CHOOSE($E$35,'EV to EBITDA Analysis'!G243,'EV to EBITDA Analysis'!G217,'EV to EBITDA Analysis'!G269,'EV to EBITDA Analysis'!T243,'EV to EBITDA Analysis'!G163,'EV to EBITDA Analysis'!T269,'EV to EBITDA Analysis'!G269,'EV to EBITDA Analysis'!T217,'EV to EBITDA Analysis'!G397,'EV to EBITDA Analysis'!G372,'EV to EBITDA Analysis'!G321) -> 0.03054114159 | J29: =CHOOSE($E$35,'EV to EBITDA Analysis'!H243,'EV to EBITDA Analysis'!H217,'EV to EBITDA Analysis'!H269,'EV to EBITDA Analysis'!U243,'EV to EBITDA Analysis'!H163,'EV to EBITDA Analysis'!U269,'EV to EBITDA Analysis'!H269,'EV to EBITDA Analysis'!U217,'EV to EBITDA Analysis'!H397,'EV to EBITDA Analysis'!H372,'EV to EBITDA Analysis'!H321) -> 0.01786817714 | K29: =CHOOSE($E$35,'EV to EBITDA Analysis'!I243,'EV to EBITDA Analysis'!I217,'EV to EBITDA Analysis'!I269,'EV to EBITDA Analysis'!V243,'EV to EBITDA Analysis'!I163,'EV to EBITDA Analysis'!V269,'EV to EBITDA Analysis'!I269,'EV to EBITDA Analysis'!V217,'EV to EBITDA Analysis'!I397,'EV to EBITDA Analysis'!I372,'EV to EBITDA Analysis'!I321) -> FALSE | L29: =CHOOSE($E$35,'EV to EBITDA Analysis'!J243,'EV to EBITDA Analysis'!J217,'EV to EBITDA Analysis'!J269,'EV to EBITDA Analysis'!W243,'EV to EBITDA Analysis'!J163,'EV to EBITDA Analysis'!W269,'EV to EBITDA Analysis'!J269,'EV to EBITDA Analysis'!W217,'EV to EBITDA Analysis'!J397,'EV to EBITDA Analysis'!J372,'EV to EBITDA Analysis'!J321) -> FALSE | M29: =CHOOSE($E$35,'EV to EBITDA Analysis'!K243,'EV to EBITDA Analysis'!K217,'EV to EBITDA Analysis'!K269,'EV to EBITDA Analysis'!X243,'EV to EBITDA Analysis'!K163,'EV to EBITDA Analysis'!X269,'EV to EBITDA Analysis'!K269,'EV to EBITDA Analysis'!X217,'EV to EBITDA Analysis'!K397,'EV to EBITDA Analysis'!K372,'EV to EBITDA Analysis'!K321) -> FALSE | N29: =CHOOSE($E$35,'EV to EBITDA Analysis'!L243,'EV to EBITDA Analysis'!L217,'EV to EBITDA Analysis'!L269,'EV to EBITDA Analysis'!Y243,'EV to EBITDA Analysis'!L163,'EV to EBITDA Analysis'!Y269,'EV to EBITDA Analysis'!L269,'EV to EBITDA Analysis'!Y217,'EV to EBITDA Analysis'!L397,'EV to EBITDA Analysis'!L372,'EV to EBITDA Analysis'!L321) -> FALSE | O29: FALSE | P29: 21 | R29: 18 | S29: 25 | T29: Swiss Life | V29: FALSE | W29: 0.1128358209 | X29: 0.08872901679 | Y29: 0.05970394737 | Z29: 0.05383333333 | AA29: 0.05531914894 | AB29: FALSE | AC29: FALSE | AD29: FALSE | AE29: FALSE
C30: ='Data Cost of Capital'!D33 -> NN Group NV | E30: =CHOOSE($E$35,'EV to EBITDA Analysis'!C244,'EV to EBITDA Analysis'!C218,'EV to EBITDA Analysis'!C270,'EV to EBITDA Analysis'!P244,'EV to EBITDA Analysis'!C164,'EV to EBITDA Analysis'!P270,'EV to EBITDA Analysis'!C270,'EV to EBITDA Analysis'!P218,'EV to EBITDA Analysis'!C398,'EV to EBITDA Analysis'!C373,'EV to EBITDA Analysis'!C322) -> FALSE | F30: =CHOOSE($E$35,'EV to EBITDA Analysis'!D244,'EV to EBITDA Analysis'!D218,'EV to EBITDA Analysis'!D270,'EV to EBITDA Analysis'!Q244,'EV to EBITDA Analysis'!D164,'EV to EBITDA Analysis'!Q270,'EV to EBITDA Analysis'!D270,'EV to EBITDA Analysis'!Q218,'EV to EBITDA Analysis'!D398,'EV to EBITDA Analysis'!D373,'EV to EBITDA Analysis'!D322) -> FALSE | G30: =CHOOSE($E$35,'EV to EBITDA Analysis'!E244,'EV to EBITDA Analysis'!E218,'EV to EBITDA Analysis'!E270,'EV to EBITDA Analysis'!R244,'EV to EBITDA Analysis'!E164,'EV to EBITDA Analysis'!R270,'EV to EBITDA Analysis'!E270,'EV to EBITDA Analysis'!R218,'EV to EBITDA Analysis'!E398,'EV to EBITDA Analysis'!E373,'EV to EBITDA Analysis'!E322) -> FALSE | H30: =CHOOSE($E$35,'EV to EBITDA Analysis'!F244,'EV to EBITDA Analysis'!F218,'EV to EBITDA Analysis'!F270,'EV to EBITDA Analysis'!S244,'EV to EBITDA Analysis'!F164,'EV to EBITDA Analysis'!S270,'EV to EBITDA Analysis'!F270,'EV to EBITDA Analysis'!S218,'EV to EBITDA Analysis'!F398,'EV to EBITDA Analysis'!F373,'EV to EBITDA Analysis'!F322) -> FALSE | I30: =CHOOSE($E$35,'EV to EBITDA Analysis'!G244,'EV to EBITDA Analysis'!G218,'EV to EBITDA Analysis'!G270,'EV to EBITDA Analysis'!T244,'EV to EBITDA Analysis'!G164,'EV to EBITDA Analysis'!T270,'EV to EBITDA Analysis'!G270,'EV to EBITDA Analysis'!T218,'EV to EBITDA Analysis'!G398,'EV to EBITDA Analysis'!G373,'EV to EBITDA Analysis'!G322) -> FALSE | J30: =CHOOSE($E$35,'EV to EBITDA Analysis'!H244,'EV to EBITDA Analysis'!H218,'EV to EBITDA Analysis'!H270,'EV to EBITDA Analysis'!U244,'EV to EBITDA Analysis'!H164,'EV to EBITDA Analysis'!U270,'EV to EBITDA Analysis'!H270,'EV to EBITDA Analysis'!U218,'EV to EBITDA Analysis'!H398,'EV to EBITDA Analysis'!H373,'EV to EBITDA Analysis'!H322) -> FALSE | K30: =CHOOSE($E$35,'EV to EBITDA Analysis'!I244,'EV to EBITDA Analysis'!I218,'EV to EBITDA Analysis'!I270,'EV to EBITDA Analysis'!V244,'EV to EBITDA Analysis'!I164,'EV to EBITDA Analysis'!V270,'EV to EBITDA Analysis'!I270,'EV to EBITDA Analysis'!V218,'EV to EBITDA Analysis'!I398,'EV to EBITDA Analysis'!I373,'EV to EBITDA Analysis'!I322) -> FALSE | L30: =CHOOSE($E$35,'EV to EBITDA Analysis'!J244,'EV to EBITDA Analysis'!J218,'EV to EBITDA Analysis'!J270,'EV to EBITDA Analysis'!W244,'EV to EBITDA Analysis'!J164,'EV to EBITDA Analysis'!W270,'EV to EBITDA Analysis'!J270,'EV to EBITDA Analysis'!W218,'EV to EBITDA Analysis'!J398,'EV to EBITDA Analysis'!J373,'EV to EBITDA Analysis'!J322) -> FALSE | M30: =CHOOSE($E$35,'EV to EBITDA Analysis'!K244,'EV to EBITDA Analysis'!K218,'EV to EBITDA Analysis'!K270,'EV to EBITDA Analysis'!X244,'EV to EBITDA Analysis'!K164,'EV to EBITDA Analysis'!X270,'EV to EBITDA Analysis'!K270,'EV to EBITDA Analysis'!X218,'EV to EBITDA Analysis'!K398,'EV to EBITDA Analysis'!K373,'EV to EBITDA Analysis'!K322) -> FALSE | N30: =CHOOSE($E$35,'EV to EBITDA Analysis'!L244,'EV to EBITDA Analysis'!L218,'EV to EBITDA Analysis'!L270,'EV to EBITDA Analysis'!Y244,'EV to EBITDA Analysis'!L164,'EV to EBITDA Analysis'!Y270,'EV to EBITDA Analysis'!L270,'EV to EBITDA Analysis'!Y218,'EV to EBITDA Analysis'!L398,'EV to EBITDA Analysis'!L373,'EV to EBITDA Analysis'!L322) -> FALSE | O30: FALSE | P30: 21 | R30: 19 | S30: 26 | T30: Sun Life | V30: FALSE | W30: 0.04218390805 | X30: 0.04043528064 | Y30: 0.03853211009 | Z30: 0.03178677196 | AA30: 0.02992424242 | AB30: FALSE | AC30: FALSE | AD30: FALSE | AE30: FALSE
R31: 20 | S31: 27 | T31: AXA SA | V31: FALSE | W31: 0.001413189771 | X31: 0.002105803801 | Y31: 0.01338417039 | Z31: 0.001226567924 | AA31: 0.006234203875 | AB31: FALSE | AC31: FALSE | AD31: FALSE | AE31: FALSE
R32: 21 | S32: 28 | T32: Sumpo Holdings | V32: FALSE | W32: 0.02767102391 | X32: 0.04277507159 | Y32: 0.04157819029 | Z32: 0.02583476608 | AA32: 0.01281694092 | AB32: FALSE | AC32: FALSE | AD32: FALSE | AE32: FALSE
R33: 22
R34: 23
E35: 10
B38: EBITDA
B39: Net Claims to Premium
B40: Premium Growth
B41: Total Shareholders' Equity / Total Assets
B42: Losses Benefits and Adjustments
B43: Income Tax Rate
B44: Additions to Reserves/Premium Increase
B45: Investments/Reserves
B46: Net Claims to Reserves
B47: Investment Income/Investments
B48: Debt/Debt + Equity
B51: =INDEX(B38:B48,E35) -> Investment Income/Investments | T51: (1) Assumes 25 year continuing EBITDA without growth
B54: Premium Growth
B55: Net Claims to Premium
B56: Additions to Reserves/Premium Increase
B57: Investments/Reserves
B58: Interest Expense to Debt
B59: Equity to Debt + Equity
B60: Equity to Assets
B61: Debt/Debt + Equity
B62: Income Tax Rate

Sheet Historic for Model
D1: ='Single Company Graph'!$H$1 -> 8 | S1: Jan Start | T1: =T2=1 -> TRUE
B2: =INDEX(INDIRECT(#REF!&"A:A"),MATCH(C8,INDIRECT(#REF!&"A:A"),0)+1) ->  | G2: FALSE | J2: Periods Not Inc | K2: =COUNTIF(12:12,TRUE) -> 1 | S2: First Month | T2: 1 | V2: =DATE(T3,$T$2,1) -> 2012-01-01 | W2: =V3+1 -> 2013-01-01 | X2: =W3+1 -> 2014-01-01 | Y2: =X3+1 -> 2015-01-01 | Z2: =Y3+1 -> 2016-01-01 | AA2: =Z3+1 -> 2017-01-01
B3: Last Annual Date | S3: First Year | T3: =IF(T1,V11,V11-1) -> 2012 | V3: =EOMONTH(V2,11) -> 2012-12-31 | W3: 2013-12-31 | X3: 2014-12-31 | Y3: 2015-12-31 | Z3: 2016-12-31 | AA3: 2017-12-31
C4: Histoic Year | F4: Qtl Row | S4: Last Year | T4: =IF(T1,Z11,Z11-1) -> 2016 | V4: =V3<=$T$5 -> TRUE | W4: TRUE | X4: TRUE | Y4: TRUE | Z4: TRUE | AA4: FALSE
C5: Partial Historic Year | T5: =DATE(T4+1,T2,1)-1 -> 2016-12-31 | V5: =YEAR(V3)=$T$6 -> FALSE | W5: FALSE | X5: FALSE | Y5: FALSE | Z5: FALSE | AA5: TRUE
C6: Assumption Year | G6: =G11 -> 2015-05-31 | H6: =H11 -> 2015-11-30 | I6: 2016-05-31 | J6: 2016-11-30 | K6: 2017-05-31 | L6: Not In Annual | M6: YTD | N6: Growth | O6: Growth Amount | P6: Ratio | S6: Annual Row | T6: =T4+1 -> 2017 | V6: =OR(V4:V5) -> TRUE | W6: TRUE | X6: TRUE | Y6: TRUE | Z6: TRUE | AA6: TRUE
A7: Profit and Loss | G7: ="'"&INDEX('Menu Sheet'!$Y$12:$Y$34,'Historic for Model'!$D$1)&"'!" -> 'AAGIY Income Qtr'! | H7: =INDEX('Menu Sheet'!$Y$12:$Y$34,'Historic for Model'!$D$1) -> AAGIY Income Qtr
C8: View Ratios | G8: ="'"&INDEX('Menu Sheet'!$Q$12:$Q$34,'Historic for Model'!$D$1)&"'!" -> 'AAGIY Income St'! | H8: =INDEX('Menu Sheet'!$Q$12:$Q$34,'Historic for Model'!$D$1) -> AAGIY Income St
C9: All values USD millions.
G10: B:B | H10: C:C | I10: D:D | J10: E:E | K10: F:F | V10: B:B | W10: C:C | X10: D:D | Y10: E:E | Z10: F:F
C11: Fiscal Year | E11: =IFERROR(match_partial_sheet($C$11,"A",10,$H$8,200),FALSE) -> 102 | F11: =IFERROR(match_partial_sheet($C$9,"A",10,H7,200),FALSE) -> 102 | G11: =INDEX(INDIRECT($G$7&G$10),$F$11) -> 2015-05-31 | H11: =INDEX(INDIRECT($G$7&H$10),$F$11) -> 2015-11-30 | I11: =INDEX(INDIRECT($G$7&I$10),$F$11) -> 2016-05-31 | J11: =INDEX(INDIRECT($G$7&J$10),$F$11) -> 2016-11-30 | K11: =INDEX(INDIRECT($G$7&K$10),$F$11) -> 2017-05-31 | L11: Not In Annual | M11: YTD | N11: Growth | O11: Growth Amount | P11: Ratio | V11: =INDEX(INDIRECT($G$8&V$10),$E11) -> 2012 | W11: =INDEX(INDIRECT($G$8&W$10),$E11) -> 2013 | X11: =INDEX(INDIRECT($G$8&X$10),$E11) -> 2014 | Y11: =INDEX(INDIRECT($G$8&Y$10),$E11) -> 2015 | Z11: =INDEX(INDIRECT($G$8&Z$10),$E11) -> 2016 | AA11: =YEAR(AA3) -> 2017
C12: Income Statement | G12: =G11>$T$5 -> FALSE | H12: =H11>$T$5 -> FALSE | I12: =I11>$T$5 -> FALSE | J12: =J11>$T$5 -> FALSE | K12: =K11>$T$5 -> TRUE
D13: Premiums Earned | E13: =IFERROR(MATCH($D13,INDIRECT($G$8&"A:A"),0),FALSE) -> 104 | F13: =IFERROR(MATCH($D13,INDIRECT($G$7&"A:A"),0),FALSE) -> 104 | G13: =IFERROR(clean_alt(INDEX(INDIRECT($G$7&G$10),$F13)),FALSE) -> 68050000 | H13: =IFERROR(clean_alt(INDEX(INDIRECT($G$7&H$10),$F13)),FALSE) -> 76280000 | I13: =IFERROR(clean_alt(INDEX(INDIRECT($G$7&I$10),$F13)),FALSE) -> 72970000 | J13: =IFERROR(clean_alt(INDEX(INDIRECT($G$7&J$10),$F13)),FALSE) -> 85710000 | K13: =IFERROR(clean_alt(INDEX(INDIRECT($G$7&K$10),$F13)),FALSE) -> 91780000 | L13: =SUMIF($12:$12,TRUE,13:13) -> 91780000 | M13: =SUM(H13:K13) -> 326740000 | N13: =IFERROR(OFFSET(K13,0,-$K$2)/OFFSET(K13,0,-$K$2-1),FALSE) -> 1.174592298 | O13: =N13*K13+L13 -> 199584081.1 | P13: =L13+Q13 -> 91780000 | V13: =IFERROR(clean_alt(INDEX(INDIRECT($G$8&V$10),$E13)),FALSE) -> 101290000 | W13: =IFERROR(clean_alt(INDEX(INDIRECT($G$8&W$10),$E13)),FALSE) -> 121830000 | X13: =IFERROR(clean_alt(INDEX(INDIRECT($G$8&X$10),$E13)),FALSE) -> 132229992 | Y13: =IFERROR(clean_alt(INDEX(INDIRECT($G$8&Y$10),$E13)),FALSE) -> 144330000 | Z13: =IFERROR(clean_alt(INDEX(INDIRECT($G$8&Z$10),$E13)),FALSE) -> 158680000 | AA13: =M13 -> 326740000
D14: Total Investment Income | E14: 105 | F14: 105 | G14: =IFERROR(clean_alt(INDEX(INDIRECT($G$7&G$10),$F14)),FALSE) -> 21070000 | H14: =IFERROR(clean_alt(INDEX(INDIRECT($G$7&H$10),$F14)),FALSE) -> 20670000 | I14: =IFERROR(clean_alt(INDEX(INDIRECT($G$7&I$10),$F14)),FALSE) -> 21400000 | J14: =IFERROR(clean_alt(INDEX(INDIRECT($G$7&J$10),$F14)),FALSE) -> 22090000 | K14: =IFERROR(clean_alt(INDEX(INDIRECT($G$7&K$10),$F14)),FALSE) -> 22300000 | L14: 22300000 | M14: 86460000 | N14: =N145-N13 -> -0.03049707005 | O14: =O145-O13 -> 48916555.81 | P14: =L14+Q14 -> 22300000 | V14: =IFERROR(clean_alt(INDEX(INDIRECT($G$8&V$10),$E14)),FALSE) -> 32140000 | W14: =IFERROR(clean_alt(INDEX(INDIRECT($G$8&W$10),$E14)),FALSE) -> 36950000 | X14: =IFERROR(clean_alt(INDEX(INDIRECT($G$8&X$10),$E14)),FALSE) -> 39820000 | Y14: =IFERROR(clean_alt(INDEX(INDIRECT($G$8&Y$10),$E14)),FALSE) -> 41740000 | Z14: =IFERROR(clean_alt(INDEX(INDIRECT($G$8&Z$10),$E14)),FALSE) -> 43500000 | AA14: 86460000
D15: Realized Gains (Losses) | E15: 106 | F15: 106 | G15: =IFERROR(clean_alt(INDEX(INDIRECT($G$7&G$10),$F15)),FALSE) -> 15510 | H15: =IFERROR(clean_alt(INDEX(INDIRECT($G$7&H$10),$F15)),FALSE) -> -302310 | I15: =IFERROR(clean_alt(INDEX(INDIRECT($G$7&I$10),$F15)),FALSE) -> 93190 | J15: =IFERROR(clean_alt(INDEX(INDIRECT($G$7&J$10),$F15)),FALSE) -> 457700 | K15: =IFERROR(clean_alt(INDEX(INDIRECT($G$7&K$10),$F15)),FALSE) -> 458270 | L15: 458270 | M15: 706850 | N15: =IFERROR(OFFSET(K15,0,-$K$2)/OFFSET(K15,0,-$K$2-1),FALSE) -> 4.911471188 | O15: =N15*K15+L15 -> 2709049.901 | P15: 458270 | V15: =IFERROR(clean_alt(INDEX(INDIRECT($G$8&V$10),$E15)),FALSE) -> 341400 | W15: =IFERROR(clean_alt(INDEX(INDIRECT($G$8&W$10),$E15)),FALSE) -> -752370 | X15: =IFERROR(clean_alt(INDEX(INDIRECT($G$8&X$10),$E15)),FALSE) -> -1610000 | Y15: =IFERROR(clean_alt(INDEX(INDIRECT($G$8&Y$10),$E15)),FALSE) -> -5200000 | Z15: =IFERROR(clean_alt(INDEX(INDIRECT($G$8&Z$10),$E15)),FALSE) -> 551080 | AA15: 706850
D16: Other Operating Income | E16: 107 | F16: 107 | G16: =IFERROR(clean_alt(INDEX(INDIRECT($G$7&G$10),$F16)),FALSE) -> 1270000 | H16: =IFERROR(clean_alt(INDEX(INDIRECT($G$7&H$10),$F16)),FALSE) -> 1230000 | I16: =IFERROR(clean_alt(INDEX(INDIRECT($G$7&I$10),$F16)),FALSE) -> 1300000 | J16: =IFERROR(clean_alt(INDEX(INDIRECT($G$7&J$10),$F16)),FALSE) -> 1310000 | K16: =IFERROR(clean_alt(INDEX(INDIRECT($G$7&K$10),$F16)),FALSE) -> 1360000 | L16: 1360000 | M16: 5200000 | N16: =IFERROR(OFFSET(K16,0,-$K$2)/OFFSET(K16,0,-$K$2-1),FALSE) -> 1.007692308 | O16: =L16+Q145*H9 -> 1360000 | P16: 1360000 | V16: =IFERROR(clean_alt(INDEX(INDIRECT($G$8&V$10),$E16)),FALSE) -> 1750000 | W16: =IFERROR(clean_alt(INDEX(INDIRECT($G$8&W$10),$E16)),FALSE) -> 2089999.875 | X16: =IFERROR(clean_alt(INDEX(INDIRECT($G$8&X$10),$E16)),FALSE) -> 2330000 | Y16: =IFERROR(clean_alt(INDEX(INDIRECT($G$8&Y$10),$E16)),FALSE) -> 2500000 | Z16: =IFERROR(clean_alt(INDEX(INDIRECT($G$8&Z$10),$E16)),FALSE) -> 2620000 | AA16: 5200000
D17: Total Sales/Revenue | G17: =SUM(G13:G16) -> 90405510 | H17: =SUM(H13:H16) -> 97877690 | I17: =SUM(I13:I16) -> 95763190 | J17: =SUM(J13:J16) -> 109567700 | K17: =SUM(K13:K16) -> 115898270 | L17: 115898270 | M17: =SUM(H17:K17) -> 419106850 | N17: =IFERROR(OFFSET(K17,0,-$K$2)/OFFSET(K17,0,-$K$2-1),FALSE) -> 1.144152571 | O17: =SUM(O13:O16) -> 252569686.8 | P17: =SUM(P13:P16) -> 115898270 | V17: =SUM(V13:V16) -> 135521400 | W17: 160117629.9 | X17: 172769992 | Y17: 183370000 | Z17: 205351080 | AA17: 419106850
D18: Losses, Claims & Reserves | E18: 109 | F18: 109 | G18: =IFERROR(clean_alt(INDEX(INDIRECT($G$7&G$10),$F18)),FALSE) -> 69860000 | H18: =IFERROR(clean_alt(INDEX(INDIRECT($G$7&H$10),$F18)),FALSE) -> 47930000 | I18: =IFERROR(clean_alt(INDEX(INDIRECT($G$7&I$10),$F18)),FALSE) -> 63150000 | J18: =IFERROR(clean_alt(INDEX(INDIRECT($G$7&J$10),$F18)),FALSE) -> 78270000 | K18: =IFERROR(clean_alt(INDEX(INDIRECT($G$7&K$10),$F18)),FALSE) -> 93140000 | L18: 93140000 | M18: 282490000 | N18: =N14-N15-N16-N180 -> -5.949660566 | O18: =O14-O15-O16-O180 -> 44847505.91 | P18: 93140000 | V18: =IFERROR(clean_alt(INDEX(INDIRECT($G$8&V$10),$E18)),FALSE) -> 103770000 | W18: =IFERROR(clean_alt(INDEX(INDIRECT($G$8&W$10),$E18)),FALSE) -> 112340000 | X18: =IFERROR(clean_alt(INDEX(INDIRECT($G$8&X$10),$E18)),FALSE) -> 130310000 | Y18: =IFERROR(clean_alt(INDEX(INDIRECT($G$8&Y$10),$E18)),FALSE) -> 117780000 | Z18: =IFERROR(clean_alt(INDEX(INDIRECT($G$8&Z$10),$E18)),FALSE) -> 141430000 | AA18: 282490000
D19: Losses, Benefits & Adjustments | E19: 110 | F19: 110 | G19: =IFERROR(clean_alt(INDEX(INDIRECT($G$7&G$10),$F19)),FALSE) -> 69860000 | H19: =IFERROR(clean_alt(INDEX(INDIRECT($G$7&H$10),$F19)),FALSE) -> 47930000 | I19: =IFERROR(clean_alt(INDEX(INDIRECT($G$7&I$10),$F19)),FALSE) -> 63150000 | J19: =IFERROR(clean_alt(INDEX(INDIRECT($G$7&J$10),$F19)),FALSE) -> 78270000 | K19: =IFERROR(clean_alt(INDEX(INDIRECT($G$7&K$10),$F19)),FALSE) -> 93140000 | L19: 93140000 | M19: 282490000 | N19: =IFERROR(OFFSET(K19,0,-$K$2)/OFFSET(K19,0,-$K$2-1),FALSE) -> 1.239429929 | O19: =N19*K19+L19 -> 208580503.6 | P19: 93140000 | V19: =IFERROR(clean_alt(INDEX(INDIRECT($G$8&V$10),$E19)),FALSE) -> 103770000 | W19: =IFERROR(clean_alt(INDEX(INDIRECT($G$8&W$10),$E19)),FALSE) -> 112340000 | X19: =IFERROR(clean_alt(INDEX(INDIRECT($G$8&X$10),$E19)),FALSE) -> 130310000 | Y19: =IFERROR(clean_alt(INDEX(INDIRECT($G$8&Y$10),$E19)),FALSE) -> 117780000 | Z19: =IFERROR(clean_alt(INDEX(INDIRECT($G$8&Z$10),$E19)),FALSE) -> 141430000 | AA19: 282490000
D20: Other Reserves | G20: =G18-G19 -> 0 | H20: =H18-H19 -> 0 | I20: =I18-I19 -> 0 | J20: =J18-J19 -> 0 | K20: =K18-K19 -> 0 | V20: =V18-V19 -> 0 | W20: =W18-W19 -> 0 | X20: =X18-X19 -> 0 | Y20: =Y18-Y19 -> 0 | Z20: =Z18-Z19 -> 0
D21: Selling, General & Admin. Expenses | E21: 115 | F21: 115 | G21: =IFERROR(clean_alt(INDEX(INDIRECT($G$7&G$10),$F21)),FALSE) -> 13710000 | H21: =IFERROR(clean_alt(INDEX(INDIRECT($G$7&H$10),$F21)),FALSE) -> 14870000 | I21: =IFERROR(clean_alt(INDEX(INDIRECT($G$7&I$10),$F21)),FALSE) -> 14860000 | J21: =IFERROR(clean_alt(INDEX(INDIRECT($G$7&J$10),$F21)),FALSE) -> 16379999 | K21: =IFERROR(clean_alt(INDEX(INDIRECT($G$7&K$10),$F21)),FALSE) -> 17720000 | L21: =SUMIF($12:$12,TRUE,21:21) -> 17720000 | M21: 63829999 | N21: =IFERROR(OFFSET(K21,0,-$K$2)/OFFSET(K21,0,-$K$2-1),FALSE) -> 1.102287954 | O21: =N21*K21+L21 -> 37252542.55 | P21: 17720000 | V21: =IFERROR(clean_alt(INDEX(INDIRECT($G$8&V$10),$E21)),FALSE) -> 20270000 | W21: =IFERROR(clean_alt(INDEX(INDIRECT($G$8&W$10),$E21)),FALSE) -> 23770000 | X21: =IFERROR(clean_alt(INDEX(INDIRECT($G$8&X$10),$E21)),FALSE) -> 26000000 | Y21: =IFERROR(clean_alt(INDEX(INDIRECT($G$8&Y$10),$E21)),FALSE) -> 28680000 | Z21: =IFERROR(clean_alt(INDEX(INDIRECT($G$8&Z$10),$E21)),FALSE) -> 31360000 | AA21: 63829999
D22: Other Operating Expense | E22: 118 | F22: 118 | G22: =IFERROR(clean_alt(INDEX(INDIRECT($G$7&G$10),$F22)),FALSE) -> -14910000 | H22: =IFERROR(clean_alt(INDEX(INDIRECT($G$7&H$10),$F22)),FALSE) -> 28670000 | I22: =IFERROR(clean_alt(INDEX(INDIRECT($G$7&I$10),$F22)),FALSE) -> -465960 | J22: =IFERROR(clean_alt(INDEX(INDIRECT($G$7&J$10),$F22)),FALSE) -> -4000000 | K22: =IFERROR(clean_alt(INDEX(INDIRECT($G$7&K$10),$F22)),FALSE) -> -21880000 | L22: =SUMIF($12:$12,TRUE,22:22) -> -21880000 | M22: 2324040 | N22: =IFERROR(OFFSET(K22,0,-$K$2)/OFFSET(K22,0,-$K$2-1),FALSE) -> 8.584427848 | O22: =N22*K22+L22 -> -209707281.3 | P22: -21880000 | V22: =IFERROR(clean_alt(INDEX(INDIRECT($G$8&V$10),$E22)),FALSE) -> -20690000 | W22: =IFERROR(clean_alt(INDEX(INDIRECT($G$8&W$10),$E22)),FALSE) -> -2050000 | X22: =IFERROR(clean_alt(INDEX(INDIRECT($G$8&X$10),$E22)),FALSE) -> -17110000 | Y22: =IFERROR(clean_alt(INDEX(INDIRECT($G$8&Y$10),$E22)),FALSE) -> 13660000 | Z22: =IFERROR(clean_alt(INDEX(INDIRECT($G$8&Z$10),$E22)),FALSE) -> -4590000 | AA22: 2324040
D23: Operating Income Before Interest Expense | G23: =G17-G18-G21-G22 -> 21745510 | H23: =H17-H18-H21-H22 -> 6407690 | I23: =I17-I18-I21-I22 -> 18219150 | J23: =J17-J18-J21-J22 -> 18917701 | K23: =K17-K18-K21-K22 -> 26918270 | L23: =SUMIF($12:$12,TRUE,23:23) -> 26918270 | M23: =SUM(H23:K23) -> 70462811 | N23: =IFERROR(OFFSET(K23,0,-$K$2)/OFFSET(K23,0,-$K$2-1),FALSE) -> 1.03834158 | O23: =N23*K23+L23 -> 54868629.01 | V23: =V17-V18-V21-V22 -> 32171400 | W23: 26057629.88 | X23: 33569992 | Y23: 23250000 | Z23: 37151080 | AA23: 70462811
D24: Interest Expense, Net of Interest Capitalized | E24: 121 | F24: 121 | G24: =IFERROR(clean_alt(INDEX(INDIRECT($G$7&G$10),$F24)),FALSE) -> 620350 | H24: =IFERROR(clean_alt(INDEX(INDIRECT($G$7&H$10),$F24)),FALSE) -> 558110 | I24: =IFERROR(clean_alt(INDEX(INDIRECT($G$7&I$10),$F24)),FALSE) -> 551390 | J24: =IFERROR(clean_alt(INDEX(INDIRECT($G$7&J$10),$F24)),FALSE) -> 605090 | K24: =IFERROR(clean_alt(INDEX(INDIRECT($G$7&K$10),$F24)),FALSE) -> 660220 | L24: =SUMIF($12:$12,TRUE,24:24) -> 660220 | M24: 2374810 | N24: =IFERROR(OFFSET(K24,0,-$K$2)/OFFSET(K24,0,-$K$2-1),FALSE) -> 1.097390232 | O24: =N24*K24+L24 -> 1384738.979 | P24: 660220 | V24: =IFERROR(clean_alt(INDEX(INDIRECT($G$8&V$10),$E24)),FALSE) -> 147420 | W24: =IFERROR(clean_alt(INDEX(INDIRECT($G$8&W$10),$E24)),FALSE) -> 550700 | X24: =IFERROR(clean_alt(INDEX(INDIRECT($G$8&X$10),$E24)),FALSE) -> 798720 | Y24: =IFERROR(clean_alt(INDEX(INDIRECT($G$8&Y$10),$E24)),FALSE) -> 1180000 | Z24: =IFERROR(clean_alt(INDEX(INDIRECT($G$8&Z$10),$E24)),FALSE) -> 1160000 | AA24: 2374810
D25: Operating Income After Interest Expense | G25: =G23-G24 -> 21125160 | H25: =H23-H24 -> 5849580 | I25: =I23-I24 -> 17667760 | J25: =J23-J24 -> 18312611 | K25: =K23-K24 -> 26258050 | V25: =V23-V24 -> 32023980 | W25: 25506929.88 | X25: 32771272 | Y25: 22070000 | Z25: 35991080 | AA25: 68088001
D26: Non-Operating Income (Expense) | E26: 126 | F26: 126 | G26: =IFERROR(clean_alt(INDEX(INDIRECT($G$7&G$10),$F26)),FALSE) -> 0 | H26: =IFERROR(clean_alt(INDEX(INDIRECT($G$7&H$10),$F26)),FALSE) -> 0 | I26: =IFERROR(clean_alt(INDEX(INDIRECT($G$7&I$10),$F26)),FALSE) -> 0 | J26: =IFERROR(clean_alt(INDEX(INDIRECT($G$7&J$10),$F26)),FALSE) -> 0 | K26: =IFERROR(clean_alt(INDEX(INDIRECT($G$7&K$10),$F26)),FALSE) -> 0 | L26: =SUMIF($12:$12,TRUE,26:26) -> 0 | M26: 0 | P26: 0 | V26: =IFERROR(clean_alt(INDEX(INDIRECT($G$8&V$10),$E26)),FALSE) -> -2230000 | W26: =IFERROR(clean_alt(INDEX(INDIRECT($G$8&W$10),$E26)),FALSE) -> 2260000 | X26: =IFERROR(clean_alt(INDEX(INDIRECT($G$8&X$10),$E26)),FALSE) -> 1250000 | Y26: =IFERROR(clean_alt(INDEX(INDIRECT($G$8&Y$10),$E26)),FALSE) -> 4470000 | Z26: =IFERROR(clean_alt(INDEX(INDIRECT($G$8&Z$10),$E26)),FALSE) -> 434660 | AA26: 0
D27: Unusual Expense | E27: 129 | F27: 129 | G27: =IFERROR(clean_alt(INDEX(INDIRECT($G$7&G$10),$F27)),FALSE) -> 193860 | H27: =IFERROR(clean_alt(INDEX(INDIRECT($G$7&H$10),$F27)),FALSE) -> 372070 | I27: =IFERROR(clean_alt(INDEX(INDIRECT($G$7&I$10),$F27)),FALSE) -> -1410000 | J27: =IFERROR(clean_alt(INDEX(INDIRECT($G$7&J$10),$F27)),FALSE) -> -23270 | K27: =IFERROR(clean_alt(INDEX(INDIRECT($G$7&K$10),$F27)),FALSE) -> -986450 | L27: -986450 | M27: -2047650 | P27: -986450 | V27: =IFERROR(clean_alt(INDEX(INDIRECT($G$8&V$10),$E27)),FALSE) -> 1100000 | W27: =IFERROR(clean_alt(INDEX(INDIRECT($G$8&W$10),$E27)),FALSE) -> 418840 | X27: =IFERROR(clean_alt(INDEX(INDIRECT($G$8&X$10),$E27)),FALSE) -> 426500 | Y27: =IFERROR(clean_alt(INDEX(INDIRECT($G$8&Y$10),$E27)),FALSE) -> 565960 | Z27: =IFERROR(clean_alt(INDEX(INDIRECT($G$8&Z$10),$E27)),FALSE) -> -1430000 | AA27: -2047650
D28: Other Reconciling Income | G28: =G153 -> -321300 | H28: =H153 -> -117510 | I28: =I153 -> -987760 | J28: =J153 -> 1394119 | K28: =K153 -> 35500 | L28: 35500 | M28: =SUM(H28:K28) -> 324349 | V28: =V153 -> -3980 | W28: 11910.125 | X28: -4772 | Y28: -4040 | Z28: -5740
D29: Pretax Income | G29: =G25+G26-G27+G28 -> 20610000 | H29: =H25+H26-H27+H28 -> 5360000 | I29: =I25+I26-I27+I28 -> 18090000 | J29: =J25+J26-J27+J28 -> 19730000 | K29: =K25+K26-K27+K28 -> 27280000 | L29: 27280000 | M29: =SUM(H29:K29) -> 70460000 | V29: =V25+V26-V27+V28 -> 28690000 | W29: =W25+W26-W27+W28 -> 27360000 | X29: =X25+X26-X27+X28 -> 33590000 | Y29: =Y25+Y26-Y27+Y28 -> 25970000 | Z29: =Z25+Z26-Z27+Z28 -> 37850000 | AA29: 70460000
D30: Income Taxes | E30: 132 | F30: 132 | G30: =IFERROR(clean_alt(INDEX(INDIRECT($G$7&G$10),$F30)),FALSE) -> 3610000 | H30: =IFERROR(clean_alt(INDEX(INDIRECT($G$7&H$10),$F30)),FALSE) -> 1330000 | I30: =IFERROR(clean_alt(INDEX(INDIRECT($G$7&I$10),$F30)),FALSE) -> 1820000 | J30: =IFERROR(clean_alt(INDEX(INDIRECT($G$7&J$10),$F30)),FALSE) -> 3300000 | K30: =IFERROR(clean_alt(INDEX(INDIRECT($G$7&K$10),$F30)),FALSE) -> 4300000 | L30: 4300000 | M30: 10750000 | P30: 4300000 | V30: =IFERROR(clean_alt(INDEX(INDIRECT($G$8&V$10),$E30)),FALSE) -> 5320000 | W30: =IFERROR(clean_alt(INDEX(INDIRECT($G$8&W$10),$E30)),FALSE) -> 5370000 | X30: =IFERROR(clean_alt(INDEX(INDIRECT($G$8&X$10),$E30)),FALSE) -> 6800000 | Y30: =IFERROR(clean_alt(INDEX(INDIRECT($G$8&Y$10),$E30)),FALSE) -> 4930000 | Z30: =IFERROR(clean_alt(INDEX(INDIRECT($G$8&Z$10),$E30)),FALSE) -> 5120000 | AA30: 10750000
D31: Equity in Affiliates | E31: 138 | F31: 138 | G31: =IFERROR(clean_alt(INDEX(INDIRECT($G$7&G$10),$F31)),FALSE) -> 0 | H31: =IFERROR(clean_alt(INDEX(INDIRECT($G$7&H$10),$F31)),FALSE) -> 0 | I31: =IFERROR(clean_alt(INDEX(INDIRECT($G$7&I$10),$F31)),FALSE) -> 0 | J31: =IFERROR(clean_alt(INDEX(INDIRECT($G$7&J$10),$F31)),FALSE) -> 0 | K31: =IFERROR(clean_alt(INDEX(INDIRECT($G$7&K$10),$F31)),FALSE) -> 0 | L31: 0 | M31: 0 | P31: 0 | V31: =IFERROR(clean_alt(INDEX(INDIRECT($G$8&V$10),$E31)),FALSE) -> 124150 | W31: =IFERROR(clean_alt(INDEX(INDIRECT($G$8&W$10),$E31)),FALSE) -> 108590 | X31: =IFERROR(clean_alt(INDEX(INDIRECT($G$8&X$10),$E31)),FALSE) -> 108560 | Y31: =IFERROR(clean_alt(INDEX(INDIRECT($G$8&Y$10),$E31)),FALSE) -> 0 | Z31: =IFERROR(clean_alt(INDEX(INDIRECT($G$8&Z$10),$E31)),FALSE) -> -38810 | AA31: 0
D32: Other After Tax Income (Expense) | E32: 139 | F32: 139 | G32: =IFERROR(clean_alt(INDEX(INDIRECT($G$7&G$10),$F32)),FALSE) -> 0 | H32: =IFERROR(clean_alt(INDEX(INDIRECT($G$7&H$10),$F32)),FALSE) -> 0 | I32: =IFERROR(clean_alt(INDEX(INDIRECT($G$7&I$10),$F32)),FALSE) -> 0 | J32: =IFERROR(clean_alt(INDEX(INDIRECT($G$7&J$10),$F32)),FALSE) -> 0 | K32: =IFERROR(clean_alt(INDEX(INDIRECT($G$7&K$10),$F32)),FALSE) -> 0 | L32: 0 | M32: 0 | P32: 0 | V32: =IFERROR(clean_alt(INDEX(INDIRECT($G$8&V$10),$E32)),FALSE) -> 0 | W32: =IFERROR(clean_alt(INDEX(INDIRECT($G$8&W$10),$E32)),FALSE) -> 0 | X32: =IFERROR(clean_alt(INDEX(INDIRECT($G$8&X$10),$E32)),FALSE) -> 0 | Y32: =IFERROR(clean_alt(INDEX(INDIRECT($G$8&Y$10),$E32)),FALSE) -> 0 | Z32: =IFERROR(clean_alt(INDEX(INDIRECT($G$8&Z$10),$E32)),FALSE) -> 0 | AA32: 0
D33: Reconciliation | G33: =G155-G154 -> -10000 | H33: =H155-H154 -> -10000 | I33: 0 | J33: 10000 | K33: 0 | L33: 0 | M33: 0 | V33: =V155-V154 -> -5850 | W33: =W155-W154 -> -1410 | X33: =X155-X154 -> 8560 | Y33: =Y155-Y154 -> 0 | Z33: =Z155-Z154 -> 1192
D34: Consolidated Net Income | G34: =G29-G30+G31+G32-G33 -> 17010000 | H34: =H29-H30+H31+H32-H33 -> 4040000 | I34: =I29-I30+I31+I32-I33 -> 16270000 | J34: =J29-J30+J31+J32-J33 -> 16420000 | K34: =K29-K30+K31+K32-K33 -> 22980000 | L34: =L29-L30+L31+L32 -> 22980000 | M34: =M29-M30+M31+M32 -> 59710000 | V34: =V29-V30+V31+V32-V33 -> 23500000 | W34: 22100000 | X34: 26890000 | Y34: 21040000 | Z34: 32689998 | AA34: 59710000
D35: Minority Interest Expense | E35: 141 | F35: 141 | G35: =IFERROR(clean_alt(INDEX(INDIRECT($G$7&G$10),$F35)),FALSE) -> 100810 | H35: =IFERROR(clean_alt(INDEX(INDIRECT($G$7&H$10),$F35)),FALSE) -> 77520 | I35: =IFERROR(clean_alt(INDEX(INDIRECT($G$7&I$10),$F35)),FALSE) -> 232980 | J35: =IFERROR(clean_alt(INDEX(INDIRECT($G$7&J$10),$F35)),FALSE) -> 139640 | K35: =IFERROR(clean_alt(INDEX(INDIRECT($G$7&K$10),$F35)),FALSE) -> 264090 | L35: =SUMIF($12:$12,TRUE,35:35) -> 264090 | M35: 714230 | P35: 264090 | V35: =IFERROR(clean_alt(INDEX(INDIRECT($G$8&V$10),$E35)),FALSE) -> 77590 | W35: =IFERROR(clean_alt(INDEX(INDIRECT($G$8&W$10),$E35)),FALSE) -> 193910 | X35: =IFERROR(clean_alt(INDEX(INDIRECT($G$8&X$10),$E35)),FALSE) -> 139580 | Y35: =IFERROR(clean_alt(INDEX(INDIRECT($G$8&Y$10),$E35)),FALSE) -> 178320 | Z35: =IFERROR(clean_alt(INDEX(INDIRECT($G$8&Z$10),$E35)),FALSE) -> 372560 | AA35: 714230
D36: Net Income | E36: 142 | F36: 142 | G36: =G34-G35 -> 16909190 | H36: =H34-H35 -> 3962480 | I36: =I34-I35 -> 16037020 | J36: =J34-J35 -> 16280360 | K36: =K34-K35 -> 22715910 | L36: 22715910 | M36: 58995770 | N36: =IFERROR(OFFSET(K36,0,-$K$2)/OFFSET(K36,0,-$K$2-1),FALSE) -> 1.015173642 | O36: =N36*K36+L36 -> 45776503.09 | P36: 22715910 | V36: =V34-V35 -> 23422410 | W36: 21906090 | X36: 26750420 | Y36: 20861680 | Z36: 32317438 | AA36: 58995770
D37: Extra Items & Gain/Loss Sale Of Assets | E37: 146 | F37: 146 | G37: =IFERROR(clean_alt(INDEX(INDIRECT($G$7&G$10),$F37)),FALSE) -> 0 | H37: =IFERROR(clean_alt(INDEX(INDIRECT($G$7&H$10),$F37)),FALSE) -> 0 | I37: =IFERROR(clean_alt(INDEX(INDIRECT($G$7&I$10),$F37)),FALSE) -> 0 | J37: =IFERROR(clean_alt(INDEX(INDIRECT($G$7&J$10),$F37)),FALSE) -> 0 | K37: =IFERROR(clean_alt(INDEX(INDIRECT($G$7&K$10),$F37)),FALSE) -> 0 | L37: 0 | M37: 0 | N37: =IFERROR(OFFSET(K37,0,-$K$2)/OFFSET(K37,0,-$K$2-1),FALSE) -> FALSE | O37: =N37*K37+L37 -> 0 | P37: 0 | V37: =IFERROR(clean_alt(INDEX(INDIRECT($G$8&V$10),$E37)),FALSE) -> 0 | W37: =IFERROR(clean_alt(INDEX(INDIRECT($G$8&W$10),$E37)),FALSE) -> 0 | X37: =IFERROR(clean_alt(INDEX(INDIRECT($G$8&X$10),$E37)),FALSE) -> 0 | Y37: =IFERROR(clean_alt(INDEX(INDIRECT($G$8&Y$10),$E37)),FALSE) -> 0 | Z37: =IFERROR(clean_alt(INDEX(INDIRECT($G$8&Z$10),$E37)),FALSE) -> 0 | AA37: 0
D38: Cumulative Effect - Accounting Chg | E38: 147 | F38: 147 | G38: =IFERROR(clean_alt(INDEX(INDIRECT($G$7&G$10),$F38)),FALSE) -> 0 | H38: =IFERROR(clean_alt(INDEX(INDIRECT($G$7&H$10),$F38)),FALSE) -> 0 | I38: =IFERROR(clean_alt(INDEX(INDIRECT($G$7&I$10),$F38)),FALSE) -> 0 | J38: =IFERROR(clean_alt(INDEX(INDIRECT($G$7&J$10),$F38)),FALSE) -> 0 | K38: =IFERROR(clean_alt(INDEX(INDIRECT($G$7&K$10),$F38)),FALSE) -> 0 | L38: 0 | M38: 0 | N38: =IFERROR(OFFSET(K38,0,-$K$2)/OFFSET(K38,0,-$K$2-1),FALSE) -> FALSE | O38: =N38*K38+L38 -> 0 | P38: 0 | V38: =IFERROR(clean_alt(INDEX(INDIRECT($G$8&V$10),$E38)),FALSE) -> 0 | W38: =IFERROR(clean_alt(INDEX(INDIRECT($G$8&W$10),$E38)),FALSE) -> 0 | X38: =IFERROR(clean_alt(INDEX(INDIRECT($G$8&X$10),$E38)),FALSE) -> 0 | Y38: =IFERROR(clean_alt(INDEX(INDIRECT($G$8&Y$10),$E38)),FALSE) -> 0 | Z38: =IFERROR(clean_alt(INDEX(INDIRECT($G$8&Z$10),$E38)),FALSE) -> 0 | AA38: 0
D39: Discontinued Operations | E39: 148 | F39: 148 | G39: =IFERROR(clean_alt(INDEX(INDIRECT($G$7&G$10),$F39)),FALSE) -> 0 | H39: =IFERROR(clean_alt(INDEX(INDIRECT($G$7&H$10),$F39)),FALSE) -> 0 | I39: =IFERROR(clean_alt(INDEX(INDIRECT($G$7&I$10),$F39)),FALSE) -> 0 | J39: =IFERROR(clean_alt(INDEX(INDIRECT($G$7&J$10),$F39)),FALSE) -> 0 | K39: =IFERROR(clean_alt(INDEX(INDIRECT($G$7&K$10),$F39)),FALSE) -> 0 | L39: 0 | M39: 0 | P39: 0 | V39: =IFERROR(clean_alt(INDEX(INDIRECT($G$8&V$10),$E39)),FALSE) -> 0 | W39: =IFERROR(clean_alt(INDEX(INDIRECT($G$8&W$10),$E39)),FALSE) -> 0 | X39: =IFERROR(clean_alt(INDEX(INDIRECT($G$8&X$10),$E39)),FALSE) -> 0 | Y39: =IFERROR(clean_alt(INDEX(INDIRECT($G$8&Y$10),$E39)),FALSE) -> 0 | Z39: =IFERROR(clean_alt(INDEX(INDIRECT($G$8&Z$10),$E39)),FALSE) -> 0 | AA39: 0
D40: Net Income After Extraordinaries | E40: 149 | F40: 149 | G40: =IFERROR(clean_alt(INDEX(INDIRECT($G$7&G$10),$F40)),FALSE) -> 16900000 | H40: =IFERROR(clean_alt(INDEX(INDIRECT($G$7&H$10),$F40)),FALSE) -> 3960000 | I40: =IFERROR(clean_alt(INDEX(INDIRECT($G$7&I$10),$F40)),FALSE) -> 16040001 | J40: =IFERROR(clean_alt(INDEX(INDIRECT($G$7&J$10),$F40)),FALSE) -> 16280001 | K40: =IFERROR(clean_alt(INDEX(INDIRECT($G$7&K$10),$F40)),FALSE) -> 22720000 | L40: 22720000 | M40: 59000002 | P40: 22720000 | V40: =IFERROR(clean_alt(INDEX(INDIRECT($G$8&V$10),$E40)),FALSE) -> 23420000 | W40: =IFERROR(clean_alt(INDEX(INDIRECT($G$8&W$10),$E40)),FALSE) -> 21900000 | X40: =IFERROR(clean_alt(INDEX(INDIRECT($G$8&X$10),$E40)),FALSE) -> 26750000 | Y40: =IFERROR(clean_alt(INDEX(INDIRECT($G$8&Y$10),$E40)),FALSE) -> 20860000 | Z40: =IFERROR(clean_alt(INDEX(INDIRECT($G$8&Z$10),$E40)),FALSE) -> 32320000 | AA40: 59000002
D41: Preferred Dividends | E41: 150 | F41: 150 | G41: =IFERROR(clean_alt(INDEX(INDIRECT($G$7&G$10),$F41)),FALSE) -> 0 | H41: =IFERROR(clean_alt(INDEX(INDIRECT($G$7&H$10),$F41)),FALSE) -> 0 | I41: =IFERROR(clean_alt(INDEX(INDIRECT($G$7&I$10),$F41)),FALSE) -> 0 | J41: =IFERROR(clean_alt(INDEX(INDIRECT($G$7&J$10),$F41)),FALSE) -> 0 | K41: =IFERROR(clean_alt(INDEX(INDIRECT($G$7&K$10),$F41)),FALSE) -> 0 | L41: 0 | M41: 0 | P41: 0 | V41: =IFERROR(clean_alt(INDEX(INDIRECT($G$8&V$10),$E41)),FALSE) -> 0 | W41: =IFERROR(clean_alt(INDEX(INDIRECT($G$8&W$10),$E41)),FALSE) -> 0 | X41: =IFERROR(clean_alt(INDEX(INDIRECT($G$8&X$10),$E41)),FALSE) -> 0 | Y41: =IFERROR(clean_alt(INDEX(INDIRECT($G$8&Y$10),$E41)),FALSE) -> 0 | Z41: =IFERROR(clean_alt(INDEX(INDIRECT($G$8&Z$10),$E41)),FALSE) -> 0 | AA41: 0
D42: Net Income Available to Common | E42: 151 | F42: 151 | G42: =IFERROR(clean_alt(INDEX(INDIRECT($G$7&G$10),$F42)),FALSE) -> 16900000 | H42: =IFERROR(clean_alt(INDEX(INDIRECT($G$7&H$10),$F42)),FALSE) -> 3960000 | I42: =IFERROR(clean_alt(INDEX(INDIRECT($G$7&I$10),$F42)),FALSE) -> 16040001 | J42: =IFERROR(clean_alt(INDEX(INDIRECT($G$7&J$10),$F42)),FALSE) -> 16280001 | K42: =IFERROR(clean_alt(INDEX(INDIRECT($G$7&K$10),$F42)),FALSE) -> 22720000 | L42: 22720000 | M42: 59000002 | P42: 22720000 | V42: =IFERROR(clean_alt(INDEX(INDIRECT($G$8&V$10),$E42)),FALSE) -> 23420000 | W42: =IFERROR(clean_alt(INDEX(INDIRECT($G$8&W$10),$E42)),FALSE) -> 21900000 | X42: =IFERROR(clean_alt(INDEX(INDIRECT($G$8&X$10),$E42)),FALSE) -> 26750000 | Y42: =IFERROR(clean_alt(INDEX(INDIRECT($G$8&Y$10),$E42)),FALSE) -> 20860000 | Z42: =IFERROR(clean_alt(INDEX(INDIRECT($G$8&Z$10),$E42)),FALSE) -> 32320000 | AA42: 59000002
D44: EPS (Basic) | E44: 152 | F44: 152 | G44: =IFERROR(clean_alt(INDEX(INDIRECT($G$7&G$10),$F44)),FALSE)*1000 -> 1.39999995 | H44: =IFERROR(clean_alt(INDEX(INDIRECT($G$7&H$10),$F44)),FALSE)*1000 -> 0.3100000031 | I44: =IFERROR(clean_alt(INDEX(INDIRECT($G$7&I$10),$F44)),FALSE)*1000 -> 1.320000039 | J44: =IFERROR(clean_alt(INDEX(INDIRECT($G$7&J$10),$F44)),FALSE)*1000 -> 1.39999995 | K44: =IFERROR(clean_alt(INDEX(INDIRECT($G$7&K$10),$F44)),FALSE)*1000 -> 1.85999996 | L44: =SUMIF($12:$12,TRUE,44:44) -> 1.85999996 | M44: 4.889999953 | P44: 1.85999996 | V44: =IFERROR(clean_alt(INDEX(INDIRECT($G$8&V$10),$E44)),FALSE)*1000 -> 1.939999987 | W44: =IFERROR(clean_alt(INDEX(INDIRECT($G$8&W$10),$E44)),FALSE)*1000 -> 1.85999996 | X44: =IFERROR(clean_alt(INDEX(INDIRECT($G$8&X$10),$E44)),FALSE)*1000 -> 2.249999903 | Y44: =IFERROR(clean_alt(INDEX(INDIRECT($G$8&Y$10),$E44)),FALSE)*1000 -> 1.709999982 | Z44: =IFERROR(clean_alt(INDEX(INDIRECT($G$8&Z$10),$E44)),FALSE)*1000 -> 2.719999989 | AA44: =AA42/AA45 -> 4.928989307
D45: Basic Shares Outstanding | E45: 154 | F45: 154 | G45: =IFERROR(clean_alt(INDEX(INDIRECT($G$7&G$10),$F45)),FALSE) -> 11970000 | H45: =IFERROR(clean_alt(INDEX(INDIRECT($G$7&H$10),$F45)),FALSE) -> 12050000 | I45: =IFERROR(clean_alt(INDEX(INDIRECT($G$7&I$10),$F45)),FALSE) -> 11970000 | J45: =IFERROR(clean_alt(INDEX(INDIRECT($G$7&J$10),$F45)),FALSE) -> 11970000 | K45: =IFERROR(clean_alt(INDEX(INDIRECT($G$7&K$10),$F45)),FALSE) -> 11990000 | L45: =SUMIF($12:$12,TRUE,45:45) -> 11990000 | M45: 47980000 | N45: =IFERROR(OFFSET(K45,0,-$K$2)/OFFSET(K45,0,-$K$2-1),FALSE) -> 1 | O45: =N45*K45+L45 -> 23980000 | P45: 11990000 | V45: =IFERROR(clean_alt(INDEX(INDIRECT($G$8&V$10),$E45)),FALSE) -> 12000000 | W45: =IFERROR(clean_alt(INDEX(INDIRECT($G$8&W$10),$E45)),FALSE) -> 11970000 | X45: =IFERROR(clean_alt(INDEX(INDIRECT($G$8&X$10),$E45)),FALSE) -> 11970000 | Y45: =IFERROR(clean_alt(INDEX(INDIRECT($G$8&Y$10),$E45)),FALSE) -> 11970000 | Z45: =IFERROR(clean_alt(INDEX(INDIRECT($G$8&Z$10),$E45)),FALSE) -> 11970000 | AA45: =Z45 -> 11970000
D46: EPS (Diluted) | E46: 155 | F46: 155 | G46: =IFERROR(clean_alt(INDEX(INDIRECT($G$7&G$10),$F46)),FALSE)*1000 -> 1.39999995 | H46: =IFERROR(clean_alt(INDEX(INDIRECT($G$7&H$10),$F46)),FALSE)*1000 -> 0.3100000031 | I46: =IFERROR(clean_alt(INDEX(INDIRECT($G$7&I$10),$F46)),FALSE)*1000 -> 1.320000039 | J46: =IFERROR(clean_alt(INDEX(INDIRECT($G$7&J$10),$F46)),FALSE)*1000 -> 1.39999995 | K46: =IFERROR(clean_alt(INDEX(INDIRECT($G$7&K$10),$F46)),FALSE)*1000 -> 1.85999996 | L46: =SUMIF($12:$12,TRUE,46:46) -> 1.85999996 | M46: 4.889999953 | N46: =IFERROR(OFFSET(K46,0,-$K$2)/OFFSET(K46,0,-$K$2-1),FALSE) -> 1.060605991 | O46: =N46*K46+L46 -> 3.832727062 | P46: 1.85999996 | V46: =IFERROR(clean_alt(INDEX(INDIRECT($G$8&V$10),$E46)),FALSE)*1000 -> 1.939999987 | W46: =IFERROR(clean_alt(INDEX(INDIRECT($G$8&W$10),$E46)),FALSE)*1000 -> 1.85999996 | X46: =IFERROR(clean_alt(INDEX(INDIRECT($G$8&X$10),$E46)),FALSE)*1000 -> 2.249999903 | Y46: =IFERROR(clean_alt(INDEX(INDIRECT($G$8&Y$10),$E46)),FALSE)*1000 -> 1.709999982 | Z46: =IFERROR(clean_alt(INDEX(INDIRECT($G$8&Z$10),$E46)),FALSE)*1000 -> 2.719999989 | AA46: 4.889999953
D47: Diluted Shares Outstanding | E47: 157 | F47: 157 | G47: =IFERROR(clean_alt(INDEX(INDIRECT($G$7&G$10),$F47)),FALSE) -> 12010000 | H47: =IFERROR(clean_alt(INDEX(INDIRECT($G$7&H$10),$F47)),FALSE) -> 12050000 | I47: =IFERROR(clean_alt(INDEX(INDIRECT($G$7&I$10),$F47)),FALSE) -> 11990000 | J47: =IFERROR(clean_alt(INDEX(INDIRECT($G$7&J$10),$F47)),FALSE) -> 12010000 | K47: =IFERROR(clean_alt(INDEX(INDIRECT($G$7&K$10),$F47)),FALSE) -> 12010000 | L47: =SUMIF($12:$12,TRUE,47:47) -> 12010000 | M47: 48060000 | V47: =IFERROR(clean_alt(INDEX(INDIRECT($G$8&V$10),$E47)),FALSE) -> 12010000 | W47: =IFERROR(clean_alt(INDEX(INDIRECT($G$8&W$10),$E47)),FALSE) -> 12010000 | X47: =IFERROR(clean_alt(INDEX(INDIRECT($G$8&X$10),$E47)),FALSE) -> 12010000 | Y47: =IFERROR(clean_alt(INDEX(INDIRECT($G$8&Y$10),$E47)),FALSE) -> 12010000 | Z47: =IFERROR(clean_alt(INDEX(INDIRECT($G$8&Z$10),$E47)),FALSE) -> 12010000 | AA47: 48060000
G48: ="'"&INDEX('Menu Sheet'!$Z$12:$Z$34,'Historic for Model'!$D$1)&"'!" -> 'AAGIY Balance Qtr'! | I48: =INDEX('Menu Sheet'!$Z$12:$Z$34,'Historic for Model'!$D$1) -> AAGIY Balance Qtr | K48: =INDEX('Menu Sheet'!R12:R34,'Historic for Model'!$D$1) -> AAGIY Balance Sheet | L48: ="'"&K48&"'!" -> 'AAGIY Balance Sheet'!
A49: Balance Sheet
B50: View Ratios
B51: All values USD millions. | E51: =INDEX(INDIRECT(G48&"A:A"),MATCH(B50,INDIRECT(G48&"A:A"),0)+2) -> All values HKD millions. | G51: =G10 -> B:B | H51: =H10 -> C:C | I51: =I10 -> D:D | J51: =J10 -> E:E | K51: =K10 -> F:F | V51: B:B | W51: C:C | X51: D:D | Y51: E:E | Z51: F:F
B52: Fiscal Year | E52: =IFERROR(match_partial_sheet($B$52,"A",10,K48,200),FALSE) -> 103 | F52: =IFERROR(match_partial_sheet(B51,"A",10,I48,200),FALSE) -> 103 | G52: =INDEX(INDIRECT($G$48&G$51),$F52) -> 2015-05-31 | H52: =INDEX(INDIRECT($G$48&H$51),$F52) -> 2015-11-30 | I52: =INDEX(INDIRECT($G$48&I$51),$F52) -> 2016-05-31 | J52: =INDEX(INDIRECT($G$48&J$51),$F52) -> 2016-11-30 | K52: =INDEX(INDIRECT($G$48&K$51),$F52) -> 2017-05-31 | V52: =INDEX(INDIRECT($L$48&V$10),$E52) -> 2012 | W52: =INDEX(INDIRECT($L$48&W$10),$E52) -> 2013 | X52: =INDEX(INDIRECT($L$48&X$10),$E52) -> 2014 | Y52: =INDEX(INDIRECT($L$48&Y$10),$E52) -> 2015 | Z52: =INDEX(INDIRECT($L$48&Z$10),$E52) -> 2016 | AA52: =AA11 -> 2017
C53: Assets
D54: Cash Only | E54: =IFERROR(MATCH($D54,INDIRECT($L$48&"A:A"),0),FALSE) -> 104 | F54: =IFERROR(MATCH($D54,INDIRECT($G$48&"A:A"),0),FALSE) -> 104 | G54: =IFERROR(clean_alt(INDEX(INDIRECT($G$48&G$51),$F54)),FALSE) -> 12830000 | H54: =IFERROR(clean_alt(INDEX(INDIRECT($G$48&H$51),$F54)),FALSE) -> 15440000 | I54: =IFERROR(clean_alt(INDEX(INDIRECT($G$48&I$51),$F54)),FALSE) -> 24570000 | J54: =IFERROR(clean_alt(INDEX(INDIRECT($G$48&J$51),$F54)),FALSE) -> 12740000 | K54: =IFERROR(clean_alt(INDEX(INDIRECT($G$48&K$51),$F54)),FALSE) -> 25220000 | V54: =IFERROR(clean_alt(INDEX(INDIRECT($L$48&V$51),$E54)),FALSE) -> 31160000 | W54: =IFERROR(clean_alt(INDEX(INDIRECT($L$48&W$51),$E54)),FALSE) -> 17960000 | X54: =IFERROR(clean_alt(INDEX(INDIRECT($L$48&X$51),$E54)),FALSE) -> 14230000 | Y54: =IFERROR(clean_alt(INDEX(INDIRECT($L$48&Y$51),$E54)),FALSE) -> 15440000 | Z54: =IFERROR(clean_alt(INDEX(INDIRECT($L$48&Z$51),$E54)),FALSE) -> 12740000 | AA54: =K54 -> 25220000
D55: Total Investment Assets | E55: =IFERROR(MATCH($D55,INDIRECT($L$48&"A:A"),0),FALSE) -> 106 | F55: 106 | G55: =IFERROR(clean_alt(INDEX(INDIRECT($G$48&G$51),$F55)),FALSE) -> 1120000000 | H55: =IFERROR(clean_alt(INDEX(INDIRECT($G$48&H$51),$F55)),FALSE) -> 1090000000 | I55: =IFERROR(clean_alt(INDEX(INDIRECT($G$48&I$51),$F55)),FALSE) -> 1170000000 | J55: =IFERROR(clean_alt(INDEX(INDIRECT($G$48&J$51),$F55)),FALSE) -> 1200000000 | K55: =IFERROR(clean_alt(INDEX(INDIRECT($G$48&K$51),$F55)),FALSE) -> 1300000000 | V55: =IFERROR(clean_alt(INDEX(INDIRECT($L$48&V$51),$E55)),FALSE) -> 864460032 | W55: =IFERROR(clean_alt(INDEX(INDIRECT($L$48&W$51),$E55)),FALSE) -> 949560000 | X55: =IFERROR(clean_alt(INDEX(INDIRECT($L$48&X$51),$E55)),FALSE) -> 1090000000 | Y55: =IFERROR(clean_alt(INDEX(INDIRECT($L$48&Y$51),$E55)),FALSE) -> 1090000000 | Z55: =IFERROR(clean_alt(INDEX(INDIRECT($L$48&Z$51),$E55)),FALSE) -> 1200000000 | AA55: =K55 -> 1300000000
D56: Premium Balance Receivables | E56: 118 | F56: 118 | G56: =IFERROR(clean_alt(INDEX(INDIRECT($G$48&G$51),$F56)),FALSE) -> 0 | H56: =IFERROR(clean_alt(INDEX(INDIRECT($G$48&H$51),$F56)),FALSE) -> 0 | I56: =IFERROR(clean_alt(INDEX(INDIRECT($G$48&I$51),$F56)),FALSE) -> 0 | J56: =IFERROR(clean_alt(INDEX(INDIRECT($G$48&J$51),$F56)),FALSE) -> 0 | K56: =IFERROR(clean_alt(INDEX(INDIRECT($G$48&K$51),$F56)),FALSE) -> 0 | V56: =IFERROR(clean_alt(INDEX(INDIRECT($L$48&V$51),$E56)),FALSE) -> 6530000 | W56: =IFERROR(clean_alt(INDEX(INDIRECT($L$48&W$51),$E56)),FALSE) -> 6740000 | X56: =IFERROR(clean_alt(INDEX(INDIRECT($L$48&X$51),$E56)),FALSE) -> 7740000 | Y56: =IFERROR(clean_alt(INDEX(INDIRECT($L$48&Y$51),$E56)),FALSE) -> 7930000 | Z56: =IFERROR(clean_alt(INDEX(INDIRECT($L$48&Z$51),$E56)),FALSE) -> 7790000 | AA56: =K56 -> 0
D57: Net Property, Plant & Equipment | E57: 120 | F57: 120 | G57: =IFERROR(clean_alt(INDEX(INDIRECT($G$48&G$51),$F57)),FALSE) -> 4010000.25 | H57: =IFERROR(clean_alt(INDEX(INDIRECT($G$48&H$51),$F57)),FALSE) -> 3880000 | I57: =IFERROR(clean_alt(INDEX(INDIRECT($G$48&I$51),$F57)),FALSE) -> 8680000 | J57: =IFERROR(clean_alt(INDEX(INDIRECT($G$48&J$51),$F57)),FALSE) -> 8780000 | K57: =IFERROR(clean_alt(INDEX(INDIRECT($G$48&K$51),$F57)),FALSE) -> 9090000 | V57: =IFERROR(clean_alt(INDEX(INDIRECT($L$48&V$51),$E57)),FALSE) -> 3190000 | W57: =IFERROR(clean_alt(INDEX(INDIRECT($L$48&W$51),$E57)),FALSE) -> 3720000 | X57: =IFERROR(clean_alt(INDEX(INDIRECT($L$48&X$51),$E57)),FALSE) -> 4200000 | Y57: =IFERROR(clean_alt(INDEX(INDIRECT($L$48&Y$51),$E57)),FALSE) -> 3880000 | Z57: =IFERROR(clean_alt(INDEX(INDIRECT($L$48&Z$51),$E57)),FALSE) -> 8780000 | AA57: 9090000
D58: Investment in Unconsolidated Subs. | E58: 121 | F58: 121 | G58: =IFERROR(clean_alt(INDEX(INDIRECT($G$48&G$51),$F58)),FALSE) -> 1090000 | H58: =IFERROR(clean_alt(INDEX(INDIRECT($G$48&H$51),$F58)),FALSE) -> 1060000 | I58: =IFERROR(clean_alt(INDEX(INDIRECT($G$48&I$51),$F58)),FALSE) -> 4730000 | J58: =IFERROR(clean_alt(INDEX(INDIRECT($G$48&J$51),$F58)),FALSE) -> 5040000 | K58: =IFERROR(clean_alt(INDEX(INDIRECT($G$48&K$51),$F58)),FALSE) -> 4910000 | V58: =IFERROR(clean_alt(INDEX(INDIRECT($L$48&V$51),$E58)),FALSE) -> 705250 | W58: =IFERROR(clean_alt(INDEX(INDIRECT($L$48&W$51),$E58)),FALSE) -> 721000 | X58: =IFERROR(clean_alt(INDEX(INDIRECT($L$48&X$51),$E58)),FALSE) -> 1020000 | Y58: =IFERROR(clean_alt(INDEX(INDIRECT($L$48&Y$51),$E58)),FALSE) -> 1060000 | Z58: =IFERROR(clean_alt(INDEX(INDIRECT($L$48&Z$51),$E58)),FALSE) -> 5040000 | AA58: 4910000
D59: Separate & Variable Account Assets | E59: 123 | F59: 123 | G59: =IFERROR(clean_alt(INDEX(INDIRECT($G$48&G$51),$F59)),FALSE) -> 0 | H59: =IFERROR(clean_alt(INDEX(INDIRECT($G$48&H$51),$F59)),FALSE) -> 0 | I59: =IFERROR(clean_alt(INDEX(INDIRECT($G$48&I$51),$F59)),FALSE) -> 0 | J59: =IFERROR(clean_alt(INDEX(INDIRECT($G$48&J$51),$F59)),FALSE) -> 0 | K59: =IFERROR(clean_alt(INDEX(INDIRECT($G$48&K$51),$F59)),FALSE) -> 0 | V59: =IFERROR(clean_alt(INDEX(INDIRECT($L$48&V$51),$E59)),FALSE) -> 0 | W59: =IFERROR(clean_alt(INDEX(INDIRECT($L$48&W$51),$E59)),FALSE) -> 0 | X59: =IFERROR(clean_alt(INDEX(INDIRECT($L$48&X$51),$E59)),FALSE) -> 0 | Y59: =IFERROR(clean_alt(INDEX(INDIRECT($L$48&Y$51),$E59)),FALSE) -> 0 | Z59: =IFERROR(clean_alt(INDEX(INDIRECT($L$48&Z$51),$E59)),FALSE) -> 0 | AA59: 0
D60: Deferred Charges | E60: 124 | F60: 124 | G60: =IFERROR(clean_alt(INDEX(INDIRECT($G$48&G$51),$F60)),FALSE) -> 0 | H60: =IFERROR(clean_alt(INDEX(INDIRECT($G$48&H$51),$F60)),FALSE) -> 0 | I60: =IFERROR(clean_alt(INDEX(INDIRECT($G$48&I$51),$F60)),FALSE) -> 0 | J60: =IFERROR(clean_alt(INDEX(INDIRECT($G$48&J$51),$F60)),FALSE) -> 0 | K60: =IFERROR(clean_alt(INDEX(INDIRECT($G$48&K$51),$F60)),FALSE) -> 0 | V60: =IFERROR(clean_alt(INDEX(INDIRECT($L$48&V$51),$E60)),FALSE) -> 112140000 | W60: =IFERROR(clean_alt(INDEX(INDIRECT($L$48&W$51),$E60)),FALSE) -> 122180000 | X60: =IFERROR(clean_alt(INDEX(INDIRECT($L$48&X$51),$E60)),FALSE) -> 128869992 | Y60: =IFERROR(clean_alt(INDEX(INDIRECT($L$48&Y$51),$E60)),FALSE) -> 132700000 | Z60: =IFERROR(clean_alt(INDEX(INDIRECT($L$48&Z$51),$E60)),FALSE) -> 146770000 | AA60: 0
D61: Tangible Other Assets | E61: 125 | F61: 125 | G61: =IFERROR(clean_alt(INDEX(INDIRECT($G$48&G$51),$F61)),FALSE) -> 0 | H61: =IFERROR(clean_alt(INDEX(INDIRECT($G$48&H$51),$F61)),FALSE) -> 0 | I61: =IFERROR(clean_alt(INDEX(INDIRECT($G$48&I$51),$F61)),FALSE) -> 0 | J61: =IFERROR(clean_alt(INDEX(INDIRECT($G$48&J$51),$F61)),FALSE) -> 0 | K61: =IFERROR(clean_alt(INDEX(INDIRECT($G$48&K$51),$F61)),FALSE) -> 0 | V61: =IFERROR(clean_alt(INDEX(INDIRECT($L$48&V$51),$E61)),FALSE) -> 12630000 | W61: =IFERROR(clean_alt(INDEX(INDIRECT($L$48&W$51),$E61)),FALSE) -> 20890000 | X61: =IFERROR(clean_alt(INDEX(INDIRECT($L$48&X$51),$E61)),FALSE) -> 21590000 | Y61: =IFERROR(clean_alt(INDEX(INDIRECT($L$48&Y$51),$E61)),FALSE) -> 22390000 | Z61: =IFERROR(clean_alt(INDEX(INDIRECT($L$48&Z$51),$E61)),FALSE) -> 23430000 | AA61: 0
D62: Intangible Assets | E62: 126 | F62: 126 | G62: =IFERROR(clean_alt(INDEX(INDIRECT($G$48&G$51),$F62)),FALSE) -> 16559999 | H62: =IFERROR(clean_alt(INDEX(INDIRECT($G$48&H$51),$F62)),FALSE) -> 14220000 | I62: =IFERROR(clean_alt(INDEX(INDIRECT($G$48&I$51),$F62)),FALSE) -> 13980000 | J62: =IFERROR(clean_alt(INDEX(INDIRECT($G$48&J$51),$F62)),FALSE) -> 13520000 | K62: =IFERROR(clean_alt(INDEX(INDIRECT($G$48&K$51),$F62)),FALSE) -> 13800000 | V62: =IFERROR(clean_alt(INDEX(INDIRECT($L$48&V$51),$E62)),FALSE) -> 2110000 | W62: =IFERROR(clean_alt(INDEX(INDIRECT($L$48&W$51),$E62)),FALSE) -> 10240000 | X62: =IFERROR(clean_alt(INDEX(INDIRECT($L$48&X$51),$E62)),FALSE) -> 16690001 | Y62: =IFERROR(clean_alt(INDEX(INDIRECT($L$48&Y$51),$E62)),FALSE) -> 14220000 | Z62: =IFERROR(clean_alt(INDEX(INDIRECT($L$48&Z$51),$E62)),FALSE) -> 13520000 | AA62: 13800000
D63: Other | E63: FALSE | F63: FALSE | G63: =G65-SUM(G54:G62) -> 1120520001 | H63: =H65-SUM(H54:H62) -> 1053290000 | I63: =I65-SUM(I54:I62) -> 1161489968 | J63: =J65-SUM(J54:J62) -> 1157349968 | K63: =K65-SUM(K54:K62) -> 1310900000 | V63: =V65-SUM(V54:V62) -> 761734686 | W63: =W65-SUM(W54:W62) -> 858638984 | X63: =X65-SUM(X54:X62) -> 922970103 | Y63: =Y65-SUM(Y54:Y62) -> 890270000 | Z63: =Z65-SUM(Z54:Z62) -> 979359968 | AA63: 1310900000
D64: Total Assets | E64: 127 | F64: =IFERROR(MATCH($D64,INDIRECT($G$48&"A:A"),0),FALSE) -> 127 | G64: =SUM(G54:G63) -> 2275010000 | H64: =SUM(H54:H63) -> 2177890000 | I64: =SUM(I54:I63) -> 2383449968 | J64: =SUM(J54:J63) -> 2397429968 | K64: =SUM(K54:K63) -> 2663920000 | V64: =SUM(V54:V63) -> 1794659968 | W64: =SUM(W54:W63) -> 1990649984 | X64: =SUM(X54:X63) -> 2207310096 | Y64: =SUM(Y54:Y63) -> 2177890000 | Z64: =SUM(Z54:Z63) -> 2397429968 | AA64: 2663920000
G65: =G81 -> 2275010000 | H65: =H81 -> 2177890000 | I65: =I81 -> 2383449968 | J65: =J81 -> 2397429968 | K65: =K81 -> 2663920000 | V65: =V81 -> 1794659968 | W65: 1990649984 | X65: 2207310096 | Y65: 2177890000 | Z65: 2397429968 | AA65: 2663920000
C66: Liabilities & Shareholders' Equity | G66: =G65-G64 -> 0 | H66: =H65-H64 -> 0 | I66: =I65-I64 -> 0 | J66: =J65-J64 -> 0 | K66: =K65-K64 -> 0 | V66: =V65-V64 -> 0 | W66: =W65-W64 -> 0 | X66: =X65-X64 -> 0 | Y66: =Y65-Y64 -> 0 | Z66: =Z65-Z64 -> 0
D67: Insurance Policy Liabilities (Insurance) | E67: =IFERROR(MATCH($D67,INDIRECT($L$48&"A:A"),0),FALSE) -> 134 | F67: =IFERROR(MATCH($D67,INDIRECT($G$48&"A:A"),0),FALSE) -> 134 | G67: =IFERROR(clean_alt(INDEX(INDIRECT($G$48&G$51),$F67)),FALSE) -> 954040000 | H67: =IFERROR(clean_alt(INDEX(INDIRECT($G$48&H$51),$F67)),FALSE) -> 940580032 | I67: =IFERROR(clean_alt(INDEX(INDIRECT($G$48&I$51),$F67)),FALSE) -> 992689984 | J67: =IFERROR(clean_alt(INDEX(INDIRECT($G$48&J$51),$F67)),FALSE) -> 1030000000 | K67: =IFERROR(clean_alt(INDEX(INDIRECT($G$48&K$51),$F67)),FALSE) -> 1120000000 | V67: =IFERROR(clean_alt(INDEX(INDIRECT($L$48&V$51),$E67)),FALSE) -> 761720000 | W67: =IFERROR(clean_alt(INDEX(INDIRECT($L$48&W$51),$E67)),FALSE) -> 858640000 | X67: =IFERROR(clean_alt(INDEX(INDIRECT($L$48&X$51),$E67)),FALSE) -> 925770048 | Y67: =IFERROR(clean_alt(INDEX(INDIRECT($L$48&Y$51),$E67)),FALSE) -> 940580032 | Z67: =IFERROR(clean_alt(INDEX(INDIRECT($L$48&Z$51),$E67)),FALSE) -> 1030000000 | AA67: =K67 -> 1120000000
D68: Unearned Premiums | E68: 135 | F68: 135 | G68: =IFERROR(clean_alt(INDEX(INDIRECT($G$48&G$51),$F68)),FALSE) -> 0 | H68: =IFERROR(clean_alt(INDEX(INDIRECT($G$48&H$51),$F68)),FALSE) -> 61810000 | I68: =IFERROR(clean_alt(INDEX(INDIRECT($G$48&I$51),$F68)),FALSE) -> 0 | J68: =IFERROR(clean_alt(INDEX(INDIRECT($G$48&J$51),$F68)),FALSE) -> 67230000 | K68: =IFERROR(clean_alt(INDEX(INDIRECT($G$48&K$51),$F68)),FALSE) -> 0 | V68: =IFERROR(clean_alt(INDEX(INDIRECT($L$48&V$51),$E68)),FALSE) -> 0 | W68: =IFERROR(clean_alt(INDEX(INDIRECT($L$48&W$51),$E68)),FALSE) -> 0 | X68: =IFERROR(clean_alt(INDEX(INDIRECT($L$48&X$51),$E68)),FALSE) -> 0 | Y68: =IFERROR(clean_alt(INDEX(INDIRECT($L$48&Y$51),$E68)),FALSE) -> 61810000 | Z68: =IFERROR(clean_alt(INDEX(INDIRECT($L$48&Z$51),$E68)),FALSE) -> 67230000 | AA68: =K68 -> 0
D69: Policy Claims | E69: 136 | F69: 136 | G69: =IFERROR(clean_alt(INDEX(INDIRECT($G$48&G$51),$F69)),FALSE) -> 904320000 | H69: =IFERROR(clean_alt(INDEX(INDIRECT($G$48&H$51),$F69)),FALSE) -> -1990000 | I69: =IFERROR(clean_alt(INDEX(INDIRECT($G$48&I$51),$F69)),FALSE) -> 952320000 | J69: =IFERROR(clean_alt(INDEX(INDIRECT($G$48&J$51),$F69)),FALSE) -> -2600000 | K69: =IFERROR(clean_alt(INDEX(INDIRECT($G$48&K$51),$F69)),FALSE) -> 1080000000 | V69: =IFERROR(clean_alt(INDEX(INDIRECT($L$48&V$51),$E69)),FALSE) -> 701219968 | W69: =IFERROR(clean_alt(INDEX(INDIRECT($L$48&W$51),$E69)),FALSE) -> 800809984 | X69: =IFERROR(clean_alt(INDEX(INDIRECT($L$48&X$51),$E69)),FALSE) -> 875210048 | Y69: =IFERROR(clean_alt(INDEX(INDIRECT($L$48&Y$51),$E69)),FALSE) -> -1990000 | Z69: =IFERROR(clean_alt(INDEX(INDIRECT($L$48&Z$51),$E69)),FALSE) -> -2600000 | AA69: 1080000000
D70: Other Insurance Liabilities | E70: 137 | F70: 137 | G70: =IFERROR(clean_alt(INDEX(INDIRECT($G$48&G$51),$F70)),FALSE) -> 49720000 | H70: =IFERROR(clean_alt(INDEX(INDIRECT($G$48&H$51),$F70)),FALSE) -> 831539968 | I70: =IFERROR(clean_alt(INDEX(INDIRECT($G$48&I$51),$F70)),FALSE) -> 40370000 | J70: =IFERROR(clean_alt(INDEX(INDIRECT($G$48&J$51),$F70)),FALSE) -> 916099968 | K70: =IFERROR(clean_alt(INDEX(INDIRECT($G$48&K$51),$F70)),FALSE) -> 40890000 | V70: =IFERROR(clean_alt(INDEX(INDIRECT($L$48&V$51),$E70)),FALSE) -> 60500000 | W70: =IFERROR(clean_alt(INDEX(INDIRECT($L$48&W$51),$E70)),FALSE) -> 57830000 | X70: =IFERROR(clean_alt(INDEX(INDIRECT($L$48&X$51),$E70)),FALSE) -> 50560000 | Y70: =IFERROR(clean_alt(INDEX(INDIRECT($L$48&Y$51),$E70)),FALSE) -> 831539968 | Z70: =IFERROR(clean_alt(INDEX(INDIRECT($L$48&Z$51),$E70)),FALSE) -> 916099968 | AA70: 40890000
D71: Total Debt | E71: 138 | F71: 138 | G71: =IFERROR(clean_alt(INDEX(INDIRECT($G$48&G$51),$F71)),FALSE) -> 54640000 | H71: =IFERROR(clean_alt(INDEX(INDIRECT($G$48&H$51),$F71)),FALSE) -> 48680000 | I71: =IFERROR(clean_alt(INDEX(INDIRECT($G$48&I$51),$F71)),FALSE) -> 47880000 | J71: =IFERROR(clean_alt(INDEX(INDIRECT($G$48&J$51),$F71)),FALSE) -> 42230000 | K71: =IFERROR(clean_alt(INDEX(INDIRECT($G$48&K$51),$F71)),FALSE) -> 48150000 | V71: =IFERROR(clean_alt(INDEX(INDIRECT($L$48&V$51),$E71)),FALSE) -> 5940000 | W71: =IFERROR(clean_alt(INDEX(INDIRECT($L$48&W$51),$E71)),FALSE) -> 29760000 | X71: =IFERROR(clean_alt(INDEX(INDIRECT($L$48&X$51),$E71)),FALSE) -> 51860000 | Y71: =IFERROR(clean_alt(INDEX(INDIRECT($L$48&Y$51),$E71)),FALSE) -> 48680000 | Z71: =IFERROR(clean_alt(INDEX(INDIRECT($L$48&Z$51),$E71)),FALSE) -> 42230000 | AA71: 48150000
D72: Capitalized Lease Obligations | E72: 146 | F72: 146 | G72: =IFERROR(clean_alt(INDEX(INDIRECT($G$48&G$51),$F72)),FALSE) -> 0 | H72: =IFERROR(clean_alt(INDEX(INDIRECT($G$48&H$51),$F72)),FALSE) -> 0 | I72: =IFERROR(clean_alt(INDEX(INDIRECT($G$48&I$51),$F72)),FALSE) -> 0 | J72: =IFERROR(clean_alt(INDEX(INDIRECT($G$48&J$51),$F72)),FALSE) -> 0 | K72: =IFERROR(clean_alt(INDEX(INDIRECT($G$48&K$51),$F72)),FALSE) -> 0 | V72: =IFERROR(clean_alt(INDEX(INDIRECT($L$48&V$51),$E72)),FALSE) -> 0 | W72: =IFERROR(clean_alt(INDEX(INDIRECT($L$48&W$51),$E72)),FALSE) -> 0 | X72: =IFERROR(clean_alt(INDEX(INDIRECT($L$48&X$51),$E72)),FALSE) -> 0 | Y72: =IFERROR(clean_alt(INDEX(INDIRECT($L$48&Y$51),$E72)),FALSE) -> 0 | Z72: =IFERROR(clean_alt(INDEX(INDIRECT($L$48&Z$51),$E72)),FALSE) -> 0 | AA72: 0
D73: Provision for Risks & Charges | E73: 147 | F73: 147 | G73: =IFERROR(clean_alt(INDEX(INDIRECT($G$48&G$51),$F73)),FALSE) -> 0 | H73: =IFERROR(clean_alt(INDEX(INDIRECT($G$48&H$51),$F73)),FALSE) -> 0 | I73: =IFERROR(clean_alt(INDEX(INDIRECT($G$48&I$51),$F73)),FALSE) -> 0 | J73: =IFERROR(clean_alt(INDEX(INDIRECT($G$48&J$51),$F73)),FALSE) -> 0 | K73: =IFERROR(clean_alt(INDEX(INDIRECT($G$48&K$51),$F73)),FALSE) -> 0 | V73: =IFERROR(clean_alt(INDEX(INDIRECT($L$48&V$51),$E73)),FALSE) -> 1580000 | W73: =IFERROR(clean_alt(INDEX(INDIRECT($L$48&W$51),$E73)),FALSE) -> 1450000 | X73: =IFERROR(clean_alt(INDEX(INDIRECT($L$48&X$51),$E73)),FALSE) -> 1650000 | Y73: =IFERROR(clean_alt(INDEX(INDIRECT($L$48&Y$51),$E73)),FALSE) -> 1900000 | Z73: =IFERROR(clean_alt(INDEX(INDIRECT($L$48&Z$51),$E73)),FALSE) -> 1960000 | AA73: 0
D74: Deferred Taxes | E74: 148 | F74: 148 | G74: =IFERROR(clean_alt(INDEX(INDIRECT($G$48&G$51),$F74)),FALSE) -> 24370000 | H74: =IFERROR(clean_alt(INDEX(INDIRECT($G$48&H$51),$F74)),FALSE) -> 22830000 | I74: =IFERROR(clean_alt(INDEX(INDIRECT($G$48&I$51),$F74)),FALSE) -> 26540000 | J74: =IFERROR(clean_alt(INDEX(INDIRECT($G$48&J$51),$F74)),FALSE) -> 25360000 | K74: =IFERROR(clean_alt(INDEX(INDIRECT($G$48&K$51),$F74)),FALSE) -> 25940000 | V74: =IFERROR(clean_alt(INDEX(INDIRECT($L$48&V$51),$E74)),FALSE) -> 17240000 | W74: =IFERROR(clean_alt(INDEX(INDIRECT($L$48&W$51),$E74)),FALSE) -> 15690000 | X74: =IFERROR(clean_alt(INDEX(INDIRECT($L$48&X$51),$E74)),FALSE) -> 23800000 | Y74: =IFERROR(clean_alt(INDEX(INDIRECT($L$48&Y$51),$E74)),FALSE) -> 22830000 | Z74: =IFERROR(clean_alt(INDEX(INDIRECT($L$48&Z$51),$E74)),FALSE) -> 25360000 | AA74: 25940000
D75: Other Liabilities | E75: 151 | F75: =IFERROR(MATCH($D75,INDIRECT($G$48&"A:A"),0),FALSE) -> 151 | G75: =IFERROR(clean_alt(INDEX(INDIRECT($G$48&G$51),$F75)),FALSE) -> 40660000 | H75: =IFERROR(clean_alt(INDEX(INDIRECT($G$48&H$51),$F75)),FALSE) -> 45440000 | I75: =IFERROR(clean_alt(INDEX(INDIRECT($G$48&I$51),$F75)),FALSE) -> 44920000 | J75: =IFERROR(clean_alt(INDEX(INDIRECT($G$48&J$51),$F75)),FALSE) -> 45220000 | K75: =IFERROR(clean_alt(INDEX(INDIRECT($G$48&K$51),$F75)),FALSE) -> 47570000 | V75: =IFERROR(clean_alt(INDEX(INDIRECT($L$48&V$51),$E75)),FALSE) -> 38540000 | W75: =IFERROR(clean_alt(INDEX(INDIRECT($L$48&W$51),$E75)),FALSE) -> 34000000 | X75: =IFERROR(clean_alt(INDEX(INDIRECT($L$48&X$51),$E75)),FALSE) -> 38400000 | Y75: =IFERROR(clean_alt(INDEX(INDIRECT($L$48&Y$51),$E75)),FALSE) -> 43540000 | Z75: =IFERROR(clean_alt(INDEX(INDIRECT($L$48&Z$51),$E75)),FALSE) -> 43260000 | AA75: 47570000
D76: Total Liabilities | E76: 154 | F76: =IFERROR(MATCH($D76,INDIRECT($G$48&"A:A"),0),FALSE) -> 154 | G76: =SUM(G67:G75) -> 2027750000 | H76: =SUM(H67:H75) -> 1948890000 | I76: =SUM(I67:I75) -> 2104719984 | J76: =SUM(J67:J75) -> 2123539968 | K76: =SUM(K67:K75) -> 2362550000 | V76: =SUM(V67:V75) -> 1586739968 | W76: =SUM(W67:W75) -> 1798179984 | X76: =SUM(X67:X75) -> 1967250096 | Y76: =SUM(Y67:Y75) -> 1948890000 | Z76: =SUM(Z67:Z75) -> 2123539968 | AA76: 2362550000
AA77: 0
D78: Total Shareholders' Equity | E78: 170 | F78: =IFERROR(MATCH($D78,INDIRECT($G$48&"A:A"),0),FALSE) -> 170 | G78: =IFERROR(clean_alt(INDEX(INDIRECT($G$48&G$51),$F78)),FALSE) -> 246130000 | H78: =IFERROR(clean_alt(INDEX(INDIRECT($G$48&H$51),$F78)),FALSE) -> 227920000 | I78: =IFERROR(clean_alt(INDEX(INDIRECT($G$48&I$51),$F78)),FALSE) -> 276089984 | J78: =IFERROR(clean_alt(INDEX(INDIRECT($G$48&J$51),$F78)),FALSE) -> 271360000 | K78: =IFERROR(clean_alt(INDEX(INDIRECT($G$48&K$51),$F78)),FALSE) -> 298560000 | V78: =IFERROR(clean_alt(INDEX(INDIRECT($L$48&V$51),$E78)),FALSE) -> 206900000 | W78: =IFERROR(clean_alt(INDEX(INDIRECT($L$48&W$51),$E78)),FALSE) -> 191350000 | X78: =IFERROR(clean_alt(INDEX(INDIRECT($L$48&X$51),$E78)),FALSE) -> 238900000 | Y78: =IFERROR(clean_alt(INDEX(INDIRECT($L$48&Y$51),$E78)),FALSE) -> 227920000 | Z78: =IFERROR(clean_alt(INDEX(INDIRECT($L$48&Z$51),$E78)),FALSE) -> 271360000 | AA78: 298560000
D79: Accumulated Minority Interest | E79: 173 | F79: =IFERROR(MATCH($D79,INDIRECT($G$48&"A:A"),0),FALSE) -> 173 | G79: =IFERROR(clean_alt(INDEX(INDIRECT($G$48&G$51),$F79)),FALSE) -> 1130000 | H79: =IFERROR(clean_alt(INDEX(INDIRECT($G$48&H$51),$F79)),FALSE) -> 1080000 | I79: =IFERROR(clean_alt(INDEX(INDIRECT($G$48&I$51),$F79)),FALSE) -> 2640000 | J79: =IFERROR(clean_alt(INDEX(INDIRECT($G$48&J$51),$F79)),FALSE) -> 2530000 | K79: =IFERROR(clean_alt(INDEX(INDIRECT($G$48&K$51),$F79)),FALSE) -> 2810000 | V79: =IFERROR(clean_alt(INDEX(INDIRECT($L$48&V$51),$E79)),FALSE) -> 1020000 | W79: =IFERROR(clean_alt(INDEX(INDIRECT($L$48&W$51),$E79)),FALSE) -> 1120000 | X79: =IFERROR(clean_alt(INDEX(INDIRECT($L$48&X$51),$E79)),FALSE) -> 1160000 | Y79: =IFERROR(clean_alt(INDEX(INDIRECT($L$48&Y$51),$E79)),FALSE) -> 1080000 | Z79: =IFERROR(clean_alt(INDEX(INDIRECT($L$48&Z$51),$E79)),FALSE) -> 2530000 | AA79: 2810000
AA80: 0
D81: Liabilities & Shareholders' Equity | G81: =G76+G78+G79 -> 2275010000 | H81: =H76+H78+H79 -> 2177890000 | I81: =I76+I78+I79 -> 2383449968 | J81: =J76+J78+J79 -> 2397429968 | K81: =K76+K78+K79 -> 2663920000 | V81: =V76+V78+V79 -> 1794659968 | W81: =W76+W78+W79 -> 1990649984 | X81: =X76+X78+X79 -> 2207310096 | Y81: =Y76+Y78+Y79 -> 2177890000 | Z81: =Z76+Z78+Z79 -> 2397429968 | AA81: 2663920000
G83: ="'"&INDEX('Menu Sheet'!AA12:AA34,'Historic for Model'!$D$1)&"'!" -> 'AAGIY Cash Qtr'! | I83: =INDEX('Menu Sheet'!AA12:AA34,'Historic for Model'!$D$1) -> AAGIY Cash Qtr | K83: =INDEX('Menu Sheet'!S12:S34,'Historic for Model'!$D$1) -> AAGIY Cash Flow | L83: ="'"&K83&"'!" -> 'AAGIY Cash Flow'!
A84: Cash Flow
B85: View Ratios
B86: All values USD millions. | E86: =INDEX(INDIRECT(G83&"A:A"),MATCH(B85,INDIRECT(G83&"A:A"),0)+2) -> All values HKD millions. | G86: =G10 -> B:B | H86: =H10 -> C:C | I86: =I10 -> D:D | J86: =J10 -> E:E | K86: =K10 -> F:F | V86: B:B | W86: C:C | X86: D:D | Y86: E:E | Z86: F:F
B87: Fiscal Year | E87: =IFERROR(match_partial_sheet($B$52,"A",10,K83,200),FALSE) -> 103 | F87: =IFERROR(match_partial_sheet(B86,"A",10,I83,200),FALSE) -> 103 | G87: =INDEX(INDIRECT($G$83&G$51),$F87) -> 2015-05-31 | H87: =INDEX(INDIRECT($G$83&H$51),$F87) -> 2015-11-30 | I87: =INDEX(INDIRECT($G$83&I$51),$F87) -> 2016-05-31 | J87: =INDEX(INDIRECT($G$83&J$51),$F87) -> 2016-11-30 | K87: =INDEX(INDIRECT($G$83&K$51),$F87) -> 2017-05-31 | V87: =INDEX(INDIRECT($L$83&V$10),$E87) -> 2012 | W87: =INDEX(INDIRECT($L$83&W$10),$E87) -> 2013 | X87: =INDEX(INDIRECT($L$83&X$10),$E87) -> 2014 | Y87: =INDEX(INDIRECT($L$83&Y$10),$E87) -> 2015 | Z87: =INDEX(INDIRECT($L$83&Z$10),$E87) -> 2016
D89: Capital Expenditures | E89: =IFERROR(MATCH($D89,INDIRECT($G$83&"A:A"),0),FALSE) -> 113 | F89: =IFERROR(MATCH($D89,INDIRECT($L$83&"A:A"),0),FALSE) -> 113 | G89: =IFERROR(clean_alt(INDEX(INDIRECT($G$83&G$51),$F89)),FALSE) -> -767680 | H89: =IFERROR(clean_alt(INDEX(INDIRECT($G$83&H$51),$F89)),FALSE) -> -1110000 | I89: =IFERROR(clean_alt(INDEX(INDIRECT($G$83&I$51),$F89)),FALSE) -> -1140000 | J89: =IFERROR(clean_alt(INDEX(INDIRECT($G$83&J$51),$F89)),FALSE) -> -759010 | K89: =IFERROR(clean_alt(INDEX(INDIRECT($G$83&K$51),$F89)),FALSE) -> -590320 | V89: =IFERROR(clean_alt(INDEX(INDIRECT($L$83&V$51),$E89)),FALSE) -> -2790000 | W89: =IFERROR(clean_alt(INDEX(INDIRECT($L$83&W$51),$E89)),FALSE) -> -1870000 | X89: =IFERROR(clean_alt(INDEX(INDIRECT($L$83&X$51),$E89)),FALSE) -> -10600000 | Y89: =IFERROR(clean_alt(INDEX(INDIRECT($L$83&Y$51),$E89)),FALSE) -> -1880000 | Z89: =IFERROR(clean_alt(INDEX(INDIRECT($L$83&Z$51),$E89)),FALSE) -> -1900000
D90: Net Assets from Acquisitions | E90: =IFERROR(MATCH($D90,INDIRECT($G$83&"A:A"),0),FALSE) -> 117 | F90: =IFERROR(MATCH($D90,INDIRECT($L$83&"A:A"),0),FALSE) -> 117 | G90: =IFERROR(clean_alt(INDEX(INDIRECT($G$83&G$51),$F90)),FALSE) -> 0 | H90: =IFERROR(clean_alt(INDEX(INDIRECT($G$83&H$51),$F90)),FALSE) -> 0 | I90: =IFERROR(clean_alt(INDEX(INDIRECT($G$83&I$51),$F90)),FALSE) -> 0 | J90: =IFERROR(clean_alt(INDEX(INDIRECT($G$83&J$51),$F90)),FALSE) -> 0 | K90: =IFERROR(clean_alt(INDEX(INDIRECT($G$83&K$51),$F90)),FALSE) -> 0 | V90: =IFERROR(clean_alt(INDEX(INDIRECT($L$83&V$51),$E90)),FALSE) -> 0 | W90: =IFERROR(clean_alt(INDEX(INDIRECT($L$83&W$51),$E90)),FALSE) -> -13980000 | X90: =IFERROR(clean_alt(INDEX(INDIRECT($L$83&X$51),$E90)),FALSE) -> 0 | Y90: =IFERROR(clean_alt(INDEX(INDIRECT($L$83&Y$51),$E90)),FALSE) -> 0 | Z90: =IFERROR(clean_alt(INDEX(INDIRECT($L$83&Z$51),$E90)),FALSE) -> 0
D91: Sale of Fixed Assets & Businesses | E91: 118 | F91: 118 | G91: =IFERROR(clean_alt(INDEX(INDIRECT($G$83&G$51),$F91)),FALSE) -> 0 | H91: =IFERROR(clean_alt(INDEX(INDIRECT($G$83&H$51),$F91)),FALSE) -> 162780 | I91: =IFERROR(clean_alt(INDEX(INDIRECT($G$83&I$51),$F91)),FALSE) -> 0 | J91: =IFERROR(clean_alt(INDEX(INDIRECT($G$83&J$51),$F91)),FALSE) -> 0 | K91: =IFERROR(clean_alt(INDEX(INDIRECT($G$83&K$51),$F91)),FALSE) -> 0 | V91: =IFERROR(clean_alt(INDEX(INDIRECT($L$83&V$51),$E91)),FALSE) -> 0 | W91: =IFERROR(clean_alt(INDEX(INDIRECT($L$83&W$51),$E91)),FALSE) -> 636020 | X91: =IFERROR(clean_alt(INDEX(INDIRECT($L$83&X$51),$E91)),FALSE) -> 271410 | Y91: =IFERROR(clean_alt(INDEX(INDIRECT($L$83&Y$51),$E91)),FALSE) -> 162810 | Z91: =IFERROR(clean_alt(INDEX(INDIRECT($L$83&Z$51),$E91)),FALSE) -> 0
D92: Purchase/Sale of Investments | E92: 119 | F92: 119 | G92: =IFERROR(clean_alt(INDEX(INDIRECT($G$83&G$51),$F92)),FALSE) -> 0 | H92: =IFERROR(clean_alt(INDEX(INDIRECT($G$83&H$51),$F92)),FALSE) -> -69760 | I92: =IFERROR(clean_alt(INDEX(INDIRECT($G$83&I$51),$F92)),FALSE) -> -2410000 | J92: =IFERROR(clean_alt(INDEX(INDIRECT($G$83&J$51),$F92)),FALSE) -> 2610 | K92: =IFERROR(clean_alt(INDEX(INDIRECT($G$83&K$51),$F92)),FALSE) -> -15530 | V92: =IFERROR(clean_alt(INDEX(INDIRECT($L$83&V$51),$E92)),FALSE) -> 31040 | W92: =IFERROR(clean_alt(INDEX(INDIRECT($L$83&W$51),$E92)),FALSE) -> -387820 | X92: =IFERROR(clean_alt(INDEX(INDIRECT($L$83&X$51),$E92)),FALSE) -> -124070 | Y92: =IFERROR(clean_alt(INDEX(INDIRECT($L$83&Y$51),$E92)),FALSE) -> -69780 | Z92: =IFERROR(clean_alt(INDEX(INDIRECT($L$83&Z$51),$E92)),FALSE) -> -2410000
D93: Purchase of Investments | E93: 120 | F93: 120 | G93: =IFERROR(clean_alt(INDEX(INDIRECT($G$83&G$51),$F93)),FALSE) -> 0 | H93: =IFERROR(clean_alt(INDEX(INDIRECT($G$83&H$51),$F93)),FALSE) -> -69760 | I93: =IFERROR(clean_alt(INDEX(INDIRECT($G$83&I$51),$F93)),FALSE) -> -2410000 | J93: =IFERROR(clean_alt(INDEX(INDIRECT($G$83&J$51),$F93)),FALSE) -> 2610 | K93: =IFERROR(clean_alt(INDEX(INDIRECT($G$83&K$51),$F93)),FALSE) -> -46600 | V93: =IFERROR(clean_alt(INDEX(INDIRECT($L$83&V$51),$E93)),FALSE) -> 0 | W93: =IFERROR(clean_alt(INDEX(INDIRECT($L$83&W$51),$E93)),FALSE) -> -395580 | X93: =IFERROR(clean_alt(INDEX(INDIRECT($L$83&X$51),$E93)),FALSE) -> -124070 | Y93: =IFERROR(clean_alt(INDEX(INDIRECT($L$83&Y$51),$E93)),FALSE) -> -69780 | Z93: =IFERROR(clean_alt(INDEX(INDIRECT($L$83&Z$51),$E93)),FALSE) -> -2410000
D94: Sale/Maturity of Investments | E94: 121 | F94: 121 | G94: =IFERROR(clean_alt(INDEX(INDIRECT($G$83&G$51),$F94)),FALSE) -> 0 | H94: =IFERROR(clean_alt(INDEX(INDIRECT($G$83&H$51),$F94)),FALSE) -> 0 | I94: =IFERROR(clean_alt(INDEX(INDIRECT($G$83&I$51),$F94)),FALSE) -> 0 | J94: =IFERROR(clean_alt(INDEX(INDIRECT($G$83&J$51),$F94)),FALSE) -> 0 | K94: =IFERROR(clean_alt(INDEX(INDIRECT($G$83&K$51),$F94)),FALSE) -> 31070 | V94: =IFERROR(clean_alt(INDEX(INDIRECT($L$83&V$51),$E94)),FALSE) -> 31040 | W94: =IFERROR(clean_alt(INDEX(INDIRECT($L$83&W$51),$E94)),FALSE) -> 7760 | X94: =IFERROR(clean_alt(INDEX(INDIRECT($L$83&X$51),$E94)),FALSE) -> 0 | Y94: =IFERROR(clean_alt(INDEX(INDIRECT($L$83&Y$51),$E94)),FALSE) -> 0 | Z94: =IFERROR(clean_alt(INDEX(INDIRECT($L$83&Z$51),$E94)),FALSE) -> 0
D96: Cash Dividends Paid - Total | E96: 130 | F96: 130 | G96: =IFERROR(clean_alt(INDEX(INDIRECT($G$83&G$51),$F96)),FALSE) -> -4070000.25 | H96: =IFERROR(clean_alt(INDEX(INDIRECT($G$83&H$51),$F96)),FALSE) -> -2240000 | I96: =IFERROR(clean_alt(INDEX(INDIRECT($G$83&I$51),$F96)),FALSE) -> -6100000 | J96: =IFERROR(clean_alt(INDEX(INDIRECT($G$83&J$51),$F96)),FALSE) -> -2620000 | K96: =IFERROR(clean_alt(INDEX(INDIRECT($G$83&K$51),$F96)),FALSE) -> -7640000 | V96: =IFERROR(clean_alt(INDEX(INDIRECT($L$83&V$51),$E96)),FALSE) -> -4139999.75 | W96: =IFERROR(clean_alt(INDEX(INDIRECT($L$83&W$51),$E96)),FALSE) -> -4620000 | X96: =IFERROR(clean_alt(INDEX(INDIRECT($L$83&X$51),$E96)),FALSE) -> -5340000 | Y96: =IFERROR(clean_alt(INDEX(INDIRECT($L$83&Y$51),$E96)),FALSE) -> -6310000 | Z96: =IFERROR(clean_alt(INDEX(INDIRECT($L$83&Z$51),$E96)),FALSE) -> -8720000
D97: Common Dividends | E97: 131 | F97: 131 | G97: =IFERROR(clean_alt(INDEX(INDIRECT($G$83&G$51),$F97)),FALSE) -> -4070000.25 | H97: =IFERROR(clean_alt(INDEX(INDIRECT($G$83&H$51),$F97)),FALSE) -> -2240000 | I97: =IFERROR(clean_alt(INDEX(INDIRECT($G$83&I$51),$F97)),FALSE) -> -6100000 | J97: =IFERROR(clean_alt(INDEX(INDIRECT($G$83&J$51),$F97)),FALSE) -> -2620000 | K97: =IFERROR(clean_alt(INDEX(INDIRECT($G$83&K$51),$F97)),FALSE) -> -7640000 | V97: =IFERROR(clean_alt(INDEX(INDIRECT($L$83&V$51),$E97)),FALSE) -> -4139999.75 | W97: =IFERROR(clean_alt(INDEX(INDIRECT($L$83&W$51),$E97)),FALSE) -> -4620000 | X97: =IFERROR(clean_alt(INDEX(INDIRECT($L$83&X$51),$E97)),FALSE) -> -5340000 | Y97: =IFERROR(clean_alt(INDEX(INDIRECT($L$83&Y$51),$E97)),FALSE) -> -6310000 | Z97: =IFERROR(clean_alt(INDEX(INDIRECT($L$83&Z$51),$E97)),FALSE) -> -8720000
D98: Preferred Dividends | E98: 132 | F98: 132 | G98: =IFERROR(clean_alt(INDEX(INDIRECT($G$83&G$51),$F98)),FALSE) -> 0 | H98: =IFERROR(clean_alt(INDEX(INDIRECT($G$83&H$51),$F98)),FALSE) -> 0 | I98: =IFERROR(clean_alt(INDEX(INDIRECT($G$83&I$51),$F98)),FALSE) -> 0 | J98: =IFERROR(clean_alt(INDEX(INDIRECT($G$83&J$51),$F98)),FALSE) -> 0 | K98: =IFERROR(clean_alt(INDEX(INDIRECT($G$83&K$51),$F98)),FALSE) -> 0 | V98: =IFERROR(clean_alt(INDEX(INDIRECT($L$83&V$51),$E98)),FALSE) -> 0 | W98: =IFERROR(clean_alt(INDEX(INDIRECT($L$83&W$51),$E98)),FALSE) -> 0 | X98: =IFERROR(clean_alt(INDEX(INDIRECT($L$83&X$51),$E98)),FALSE) -> 0 | Y98: =IFERROR(clean_alt(INDEX(INDIRECT($L$83&Y$51),$E98)),FALSE) -> 0 | Z98: =IFERROR(clean_alt(INDEX(INDIRECT($L$83&Z$51),$E98)),FALSE) -> 0
D99: Cash Dividend Growth | E99: 133 | F99: 133 | G99: =IFERROR(clean_alt(INDEX(INDIRECT($G$83&G$51),$F99)),FALSE) -> 0 | H99: =IFERROR(clean_alt(INDEX(INDIRECT($G$83&H$51),$F99)),FALSE) -> 0.000450099993 | I99: =IFERROR(clean_alt(INDEX(INDIRECT($G$83&I$51),$F99)),FALSE) -> -0.001726599992 | J99: =IFERROR(clean_alt(INDEX(INDIRECT($G$83&J$51),$F99)),FALSE) -> 0.0005714999861 | K99: =IFERROR(clean_alt(INDEX(INDIRECT($G$83&K$51),$F99)),FALSE) -> -0.001919299946 | V99: =IFERROR(clean_alt(INDEX(INDIRECT($L$83&V$51),$E99)),FALSE) -> 0 | W99: =IFERROR(clean_alt(INDEX(INDIRECT($L$83&W$51),$E99)),FALSE) -> -0.0001159000021 | X99: =IFERROR(clean_alt(INDEX(INDIRECT($L$83&X$51),$E99)),FALSE) -> -0.000157699993 | Y99: =IFERROR(clean_alt(INDEX(INDIRECT($L$83&Y$51),$E99)),FALSE) -> -0.0001811999973 | Z99: =IFERROR(clean_alt(INDEX(INDIRECT($L$83&Z$51),$E99)),FALSE) -> -0.0003824000014
D100: Change in Capital Stock | E100: 134 | F100: 134 | G100: =IFERROR(clean_alt(INDEX(INDIRECT($G$83&G$51),$F100)),FALSE) -> 38770 | H100: =IFERROR(clean_alt(INDEX(INDIRECT($G$83&H$51),$F100)),FALSE) -> -728660 | I100: =IFERROR(clean_alt(INDEX(INDIRECT($G$83&I$51),$F100)),FALSE) -> -636810 | J100: =IFERROR(clean_alt(INDEX(INDIRECT($G$83&J$51),$F100)),FALSE) -> 179110 | K100: =IFERROR(clean_alt(INDEX(INDIRECT($G$83&K$51),$F100)),FALSE) -> 473810 | V100: =IFERROR(clean_alt(INDEX(INDIRECT($L$83&V$51),$E100)),FALSE) -> -651770 | W100: =IFERROR(clean_alt(INDEX(INDIRECT($L$83&W$51),$E100)),FALSE) -> 0 | X100: =IFERROR(clean_alt(INDEX(INDIRECT($L$83&X$51),$E100)),FALSE) -> 31020 | Y100: =IFERROR(clean_alt(INDEX(INDIRECT($L$83&Y$51),$E100)),FALSE) -> -690010 | Z100: =IFERROR(clean_alt(INDEX(INDIRECT($L$83&Z$51),$E100)),FALSE) -> -457940
D101: Repurchase of Common & Preferred Stk. | E101: 135 | F101: 135 | G101: =IFERROR(clean_alt(INDEX(INDIRECT($G$83&G$51),$F101)),FALSE) -> 0 | H101: =IFERROR(clean_alt(INDEX(INDIRECT($G$83&H$51),$F101)),FALSE) -> -759650 | I101: =IFERROR(clean_alt(INDEX(INDIRECT($G$83&I$51),$F101)),FALSE) -> -652340 | J101: =IFERROR(clean_alt(INDEX(INDIRECT($G$83&J$51),$F101)),FALSE) -> -14810 | K101: =IFERROR(clean_alt(INDEX(INDIRECT($G$83&K$51),$F101)),FALSE) -> -38840 | V101: =IFERROR(clean_alt(INDEX(INDIRECT($L$83&V$51),$E101)),FALSE) -> -651770 | W101: =IFERROR(clean_alt(INDEX(INDIRECT($L$83&W$51),$E101)),FALSE) -> 0 | X101: =IFERROR(clean_alt(INDEX(INDIRECT($L$83&X$51),$E101)),FALSE) -> 0 | Y101: =IFERROR(clean_alt(INDEX(INDIRECT($L$83&Y$51),$E101)),FALSE) -> -759790 | Z101: =IFERROR(clean_alt(INDEX(INDIRECT($L$83&Z$51),$E101)),FALSE) -> -667510
D102: Sale of Common & Preferred Stock | E102: 136 | F102: 136 | G102: =IFERROR(clean_alt(INDEX(INDIRECT($G$83&G$51),$F102)),FALSE) -> 38770 | H102: =IFERROR(clean_alt(INDEX(INDIRECT($G$83&H$51),$F102)),FALSE) -> 30990 | I102: =IFERROR(clean_alt(INDEX(INDIRECT($G$83&I$51),$F102)),FALSE) -> 15530 | J102: =IFERROR(clean_alt(INDEX(INDIRECT($G$83&J$51),$F102)),FALSE) -> 193920 | K102: =IFERROR(clean_alt(INDEX(INDIRECT($G$83&K$51),$F102)),FALSE) -> 512640 | V102: =IFERROR(clean_alt(INDEX(INDIRECT($L$83&V$51),$E102)),FALSE) -> 0 | W102: =IFERROR(clean_alt(INDEX(INDIRECT($L$83&W$51),$E102)),FALSE) -> 0 | X102: =IFERROR(clean_alt(INDEX(INDIRECT($L$83&X$51),$E102)),FALSE) -> 31020 | Y102: =IFERROR(clean_alt(INDEX(INDIRECT($L$83&Y$51),$E102)),FALSE) -> 69780 | Z102: =IFERROR(clean_alt(INDEX(INDIRECT($L$83&Z$51),$E102)),FALSE) -> 209570
D103: Proceeds from Stock Options | E103: 137 | F103: 137 | G103: =IFERROR(clean_alt(INDEX(INDIRECT($G$83&G$51),$F103)),FALSE) -> 0 | H103: =IFERROR(clean_alt(INDEX(INDIRECT($G$83&H$51),$F103)),FALSE) -> 0 | I103: =IFERROR(clean_alt(INDEX(INDIRECT($G$83&I$51),$F103)),FALSE) -> 0 | J103: =IFERROR(clean_alt(INDEX(INDIRECT($G$83&J$51),$F103)),FALSE) -> 0 | K103: =IFERROR(clean_alt(INDEX(INDIRECT($G$83&K$51),$F103)),FALSE) -> 0 | V103: =IFERROR(clean_alt(INDEX(INDIRECT($L$83&V$51),$E103)),FALSE) -> 0 | W103: =IFERROR(clean_alt(INDEX(INDIRECT($L$83&W$51),$E103)),FALSE) -> 0 | X103: =IFERROR(clean_alt(INDEX(INDIRECT($L$83&X$51),$E103)),FALSE) -> 0 | Y103: =IFERROR(clean_alt(INDEX(INDIRECT($L$83&Y$51),$E103)),FALSE) -> 0 | Z103: =IFERROR(clean_alt(INDEX(INDIRECT($L$83&Z$51),$E103)),FALSE) -> 0
D104: Other Proceeds from Sale of Stock | E104: 138 | F104: 138 | G104: =IFERROR(clean_alt(INDEX(INDIRECT($G$83&G$51),$F104)),FALSE) -> 38770 | H104: =IFERROR(clean_alt(INDEX(INDIRECT($G$83&H$51),$F104)),FALSE) -> 30990 | I104: =IFERROR(clean_alt(INDEX(INDIRECT($G$83&I$51),$F104)),FALSE) -> 15530 | J104: =IFERROR(clean_alt(INDEX(INDIRECT($G$83&J$51),$F104)),FALSE) -> 193920 | K104: =IFERROR(clean_alt(INDEX(INDIRECT($G$83&K$51),$F104)),FALSE) -> 512640 | V104: =IFERROR(clean_alt(INDEX(INDIRECT($L$83&V$51),$E104)),FALSE) -> 0 | W104: =IFERROR(clean_alt(INDEX(INDIRECT($L$83&W$51),$E104)),FALSE) -> 0 | X104: =IFERROR(clean_alt(INDEX(INDIRECT($L$83&X$51),$E104)),FALSE) -> 31020 | Y104: =IFERROR(clean_alt(INDEX(INDIRECT($L$83&Y$51),$E104)),FALSE) -> 69780 | Z104: =IFERROR(clean_alt(INDEX(INDIRECT($L$83&Z$51),$E104)),FALSE) -> 209570
D105: Issuance/Reduction of Debt, Net | E105: 139 | F105: 139 | G105: =IFERROR(clean_alt(INDEX(INDIRECT($G$83&G$51),$F105)),FALSE) -> 3340000 | H105: =IFERROR(clean_alt(INDEX(INDIRECT($G$83&H$51),$F105)),FALSE) -> -5810000 | I105: =IFERROR(clean_alt(INDEX(INDIRECT($G$83&I$51),$F105)),FALSE) -> -939690 | J105: =IFERROR(clean_alt(INDEX(INDIRECT($G$83&J$51),$F105)),FALSE) -> -4310000 | K105: =IFERROR(clean_alt(INDEX(INDIRECT($G$83&K$51),$F105)),FALSE) -> 5350000 | V105: =IFERROR(clean_alt(INDEX(INDIRECT($L$83&V$51),$E105)),FALSE) -> 287090 | W105: =IFERROR(clean_alt(INDEX(INDIRECT($L$83&W$51),$E105)),FALSE) -> 12260000 | X105: =IFERROR(clean_alt(INDEX(INDIRECT($L$83&X$51),$E105)),FALSE) -> 22120000 | Y105: =IFERROR(clean_alt(INDEX(INDIRECT($L$83&Y$51),$E105)),FALSE) -> -2470000 | Z105: =IFERROR(clean_alt(INDEX(INDIRECT($L$83&Z$51),$E105)),FALSE) -> -5250000
D106: Change in Current Debt | E106: 140 | F106: 140 | G106: =IFERROR(clean_alt(INDEX(INDIRECT($G$83&G$51),$F106)),FALSE) -> 1340000 | H106: =IFERROR(clean_alt(INDEX(INDIRECT($G$83&H$51),$F106)),FALSE) -> -5220000 | I106: =IFERROR(clean_alt(INDEX(INDIRECT($G$83&I$51),$F106)),FALSE) -> -4150000 | J106: =IFERROR(clean_alt(INDEX(INDIRECT($G$83&J$51),$F106)),FALSE) -> -3120000 | K106: =IFERROR(clean_alt(INDEX(INDIRECT($G$83&K$51),$F106)),FALSE) -> 1490000 | V106: =IFERROR(clean_alt(INDEX(INDIRECT($L$83&V$51),$E106)),FALSE) -> 0 | W106: =IFERROR(clean_alt(INDEX(INDIRECT($L$83&W$51),$E106)),FALSE) -> 938520 | X106: =IFERROR(clean_alt(INDEX(INDIRECT($L$83&X$51),$E106)),FALSE) -> 14450000 | Y106: =IFERROR(clean_alt(INDEX(INDIRECT($L$83&Y$51),$E106)),FALSE) -> -3880000 | Z106: =IFERROR(clean_alt(INDEX(INDIRECT($L$83&Z$51),$E106)),FALSE) -> -7270000
D107: Change in Long-Term Debt | E107: 141 | F107: 141 | G107: =IFERROR(clean_alt(INDEX(INDIRECT($G$83&G$51),$F107)),FALSE) -> 2000000 | H107: =IFERROR(clean_alt(INDEX(INDIRECT($G$83&H$51),$F107)),FALSE) -> -589840 | I107: =IFERROR(clean_alt(INDEX(INDIRECT($G$83&I$51),$F107)),FALSE) -> 3210000 | J107: =IFERROR(clean_alt(INDEX(INDIRECT($G$83&J$51),$F107)),FALSE) -> -1190000 | K107: =IFERROR(clean_alt(INDEX(INDIRECT($G$83&K$51),$F107)),FALSE) -> 3860000 | V107: =IFERROR(clean_alt(INDEX(INDIRECT($L$83&V$51),$E107)),FALSE) -> 287090 | W107: =IFERROR(clean_alt(INDEX(INDIRECT($L$83&W$51),$E107)),FALSE) -> 11320000 | X107: =IFERROR(clean_alt(INDEX(INDIRECT($L$83&X$51),$E107)),FALSE) -> 7670000 | Y107: =IFERROR(clean_alt(INDEX(INDIRECT($L$83&Y$51),$E107)),FALSE) -> 1410000 | Z107: =IFERROR(clean_alt(INDEX(INDIRECT($L$83&Z$51),$E107)),FALSE) -> 2020000
D108: Issuance of Long-Term Debt | E108: 142 | F108: 142 | G108: =IFERROR(clean_alt(INDEX(INDIRECT($G$83&G$51),$F108)),FALSE) -> 5780000 | H108: =IFERROR(clean_alt(INDEX(INDIRECT($G$83&H$51),$F108)),FALSE) -> 21150 | I108: =IFERROR(clean_alt(INDEX(INDIRECT($G$83&I$51),$F108)),FALSE) -> 5790000 | J108: =IFERROR(clean_alt(INDEX(INDIRECT($G$83&J$51),$F108)),FALSE) -> -6270 | K108: =IFERROR(clean_alt(INDEX(INDIRECT($G$83&K$51),$F108)),FALSE) -> 3860000 | V108: =IFERROR(clean_alt(INDEX(INDIRECT($L$83&V$51),$E108)),FALSE) -> 3800000 | W108: =IFERROR(clean_alt(INDEX(INDIRECT($L$83&W$51),$E108)),FALSE) -> 24760000 | X108: =IFERROR(clean_alt(INDEX(INDIRECT($L$83&X$51),$E108)),FALSE) -> 10370000 | Y108: =IFERROR(clean_alt(INDEX(INDIRECT($L$83&Y$51),$E108)),FALSE) -> 5800000 | Z108: =IFERROR(clean_alt(INDEX(INDIRECT($L$83&Z$51),$E108)),FALSE) -> 5790000
D109: Reduction in Long-Term Debt | E109: 143 | F109: 143 | G109: =IFERROR(clean_alt(INDEX(INDIRECT($G$83&G$51),$F109)),FALSE) -> -3780000 | H109: =IFERROR(clean_alt(INDEX(INDIRECT($G$83&H$51),$F109)),FALSE) -> -611000 | I109: =IFERROR(clean_alt(INDEX(INDIRECT($G$83&I$51),$F109)),FALSE) -> -2590000 | J109: =IFERROR(clean_alt(INDEX(INDIRECT($G$83&J$51),$F109)),FALSE) -> -1180000 | K109: =IFERROR(clean_alt(INDEX(INDIRECT($G$83&K$51),$F109)),FALSE) -> 0 | V109: =IFERROR(clean_alt(INDEX(INDIRECT($L$83&V$51),$E109)),FALSE) -> -3510000 | W109: =IFERROR(clean_alt(INDEX(INDIRECT($L$83&W$51),$E109)),FALSE) -> -13440000 | X109: =IFERROR(clean_alt(INDEX(INDIRECT($L$83&X$51),$E109)),FALSE) -> -2700000 | Y109: =IFERROR(clean_alt(INDEX(INDIRECT($L$83&Y$51),$E109)),FALSE) -> -4390000 | Z109: =IFERROR(clean_alt(INDEX(INDIRECT($L$83&Z$51),$E109)),FALSE) -> -3770000
A111: Factors for Assumptions
C112: Premium Growth | W112: =W13/V13-1 -> 0.2027840853 | X112: =X13/W13-1 -> 0.085364787 | Y112: =Y13/X13-1 -> 0.0915072883 | Z112: =Z13/Y13-1 -> 0.09942492898 | AA112: =AA13/Z13-1 -> 1.05911268
C113: Investment Income/Investments | V113: =V14/V55 -> 0.03717927817 | W113: 0.03891275959 | X113: 0.03653211009 | Y113: 0.03829357798 | Z113: 0.03625 | AA113: 0.06650769231
C114: Other Income Growth | W114: =IFERROR(W16/V16-1,0) -> 0.1942856429 | X114: =IFERROR(X16/W16-1,0) -> 0.1148326026 | Y114: =IFERROR(Y16/X16-1,0) -> 0.07296137339 | Z114: =IFERROR(Z16/Y16-1,0) -> 0.048 | AA114: =IFERROR(AA16/Z16-1,0) -> 0.9847328244
C115: Net Claims to Net Premiums | V115: =V18/V13 -> 1.024484154 | W115: 0.9221045719 | X115: 0.9854799053 | Y115: 0.81604656 | Z115: 0.8912906478 | AA115: 0.8645712187
C116: Selling, General & Admin. Expenses/Premiums | V116: =V21/V13 -> 0.2001184717 | W116: 0.1951079373 | X116: 0.1966271011 | Y116: 0.1987112866 | Z116: 0.1976304512 | AA116: 0.1953541011
C117: Other Operating Expenses | V117: =V22 -> -20690000 | W117: -2050000 | X117: -17110000 | Y117: 13660000 | Z117: -4590000 | AA117: 2324040
C118: Other Expense Growth | W118: =IFERROR(W117/V117-1,0) -> -0.900918318 | X118: =IFERROR(X117/W117-1,0) -> 7.346341463 | Y118: -1.79836353 | Z118: -1.33601757 | AA118: -1.506326797
C119: Interest Expense to Debt | V119: =V24/V71 -> 0.02481818182 | W119: 0.0185047043 | X119: 0.01540146548 | Y119: 0.02423993426 | Z119: 0.0274686242 | AA119: 0.04932107996
C120: Unusual Expense net of Other Income | V120: =V27-V26-V28 -> 3333980 | W120: -1853070.125 | X120: -818728 | Y120: -3900000 | Z120: -1858920 | AA120: -2047650
C121: Income Tax Rate | V121: =V30/V29 -> 0.1854304636 | W121: 0.1962719298 | X121: 0.2024412027 | Y121: 0.1898344243 | Z121: 0.1352708058 | AA121: 0.1525688334
C122: Equity in Affiliates | V122: =V31+V32+V33 -> 118300 | W122: 107180 | X122: 117120 | Y122: 0 | Z122: -37618 | AA122: 0
C123: Equity in Affiliates as Percent of Investments in Affiliates | V123: =IFERROR(V122/V58,0) -> 0.1677419355 | W123: =IFERROR(W122/W58,0) -> 0.1486546463 | X123: 0.1148235294 | Y123: 0 | Z123: -0.007463888889 | AA123: 0
C124: Minority Interest Percent | V124: =V35/V34 -> 0.003301702128 | W124: 0.008774208145 | X124: 0.005190777241 | Y124: 0.008475285171 | Z124: 0.01139675812 | AA124: 0.01196164797
C126: Additions to Reserves | W126: =W67-V67 -> 96920000 | X126: =X67-W67 -> 67130048 | Y126: =Y67-X67 -> 14809984 | Z126: =Z67-Y67 -> 89419968 | AA126: =AA67-Z67 -> 90000000 | AB126: =SUM(W126:AA126) -> 358280000
C127: Increase in Premiums | W127: =W13-V13 -> 20540000 | X127: =X13-W13 -> 10399992 | Y127: =Y13-X13 -> 12100008 | Z127: =Z13-Y13 -> 14350000 | AA127: =AA13-Z13 -> 168060000 | AB127: =SUM(W127:AA127) -> 225450000
C128: Additions to Reserves/Increase in Premiums | W128: =W126/W127 -> 4.718597858 | X128: 6.454817273 | Y128: 1.223964811 | Z128: 6.231356655 | AA128: 0.5355230275 | AB128: 1.589177201
C129: Additions to Reserves/Premiums | W129: =W126/W13 -> 0.7955347616 | X129: =X126/X13 -> 0.5076764128 | Y129: =Y126/Y13 -> 0.1026119587 | Z129: =Z126/Z13 -> 0.5635238719 | AA129: =AA126/AA13 -> 0.2754483687
C130: Investments/Reserves | V130: =V55/V67 -> 1.134879 | W130: 1.105888382 | X130: 1.177398213 | Y130: 1.158859388 | Z130: 1.165048544 | AA130: 1.160714286
C132: Equity to Debt + Equity | V132: =(V78+V79)/(V78+V79+V71) -> 0.97222482 | W132: 0.866084687 | X132: 0.8223485887 | Y132: 0.824690291 | Z132: 0.8664114893 | AA132: 0.8622396429
C133: Equity to Assets | V133: =(V78+V79)/V64 -> 0.1158548158 | W133: 0.09668701256 | X133: 0.1087568079 | Y133: 0.1051476429 | Z133: 0.1142431703 | AA133: 0.1131302742
C135: Cash to Sales | V135: =V54/V17 -> 0.2299267865 | W135: =W54/W17 -> 0.1121675359 | X135: 0.08236384013 | Y135: 0.08420134155 | Z135: 0.06204009251 | AA135: 0.0601755853
C136: Premium A/R to Premiums | V136: =V56/V13 -> 0.06446835818 | W136: =W56/W13 -> 0.05532299105 | X136: 0.05853437547 | Y136: 0.05494353218 | Z136: 0.04909251323 | AA136: 0
D145: Sales/Revenue | E145: =IFERROR(MATCH($D145,INDIRECT($G$8&"A:A"),0),FALSE) -> 103 | F145: =IFERROR(MATCH($D145,INDIRECT($G$7&"A:A"),0),FALSE) -> 103 | G145: =IFERROR(clean_alt(INDEX(INDIRECT($G$7&G$10),$F145)),FALSE) -> 90410000 | H145: =IFERROR(clean_alt(INDEX(INDIRECT($G$7&H$10),$F145)),FALSE) -> 97880000 | I145: =IFERROR(clean_alt(INDEX(INDIRECT($G$7&I$10),$F145)),FALSE) -> 95770000 | J145: =IFERROR(clean_alt(INDEX(INDIRECT($G$7&J$10),$F145)),FALSE) -> 109570000 | K145: =IFERROR(clean_alt(INDEX(INDIRECT($G$7&K$10),$F145)),FALSE) -> 115900000 | L145: =SUMIF($12:$12,TRUE,145:145) -> 115900000 | M145: =SUM(H145:K145) -> 419120000 | N145: =IFERROR(OFFSET(K145,0,-$K$2)/OFFSET(K145,0,-$K$2-1),FALSE) -> 1.144095228 | O145: =N145*K145+L145 -> 248500636.9 | P145: =L145+'Single Company Graph'!P16 -> 115900000 | Q145: ='Single Company Graph'!P16 -> FALSE | V145: =IFERROR(clean_alt(INDEX(INDIRECT($G$8&V$10),$E145)),FALSE) -> 135510000 | W145: =IFERROR(clean_alt(INDEX(INDIRECT($G$8&W$10),$E145)),FALSE) -> 160120000 | X145: =IFERROR(clean_alt(INDEX(INDIRECT($G$8&X$10),$E145)),FALSE) -> 172760000 | Y145: =IFERROR(clean_alt(INDEX(INDIRECT($G$8&Y$10),$E145)),FALSE) -> 183370000 | Z145: =IFERROR(clean_alt(INDEX(INDIRECT($G$8&Z$10),$E145)),FALSE) -> 205340000 | AA145: =M145 -> 419120000
D146: Losses, Claims & Reserves Growth | E146: 111 | F146: 111 | G146: =IFERROR(clean_alt(INDEX(INDIRECT($G$7&G$10),$F146)),FALSE) -> 0 | H146: =IFERROR(clean_alt(INDEX(INDIRECT($G$7&H$10),$F146)),FALSE) -> -0.0003139000037 | I146: =IFERROR(clean_alt(INDEX(INDIRECT($G$7&I$10),$F146)),FALSE) -> 0.000317500002 | J146: =IFERROR(clean_alt(INDEX(INDIRECT($G$7&J$10),$F146)),FALSE) -> 0.0002396000054 | K146: =IFERROR(clean_alt(INDEX(INDIRECT($G$7&K$10),$F146)),FALSE) -> 0.0001899000054 | L146: 0.0001899000054 | M146: 0.0004331000091 | N146: =IFERROR(OFFSET(K146,0,-$K$2)/OFFSET(K146,0,-$K$2-1),FALSE) -> 0.7546456817 | O146: 0.0003332072244 | P146: =L146+Q146 -> 0.0001899000054 | V146: =IFERROR(clean_alt(INDEX(INDIRECT($G$8&V$10),$E146)),FALSE) -> 0 | W146: =IFERROR(clean_alt(INDEX(INDIRECT($G$8&W$10),$E146)),FALSE) -> 8.250000246e-05 | X146: =IFERROR(clean_alt(INDEX(INDIRECT($G$8&X$10),$E146)),FALSE) -> 0.000159999996 | Y146: =IFERROR(clean_alt(INDEX(INDIRECT($G$8&Y$10),$E146)),FALSE) -> -9.609999688e-05 | Z146: =IFERROR(clean_alt(INDEX(INDIRECT($G$8&Z$10),$E146)),FALSE) -> 0.0002007000003 | AA146: 0.0004331000091
D147: Other Selling, General & Admin. Expense | E147: 116 | F147: 116 | G147: =IFERROR(clean_alt(INDEX(INDIRECT($G$7&G$10),$F147)),FALSE) -> 4650000 | H147: =IFERROR(clean_alt(INDEX(INDIRECT($G$7&H$10),$F147)),FALSE) -> 4790000 | I147: =IFERROR(clean_alt(INDEX(INDIRECT($G$7&I$10),$F147)),FALSE) -> 4790000 | J147: =IFERROR(clean_alt(INDEX(INDIRECT($G$7&J$10),$F147)),FALSE) -> 5220000 | K147: =IFERROR(clean_alt(INDEX(INDIRECT($G$7&K$10),$F147)),FALSE) -> 5240000 | L147: 5240000 | M147: 20040000 | N147: =IFERROR(OFFSET(K147,0,-$K$2)/OFFSET(K147,0,-$K$2-1),FALSE) -> 1.089770355 | O147: 10950396.66 | P147: =L147+Q147 -> 5240000 | V147: =IFERROR(clean_alt(INDEX(INDIRECT($G$8&V$10),$E147)),FALSE) -> 7530000 | W147: =IFERROR(clean_alt(INDEX(INDIRECT($G$8&W$10),$E147)),FALSE) -> 8770000 | X147: =IFERROR(clean_alt(INDEX(INDIRECT($G$8&X$10),$E147)),FALSE) -> 9410000 | Y147: =IFERROR(clean_alt(INDEX(INDIRECT($G$8&Y$10),$E147)),FALSE) -> 9540000 | Z147: =IFERROR(clean_alt(INDEX(INDIRECT($G$8&Z$10),$E147)),FALSE) -> 10130000 | AA147: 20040000
D148: Underwriting & Commissions | E148: 117 | F148: 117 | G148: =IFERROR(clean_alt(INDEX(INDIRECT($G$7&G$10),$F148)),FALSE) -> 9060000 | H148: =IFERROR(clean_alt(INDEX(INDIRECT($G$7&H$10),$F148)),FALSE) -> 10080000 | I148: =IFERROR(clean_alt(INDEX(INDIRECT($G$7&I$10),$F148)),FALSE) -> 10060000 | J148: =IFERROR(clean_alt(INDEX(INDIRECT($G$7&J$10),$F148)),FALSE) -> 11160000 | K148: =IFERROR(clean_alt(INDEX(INDIRECT($G$7&K$10),$F148)),FALSE) -> 12470000 | L148: 12470000 | M148: 43770000 | N148: =OFFSET(K148,0,-$K$2)/OFFSET(K148,0,-$K$2-1) -> 1.109343936 | O148: 26303518.89 | P148: =L148+Q148 -> 12470000 | V148: =IFERROR(clean_alt(INDEX(INDIRECT($G$8&V$10),$E148)),FALSE) -> 12730000 | W148: =IFERROR(clean_alt(INDEX(INDIRECT($G$8&W$10),$E148)),FALSE) -> 15000000 | X148: =IFERROR(clean_alt(INDEX(INDIRECT($G$8&X$10),$E148)),FALSE) -> 16590000 | Y148: =IFERROR(clean_alt(INDEX(INDIRECT($G$8&Y$10),$E148)),FALSE) -> 19130000 | Z148: =IFERROR(clean_alt(INDEX(INDIRECT($G$8&Z$10),$E148)),FALSE) -> 21230000 | AA148: 43770000
D149: Operating Income Before Interest Expense | E149: 120 | F149: 120 | G149: =IFERROR(clean_alt(INDEX(INDIRECT($G$7&G$10),$F149)),FALSE) -> 21750000 | H149: =IFERROR(clean_alt(INDEX(INDIRECT($G$7&H$10),$F149)),FALSE) -> 6420000 | I149: =IFERROR(clean_alt(INDEX(INDIRECT($G$7&I$10),$F149)),FALSE) -> 18230000 | J149: =IFERROR(clean_alt(INDEX(INDIRECT($G$7&J$10),$F149)),FALSE) -> 18910000 | K149: =IFERROR(clean_alt(INDEX(INDIRECT($G$7&K$10),$F149)),FALSE) -> 26920000 | L149: 26920000 | M149: 70480000 | N149: =IFERROR(OFFSET(K149,0,-$K$2)/OFFSET(K149,0,-$K$2-1),FALSE) -> 1.037301152 | O149: 54844147.01 | P149: =L149+Q149 -> 26920000 | V149: =IFERROR(clean_alt(INDEX(INDIRECT($G$8&V$10),$E149)),FALSE) -> 32169998 | W149: =IFERROR(clean_alt(INDEX(INDIRECT($G$8&W$10),$E149)),FALSE) -> 26060000 | X149: =IFERROR(clean_alt(INDEX(INDIRECT($G$8&X$10),$E149)),FALSE) -> 33560000 | Y149: =IFERROR(clean_alt(INDEX(INDIRECT($G$8&Y$10),$E149)),FALSE) -> 23250000 | Z149: =IFERROR(clean_alt(INDEX(INDIRECT($G$8&Z$10),$E149)),FALSE) -> 37150000 | AA149: 70480000
D150: Operating Income After Interest Expense | E150: 124 | F150: 124 | G150: =G23-G24 -> 21125160 | H150: =IFERROR(clean_alt(INDEX(INDIRECT($G$7&H$10),$F150)),FALSE) -> 5860000 | I150: =IFERROR(clean_alt(INDEX(INDIRECT($G$7&I$10),$F150)),FALSE) -> 17680000 | J150: =IFERROR(clean_alt(INDEX(INDIRECT($G$7&J$10),$F150)),FALSE) -> 18310000 | K150: =IFERROR(clean_alt(INDEX(INDIRECT($G$7&K$10),$F150)),FALSE) -> 26260000 | L150: 26260000 | M150: 68110000 | N150: =IFERROR(OFFSET(K150,0,-$K$2)/OFFSET(K150,0,-$K$2-1),FALSE) -> 1.035633484 | O150: 53455735.29 | P150: =L150+Q150 -> 26260000 | V150: =IFERROR(clean_alt(INDEX(INDIRECT($G$8&V$10),$E150)),FALSE) -> 32020000 | W150: =IFERROR(clean_alt(INDEX(INDIRECT($G$8&W$10),$E150)),FALSE) -> 25510000 | X150: =IFERROR(clean_alt(INDEX(INDIRECT($G$8&X$10),$E150)),FALSE) -> 32759998 | Y150: =IFERROR(clean_alt(INDEX(INDIRECT($G$8&Y$10),$E150)),FALSE) -> 22070000 | Z150: =IFERROR(clean_alt(INDEX(INDIRECT($G$8&Z$10),$E150)),FALSE) -> 35990000 | AA150: 68110000
D151: Computed Pre-tax | E151: FALSE | F151: FALSE | G151: =G25+G26-G27 -> 20931300 | H151: 5477510 | I151: 19077760 | J151: 18335881 | K151: 27244500 | L151: 986450 | M151: 2047650 | N151: 0 | O151: 0 | P151: 986450 | V151: =V25+V26-V27 -> 28693980 | W151: 27348089.88 | X151: 33594772 | Y151: 25974040 | Z151: 37855740 | AA151: 70135651
D152: Pretax Income | E152: 130 | F152: 130 | G152: =IFERROR(clean_alt(INDEX(INDIRECT($G$7&G$10),$F152)),FALSE) -> 20610000 | H152: =IFERROR(clean_alt(INDEX(INDIRECT($G$7&H$10),$F152)),FALSE) -> 5360000 | I152: =IFERROR(clean_alt(INDEX(INDIRECT($G$7&I$10),$F152)),FALSE) -> 18090000 | J152: =IFERROR(clean_alt(INDEX(INDIRECT($G$7&J$10),$F152)),FALSE) -> 19730000 | K152: =IFERROR(clean_alt(INDEX(INDIRECT($G$7&K$10),$F152)),FALSE) -> 27280000 | L152: =SUMIF($12:$12,TRUE,152:152) -> 27280000 | M152: =SUM(H152:K152) -> 70460000 | N152: =SUM(I152:L152) -> 92380000 | O152: =SUM(J152:M152) -> 144750000 | P152: =SUM(K152:N152) -> 217400000 | V152: =IFERROR(clean_alt(INDEX(INDIRECT($G$8&V$10),$E152)),FALSE) -> 28690000 | W152: =IFERROR(clean_alt(INDEX(INDIRECT($G$8&W$10),$E152)),FALSE) -> 27360000 | X152: =IFERROR(clean_alt(INDEX(INDIRECT($G$8&X$10),$E152)),FALSE) -> 33590000 | Y152: =IFERROR(clean_alt(INDEX(INDIRECT($G$8&Y$10),$E152)),FALSE) -> 25970000 | Z152: =IFERROR(clean_alt(INDEX(INDIRECT($G$8&Z$10),$E152)),FALSE) -> 37850000 | AA152: =IFERROR(clean_alt(INDEX(INDIRECT($G$8&AA$10),$E152)),FALSE) -> 0
D153: Reconciliation | E153: FALSE | F153: FALSE | G153: =G152-G151 -> -321300 | H153: =H152-H151 -> -117510 | I153: -987760 | J153: 1394119 | K153: 35500 | L153: 26293550 | M153: 68412350 | N153: =N152-N151 -> 92380000 | O153: =O152-O151 -> 144750000 | P153: =P152-P151 -> 216413550 | V153: =V152-V151 -> -3980 | W153: 11910.125 | X153: -4772 | Y153: -4040 | Z153: -5740 | AA153: -70135651
D154: Consolidated Net Income | E154: 140 | F154: 140 | G154: =IFERROR(clean_alt(INDEX(INDIRECT($G$7&G$10),$F154)),FALSE) -> 17010000 | H154: =IFERROR(clean_alt(INDEX(INDIRECT($G$7&H$10),$F154)),FALSE) -> 4040000 | I154: =IFERROR(clean_alt(INDEX(INDIRECT($G$7&I$10),$F154)),FALSE) -> 16270000 | J154: =IFERROR(clean_alt(INDEX(INDIRECT($G$7&J$10),$F154)),FALSE) -> 16420000 | K154: =IFERROR(clean_alt(INDEX(INDIRECT($G$7&K$10),$F154)),FALSE) -> 22980000 | L154: =SUMIF($12:$12,TRUE,154:154) -> 22980000 | M154: =SUM(H154:K154) -> 59710000 | P154: =L154+Q154 -> 22980000 | V154: =IFERROR(clean_alt(INDEX(INDIRECT($G$8&V$10),$E154)),FALSE) -> 23500000 | W154: =IFERROR(clean_alt(INDEX(INDIRECT($G$8&W$10),$E154)),FALSE) -> 22100000 | X154: =IFERROR(clean_alt(INDEX(INDIRECT($G$8&X$10),$E154)),FALSE) -> 26890000 | Y154: =IFERROR(clean_alt(INDEX(INDIRECT($G$8&Y$10),$E154)),FALSE) -> 21040000 | Z154: =IFERROR(clean_alt(INDEX(INDIRECT($G$8&Z$10),$E154)),FALSE) -> 32689998 | AA154: =M154 -> 59710000
D155: Computed Consolidated Income | E155: FALSE | F155: FALSE | G155: =G29-G30+G31+G32 -> 17000000 | H155: =H29-H30+H31+H32 -> 4030000 | I155: =I29-I30+I31+I32 -> 16270000 | J155: =J29-J30+J31+J32 -> 16430000 | K155: =K29-K30+K31+K32 -> 22980000 | L155: =SUMIF($12:$12,TRUE,155:155) -> 22980000 | M155: =SUM(H155:K155) -> 59710000 | V155: =V29-V30+V31+V32 -> 23494150 | W155: =W29-W30+W31+W32 -> 22098590 | X155: =X29-X30+X31+X32 -> 26898560 | Y155: =Y29-Y30+Y31+Y32 -> 21040000 | Z155: =Z29-Z30+Z31+Z32 -> 32691190
D156: EPS (Basic) Growth | E156: 153 | F156: 153 | G156: =IFERROR(clean_alt(INDEX(INDIRECT($G$7&G$10),$F156)),FALSE) -> 0 | H156: =IFERROR(clean_alt(INDEX(INDIRECT($G$7&H$10),$F156)),FALSE) -> -0.0007777999854 | I156: =IFERROR(clean_alt(INDEX(INDIRECT($G$7&I$10),$F156)),FALSE) -> 0.003257300006 | J156: =IFERROR(clean_alt(INDEX(INDIRECT($G$7&J$10),$F156)),FALSE) -> 5.769999916e-05 | K156: =IFERROR(clean_alt(INDEX(INDIRECT($G$7&K$10),$F156)),FALSE) -> 0.0003349999897 | L156: =SUMIF($12:$12,TRUE,156:156) -> 0.0003349999897 | M156: =SUM(H156:K156) -> 0.00287220001 | N156: =IFERROR(OFFSET(K156,0,-$K$2)/OFFSET(K156,0,-$K$2-1),FALSE) -> 0.01771405736 | O156: =N156*K156+L156 -> 0.0003409341988 | P156: =L156+Q156 -> 0.0003349999897 | V156: =IFERROR(clean_alt(INDEX(INDIRECT($G$8&V$10),$E156)),FALSE) -> 0 | W156: =IFERROR(clean_alt(INDEX(INDIRECT($G$8&W$10),$E156)),FALSE) -> -4.03999984e-05 | X156: =IFERROR(clean_alt(INDEX(INDIRECT($G$8&X$10),$E156)),FALSE) -> 0.0002080999984 | Y156: =IFERROR(clean_alt(INDEX(INDIRECT($G$8&Y$10),$E156)),FALSE) -> -0.0002416000061 | Z156: =IFERROR(clean_alt(INDEX(INDIRECT($G$8&Z$10),$E156)),FALSE) -> 0.0005927999737 | AA156: =M156 -> 0.00287220001
D157: EPS (Diluted) Growth | E157: 156 | F157: 156 | G157: =IFERROR(clean_alt(INDEX(INDIRECT($G$7&G$10),$F157)),FALSE) -> 0 | H157: =IFERROR(clean_alt(INDEX(INDIRECT($G$7&H$10),$F157)),FALSE) -> -0.0007777999854 | I157: =IFERROR(clean_alt(INDEX(INDIRECT($G$7&I$10),$F157)),FALSE) -> 0.003257300006 | J157: =IFERROR(clean_alt(INDEX(INDIRECT($G$7&J$10),$F157)),FALSE) -> 5.769999916e-05 | K157: =IFERROR(clean_alt(INDEX(INDIRECT($G$7&K$10),$F157)),FALSE) -> 0.0003349999897 | L157: =SUMIF($12:$12,TRUE,157:157) -> 0.0003349999897 | M157: =SUM(H157:K157) -> 0.00287220001 | N157: =IFERROR(OFFSET(K157,0,-$K$2)/OFFSET(K157,0,-$K$2-1),FALSE) -> 0.01771405736 | O157: =N157*K157+L157 -> 0.0003409341988 | P157: =L157+Q157 -> 0.0003349999897 | V157: =IFERROR(clean_alt(INDEX(INDIRECT($G$8&V$10),$E157)),FALSE) -> 0 | W157: =IFERROR(clean_alt(INDEX(INDIRECT($G$8&W$10),$E157)),FALSE) -> -4.03999984e-05 | X157: =IFERROR(clean_alt(INDEX(INDIRECT($G$8&X$10),$E157)),FALSE) -> 0.0002080999984 | Y157: =IFERROR(clean_alt(INDEX(INDIRECT($G$8&Y$10),$E157)),FALSE) -> -0.0002416000061 | Z157: =IFERROR(clean_alt(INDEX(INDIRECT($G$8&Z$10),$E157)),FALSE) -> 0.0005927999737 | AA157: =M157 -> 0.00287220001
D158: Cash Growth | E158: =IFERROR(MATCH($D158,INDIRECT($G$48&"A:A"),0),FALSE) -> 105 | F158: 105 | G158: =IFERROR(clean_alt(INDEX(INDIRECT($G$48&G$51),$F158)),FALSE) -> 0 | H158: =IFERROR(clean_alt(INDEX(INDIRECT($G$48&H$51),$F158)),FALSE) -> 0.000203699994 | I158: =IFERROR(clean_alt(INDEX(INDIRECT($G$48&I$51),$F158)),FALSE) -> 0.0005912000197 | J158: =IFERROR(clean_alt(INDEX(INDIRECT($G$48&J$51),$F158)),FALSE) -> -0.0004816000001 | K158: =IFERROR(clean_alt(INDEX(INDIRECT($G$48&K$51),$F158)),FALSE) -> 0.0009799000109 | V158: =IFERROR(clean_alt(INDEX(INDIRECT(#REF!&V$51),$E158)),FALSE) -> 0 | W158: =IFERROR(clean_alt(INDEX(INDIRECT(#REF!&W$51),$E158)),FALSE) -> 0 | X158: =IFERROR(clean_alt(INDEX(INDIRECT(#REF!&X$51),$E158)),FALSE) -> 0 | Y158: =IFERROR(clean_alt(INDEX(INDIRECT(#REF!&Y$51),$E158)),FALSE) -> 0 | Z158: =IFERROR(clean_alt(INDEX(INDIRECT(#REF!&Z$51),$E158)),FALSE) -> 0
D159: Investments Growth | E159: 116 | F159: 116 | G159: =IFERROR(clean_alt(INDEX(INDIRECT($G$48&G$51),$F159)),FALSE) -> 0 | H159: =IFERROR(clean_alt(INDEX(INDIRECT($G$48&H$51),$F159)),FALSE) -> -3.17999984e-05 | I159: =IFERROR(clean_alt(INDEX(INDIRECT($G$48&I$51),$F159)),FALSE) -> 7.429999823e-05 | J159: =IFERROR(clean_alt(INDEX(INDIRECT($G$48&J$51),$F159)),FALSE) -> 2.710000081e-05 | K159: =IFERROR(clean_alt(INDEX(INDIRECT($G$48&K$51),$F159)),FALSE) -> 7.860000187e-05 | V159: =IFERROR(clean_alt(INDEX(INDIRECT(#REF!&V$51),$E159)),FALSE) -> 0 | W159: =IFERROR(clean_alt(INDEX(INDIRECT(#REF!&W$51),$E159)),FALSE) -> 0 | X159: =IFERROR(clean_alt(INDEX(INDIRECT(#REF!&X$51),$E159)),FALSE) -> 0 | Y159: =IFERROR(clean_alt(INDEX(INDIRECT(#REF!&Y$51),$E159)),FALSE) -> 0 | Z159: =IFERROR(clean_alt(INDEX(INDIRECT(#REF!&Z$51),$E159)),FALSE) -> 0
D160: Yield On Investment | E160: 117 | F160: 117 | G160: =IFERROR(clean_alt(INDEX(INDIRECT($G$48&G$51),$F160)),FALSE) -> 0 | H160: =IFERROR(clean_alt(INDEX(INDIRECT($G$48&H$51),$F160)),FALSE) -> 0 | I160: =IFERROR(clean_alt(INDEX(INDIRECT($G$48&I$51),$F160)),FALSE) -> 0 | J160: =IFERROR(clean_alt(INDEX(INDIRECT($G$48&J$51),$F160)),FALSE) -> 0 | K160: =IFERROR(clean_alt(INDEX(INDIRECT($G$48&K$51),$F160)),FALSE) -> 3.799999831e-05 | V160: =IFERROR(clean_alt(INDEX(INDIRECT(#REF!&V$51),$E160)),FALSE)*1000 -> 0 | W160: =IFERROR(clean_alt(INDEX(INDIRECT(#REF!&W$51),$E160)),FALSE)*1000 -> 0 | X160: =IFERROR(clean_alt(INDEX(INDIRECT(#REF!&X$51),$E160)),FALSE)*1000 -> 0 | Y160: =IFERROR(clean_alt(INDEX(INDIRECT(#REF!&Y$51),$E160)),FALSE)*1000 -> 0 | Z160: =IFERROR(clean_alt(INDEX(INDIRECT(#REF!&Z$51),$E160)),FALSE)*1000 -> 0
D161: Premium Balance Growth | E161: 119 | F161: 119 | G161: =IFERROR(clean_alt(INDEX(INDIRECT($G$48&G$51),$F161)),FALSE) -> 0 | H161: =IFERROR(clean_alt(INDEX(INDIRECT($G$48&H$51),$F161)),FALSE) -> 0 | I161: =IFERROR(clean_alt(INDEX(INDIRECT($G$48&I$51),$F161)),FALSE) -> 0 | J161: =IFERROR(clean_alt(INDEX(INDIRECT($G$48&J$51),$F161)),FALSE) -> 0 | K161: =IFERROR(clean_alt(INDEX(INDIRECT($G$48&K$51),$F161)),FALSE) -> 0 | V161: =IFERROR(clean_alt(INDEX(INDIRECT(#REF!&V$51),$E161)),FALSE) -> 0 | W161: =IFERROR(clean_alt(INDEX(INDIRECT(#REF!&W$51),$E161)),FALSE) -> 0 | X161: =IFERROR(clean_alt(INDEX(INDIRECT(#REF!&X$51),$E161)),FALSE) -> 0 | Y161: =IFERROR(clean_alt(INDEX(INDIRECT(#REF!&Y$51),$E161)),FALSE) -> 0 | Z161: =IFERROR(clean_alt(INDEX(INDIRECT(#REF!&Z$51),$E161)),FALSE) -> 0
D162: Assets - Total - 1 Year Growth | E162: 128 | F162: 128 | G162: =IFERROR(clean_alt(INDEX(INDIRECT($G$48&G$51),$F162)),FALSE) -> 0 | H162: =IFERROR(clean_alt(INDEX(INDIRECT($G$48&H$51),$F162)),FALSE) -> -2.610000047e-05 | I162: =IFERROR(clean_alt(INDEX(INDIRECT($G$48&I$51),$F162)),FALSE) -> 8.099999832e-05 | J162: =IFERROR(clean_alt(INDEX(INDIRECT($G$48&J$51),$F162)),FALSE) -> 2.080000013e-05 | K162: =IFERROR(clean_alt(INDEX(INDIRECT($G$48&K$51),$F162)),FALSE) -> 8.620000153e-05 | V162: =IFERROR(clean_alt(INDEX(INDIRECT(#REF!&V$51),$E162)),FALSE) -> 0 | W162: =IFERROR(clean_alt(INDEX(INDIRECT(#REF!&W$51),$E162)),FALSE) -> 0 | X162: =IFERROR(clean_alt(INDEX(INDIRECT(#REF!&X$51),$E162)),FALSE) -> 0 | Y162: =IFERROR(clean_alt(INDEX(INDIRECT(#REF!&Y$51),$E162)),FALSE) -> 0 | Z162: =IFERROR(clean_alt(INDEX(INDIRECT(#REF!&Z$51),$E162)),FALSE) -> 0
D163: Return On Average Assets | E163: 129 | F163: 129 | G163: =IFERROR(clean_alt(INDEX(INDIRECT($G$48&G$51),$F163)),FALSE)*1000 -> 0 | H163: =IFERROR(clean_alt(INDEX(INDIRECT($G$48&H$51),$F163)),FALSE)*1000 -> 0 | I163: =IFERROR(clean_alt(INDEX(INDIRECT($G$48&I$51),$F163)),FALSE)*1000 -> 0 | J163: =IFERROR(clean_alt(INDEX(INDIRECT($G$48&J$51),$F163)),FALSE)*1000 -> 0 | K163: =IFERROR(clean_alt(INDEX(INDIRECT($G$48&K$51),$F163)),FALSE)*1000 -> 0.02390000009 | V163: =IFERROR(clean_alt(INDEX(INDIRECT(#REF!&V$51),$E163)),FALSE) -> 0 | W163: =IFERROR(clean_alt(INDEX(INDIRECT(#REF!&W$51),$E163)),FALSE) -> 0 | X163: =IFERROR(clean_alt(INDEX(INDIRECT(#REF!&X$51),$E163)),FALSE) -> 0 | Y163: =IFERROR(clean_alt(INDEX(INDIRECT(#REF!&Y$51),$E163)),FALSE) -> 0 | Z163: =IFERROR(clean_alt(INDEX(INDIRECT(#REF!&Z$51),$E163)),FALSE) -> 0
D164: ST Debt & Current Portion of LTD | E164: 139 | F164: 139 | G164: =IFERROR(clean_alt(INDEX(INDIRECT($G$48&G$51),$F164)),FALSE) -> 29890000 | H164: =IFERROR(clean_alt(INDEX(INDIRECT($G$48&H$51),$F164)),FALSE) -> 25080000 | I164: =IFERROR(clean_alt(INDEX(INDIRECT($G$48&I$51),$F164)),FALSE) -> 21030000 | J164: =IFERROR(clean_alt(INDEX(INDIRECT($G$48&J$51),$F164)),FALSE) -> 15390000 | K164: =IFERROR(clean_alt(INDEX(INDIRECT($G$48&K$51),$F164)),FALSE) -> 21200000 | V164: =IFERROR(clean_alt(INDEX(INDIRECT(#REF!&V$51),$E164)),FALSE) -> 0 | W164: =IFERROR(clean_alt(INDEX(INDIRECT(#REF!&W$51),$E164)),FALSE) -> 0 | X164: =IFERROR(clean_alt(INDEX(INDIRECT(#REF!&X$51),$E164)),FALSE) -> 0 | Y164: =IFERROR(clean_alt(INDEX(INDIRECT(#REF!&Y$51),$E164)),FALSE) -> 0 | Z164: =IFERROR(clean_alt(INDEX(INDIRECT(#REF!&Z$51),$E164)),FALSE) -> 0
D165: Short Term Debt | E165: 140 | F165: 140 | G165: =IFERROR(clean_alt(INDEX(INDIRECT($G$48&G$51),$F165)),FALSE) -> 29890000 | H165: =IFERROR(clean_alt(INDEX(INDIRECT($G$48&H$51),$F165)),FALSE) -> 23910000 | I165: =IFERROR(clean_alt(INDEX(INDIRECT($G$48&I$51),$F165)),FALSE) -> 0 | J165: =IFERROR(clean_alt(INDEX(INDIRECT($G$48&J$51),$F165)),FALSE) -> 15390000 | K165: =IFERROR(clean_alt(INDEX(INDIRECT($G$48&K$51),$F165)),FALSE) -> 0 | V165: =IFERROR(clean_alt(INDEX(INDIRECT(#REF!&V$51),$E165)),FALSE) -> 0 | W165: =IFERROR(clean_alt(INDEX(INDIRECT(#REF!&W$51),$E165)),FALSE) -> 0 | X165: =IFERROR(clean_alt(INDEX(INDIRECT(#REF!&X$51),$E165)),FALSE) -> 0 | Y165: =IFERROR(clean_alt(INDEX(INDIRECT(#REF!&Y$51),$E165)),FALSE) -> 0 | Z165: =IFERROR(clean_alt(INDEX(INDIRECT(#REF!&Z$51),$E165)),FALSE) -> 0
D166: Current Portion of LT Debt | E166: 141 | F166: 141 | G166: =IFERROR(clean_alt(INDEX(INDIRECT($G$48&G$51),$F166)),FALSE) -> 0 | H166: =IFERROR(clean_alt(INDEX(INDIRECT($G$48&H$51),$F166)),FALSE) -> 1160000 | I166: =IFERROR(clean_alt(INDEX(INDIRECT($G$48&I$51),$F166)),FALSE) -> 21030000 | J166: =IFERROR(clean_alt(INDEX(INDIRECT($G$48&J$51),$F166)),FALSE) -> 0 | K166: =IFERROR(clean_alt(INDEX(INDIRECT($G$48&K$51),$F166)),FALSE) -> 21200000 | V166: =IFERROR(clean_alt(INDEX(INDIRECT(#REF!&V$51),$E166)),FALSE) -> 0 | W166: =IFERROR(clean_alt(INDEX(INDIRECT(#REF!&W$51),$E166)),FALSE) -> 0 | X166: =IFERROR(clean_alt(INDEX(INDIRECT(#REF!&X$51),$E166)),FALSE) -> 0 | Y166: =IFERROR(clean_alt(INDEX(INDIRECT(#REF!&Y$51),$E166)),FALSE) -> 0 | Z166: =IFERROR(clean_alt(INDEX(INDIRECT(#REF!&Z$51),$E166)),FALSE) -> 0
